Workbook

Sheet Schools Data (hidden)
A1: School Name | B1: Sector | C1: URN | D1: Current LAESTAB | E1: DfE | F1: Cost Centre | G1: Current LAESTAB | H1: RBS Number | I1: School Name
A3: Please choose a school | I3: Please choose a school
A5: BEYA | B5: Nursery | C5: 101251 | D5: 3021000 | E5: 1000 | F5: 10135 | G5: 3021000 | H5: 938600 | I5: BEYA
A6: Moss Hall Nursery | B6: Nursery | C6: 101253 | D6: 3021002 | E6: 1002 | F6: 10132 | G6: 3021002 | H6: 938602 | I6: Moss Hall Nursery
A8: Akiva School | B8: Primary | C8: 135086 | D8: 3023520 | E8: 3520 | F8: 11094 | G8: 3023520 | H8: 938701 | I8: Akiva School
A9: All Saints' CE Primary School NW2 | B9: Primary | C9: 101315 | D9: 3023300 | E9: 3300 | F9: 10040 | G9: 3023300 | H9: 938652 | I9: All Saints' CE Primary School NW2
A10: All Saints' CE Primary School, N20 | B10: Primary | C10: 101329 | D10: 3023317 | E10: 3317 | F10: 10042 | G10: 3023317 | H10: 938664 | I10: All Saints' CE Primary School, N20
A11: Annunciation Catholic Infant School | B11: Primary | C11: 101330 | D11: 3023500 | E11: 3500 | F11: 10043 | G11: 3023500 | H11: 938665 | I11: Annunciation Catholic Infant School
A12: Annunciation Catholic Junior School | B12: Primary | C12: 101342 | D12: 3023514 | E12: 3514 | F12: 10117 | G12: 3023514 | H12: 938677 | I12: Annunciation Catholic Junior School
A13: Barnfield School | B13: Primary | C13: 101258 | D13: 3022002 | E13: 2002 | F13: 10044 | G13: 3022002 | H13: 938605 | I13: Barnfield School
A14: Beis Yaakov | B14: Primary | C14: 133365 | D14: 3022079 | E14: 2079 | F14: 10128 | G14: 3022079 | H14: 938651 | I14: Beis Yaakov
A15: Beit Shvidler Primary School | B15: Primary | C15: 136402 | D15: 3023524 | E15: 3524 | F15: 11278 | G15: 3023524 | H15: 938702 | I15: Beit Shvidler Primary School
A16: Bell Lane Primary School | B16: Primary | C16: 101259 | D16: 3022003 | E16: 2003 | F16: 10045 | G16: 3022003 | H16: 938606 | I16: Bell Lane Primary School
A17: Blessed Dominic School | B17: Primary | C17: 101339 | D17: 3023511 | E17: 3511 | F17: 10115 | G17: 3023511 | H17: 938674 | I17: Blessed Dominic School
A18: Brookland Infant & Nursery School | B18: Primary | C18: 101263 | D18: 3022008 | E18: 2008 | F18: 10047 | G18: 3022008 | H18: 938608 | I18: Brookland Infant & Nursery School
A19: Brookland Junior School | B19: Primary | C19: 101262 | D19: 3022007 | E19: 2007 | F19: 10046 | G19: 3022007 | H19: 938607 | I19: Brookland Junior School
A20: Brunswick Park Primary & Nursery School | B20: Primary | C20: 101264 | D20: 3022009 | E20: 2009 | F20: 10048 | G20: 3022009 | H20: 938609 | I20: Brunswick Park Primary & Nursery School
A21: Chalgrove Primary School | B21: Primary | C21: 101309 | D21: 3022067 | E21: 2067 | F21: 10118 | G21: 3022067 | H21: 938642 | I21: Chalgrove Primary School
A22: Christ Church CE Primary School | B22: Primary | C22: 101316 | D22: 3023302 | E22: 3302 | F22: 10050 | G22: 3023302 | H22: 938653 | I22: Christ Church CE Primary School
A23: Church Hill Primary School | B23: Primary | C23: 101266 | D23: 3022011 | E23: 2011 | F23: 10051 | G23: 3022011 | H23: 938611 | I23: Church Hill Primary School
A24: Colindale School | B24: Primary | C24: 101269 | D24: 3022014 | E24: 2014 | F24: 10054 | G24: 3022014 | H24: 938612 | I24: Colindale School
A25: Coppetts Wood | B25: Primary | C25: 101270 | D25: 3022015 | E25: 2015 | F25: 10055 | G25: 3022015 | H25: 938613 | I25: Coppetts Wood
A26: Courtland School | B26: Primary | C26: 101271 | D26: 3022016 | E26: 2016 | F26: 10056 | G26: 3022016 | H26: 938614 | I26: Courtland School
A27: Cromer Road Primary School | B27: Primary | C27: 101272 | D27: 3022017 | E27: 2017 | F27: 10057 | G27: 3022017 | H27: 938615 | I27: Cromer Road Primary School
A28: Danegrove JMI School | B28: Primary | C28: 101314 | D28: 3022073 | E28: 2073 | F28: 10083 | G28: 3022073 | H28: 938646 | I28: Danegrove JMI School
A29: Deansbrook Infant School | B29: Primary | C29: 101274 | D29: 3022019 | E29: 2019 | F29: 10059 | G29: 3022019 | H29: 938617 | I29: Deansbrook Infant School
A30: Dollis Primary School | B30: Primary | C30: 101275 | D30: 3022021 | E30: 2021 | F30: 10061 | G30: 3022021 | H30: 938618 | I30: Dollis Primary School
A31: Edgware Primary School | B31: Primary | C31: 101277 | D31: 3022023 | E31: 2023 | F31: 10063 | G31: 3022023 | H31: 938620 | I31: Edgware Primary School
A32: Fairway Primary School | B32: Primary | C32: 101278 | D32: 3022024 | E32: 2024 | F32: 10064 | G32: 3022024 | H32: 938621 | I32: Fairway Primary School
A33: Foulds | B33: Primary | C33: 101279 | D33: 3022025 | E33: 2025 | F33: 10065 | G33: 3022025 | H33: 938622 | I33: Foulds
A34: Frith Manor School | B34: Primary | C34: 101280 | D34: 3022026 | E34: 2026 | F34: 10066 | G34: 3022026 | H34: 938623 | I34: Frith Manor School
A35: Garden Suburb Infant School | B35: Primary | C35: 101282 | D35: 3022028 | E35: 2028 | F35: 10068 | G35: 3022028 | H35: 938625 | I35: Garden Suburb Infant School
A36: Garden Suburb Junior | B36: Primary | C36: 101281 | D36: 3022027 | E36: 2027 | F36: 10067 | G36: 3022027 | H36: 938624 | I36: Garden Suburb Junior
A37: Goldbeaters Primary School | B37: Primary | C37: 101283 | D37: 3022029 | E37: 2029 | F37: 10069 | G37: 3022029 | H37: 938626 | I37: Goldbeaters Primary School
A38: Hasmonean Primary School | B38: Primary | C38: 130998 | D38: 3023516 | E38: 3516 | F38: 10121 | G38: 3023516 | H38: 938678 | I38: Hasmonean Primary School
A39: Hollickwood JMI School | B39: Primary | C39: 101285 | D39: 3022031 | E39: 2031 | F39: 10071 | G39: 3022031 | H39: 938628 | I39: Hollickwood JMI School
A40: Holly Park School | B40: Primary | C40: 101286 | D40: 3022032 | E40: 2032 | F40: 10072 | G40: 3022032 | H40: 938629 | I40: Holly Park School
A41: Holy Trinity School | B41: Primary | C41: 101317 | D41: 3023304 | E41: 3304 | F41: 10073 | G41: 3023304 | H41: 938654 | I41: Holy Trinity School
A42: Livingstone School | B42: Primary | C42: 101289 | D42: 3022036 | E42: 2036 | F42: 10074 | G42: 3022036 | H42: 938630 | I42: Livingstone School
A43: Manorside Primary School | B43: Primary | C43: 101290 | D43: 3022037 | E43: 2037 | F43: 10075 | G43: 3022037 | H43: 938631 | I43: Manorside Primary School
A44: Martin Primary School | B44: Primary | C44: 135226 | D44: 3023523 | E44: 3523 | F44: 11093 | G44: 3023523 | H44: 938700 | I44: Martin Primary School
A45: Mathilda Marks-Kennedy School | B45: Primary | C45: 101376 | D45: 3025948 | E45: 5948 | F45: 10125 | G45: 3025948 | H45: 938694 | I45: Mathilda Marks-Kennedy School
A46: Menorah Foundation School | B46: Primary | C46: 131359 | D46: 3025949 | E46: 5949 | F46: 10126 | G46: 3025949 | H46: 938695 | I46: Menorah Foundation School
A47: Menorah Primary School | B47: Primary | C47: 101341 | D47: 3023513 | E47: 3513 | F47: 10114 | G47: 3023513 | H47: 938676 | I47: Menorah Primary School
A48: Monken Hadley C E Primary School | B48: Primary | C48: 101318 | D48: 3023305 | E48: 3305 | F48: 10078 | G48: 3023305 | H48: 938655 | I48: Monken Hadley C E Primary School
A49: Monkfrith School | B49: Primary | C49: 101293 | D49: 3022042 | E49: 2042 | F49: 10079 | G49: 3022042 | H49: 938632 | I49: Monkfrith School
A50: Moss Hall Infant School | B50: Primary | C50: 101295 | D50: 3022044 | E50: 2044 | F50: 10081 | G50: 3022044 | H50: 938634 | I50: Moss Hall Infant School
A51: Moss Hall Junior School | B51: Primary | C51: 101294 | D51: 3022043 | E51: 2043 | F51: 10080 | G51: 3022043 | H51: 938633 | I51: Moss Hall Junior School
A52: Shalom Noam Primary School | B52: Primary | C52: 149998 | D52: 3022053 | E52: 2053 | F52: 10113 | G52: 3022053 | H52: 938708 | I52: Shalom Noam Primary School
A53: Northside School | B53: Primary | C53: 101296 | D53: 3022045 | E53: 2045 | F53: 10082 | G53: 3022045 | H53: 938635 | I53: Northside School
A54: Orion Primary School | B54: Primary | C54: 131970 | D54: 3022077 | E54: 2077 | F54: 10127 | G54: 3022077 | H54: 938649 | I54: Orion Primary School
A55: Osidge Primary School | B55: Primary | C55: 101356 | D55: 3025201 | E55: 5201 | F55: 10084 | G55: 3025201 | H55: 938687 | I55: Osidge Primary School
A56: Our Lady of Lourdes School | B56: Primary | C56: 101331 | D56: 3023501 | E56: 3501 | F56: 10085 | G56: 3023501 | H56: 938666 | I56: Our Lady of Lourdes School
A57: Pardes House School | B57: Primary | C57: 133364 | D57: 3022078 | E57: 2078 | F57: 10129 | G57: 3022078 | H57: 938650 | I57: Pardes House School
A58: Queenswell Federation | B58: Primary | C58: 101313 | D58: 3022072 | E58: 2072 | F58: 10086 | G58: 3022072 | H58: 938645 | I58: Queenswell Junior School
A59: Rosh Pinah | B59: Primary | C59: 101340 | D59: 3023512 | E59: 3512 | F59: 10112 | G59: 3023512 | H59: 938675 | I59: Rosh Pinah
A60: Sacred Heart School | B60: Primary | C60: 101338 | D60: 3023510 | E60: 3510 | F60: 10110 | G60: 3023510 | H60: 938673 | I60: Sacred Heart School
A61: St Agnes RC Primary School | B61: Primary | C61: 101332 | D61: 3023502 | E61: 3502 | F61: 10087 | G61: 3023502 | H61: 938667 | I61: St Agnes RC Primary School
A62: St Andrew's C E | B62: Primary | C62: 101327 | D62: 3023315 | E62: 3315 | F62: 10099 | G62: 3023315 | H62: 938662 | I62: St Andrew's C E
A63: St Catherine's R C Primary | B63: Primary | C63: 101333 | D63: 3023504 | E63: 3504 | F63: 10088 | G63: 3023504 | H63: 938668 | I63: St Catherine's R C Primary
A64: St John's CE N20 | B64: Primary | C64: 101321 | D64: 3023309 | E64: 3309 | F64: 10116 | G64: 3023309 | H64: 938657 | I64: St John's CE N20
A65: St John's CE School N11 | B65: Primary | C65: 101319 | D65: 3023307 | E65: 3307 | F65: 10089 | G65: 3023307 | H65: 938656 | I65: St John's CE School N11
A66: St Joseph's Primary School | B66: Primary | C66: 101337 | D66: 3023509 | E66: 3509 | F66: 10107 | G66: 3023509 | H66: 938672 | I66: St Joseph's Primary School
A67: St Mary's C E Primary School N3 | B67: Primary | C67: 101323 | D67: 3023311 | E67: 3311 | F67: 10092 | G67: 3023311 | H67: 938658 | I67: St Mary's C E Primary School N3
A68: St Mary's School EN4 | B68: Primary | C68: 101324 | D68: 3023312 | E68: 3312 | F68: 10093 | G68: 3023312 | H68: 938659 | I68: St Mary's School EN4
A69: St Paul's CE Primary, NW7 | B69: Primary | C69: 101326 | D69: 3023314 | E69: 3314 | F69: 10095 | G69: 3023314 | H69: 938661 | I69: St Paul's CE Primary, NW7
A70: St Paul's School, N11 | B70: Primary | C70: 101325 | D70: 3023313 | E70: 3313 | F70: 10094 | G70: 3023313 | H70: 938660 | I70: St Paul's School, N11
A71: St Theresa's R.C. Primary School | B71: Primary | C71: 101335 | D71: 3023507 | E71: 3507 | F71: 10108 | G71: 3023507 | H71: 938670 | I71: St Theresa's R.C. Primary School
A72: St Vincent's Catholic Primary School | B72: Primary | C72: 101334 | D72: 3023506 | E72: 3506 | F72: 10096 | G72: 3023506 | H72: 938669 | I72: St Vincent's Catholic Primary School
A73: Sunnyfields Primary School | B73: Primary | C73: 101311 | D73: 3022070 | E73: 2070 | F73: 10097 | G73: 3022070 | H73: 938643 | I73: Sunnyfields Primary School
A74: Trent C of E Primary School | B74: Primary | C74: 101328 | D74: 3023316 | E74: 3316 | F74: 10100 | G74: 3023316 | H74: 938663 | I74: Trent C of E Primary School
A75: Tudor School | B75: Primary | C75: 101299 | D75: 3022055 | E75: 2055 | F75: 10101 | G75: 3022055 | H75: 938638 | I75: Tudor School
A76: Underhill School | B76: Primary | C76: 101301 | D76: 3022057 | E76: 2057 | F76: 10103 | G76: 3022057 | H76: 938640 | I76: Underhill School
A77: Wessex Gardens Primary School | B77: Primary | C77: 131617 | D77: 3022076 | E77: 2076 | F77: 10124 | G77: 3022076 | H77: 938648 | I77: Wessex Gardens Primary School
A78: Whitings Hill Primary School | B78: Primary | C78: 101304 | D78: 3022060 | E78: 2060 | F78: 10105 | G78: 3022060 | H78: 938641 | I78: Whitings Hill Primary School
A79: Woodcroft Primary School | B79: Primary | C79: 134677 | D79: 3023518 | E79: 3518 | F79: 10123 | G79: 3023518 | H79: 938679 | I79: Woodcroft Primary School
A80: Woodridge Primary School | B80: Primary | C80: 101298 | D80: 3022054 | E80: 2054 | F80: 10109 | G80: 3022054 | H80: 938637 | I80: Woodridge Primary School
A82: Northgate | B82: PRU | C82: 133749 | D82: 3021102 | E82: 1102 | F82: 10185 | G82: 3021102 | H82: 938705 | I82: Northgate
A83: Pavilion | B83: PRU | C83: 101255 | D83: 3021100 | E83: 1100 | F83: 10188 | G83: 3021100 | H83: 938706 | I83: Pavilion
A85: Finchley Catholic High School | B85: Secondary | C85: 101362 | D85: 3025405 | E85: 5405 | F85: 10145 | G85: 3025405 | H85: 938690 | I85: Finchley Catholic High School
A86: Friern Barnet School | B86: Secondary | C86: 101345 | D86: 3024003 | E86: 4003 | F86: 10139 | G86: 3024003 | H86: 938683 | I86: Friern Barnet School
A87: JCoSS | B87: Secondary | C87: 135747 | D87: 3025427 | E87: 5427 | F87: 11174 | G87: 3025427 | H87: 938693 | I87: JCoSS
A88: Menorah High School (Girls) | B88: Secondary | C88: 142627 | D88: 3024004 | E88: 4004 | F88: 11513 | G88: 3024004 | H88: 938707 | I88: Menorah High School (Girls)
A89: St Michael's Catholic Grammar School | B89: Secondary | C89: 101361 | D89: 3025404 | E89: 5404 | F89: 10148 | G89: 3025404 | H89: 938689 | I89: St Michael's Catholic Grammar School
A90: St. James' Catholic High School | B90: Secondary | C90: 101364 | D90: 3025407 | E90: 5407 | F90: 10142 | G90: 3025407 | H90: 938691 | I90: St. James' Catholic High School
A92: Mapledown | B92: Special | C92: 101397 | D92: 3027010 | E92: 7010 | F92: 10159 | G92: 3027010 | H92: 938699 | I92: Mapledown
A93: Northway | B93: Special | C93: 101395 | D93: 3027005 | E93: 7005 | F93: 10157 | G93: 3027005 | H93: 938697 | I93: Northway
A94: Oakleigh | B94: Special | C94: 101396 | D94: 3027009 | E94: 7009 | F94: 10158 | G94: 3027009 | H94: 938698 | I94: Oakleigh
A96: St Mary's & St John's CE School | B96: All through | C96: 103119 | D96: 3023521 | E96: 3521 | F96: 10698 | G96: 3023521 | H96: 938681 | I96: St Mary's & St John's CE School

Sheet Extraction Sheet (hidden)
A1: Budget | BO1: B01 & B02 | BP1: B06
A2: School Name | B2: Sector | C2: URN | D2: Current LAESTAB | E2: DfE | F2: Cost Centre | G2: RBS Number | H2: OB01 | I2: OB02 | J2: I01 | K2: I02 | L2: I03 | M2: I04 | N2: I05 | O2: I06 | P2: I07 | Q2: I08a | R2: I08b | S2: I09 | T2: I10 | U2: I11 | V2: I12 | W2: I13 | X2: I15 | Y2: I16 | Z2: I17 | AA2: I18a | AB2: I18b | AC2: I18c | AD2: I18d | AE2: Total Revenue Income | AF2: E01 | AG2: E02 | AH2: E03 | AI2: E04 | AJ2: E05 | AK2: E06 | AL2: E07 | AM2: E08 | AN2: E09 | AO2: E10 | AP2: E11 | AQ2: E12 | AR2: E13 | AS2: E14 | AT2: E15 | AU2: E16 | AV2: E17 | AW2: E18 | AX2: E19 | AY2: E20 | AZ2: E21 | BA2: E22 | BB2: E23 | BC2: E24 | BD2: E25 | BE2: E26 | BF2: E27 | BG2: E28a | BH2: E28b | BI2: E29 | BJ2: E30 | BK2: E31 | BL2: E32 | BM2: Total Revenue Expenditure | BN2: In Year Movement | BO2: Closing B01 | BP2: Closing B02 | BQ2: Opening Capital Balance | BR2: CI01 | BS2: CI03 | BT2: CI04 | BU2: Total Capital Income | BV2: CE01 | BW2: CE02 | BX2: CE03 | BY2: CE04 | BZ2: Total Capital Expenditure | CA2: In year capital movement | CB2: Closing Capital Balance | CC2: OB01 2021-22 Opening Balance | CD2: OB01 2021-22 (closing as per budgeted figures) | CE2: OB01 2021-22 (clsoing as per year to date figures) | CF2: OB01 2021-22 (closing as per year end projected figures) | CG2: OB02 2021-22 Opening Balance | CH2: OB02 2021-22 (closing as per budgeted figures) | CI2: OB02 2021-22 (clsoing as per year to date figures) | CJ2: OB02 2021-22 (closing as per year end projected figures) | CK2: OB03 2022-23 Opening Balance | CL2: OB03 2022-23 (closing as per budgeted figures) | CM2: OB03 2022-23 (clsoing as per year to date figures) | CN2: OB03 2022-23 (closing as per year end projected figures) | CO2: Total Budgeted balances | CP2: Total year to date balances | CQ2: total Projected balances
A3: ='1) Front Sheet'!E3 -> Please choose a school | B3: ='1) Front Sheet'!D8 -> 0 | C3: =VLOOKUP(A3,'Schools Data'!A5:G96,3,FALSE) ->  | D3: ='1) Front Sheet'!D7 -> 0 | E3: =VLOOKUP(A3,'Schools Data'!A5:G96,5,FALSE) ->  | F3: =VLOOKUP(A3,'Schools Data'!A5:G96,6,FALSE) ->  | G3: =VLOOKUP(A3,'Schools Data'!A5:H96,8,FALSE) ->  | H3: ='2) Income & Expenditure'!D79 -> 0 | I3: ='2) Income & Expenditure'!D80 -> 0 | J3: ='2) Income & Expenditure'!D15 ->  | K3: ='2) Income & Expenditure'!D16 ->  | L3: ='2) Income & Expenditure'!D17 ->  | M3: ='2) Income & Expenditure'!D18 ->  | N3: ='2) Income & Expenditure'!D19 ->  | O3: ='2) Income & Expenditure'!D20 ->  | P3: ='2) Income & Expenditure'!D21 ->  | Q3: ='2) Income & Expenditure'!D22 ->  | R3: ='2) Income & Expenditure'!D23 ->  | S3: ='2) Income & Expenditure'!D24 ->  | T3: ='2) Income & Expenditure'!D25 ->  | U3: ='2) Income & Expenditure'!D26 ->  | V3: ='2) Income & Expenditure'!D27 ->  | W3: ='2) Income & Expenditure'!D28 ->  | X3: ='2) Income & Expenditure'!D29 ->  | Y3: ='2) Income & Expenditure'!D30 ->  | Z3: ='2) Income & Expenditure'!D31 ->  | AA3: ='2) Income & Expenditure'!D32 ->  | AB3: ='2) Income & Expenditure'!D33 ->  | AC3: ='2) Income & Expenditure'!D34 ->  | AD3: ='2) Income & Expenditure'!D35 ->  | AE3: ='2) Income & Expenditure'!D36 ->  | AF3: ='2) Income & Expenditure'!D40 ->  | AG3: ='2) Income & Expenditure'!D41 ->  | AH3: ='2) Income & Expenditure'!D42 ->  | AI3: ='2) Income & Expenditure'!D43 ->  | AJ3: ='2) Income & Expenditure'!D44 ->  | AK3: ='2) Income & Expenditure'!D45 ->  | AL3: ='2) Income & Expenditure'!D46 ->  | AM3: ='2) Income & Expenditure'!D47 ->  | AN3: ='2) Income & Expenditure'!D48 ->  | AO3: ='2) Income & Expenditure'!D49 ->  | AP3: ='2) Income & Expenditure'!D50 ->  | AQ3: ='2) Income & Expenditure'!D51 ->  | AR3: ='2) Income & Expenditure'!D52 ->  | AS3: ='2) Income & Expenditure'!D53 ->  | AT3: ='2) Income & Expenditure'!D54 ->  | AU3: ='2) Income & Expenditure'!D55 ->  | AV3: ='2) Income & Expenditure'!D56 ->  | AW3: ='2) Income & Expenditure'!D57 ->  | AX3: ='2) Income & Expenditure'!D58 ->  | AY3: ='2) Income & Expenditure'!D59 ->  | AZ3: ='2) Income & Expenditure'!D60 ->  | BA3: ='2) Income & Expenditure'!D61 ->  | BB3: ='2) Income & Expenditure'!D62 ->  | BC3: ='2) Income & Expenditure'!D63 ->  | BD3: ='2) Income & Expenditure'!D64 ->  | BE3: ='2) Income & Expenditure'!D65 ->  | BF3: ='2) Income & Expenditure'!D66 ->  | BG3: ='2) Income & Expenditure'!D67 ->  | BH3: ='2) Income & Expenditure'!D68 ->  | BI3: ='2) Income & Expenditure'!D69 ->  | BJ3: ='2) Income & Expenditure'!D70 ->  | BK3: ='2) Income & Expenditure'!D71 ->  | BL3: ='2) Income & Expenditure'!D72 ->  | BM3: ='2) Income & Expenditure'!D73 ->  | BN3: ='2) Income & Expenditure'!D75 ->  | BO3: ='2) Income & Expenditure'!D84 ->  | BP3: ='2) Income & Expenditure'!D85 ->  | BQ3: ='2) Income & Expenditure'!D110 -> 0 | BR3: ='2) Income & Expenditure'!D92 ->  | BS3: ='2) Income & Expenditure'!D93 ->  | BT3: ='2) Income & Expenditure'!D94 ->  | BU3: ='2) Income & Expenditure'!D95 ->  | BV3: ='2) Income & Expenditure'!D99 ->  | BW3: ='2) Income & Expenditure'!D100 ->  | BX3: ='2) Income & Expenditure'!D101 ->  | BY3: ='2) Income & Expenditure'!D102 ->  | BZ3: ='2) Income & Expenditure'!D103 ->  | CA3: ='2) Income & Expenditure'!D105 ->  | CB3: ='2) Income & Expenditure'!D113 ->  | CC3: ='2) Income & Expenditure'!C125 -> 0 | CD3: ='2) Income & Expenditure'!D125 ->  | CE3: ='2) Income & Expenditure'!E125 -> 0 | CF3: ='2) Income & Expenditure'!H125 -> 0 | CG3: ='2) Income & Expenditure'!C126 -> 0 | CH3: ='2) Income & Expenditure'!D126 ->  | CI3: ='2) Income & Expenditure'!E126 -> 0 | CJ3: ='2) Income & Expenditure'!H126 -> 0 | CK3: ='2) Income & Expenditure'!C127 -> 0 | CL3: ='2) Income & Expenditure'!D127 ->  | CM3: ='2) Income & Expenditure'!E127 -> 0 | CN3: ='2) Income & Expenditure'!H127 -> 0 | CO3: ='2) Income & Expenditure'!D128 ->  | CP3: ='2) Income & Expenditure'!E128 -> 0 | CQ3: ='2) Income & Expenditure'!H128 -> 0
A5: Q2 | EH5: NOT PART OF BALANCE ANY MORE
A6: School Name | B6: Sector | C6: URN | D6: Current LAESTAB | E6: DfE | F6: Cost Centre | G6: RBS Number | H6: OB01 | I6: OB02 | J6: I01 | K6: I02 | L6: I03 | M6: I04 | N6: I05 | O6: I06 | P6: I07 | Q6: I08a | R6: I08b | S6: I09 | T6: I10 | U6: I11 | V6: I12 | W6: I13 | X6: I15 | Y6: I16 | Z6: I17 | AA6: I18a | AB6: I18b | AC6: I18c | AD6: I18d | AE6: Total Revenue Income | AF6: E01 | AG6: E02 | AH6: E03 | AI6: E04 | AJ6: E05 | AK6: E06 | AL6: E07 | AM6: E08 | AN6: E09 | AO6: E10 | AP6: E11 | AQ6: E12 | AR6: E13 | AS6: E14 | AT6: E15 | AU6: E16 | AV6: E17 | AW6: E18 | AX6: E19 | AY6: E20 | AZ6: E21 | BA6: E22 | BB6: E23 | BC6: E24 | BD6: E25 | BE6: E26 | BF6: E27 | BG6: E28a | BH6: E28b | BI6: E29 | BJ6: E30 | BK6: E31 | BL6: E32 | BM6: Total Revenue Expenditure | BN6: In Year Movement | BO6: Closing B01 | BP6: Closing B02 | BQ6: Opening Capital Balance | BR6: CI01 | BS6: CI03 | BT6: CI04 | BU6: Total Capital Income | BV6: CE01 | BW6: CE02 | BX6: CE03 | BY6: CE04 | BZ6: Total Capital Expenditure | CA6: In year capital movement | CB6: Closing Capital Balance | CC6: OB01 2022-23 Opening Balance | CD6: OB01 2022-23 (closing as per budgeted figures) | CE6: OB01 2022-23 (closing as per year to date figures) | CF6: OB01 2022-23 (closing as per year end projected figures) | CG6: OB02 2022-23 Opening Balance | CH6: OB02 2022-23 (closing as per budgeted figures) | CI6: OB02 2022-23 (clsoing as per year to date figures) | CJ6: OB02 2022-23 (closing as per year end projected figures) | CK6: OB03 2022-23 Opening Balance | CL6: OB03 2022-23 (closing as per budgeted figures) | CM6: OB03 2022-23 (closing as per year to date figures) | CN6: OB03 2022-23 (closing as per year end projected figures) | CO6: Total Budgeted balances | CP6: Total year to date balances | CQ6: total Projected balances | CR6: Reconciliation SHEET: Cash & Bank | CS6: BANK REC SHEET: Uncleared Cheques | CT6: Reconciliation SHEET: : Unpresented Deposits | CU6: Reconciliation SHEET: : Petty Cash | CV6: Reconciliation SHEET: : Outstanding VAT | CW6: Creditors / RIA | CX6: Debtors / PIA | CY6: Reconciliation SHEET: : Licensed Deficit/Cash Advances | CZ6: Reconciliation SHEET: Other item 1 | DA6: Reconciliation SHEET: Explanation for Other Item 1 | DB6: Reconciliation SHEET: Other item 2 | DC6: Reconciliation SHEET: Explanation for Other Item 2 | DD6: Reconciliation SHEET: Other item 3 | DE6: Reconciliation SHEET: Explanation for Other Item 3 | DF6: Reconciliation SHEET: Other item 4 | DG6: Reconciliation SHEET: Explanation for Other Item 4 | DH6: Reconciliation SHEET: Net Current Assets | DI6: Reconciliation SHEET: OB01 | DJ6: BANK REC SHEET: OB02 | DK6: Reconciliation SHEET: OB03 | DL6: Reconciliation Sheet: Net Revenue Accruals | DM6: Reconciliation Sheet: Net Capital Accruals | DN6: Reconciliation Sheet: total Reserves | DO6: Reconciliation sheet: VARIANCE | DP6: VAT: VAT on Expenditure to date | DQ6: VAT: VAT on Income to date | DR6: VAT: Payments received to date | DS6: VAT: Outstanding Reimbursements | DT6: CENTRAL ACCOUNT: Funding Retained | DU6: Central Account: April Expenditure | DV6: Central Account: May Expenditure | DW6: Central Account: June Expenditure | DX6: Central Account: July Expenditure | DY6: Central Account: Aug Expenditure | DZ6: Central Account: Sept Expenditure | EA6: Central Account: Oct Expenditure | EB6: Central Account: Nov Expenditure | EC6: Central Account: Dec Expenditure | ED6: Central Account: Jan Expenditure | EE6: Central Account: Feb Expenditure | EF6: Central Account: Mar Expenditure | EG6: Central Account: Total expenditure to Date | EH6: Central Account: Remaining balance | EI6: Total E01 Integra | EJ6: Total E01 RM | EK6: E01 Variance | EL6: Expected Variance | EM6: CFR Coding Error | EN6: Error to be investigated with Capita. Please contact Capita | EO6: Further Variance | EP6: Explanation of Further Variance if necessary | EQ6: Total E02 Integra | ER6: Total E02 RM | ES6: E02 Variance | ET6: Expected Variance | EU6: CFR Coding Error | EV6: Error to be investigated with Capita. Please contact Capita | EW6: Further Variance | EX6: Explanation of Further Variance if necessary | EY6: Total E03 Integra | EZ6: Total E03 RM | FA6: E03 Variance | FB6: Expected Variance | FC6: CFR Coding Error | FD6: Error to be investigated with Capita. Please contact Capita | FE6: Further Variance | FF6: Explanation of Further Variance if necessary | FG6: Total E04 Integra | FH6: Total E04 RM | FI6: E04 Variance | FJ6: Expected Variance | FK6: CFR Coding Error | FL6: Error to be investigated with Capita. Please contact Capita | FM6: Further Variance | FN6: Explanation of Further Variance if necessary | FO6: Total E05 Integra | FP6: Total E05 RM | FQ6: E05 Variance | FR6: Expected Variance | FS6: CFR Coding Error | FT6: Error to be investigated with Capita. Please contact Capita | FU6: Further Variance | FV6: Explanation of Further Variance if necessary | FW6: Total E06 Integra | FX6: Total E06 RM | FY6: E06 Variance | FZ6: Expected Variance | GA6: CFR Coding Error | GB6: Error to be investigated with Capita. Please contact Capita | GC6: Further Variance | GD6: Explanation of Further Variance if necessary | GE6: Total E07 Integra | GF6: Total E07 RM | GG6: E07 Variance | GH6: Expected Variance | GI6: CFR Coding Error | GJ6: Error to be investigated with Capita. Please contact Capita | GK6: Further Variance | GL6: Explanation of Further Variance if necessary | GM6: Total E08 Integra | GN6: Total E08 RM | GO6: E08 Variance | GP6: Expected Variance | GQ6: CFR Coding Error | GR6: Error to be investigated with Capita. Please contact Capita | GS6: Further Variance | GT6: Explanation of Further Variance if necessary | GU6: Total E031 Integra | GV6: Total E031 RM | GW6: E031 Variance | GX6: Expected Variance | GY6: CFR Coding Error | GZ6: Error to be investigated with Capita. Please contact Capita | HA6: Further Variance | HB6: Explanation of Further Variance if necessary | HC6: Salary Coding Correction Necessary | HD6: Salary Coding Balance
A7: ='1) Front Sheet'!E3 -> Please choose a school | B7: ='1) Front Sheet'!D8 -> 0 | C7: =VLOOKUP(A3,'Schools Data'!A5:G96,3,FALSE) ->  | D7: ='1) Front Sheet'!D7 -> 0 | E7: =VLOOKUP(A3,'Schools Data'!A5:G96,5,FALSE) ->  | F7: =VLOOKUP(A3,'Schools Data'!A5:G96,6,FALSE) ->  | G7: =VLOOKUP(A3,'Schools Data'!A5:H96,8,FALSE) ->  | H7: ='2) Income & Expenditure'!E79 -> 0 | I7: ='2) Income & Expenditure'!E80 -> 0 | J7: ='2) Income & Expenditure'!E15 -> 0 | K7: ='2) Income & Expenditure'!E16 -> 0 | L7: ='2) Income & Expenditure'!E17 -> 0 | M7: ='2) Income & Expenditure'!E18 -> 0 | N7: ='2) Income & Expenditure'!E19 -> 0 | O7: ='2) Income & Expenditure'!E20 -> 0 | P7: ='2) Income & Expenditure'!E21 -> 0 | Q7: ='2) Income & Expenditure'!E22 -> 0 | R7: ='2) Income & Expenditure'!E23 -> 0 | S7: ='2) Income & Expenditure'!E24 -> 0 | T7: ='2) Income & Expenditure'!E25 -> 0 | U7: ='2) Income & Expenditure'!E26 -> 0 | V7: ='2) Income & Expenditure'!E27 -> 0 | W7: ='2) Income & Expenditure'!E28 -> 0 | X7: ='2) Income & Expenditure'!E29 -> 0 | Y7: ='2) Income & Expenditure'!E30 -> 0 | Z7: ='2) Income & Expenditure'!E31 -> 0 | AA7: ='2) Income & Expenditure'!E32 -> 0 | AB7: ='2) Income & Expenditure'!E33 -> 0 | AC7: ='2) Income & Expenditure'!E34 -> 0 | AD7: ='2) Income & Expenditure'!E35 -> 0 | AE7: ='2) Income & Expenditure'!E36 -> 0 | AF7: ='2) Income & Expenditure'!E40 -> 0 | AG7: ='2) Income & Expenditure'!E41 -> 0 | AH7: ='2) Income & Expenditure'!E42 -> 0 | AI7: ='2) Income & Expenditure'!E43 -> 0 | AJ7: ='2) Income & Expenditure'!E44 -> 0 | AK7: ='2) Income & Expenditure'!E45 -> 0 | AL7: ='2) Income & Expenditure'!E46 -> 0 | AM7: ='2) Income & Expenditure'!E47 -> 0 | AN7: ='2) Income & Expenditure'!E48 -> 0 | AO7: ='2) Income & Expenditure'!E49 -> 0 | AP7: ='2) Income & Expenditure'!E50 -> 0 | AQ7: ='2) Income & Expenditure'!E51 -> 0 | AR7: ='2) Income & Expenditure'!E52 -> 0 | AS7: ='2) Income & Expenditure'!E53 -> 0 | AT7: ='2) Income & Expenditure'!E54 -> 0 | AU7: ='2) Income & Expenditure'!E55 -> 0 | AV7: ='2) Income & Expenditure'!E56 -> 0 | AW7: ='2) Income & Expenditure'!E57 -> 0 | AX7: ='2) Income & Expenditure'!E58 -> 0 | AY7: ='2) Income & Expenditure'!E59 -> 0 | AZ7: ='2) Income & Expenditure'!E60 -> 0 | BA7: ='2) Income & Expenditure'!E61 -> 0 | BB7: ='2) Income & Expenditure'!E62 -> 0 | BC7: ='2) Income & Expenditure'!E63 -> 0 | BD7: ='2) Income & Expenditure'!E64 -> 0 | BE7: ='2) Income & Expenditure'!E65 -> 0 | BF7: ='2) Income & Expenditure'!E66 -> 0 | BG7: ='2) Income & Expenditure'!E67 -> 0 | BH7: ='2) Income & Expenditure'!E68 -> 0 | BI7: ='2) Income & Expenditure'!E69 -> 0 | BJ7: ='2) Income & Expenditure'!E70 -> 0 | BK7: ='2) Income & Expenditure'!E71 -> 0 | BL7: ='2) Income & Expenditure'!E72 -> 0 | BM7: ='2) Income & Expenditure'!E73 -> 0 | BN7: ='2) Income & Expenditure'!E75 -> 0 | BO7: ='2) Income & Expenditure'!E84 -> 0 | BP7: ='2) Income & Expenditure'!E85 -> 0 | BQ7: ='2) Income & Expenditure'!E110 -> 0 | BR7: ='2) Income & Expenditure'!E92 -> 0 | BS7: ='2) Income & Expenditure'!E93 -> 0 | BT7: ='2) Income & Expenditure'!E94 -> 0 | BU7: ='2) Income & Expenditure'!E95 -> 0 | BV7: ='2) Income & Expenditure'!E99 -> 0 | BW7: ='2) Income & Expenditure'!E100 -> 0 | BX7: ='2) Income & Expenditure'!E101 -> 0 | BY7: ='2) Income & Expenditure'!E102 -> 0 | BZ7: ='2) Income & Expenditure'!E103 -> 0 | CA7: ='2) Income & Expenditure'!E105 -> 0 | CB7: ='2) Income & Expenditure'!E113 -> 0 | CC7: ='2) Income & Expenditure'!C125 -> 0 | CD7: ='2) Income & Expenditure'!D125 ->  | CE7: ='2) Income & Expenditure'!E125 -> 0 | CF7: ='2) Income & Expenditure'!H125 -> 0 | CG7: ='2) Income & Expenditure'!C126 -> 0 | CH7: ='2) Income & Expenditure'!D126 ->  | CI7: ='2) Income & Expenditure'!E126 -> 0 | CJ7: ='2) Income & Expenditure'!H126 -> 0 | CK7: ='2) Income & Expenditure'!C127 -> 0 | CL7: ='2) Income & Expenditure'!D127 ->  | CM7: ='2) Income & Expenditure'!E127 -> 0 | CN7: ='2) Income & Expenditure'!H127 -> 0 | CO7: ='2) Income & Expenditure'!D128 ->  | CP7: ='2) Income & Expenditure'!E128 -> 0 | CQ7: ='2) Income & Expenditure'!H128 -> 0 | CR7: ='3) Reconciliation'!D13 -> 0 | CS7: ='3) Reconciliation'!D14 -> 0 | CT7: ='3) Reconciliation'!D15 -> 0 | CU7: ='3) Reconciliation'!D16 -> 0 | CV7: ='3) Reconciliation'!D17 -> 0 | CW7: ='3) Reconciliation'!D18 -> 0 | CX7: ='3) Reconciliation'!D19 -> 0 | CY7: ='3) Reconciliation'!D20 -> 0 | CZ7: ='3) Reconciliation'!D22 -> 0 | DA7: ='3) Reconciliation'!F22 -> 0 | DB7: ='3) Reconciliation'!D23 -> 0 | DC7: ='3) Reconciliation'!F23 -> 0 | DD7: ='3) Reconciliation'!D24 -> 0 | DE7: ='3) Reconciliation'!F24 -> 0 | DF7: ='3) Reconciliation'!D25 -> 0 | DG7: ='3) Reconciliation'!F25 -> 0 | DH7: ='3) Reconciliation'!D27 -> 0 | DI7: ='3) Reconciliation'!D32 -> 0 | DJ7: ='3) Reconciliation'!D33 -> 0 | DK7: ='3) Reconciliation'!D34 -> 0 | DL7: ='3) Reconciliation'!D35 -> 0 | DM7: ='3) Reconciliation'!D36 -> 0 | DN7: ='3) Reconciliation'!D37 -> 0 | DO7: ='3) Reconciliation'!D40 -> 0 | DP7: ='4) VAT Reconciliation'!G12 -> 0 | DQ7: ='4) VAT Reconciliation'!G13 -> 0 | DR7: ='4) VAT Reconciliation'!E30 -> 0 | DS7: ='4) VAT Reconciliation'!E32 -> 0 | DT7: ='5) Central Salary Account Rec'!F11 -> 0 | DU7: ='5) Central Salary Account Rec'!E15 -> 0 | DV7: ='5) Central Salary Account Rec'!E16 -> 0 | DW7: ='5) Central Salary Account Rec'!E17 -> 0 | DX7: ='5) Central Salary Account Rec'!E18 -> 0 | DY7: ='5) Central Salary Account Rec'!E19 -> 0 | DZ7: ='5) Central Salary Account Rec'!E20 -> 0 | EA7: ='5) Central Salary Account Rec'!E21 -> 0 | EB7: ='5) Central Salary Account Rec'!E22 -> 0 | EC7: ='5) Central Salary Account Rec'!E23 -> 0 | ED7: ='5) Central Salary Account Rec'!E24 -> 0 | EE7: ='5) Central Salary Account Rec'!E25 -> 0 | EF7: ='5) Central Salary Account Rec'!E26 -> 0 | EG7: ='5) Central Salary Account Rec'!E27 -> 0 | EH7: ='5) Central Salary Account Rec'!E30 -> 0 | EI7: ='5) Central Salary Account Rec'!N34 -> 0 | EJ7: ='5) Central Salary Account Rec'!O34 -> 0 | EK7: ='5) Central Salary Account Rec'!P34 -> 0 | EL7: ='5) Central Salary Account Rec'!Q34 -> 0 | EM7: ='5) Central Salary Account Rec'!R34 -> 0 | EN7: ='5) Central Salary Account Rec'!S34 -> 0 | EO7: ='5) Central Salary Account Rec'!T34 -> 0 | EP7: ='5) Central Salary Account Rec'!U34 -> 0 | EQ7: ='5) Central Salary Account Rec'!N35 -> 0 | ER7: ='5) Central Salary Account Rec'!O35 -> 0 | ES7: ='5) Central Salary Account Rec'!P35 -> 0 | ET7: ='5) Central Salary Account Rec'!Q35 -> 0 | EU7: ='5) Central Salary Account Rec'!R35 -> 0 | EV7: ='5) Central Salary Account Rec'!S35 -> 0 | EW7: ='5) Central Salary Account Rec'!T35 -> 0 | EX7: ='5) Central Salary Account Rec'!U35 -> 0 | EY7: ='5) Central Salary Account Rec'!N36 -> 0 | EZ7: ='5) Central Salary Account Rec'!O36 -> 0 | FA7: ='5) Central Salary Account Rec'!P36 -> 0 | FB7: ='5) Central Salary Account Rec'!Q36 -> 0 | FC7: ='5) Central Salary Account Rec'!R36 -> 0 | FD7: ='5) Central Salary Account Rec'!S36 -> 0 | FE7: ='5) Central Salary Account Rec'!T36 -> 0 | FF7: ='5) Central Salary Account Rec'!U36 -> 0 | FG7: ='5) Central Salary Account Rec'!N37 -> 0 | FH7: ='5) Central Salary Account Rec'!O37 -> 0 | FI7: ='5) Central Salary Account Rec'!P37 -> 0 | FJ7: ='5) Central Salary Account Rec'!Q37 -> 0 | FK7: ='5) Central Salary Account Rec'!R37 -> 0 | FL7: ='5) Central Salary Account Rec'!S37 -> 0 | FM7: ='5) Central Salary Account Rec'!T37 -> 0 | FN7: ='5) Central Salary Account Rec'!U37 -> 0 | FO7: ='5) Central Salary Account Rec'!N38 -> 0 | FP7: ='5) Central Salary Account Rec'!O38 -> 0 | FQ7: ='5) Central Salary Account Rec'!P38 -> 0 | FR7: ='5) Central Salary Account Rec'!Q38 -> 0 | FS7: ='5) Central Salary Account Rec'!R38 -> 0 | FT7: ='5) Central Salary Account Rec'!S38 -> 0 | FU7: ='5) Central Salary Account Rec'!T38 -> 0 | FV7: ='5) Central Salary Account Rec'!U38 -> 0 | FW7: ='5) Central Salary Account Rec'!N39 -> 0 | FX7: ='5) Central Salary Account Rec'!O39 -> 0 | FY7: ='5) Central Salary Account Rec'!P39 -> 0 | FZ7: ='5) Central Salary Account Rec'!Q39 -> 0 | GA7: ='5) Central Salary Account Rec'!R39 -> 0 | GB7: ='5) Central Salary Account Rec'!S39 -> 0 | GC7: ='5) Central Salary Account Rec'!T39 -> 0 | GD7: ='5) Central Salary Account Rec'!U39 -> 0 | GE7: ='5) Central Salary Account Rec'!N40 -> 0 | GF7: ='5) Central Salary Account Rec'!O40 -> 0 | GG7: ='5) Central Salary Account Rec'!P40 -> 0 | GH7: ='5) Central Salary Account Rec'!Q40 -> 0 | GI7: ='5) Central Salary Account Rec'!R40 -> 0 | GJ7: ='5) Central Salary Account Rec'!S40 -> 0 | GK7: ='5) Central Salary Account Rec'!T40 -> 0 | GL7: ='5) Central Salary Account Rec'!U40 -> 0 | GM7: ='5) Central Salary Account Rec'!N41 -> 0 | GN7: ='5) Central Salary Account Rec'!O41 -> 0 | GO7: ='5) Central Salary Account Rec'!P41 -> 0 | GP7: ='5) Central Salary Account Rec'!Q41 -> 0 | GQ7: ='5) Central Salary Account Rec'!R41 -> 0 | GR7: ='5) Central Salary Account Rec'!S41 -> 0 | GS7: ='5) Central Salary Account Rec'!T41 -> 0 | GT7: ='5) Central Salary Account Rec'!U41 -> 0 | GU7: ='5) Central Salary Account Rec'!N42 -> 0 | GV7: ='5) Central Salary Account Rec'!O42 -> 0 | GW7: ='5) Central Salary Account Rec'!P42 -> 0 | GX7: ='5) Central Salary Account Rec'!Q42 -> 0 | GY7: ='5) Central Salary Account Rec'!R42 -> 0 | GZ7: ='5) Central Salary Account Rec'!S42 -> 0 | HA7: ='5) Central Salary Account Rec'!T42 -> 0 | HB7: ='5) Central Salary Account Rec'!U42 -> 0 | HC7: =IF(SUMIF('5) Central Salary Account Rec'!R34:R42,">0")>0,"Yes","no") -> no | HD7: =IF(HC7="no",0,'5) Central Salary Account Rec'!R43) -> 0 | HF7: =(H3+I3+BN3)/AE3 -> 
A9: Projection
A10: School Name | B10: Sector | C10: URN | D10: Current LAESTAB | E10: DfE | F10: Cost Centre | G10: RBS Number | H10: OB01 | I10: OB02 | J10: I01 | K10: I02 | L10: I03 | M10: I04 | N10: I05 | O10: I06 | P10: I07 | Q10: I08a | R10: I08b | S10: I09 | T10: I10 | U10: I11 | V10: I12 | W10: I13 | X10: I15 | Y10: I16 | Z10: I17 | AA10: I18a | AB10: I18b | AC10: I18c | AD10: I18d | AE10: Total Revenue Income | AF10: E01 | AG10: E02 | AH10: E03 | AI10: E04 | AJ10: E05 | AK10: E06 | AL10: E07 | AM10: E08 | AN10: E09 | AO10: E10 | AP10: E11 | AQ10: E12 | AR10: E13 | AS10: E14 | AT10: E15 | AU10: E16 | AV10: E17 | AW10: E18 | AX10: E19 | AY10: E20 | AZ10: E21 | BA10: E22 | BB10: E23 | BC10: E24 | BD10: E25 | BE10: E26 | BF10: E27 | BG10: E28a | BH10: E28b | BI10: E29 | BJ10: E30 | BK10: E31 | BL10: E32 | BM10: Total Revenue Expenditure | BN10: In Year Movement | BO10: Closing B01 | BP10: Closing B02 | BQ10: Opening Capital Balance | BR10: CI01 | BS10: CI03 | BT10: CI04 | BU10: Total Capital Income | BV10: CE01 | BW10: CE02 | BX10: CE03 | BY10: CE04 | BZ10: Total Capital Expenditure | CA10: In year capital movement | CB10: Closing Capital Balance | CC10: OB01 2022-23 Opening Balance | CD10: OB01 2022-23 (closing as per budgeted figures) | CE10: OB01 2022-23 (year to date figures) | CF10: OB01 2022-23 (closing as per year end projected figures) | CG10: OB02 2022-23 Opening Balance | CH10: OB02 2022-23 (closing as per budgeted figures) | CI10: OB02 2022-23 (year to date figures) | CJ10: OB02 2022-23 (closing as per year end projected figures) | CK10: OB03 2022-23 Opening Balance | CL10: OB03 2022-23 (closing as per budgeted figures) | CM10: OB03 2022-23 (year to date figures) | CN10: OB03 2022-23 (closing as per year end projected figures) | CO10: Total Budgeted balances | CP10: Total year to date balances | CQ10: total Projected balances | CR10: Forecasted Revenue balances to Forecasted Income
A11: ='1) Front Sheet'!E3 -> Please choose a school | B11: ='1) Front Sheet'!D8 -> 0 | C11: =VLOOKUP(A3,'Schools Data'!A5:G96,3,FALSE) ->  | D11: ='1) Front Sheet'!D7 -> 0 | E11: =VLOOKUP(A3,'Schools Data'!A5:G96,5,FALSE) ->  | F11: =VLOOKUP(A3,'Schools Data'!A5:G96,6,FALSE) ->  | G11: =VLOOKUP(A3,'Schools Data'!A5:H96,8,FALSE) ->  | H11: ='2) Income & Expenditure'!F79 -> 0 | I11: ='2) Income & Expenditure'!F85 -> 0 | J11: ='2) Income & Expenditure'!F15 -> 0 | K11: ='2) Income & Expenditure'!F16 -> 0 | L11: ='2) Income & Expenditure'!F17 -> 0 | M11: ='2) Income & Expenditure'!F18 -> 0 | N11: ='2) Income & Expenditure'!F19 -> 0 | O11: ='2) Income & Expenditure'!F20 -> 0 | P11: ='2) Income & Expenditure'!F21 -> 0 | Q11: ='2) Income & Expenditure'!F22 -> 0 | R11: ='2) Income & Expenditure'!F23 -> 0 | S11: ='2) Income & Expenditure'!F24 -> 0 | T11: ='2) Income & Expenditure'!F25 -> 0 | U11: ='2) Income & Expenditure'!F26 -> 0 | V11: ='2) Income & Expenditure'!F27 -> 0 | W11: ='2) Income & Expenditure'!F28 -> 0 | X11: ='2) Income & Expenditure'!F29 -> 0 | Y11: ='2) Income & Expenditure'!F30 -> 0 | Z11: ='2) Income & Expenditure'!F31 -> 0 | AA11: ='2) Income & Expenditure'!F32 -> 0 | AB11: ='2) Income & Expenditure'!F33 -> 0 | AC11: ='2) Income & Expenditure'!F34 -> 0 | AD11: ='2) Income & Expenditure'!F35 -> 0 | AE11: ='2) Income & Expenditure'!F36 -> 0 | AF11: ='2) Income & Expenditure'!F40 -> 0 | AG11: ='2) Income & Expenditure'!F41 -> 0 | AH11: ='2) Income & Expenditure'!F42 -> 0 | AI11: ='2) Income & Expenditure'!F43 -> 0 | AJ11: ='2) Income & Expenditure'!F44 -> 0 | AK11: ='2) Income & Expenditure'!F45 -> 0 | AL11: ='2) Income & Expenditure'!F46 -> 0 | AM11: ='2) Income & Expenditure'!F47 -> 0 | AN11: ='2) Income & Expenditure'!F48 -> 0 | AO11: ='2) Income & Expenditure'!F49 -> 0 | AP11: ='2) Income & Expenditure'!F50 -> 0 | AQ11: ='2) Income & Expenditure'!F51 -> 0 | AR11: ='2) Income & Expenditure'!F52 -> 0 | AS11: ='2) Income & Expenditure'!F53 -> 0 | AT11: ='2) Income & Expenditure'!F54 -> 0 | AU11: ='2) Income & Expenditure'!F55 -> 0 | AV11: ='2) Income & Expenditure'!F56 -> 0 | AW11: ='2) Income & Expenditure'!F57 -> 0 | AX11: ='2) Income & Expenditure'!F58 -> 0 | AY11: ='2) Income & Expenditure'!F59 -> 0 | AZ11: ='2) Income & Expenditure'!F60 -> 0 | BA11: ='2) Income & Expenditure'!F61 -> 0 | BB11: ='2) Income & Expenditure'!F62 -> 0 | BC11: ='2) Income & Expenditure'!F63 -> 0 | BD11: ='2) Income & Expenditure'!F64 -> 0 | BE11: ='2) Income & Expenditure'!F65 -> 0 | BF11: ='2) Income & Expenditure'!F66 -> 0 | BG11: ='2) Income & Expenditure'!F67 -> 0 | BH11: ='2) Income & Expenditure'!F68 -> 0 | BI11: ='2) Income & Expenditure'!F69 -> 0 | BJ11: ='2) Income & Expenditure'!F70 -> 0 | BK11: ='2) Income & Expenditure'!F71 -> 0 | BL11: ='2) Income & Expenditure'!F72 -> 0 | BM11: ='2) Income & Expenditure'!F73 -> 0 | BN11: ='2) Income & Expenditure'!F75 -> 0 | BO11: ='2) Income & Expenditure'!F84 -> 0 | BP11: ='2) Income & Expenditure'!F85 -> 0 | BQ11: ='2) Income & Expenditure'!J110 -> 0 | BR11: ='2) Income & Expenditure'!F92 -> 0 | BS11: ='2) Income & Expenditure'!F93 -> 0 | BT11: ='2) Income & Expenditure'!F94 -> 0 | BU11: ='2) Income & Expenditure'!F95 -> 0 | BV11: ='2) Income & Expenditure'!F99 -> 0 | BW11: ='2) Income & Expenditure'!F100 -> 0 | BX11: ='2) Income & Expenditure'!F101 -> 0 | BY11: ='2) Income & Expenditure'!F102 -> 0 | BZ11: ='2) Income & Expenditure'!F103 -> 0 | CA11: ='2) Income & Expenditure'!F105 -> 0 | CB11: ='2) Income & Expenditure'!J113 -> 0 | CC11: ='2) Income & Expenditure'!C125 -> 0 | CD11: ='2) Income & Expenditure'!D125 ->  | CE11: ='2) Income & Expenditure'!E125 -> 0 | CF11: ='2) Income & Expenditure'!F125 -> 0 | CG11: ='2) Income & Expenditure'!C126 -> 0 | CH11: ='2) Income & Expenditure'!D126 ->  | CI11: ='2) Income & Expenditure'!E126 -> 0 | CJ11: ='2) Income & Expenditure'!F126 -> 0 | CK11: ='2) Income & Expenditure'!C127 -> 0 | CL11: ='2) Income & Expenditure'!D127 ->  | CM11: ='2) Income & Expenditure'!E127 -> 0 | CN11: ='2) Income & Expenditure'!F127 -> 0 | CO11: ='2) Income & Expenditure'!D128 ->  | CP11: ='2) Income & Expenditure'!E128 -> 0 | CQ11: ='2) Income & Expenditure'!F128 -> 0 | CR11: =IF(ISERROR((CF3+CJ3)/AE3),0,(CF3+CJ3)/AE3) -> 0

Sheet 1) Front Sheet
A1: Barnet Maintained Schools' Quarterly Return Template 2022-23 | W1: Please Select Period
N2: What you need to complete this quarterly return | W2: Q1
E3: Please choose a school | N3: 1) Year to date 2022-23 finance system reports to 31st December 2022, showing income and expenditure by CFR code and opening balances | W3: Q2
N4: 2) Bank statements for period ended 31st December 2022 | W4: Q3
N5: 3) System Bank Reconcilition as at 31st December 2022 | W5: Q4 - year end
N6: 4) System reports showing unpresented cheques/deposits to 31st December 2022
C7: DFE No: | D7: =IF(ISERROR(VLOOKUP(E3,'CFR BenchmarkingData 2019-20'!$C$5:CE93,2,0)),0,VLOOKUP(E3,'CFR BenchmarkingData 2019-20'!$C$5:CE93,2,0)) -> 0 | N7: 5) System report showing VAT income and expenditure to 31st December 2022
B8: Phase: | D8: =VLOOKUP(E3,'Schools Data'!A3:C96,2,FALSE) -> 0 | H8: Year | I8: 2022-23 | N8: 6) Data pertaining to central account (income retained & expenditure to 31st March 2023)
C9: Cost Centre: | D9: =VLOOKUP(E3,'Schools Data'!$A$3:$F$96,6,FALSE) -> 0
C10: Period | D10: Q3 | H10: Reporting Date | I10: 2022-12-31
D11: 01/04/2022 - 31/03/2023 | I11: =IF(I10="","Please enter the date above, pertaining to the date the system reports were downloaded.","") -> 
A13: Instructions:
A15: Step 1: | B15: Select your school from the drop down list above, enter your reporting date. The reporting date should be 31st December 2022.
A17: Step 2: | B17: Go to 2) Income and Expenditure Tab and fill in the cells shaded in gold. All figures should be positive. PLEASE PASTE YOUR INCOME & EXPENDITURE REPORT ONTO THE SCH.SYSTEM SPEND-TO-DATE TAB. Please enter figures for 22-23 budget (column D) if not already pre-populated. Add year to date actuals as 31st December 2022 (column E). These figures should all be available from RM system downloads, which should be pasted into the Sch.System spend-to-date tab on this spreadsheet. If possible, please use formulae to link these figures to reduce the chance of error. In Column G please add any accruals (only at Q4). Income codes - debtor should be positive and Receipts in Advance should be negative. Expenditure codes - creditors should be positive and payment in advance should be negative. In Column K, we have included the figures paid to the school by the Barnet School Funding Team. Please leave a short explanation should the value you enter in Column E be higher than the value in Column K. There may be perfectly good reasons for this (e.g. the figure in Column K for I01 does not include EY income, or maybe your received some income from both the Barnet Schools Funding Team and another source), but the figure should definitely not be lower.
A19: Step 3: | B19: Go to 3) Reconciliation tab. Enter your bank account's statement figure in the yellow cell D13 as of the chosen date. Please only enter as a negative figure if your account is overdrawn. PLEASE PASTE YOUR BANK STATEMENT ONTO THE BANK STATEMENT TAB. PLEASE PASTE THE SYSTEM BANK REC AS AT 31st DECEMBER 2022 - This is now an audit requirement Fill in the yellow cells for unpresented cheques (as a negative figure), and unpresented deposits and petty cash (as positive figures). These should all be supported by system reports. PLEASE PASTE YOUR UNPRESENTED ITEMS ONTO THE UNPRESENTED ITEMS TAB Completing Step 4 (VAT reconciliation) will automoatically fill in cell D17 to record the amount of VAT owed to the school as of the chosen date (positive figure) If your school uses Capita payroll (Options A and C schools), please complete Step 5 below which will then will automatically populate cell D21 (the cash amount outstanding for your school towards payroll). If your school uses a different payroll provider, please leave this figure blank. If your school has received cash advances, please enter amount in cell D20 (negative figure) Cells D22 and D25 are available for items that the school feels should be included in this reconciliation. Please add explanations in the available cells if figures are entered here. An example would be the central account brought forward figure if it has not yet been cleared to 0.
A21: Step 4: | B21: Go to 4) VAT Reconciliation PLEASE PASTE YOUR VAT REPORTS FOR THE QUARTER ONTO VAT REPORT FOR THE QUARTER TAB. Enter the amount your school has paid on VAT for the current year to date in the yellow cell G12. This should be supported by a system report. Enter how much VAT income your school has received for the current year to date in the yellow cell G13. This should be supported by a system report. The spreadsheet shows how much VAT has been reimbursed by the LA in cells E18 - E29, according to our records at the time of publication of the sheet. Please enter figures for VAT received in the yellow cells should you have received VAT payments not already shown. Cell E32 calculates the amount of VAT outstanding owed to the school. This figure should be the same as the figure reported in 3) Reconciliation
A23: Step 5: | B23: Go to 5) Central Account PLEASE PASTE YOUR CENTRAL A/C SUMMARY SHEET ONTO THE CENTRAL ACCOUNT SUMMARY REPORT TAB The LA is no longer retaining budget share on behalf of the schools. Budget share will be paid monthly with the previous month's salary expenditure substracted. If your school has coded the amount we had retained at the start of the year as income in I01 already, the suggestion is to reverse that coding and only code the cash that has been allocated each month, gross of the salary deduction. If your school has paid all of its salary invoices, the figure in cell E30 should equal the March salary amount. You will receive a final invoice/email confirming this amount before year end. If your school has not yet paid all of the invoices, please overwrite this figure with the total cash owed to Barnet. Cells E15 to E26 show total salary expenditure by month as per the Capita postings to Integra. This should equal your schools E01 - E08 + E31 expenditure, unless you have coded extra salaries here which were not paid by the central account. This figure is broken down in cells A33 - H33 to allow you to more easily identify discrepancies between the integra postings and the postings to RM. Please give explanations where there are variances and correct with Capita if the total is incorrect.

Sheet 2) Income & Expenditure
O1: =VLOOKUP(D2,'Schools Data'!$D$5:$F$96,3,FALSE) -> 
A2: LBB Schools Quarterly Return | B2: DfE Number | D2: ='1) Front Sheet'!D7 -> 0
B3: School Name | D3: ='1) Front Sheet'!E3 -> Please choose a school
B4: Phase | D4: ='1) Front Sheet'!D8:F8 -> 0
B5: Cost Centre | D5: ='1) Front Sheet'!D9 -> 0
B6: Reporting Period | D6: ='1) Front Sheet'!D10 -> Q3
B7: Year | D7: ='1) Front Sheet'!I8 -> 2022-23
B9: REPORTING DATE | D9: ='1) Front Sheet'!I10 -> 2022-12-31 | M9: =IF(D9=0/1/1900,"Please enter date on front sheet","") -> 
E11: Please attach system spend to date report in the relevant sheet
A12: IN YEAR REVENUE ACCOUNTS
A13: All figures should be net of VAT | C13: 2021-22 Outturn | D13: 2022-23 Budget (as per Q2 return) | E13: 2022-23 Year-to-date actuals (System Reports) (BEFORE ACCRUALS - only Q4) | F13: 2022-23 Projected Outturn | H13: 2022-23 Year End Adjustments (Accruals) - only Q4 | J13: 2022-23 Final Year End Balances | L13: Variance (budget vs projected outturn) | M13: Explanation of material variances
A14: Income | B14: CFR Code | C14: £ | D14: £ | E14: £ | F14: £ | H14: £ | J14: £ | L14: £
A15: Funds delegated by the LA - SBS, Early Years, SEN Places | B15: I01 | C15: =IFERROR(VLOOKUP($D$2,CFR20212022_BenchMarkDataReport!$D$4:$CJ$91,18,0),0) -> 0 | D15: =VLOOKUP($D$2, '22-23 Budget YTD'!$D$4:$CL$90, MATCH($B$15, '22-23 Budget YTD'!$D$3:$CL$3, 0), 0) ->  | J15: =H15+E15 -> 0 | L15: =D15-F15 -> 
A16: Funding for sixth form students | B16: I02 | C16: =IFERROR(VLOOKUP($D$2,CFR20212022_BenchMarkDataReport!$D$4:$CJ$91,19,0),0) -> 0 | D16: =VLOOKUP($D$2, '22-23 Budget YTD'!$D$4:$CL$90, MATCH($B$16, '22-23 Budget YTD'!$D$3:$CL$3, 0), 0) ->  | J16: =H16+E16 -> 0
A17: High needs SEN top-up funding | B17: I03 | C17: =IFERROR(VLOOKUP($D$2,CFR20212022_BenchMarkDataReport!$D$4:$CJ$91,20,0),0) -> 0 | D17: =VLOOKUP($D$2, '22-23 Budget YTD'!$D$4:$CL$90, MATCH($B$17, '22-23 Budget YTD'!$D$3:$CL$3, 0), 0) ->  | J17: 0
A18: Funding for minority ethnic pupils | B18: I04 | C18: =IFERROR(VLOOKUP($D$2,CFR20212022_BenchMarkDataReport!$D$4:$CJ$91,21,0),0) -> 0 | D18: =VLOOKUP($D$2, '22-23 Budget YTD'!$D$4:$CL$90, MATCH($B$18, '22-23 Budget YTD'!$D$3:$CL$3, 0), 0) ->  | J18: 0
A19: Pupil premium | B19: I05 | C19: =IFERROR(VLOOKUP($D$2,CFR20212022_BenchMarkDataReport!$D$4:$CJ$91,22,0),0) -> 0 | D19: =VLOOKUP($D$2, '22-23 Budget YTD'!$D$4:$CL$90, MATCH($B$19, '22-23 Budget YTD'!$D$3:$CL$3, 0), 0) ->  | J19: 0
A20: Other government grants | B20: I06 | C20: =IFERROR(VLOOKUP($D$2,CFR20212022_BenchMarkDataReport!$D$4:$CJ$91,23,0),0) -> 0 | D20: =VLOOKUP($D$2, '22-23 Budget YTD'!$D$4:$CL$90, MATCH($B$20, '22-23 Budget YTD'!$D$3:$CL$3, 0), 0) ->  | J20: 0
A21: Other grants and payments | B21: I07 | C21: =IFERROR(VLOOKUP($D$2,CFR20212022_BenchMarkDataReport!$D$4:$CJ$91,24,0),0) -> 0 | D21: =VLOOKUP($D$2, '22-23 Budget YTD'!$D$4:$CL$90, MATCH($B$21, '22-23 Budget YTD'!$D$3:$CL$3, 0), 0) ->  | J21: 0
A22: Income from letting premises | B22: I08a | C22: =IFERROR(VLOOKUP($D$2,CFR20212022_BenchMarkDataReport!$D$4:$CJ$91,25,0),0) -> 0 | D22: =VLOOKUP($D$2, '22-23 Budget YTD'!$D$4:$CL$90, MATCH($B$22, '22-23 Budget YTD'!$D$3:$CL$3, 0), 0) ->  | J22: 0
A23: Other income from facilities and services | B23: I08b | C23: =IFERROR(VLOOKUP($D$2,CFR20212022_BenchMarkDataReport!$D$4:$CJ$91,26,0),0) -> 0 | D23: =VLOOKUP($D$2, '22-23 Budget YTD'!$D$4:$CL$90, MATCH($B$23, '22-23 Budget YTD'!$D$3:$CL$3, 0), 0) ->  | J23: 0
A24: Income from catering | B24: I09 | C24: =IFERROR(VLOOKUP($D$2,CFR20212022_BenchMarkDataReport!$D$4:$CJ$91,27,0),0) -> 0 | D24: =VLOOKUP($D$2, '22-23 Budget YTD'!$D$4:$CL$90, MATCH($B$24, '22-23 Budget YTD'!$D$3:$CL$3, 0), 0) ->  | J24: 0
A25: Receipts from supply teacher insurance claims | B25: I10 | C25: =IFERROR(VLOOKUP($D$2,CFR20212022_BenchMarkDataReport!$D$4:$CJ$91,28,0),0) -> 0 | D25: =VLOOKUP($D$2, '22-23 Budget YTD'!$D$4:$CL$90, MATCH($B$25, '22-23 Budget YTD'!$D$3:$CL$3, 0), 0) ->  | J25: 0
A26: Receipts from other insurance claims | B26: I11 | C26: =IFERROR(VLOOKUP($D$2,CFR20212022_BenchMarkDataReport!$D$4:$CJ$91,29,0),0) -> 0 | D26: =VLOOKUP($D$2, '22-23 Budget YTD'!$D$4:$CL$90, MATCH($B$26, '22-23 Budget YTD'!$D$3:$CL$3, 0), 0) ->  | J26: 0
A27: Income from contributions to visits etc. | B27: I12 | C27: =IFERROR(VLOOKUP($D$2,CFR20212022_BenchMarkDataReport!$D$4:$CJ$91,30,0),0) -> 0 | D27: =VLOOKUP($D$2, '22-23 Budget YTD'!$D$4:$CL$90, MATCH($B$27, '22-23 Budget YTD'!$D$3:$CL$3, 0), 0) ->  | J27: 0
A28: Donations and/or voluntary funds | B28: I13 | C28: =IFERROR(VLOOKUP($D$2,CFR20212022_BenchMarkDataReport!$D$4:$CJ$91,31,0),0) -> 0 | D28: =VLOOKUP($D$2, '22-23 Budget YTD'!$D$4:$CL$90, MATCH($B$28, '22-23 Budget YTD'!$D$3:$CL$3, 0), 0) ->  | J28: 0
A29: Pupil focused extended school funding and/or grants | B29: I15 | C29: =IFERROR(VLOOKUP($D$2,CFR20212022_BenchMarkDataReport!$D$4:$CJ$91,32,0),0) -> 0 | D29: =VLOOKUP($D$2, '22-23 Budget YTD'!$D$4:$CL$90, MATCH($B$29, '22-23 Budget YTD'!$D$3:$CL$3, 0), 0) ->  | J29: 0
A30: Community-focused school funding and/or grants | B30: I16 | C30: =IFERROR(VLOOKUP($D$2,CFR20212022_BenchMarkDataReport!$D$4:$CJ$91,33,0),0) -> 0 | D30: =VLOOKUP($D$2, '22-23 Budget YTD'!$D$4:$CL$90, MATCH($B$30, '22-23 Budget YTD'!$D$3:$CL$3, 0), 0) ->  | J30: 0
A31: Community-focused school facilities income | B31: I17 | C31: =IFERROR(VLOOKUP($D$2,CFR20212022_BenchMarkDataReport!$D$4:$CJ$91,34,0),0) -> 0 | D31: =VLOOKUP($D$2, '22-23 Budget YTD'!$D$4:$CL$90, MATCH($B$31, '22-23 Budget YTD'!$D$3:$CL$3, 0), 0) ->  | J31: 0
A32: Additional grant for schools | B32: I18a | C32: =IFERROR(VLOOKUP($D$2,CFR20212022_BenchMarkDataReport!$D$4:$CJ$91,35,0),0) -> 0 | D32: =VLOOKUP($D$2, '22-23 Budget YTD'!$D$4:$CL$90, MATCH($B$32, '22-23 Budget YTD'!$D$3:$CL$3, 0), 0) ->  | J32: 0
A33: Additional grant for schools | B33: I18b | C33: =IFERROR(VLOOKUP($D$2,CFR20212022_BenchMarkDataReport!$D$4:$CJ$91,36,0),0) -> 0 | D33: =VLOOKUP($D$2, '22-23 Budget YTD'!$D$4:$CL$90, MATCH($B$33, '22-23 Budget YTD'!$D$3:$CL$3, 0), 0) ->  | J33: 0
A34: Additional grant for schools | B34: I18c | C34: =IFERROR(VLOOKUP($D$2,CFR20212022_BenchMarkDataReport!$D$4:$CJ$91,37,0),0) -> 0 | D34: =VLOOKUP($D$2, '22-23 Budget YTD'!$D$4:$CL$90, MATCH($B$34, '22-23 Budget YTD'!$D$3:$CL$3, 0), 0) ->  | J34: 0
A35: Additional grant for schools | B35: I18d | C35: =IFERROR(VLOOKUP($D$2,CFR20212022_BenchMarkDataReport!$D$4:$CJ$91,38,0),0) -> 0 | D35: =VLOOKUP($D$2, '22-23 Budget YTD'!$D$4:$CL$90, MATCH($B$35, '22-23 Budget YTD'!$D$3:$CL$3, 0), 0) ->  | J35: 0
A36: Total Revenue Income | C36: =SUM(C15:C35) -> 0 | D36: =SUM(D15:D35) ->  | E36: =SUM(E15:E35) -> 0 | F36: =SUM(F15:F35) -> 0 | H36: 0 | J36: =SUM(J15:J35) -> 0
C38: =C13 -> 2021-22 Outturn | D38: =D13 -> 2022-23 Budget (as per Q2 return) | E38: =E13 -> 2022-23 Year-to-date actuals (System Reports) (BEFORE ACCRUALS - only Q4) | F38: =F13 -> 2022-23 Projected Outturn | H38: =H13 -> 2022-23 Year End Adjustments (Accruals) - only Q4 | J38: =J13 -> 2022-23 Final Year End Balances | L38: Variance (budget vs final year end balances) | M38: Explanation of material variances
A39: Expenditure | B39: CFR Code | C39: £ | D39: £ | E39: £ | F39: £ | H39: £ | J39: £ | L39: £
A40: Teaching staff | B40: E01 | C40: =IFERROR(VLOOKUP($D$2,CFR20212022_BenchMarkDataReport!$D$4:$CJ$91,39,0),0) -> 0 | D40: =VLOOKUP($D$2, '22-23 Budget YTD'!$D$4:$CL$90, MATCH($B$40, '22-23 Budget YTD'!$D$3:$CL$3, 0), 0) ->  | J40: =H40+E40 -> 0 | L40: =D40-F40 -> 
A41: Supply staff | B41: E02 | C41: =IFERROR(VLOOKUP($D$2,CFR20212022_BenchMarkDataReport!$D$4:$CJ$91,40,0),0) -> 0 | D41: =VLOOKUP($D$2, '22-23 Budget YTD'!$D$4:$CL$90, MATCH($B$41, '22-23 Budget YTD'!$D$3:$CL$3, 0), 0) ->  | J41: 0
A42: Education support staff | B42: E03 | C42: =IFERROR(VLOOKUP($D$2,CFR20212022_BenchMarkDataReport!$D$4:$CJ$91,41,0),0) -> 0 | D42: =VLOOKUP($D$2, '22-23 Budget YTD'!$D$4:$CL$90, MATCH($B$42, '22-23 Budget YTD'!$D$3:$CL$3, 0), 0) ->  | J42: 0
A43: Premises staff | B43: E04 | C43: =IFERROR(VLOOKUP($D$2,CFR20212022_BenchMarkDataReport!$D$4:$CJ$91,42,0),0) -> 0 | D43: =VLOOKUP($D$2, '22-23 Budget YTD'!$D$4:$CL$90, MATCH($B$43, '22-23 Budget YTD'!$D$3:$CL$3, 0), 0) ->  | J43: 0
A44: Administrative and clerical staff | B44: E05 | C44: =IFERROR(VLOOKUP($D$2,CFR20212022_BenchMarkDataReport!$D$4:$CJ$91,43,0),0) -> 0 | D44: =VLOOKUP($D$2, '22-23 Budget YTD'!$D$4:$CL$90, MATCH($B$44, '22-23 Budget YTD'!$D$3:$CL$3, 0), 0) ->  | J44: 0
A45: Catering staff | B45: E06 | C45: =IFERROR(VLOOKUP($D$2,CFR20212022_BenchMarkDataReport!$D$4:$CJ$91,44,0),0) -> 0 | D45: =VLOOKUP($D$2, '22-23 Budget YTD'!$D$4:$CL$90, MATCH($B$45, '22-23 Budget YTD'!$D$3:$CL$3, 0), 0) ->  | J45: 0
A46: Cost of other staff | B46: E07 | C46: =IFERROR(VLOOKUP($D$2,CFR20212022_BenchMarkDataReport!$D$4:$CJ$91,45,0),0) -> 0 | D46: =VLOOKUP($D$2, '22-23 Budget YTD'!$D$4:$CL$90, MATCH($B$46, '22-23 Budget YTD'!$D$3:$CL$3, 0), 0) ->  | J46: 0
A47: Indirect employee expenses | B47: E08 | C47: =IFERROR(VLOOKUP($D$2,CFR20212022_BenchMarkDataReport!$D$4:$CJ$91,46,0),0) -> 0 | D47: =VLOOKUP($D$2, '22-23 Budget YTD'!$D$4:$CL$90, MATCH($B$47, '22-23 Budget YTD'!$D$3:$CL$3, 0), 0) ->  | J47: 0
A48: Development and training | B48: E09 | C48: =IFERROR(VLOOKUP($D$2,CFR20212022_BenchMarkDataReport!$D$4:$CJ$91,47,0),0) -> 0 | D48: =VLOOKUP($D$2, '22-23 Budget YTD'!$D$4:$CL$90, MATCH($B$48, '22-23 Budget YTD'!$D$3:$CL$3, 0), 0) ->  | J48: 0
A49: Supply teacher insurance | B49: E10 | C49: =IFERROR(VLOOKUP($D$2,CFR20212022_BenchMarkDataReport!$D$4:$CJ$91,48,0),0) -> 0 | D49: =VLOOKUP($D$2, '22-23 Budget YTD'!$D$4:$CL$90, MATCH($B$49, '22-23 Budget YTD'!$D$3:$CL$3, 0), 0) ->  | J49: 0
A50: Staff related insurance | B50: E11 | C50: =IFERROR(VLOOKUP($D$2,CFR20212022_BenchMarkDataReport!$D$4:$CJ$91,49,0),0) -> 0 | D50: =VLOOKUP($D$2, '22-23 Budget YTD'!$D$4:$CL$90, MATCH($B$50, '22-23 Budget YTD'!$D$3:$CL$3, 0), 0) ->  | J50: 0
A51: Building maintenance and improvement | B51: E12 | C51: =IFERROR(VLOOKUP($D$2,CFR20212022_BenchMarkDataReport!$D$4:$CJ$91,50,0),0) -> 0 | D51: =VLOOKUP($D$2, '22-23 Budget YTD'!$D$4:$CL$90, MATCH($B$51, '22-23 Budget YTD'!$D$3:$CL$3, 0), 0) ->  | J51: 0
A52: Grounds maintenance and improvement | B52: E13 | C52: =IFERROR(VLOOKUP($D$2,CFR20212022_BenchMarkDataReport!$D$4:$CJ$91,51,0),0) -> 0 | D52: =VLOOKUP($D$2, '22-23 Budget YTD'!$D$4:$CL$90, MATCH($B$52, '22-23 Budget YTD'!$D$3:$CL$3, 0), 0) ->  | J52: 0
A53: Cleaning and caretaking | B53: E14 | C53: =IFERROR(VLOOKUP($D$2,CFR20212022_BenchMarkDataReport!$D$4:$CJ$91,52,0),0) -> 0 | D53: =VLOOKUP($D$2, '22-23 Budget YTD'!$D$4:$CL$90, MATCH($B$53, '22-23 Budget YTD'!$D$3:$CL$3, 0), 0) ->  | J53: 0
A54: Water and sewerage | B54: E15 | C54: =IFERROR(VLOOKUP($D$2,CFR20212022_BenchMarkDataReport!$D$4:$CJ$91,53,0),0) -> 0 | D54: =VLOOKUP($D$2, '22-23 Budget YTD'!$D$4:$CL$90, MATCH($B$54, '22-23 Budget YTD'!$D$3:$CL$3, 0), 0) ->  | J54: 0
A55: Energy | B55: E16 | C55: =IFERROR(VLOOKUP($D$2,CFR20212022_BenchMarkDataReport!$D$4:$CJ$91,54,0),0) -> 0 | D55: =VLOOKUP($D$2, '22-23 Budget YTD'!$D$4:$CL$90, MATCH($B$55, '22-23 Budget YTD'!$D$3:$CL$3, 0), 0) ->  | J55: 0
A56: Rates | B56: E17 | C56: =IFERROR(VLOOKUP($D$2,CFR20212022_BenchMarkDataReport!$D$4:$CJ$91,55,0),0) -> 0 | D56: =VLOOKUP($D$2, '22-23 Budget YTD'!$D$4:$CL$90, MATCH($B$56, '22-23 Budget YTD'!$D$3:$CL$3, 0), 0) ->  | J56: 0
A57: Other occupation costs | B57: E18 | C57: =IFERROR(VLOOKUP($D$2,CFR20212022_BenchMarkDataReport!$D$4:$CJ$91,56,0),0) -> 0 | D57: =VLOOKUP($D$2, '22-23 Budget YTD'!$D$4:$CL$90, MATCH($B$57, '22-23 Budget YTD'!$D$3:$CL$3, 0), 0) ->  | J57: 0
A58: Learning resources (not ICT equipment) | B58: E19 | C58: =IFERROR(VLOOKUP($D$2,CFR20212022_BenchMarkDataReport!$D$4:$CJ$91,57,0),0) -> 0 | D58: =VLOOKUP($D$2, '22-23 Budget YTD'!$D$4:$CL$90, MATCH($B$58, '22-23 Budget YTD'!$D$3:$CL$3, 0), 0) ->  | J58: 0
A59: ICT learning resources | B59: E20 | C59: =IFERROR(VLOOKUP($D$2,CFR20212022_BenchMarkDataReport!$D$4:$CJ$91,58,0),0) -> 0 | D59: =VLOOKUP($D$2, '22-23 Budget YTD'!$D$4:$CL$90, MATCH($B$59, '22-23 Budget YTD'!$D$3:$CL$3, 0), 0) ->  | J59: 0
A60: Exam fees | B60: E21 | C60: =IFERROR(VLOOKUP($D$2,CFR20212022_BenchMarkDataReport!$D$4:$CJ$91,59,0),0) -> 0 | D60: =VLOOKUP($D$2, '22-23 Budget YTD'!$D$4:$CL$90, MATCH($B$60, '22-23 Budget YTD'!$D$3:$CL$3, 0), 0) ->  | J60: 0
A61: Administrative supplies | B61: E22 | C61: =IFERROR(VLOOKUP($D$2,CFR20212022_BenchMarkDataReport!$D$4:$CJ$91,60,0),0) -> 0 | D61: =VLOOKUP($D$2, '22-23 Budget YTD'!$D$4:$CL$90, MATCH($B$61, '22-23 Budget YTD'!$D$3:$CL$3, 0), 0) ->  | J61: 0
A62: Other insurance premiums | B62: E23 | C62: =IFERROR(VLOOKUP($D$2,CFR20212022_BenchMarkDataReport!$D$4:$CJ$91,61,0),0) -> 0 | D62: =VLOOKUP($D$2, '22-23 Budget YTD'!$D$4:$CL$90, MATCH($B$62, '22-23 Budget YTD'!$D$3:$CL$3, 0), 0) ->  | J62: 0
A63: Special facilities | B63: E24 | C63: =IFERROR(VLOOKUP($D$2,CFR20212022_BenchMarkDataReport!$D$4:$CJ$91,62,0),0) -> 0 | D63: =VLOOKUP($D$2, '22-23 Budget YTD'!$D$4:$CL$90, MATCH($B$63, '22-23 Budget YTD'!$D$3:$CL$3, 0), 0) ->  | J63: 0
A64: Catering supplies | B64: E25 | C64: =IFERROR(VLOOKUP($D$2,CFR20212022_BenchMarkDataReport!$D$4:$CJ$91,63,0),0) -> 0 | D64: =VLOOKUP($D$2, '22-23 Budget YTD'!$D$4:$CL$90, MATCH($B$64, '22-23 Budget YTD'!$D$3:$CL$3, 0), 0) ->  | J64: 0
A65: Agency supply teaching staff | B65: E26 | C65: =IFERROR(VLOOKUP($D$2,CFR20212022_BenchMarkDataReport!$D$4:$CJ$91,64,0),0) -> 0 | D65: =VLOOKUP($D$2, '22-23 Budget YTD'!$D$4:$CL$90, MATCH($B$65, '22-23 Budget YTD'!$D$3:$CL$3, 0), 0) ->  | J65: 0
A66: Bought-in professional services - curriculum | B66: E27 | C66: =IFERROR(VLOOKUP($D$2,CFR20212022_BenchMarkDataReport!$D$4:$CJ$91,65,0),0) -> 0 | D66: =VLOOKUP($D$2, '22-23 Budget YTD'!$D$4:$CL$90, MATCH($B$66, '22-23 Budget YTD'!$D$3:$CL$3, 0), 0) ->  | J66: 0
A67: Bought-in professional services - other (except PFI) | B67: E28a | C67: =IFERROR(VLOOKUP($D$2,CFR20212022_BenchMarkDataReport!$D$4:$CJ$91,66,0),0) -> 0 | D67: =VLOOKUP($D$2, '22-23 Budget YTD'!$D$4:$CL$90, MATCH($B$67, '22-23 Budget YTD'!$D$3:$CL$3, 0), 0) ->  | J67: 0
A68: Bought-in professional services - other (PFI) | B68: E28b | C68: =IFERROR(VLOOKUP($D$2,CFR20212022_BenchMarkDataReport!$D$4:$CJ$91,67,0),0) -> 0 | D68: =VLOOKUP($D$2, '22-23 Budget YTD'!$D$4:$CL$90, MATCH($B$68, '22-23 Budget YTD'!$D$3:$CL$3, 0), 0) ->  | J68: 0
A69: Loan interest | B69: E29 | C69: =IFERROR(VLOOKUP($D$2,CFR20212022_BenchMarkDataReport!$D$4:$CJ$91,68,0),0) -> 0 | D69: =VLOOKUP($D$2, '22-23 Budget YTD'!$D$4:$CL$90, MATCH($B$69, '22-23 Budget YTD'!$D$3:$CL$3, 0), 0) ->  | J69: 0
A70: Direct revenue financing (rev. contributions to capital) | B70: E30 | C70: =IFERROR(VLOOKUP($D$2,CFR20212022_BenchMarkDataReport!$D$4:$CJ$91,69,0),0) -> 0 | D70: =VLOOKUP($D$2, '22-23 Budget YTD'!$D$4:$CL$90, MATCH($B$70, '22-23 Budget YTD'!$D$3:$CL$3, 0), 0) ->  | J70: 0
A71: Community-focused school staff | B71: E31 | C71: =IFERROR(VLOOKUP($D$2,CFR20212022_BenchMarkDataReport!$D$4:$CJ$91,70,0),0) -> 0 | D71: =VLOOKUP($D$2, '22-23 Budget YTD'!$D$4:$CL$90, MATCH($B$71, '22-23 Budget YTD'!$D$3:$CL$3, 0), 0) ->  | J71: 0
A72: Community-focused school costs | B72: E32 | C72: =IFERROR(VLOOKUP($D$2,CFR20212022_BenchMarkDataReport!$D$4:$CJ$91,71,0),0) -> 0 | D72: =VLOOKUP($D$2, '22-23 Budget YTD'!$D$4:$CL$90, MATCH($B$72, '22-23 Budget YTD'!$D$3:$CL$3, 0), 0) ->  | J72: 0
A73: TOTAL REVENUE EXPENDITURE | C73: =SUM(C40:C72) -> 0 | D73: =SUM(D40:D72) ->  | E73: =SUM(E40:E72) -> 0 | F73: =SUM(F40:F72) -> 0 | H73: =SUM(H40:H72) -> 0 | J73: =SUM(J40:J72) -> 0 | L73: =SUM(L40:L72) -> 
A75: IN-YEAR REVENUE MOVEMENT [surplus/(deficit)] | C75: =C36-C73 -> 0 | D75: =D36-D73 ->  | E75: =E36-E73 -> 0 | F75: =F36-F73 -> 0 | H75: =H36-H73 -> 0 | J75: =J36+J73 -> 0 | L75: =L36+L73 -> 
A77: REVENUE BALANCES
A78: Balance Brought Forward | B78: CFR Code | C78: 2021-22 Opening Revenue Balance | D78: =D38 -> 2022-23 Budget (as per Q2 return) | E78: 2022-23 Year to Date Actuals | F78: 2022-23 Projected Outturn | J78: Opening Balances
A79: Pupil focused revenue balance brought forward | B79: OB01 | C79: =IFERROR(VLOOKUP($D$2,CFR20212022_BenchMarkDataReport!$D$4:$CJ$91,15,0),0) -> 0 | D79: =C84 -> 0 | E79: =C84 -> 0 | F79: =C84 -> 0 | J79: =E79 -> 0
A80: Community focused revenue balance brought forward | B80: OB02 | C80: =IFERROR(VLOOKUP(D2,CFR20212022_BenchMarkDataReport!$D$4:$CJ$91,16,0),0) -> 0 | D80: =C85 -> 0 | E80: =C85 -> 0 | F80: =C85 -> 0 | J80: =H85 -> 0
A81: Total revenue balance brought forward | B81: OB01 + OB02 | C81: =C80+C79 -> 0 | D81: =D80+D79 -> 0 | E81: =E80+E79 -> 0 | F81: =F80+F79 -> 0 | J81: =J80+J79 -> 0
A83: Balances carried to next year | B83: CFR Code | C83: 2021-22 Closing Balance | D83: 2022-23 (as per budgeted figures) | E83: 2022-23 Year-to-date actuals (System Reports) (accruals for Q4 only) | F83: =F13 -> 2022-23 Projected Outturn | H83: 2022-23 NET YEAR END REV. ADJUSTMENTS (only Q4) | J83: 2022-23 Year End Revenue Balances incl. accruals
A84: Pupil focused revenue balance carried forwards | B84: B01& B02 | C84: =IFERROR(VLOOKUP($D$2,CFR20212022_BenchMarkDataReport!$D$4:$CJ$91,81,0),0)+IFERROR(VLOOKUP($D$2,CFR20212022_BenchMarkDataReport!$D$4:$CJ$91,82,0),0) -> 0 | D84: =((SUM(D15:D29)+SUM(D32:D35))-SUM(D40:D70))+D79 ->  | E84: =((SUM(E15:E29)+SUM(E32:E35))-SUM(E40:E70))+E79 -> 0 | F84: =((SUM(F15:F29)+SUM(F32:F35))-SUM(F40:F70))+F79 -> 0 | H84: =((SUM(H15:H29)+SUM(H32:H35))-SUM(H40:H70))+H79 -> 0 | J84: =H84+E84 -> 0
A85: Community focused revenue balance carried forwards | B85: B06 | C85: =IFERROR(VLOOKUP($D$2,CFR20212022_BenchMarkDataReport!$D$4:$CJ$91,85,0),0) -> 0 | D85: =(SUM(D30:D31)-SUM(D71:D72))+D80 ->  | E85: =(SUM(E30:E31)-SUM(E71:E72))+E80 -> 0 | F85: =(SUM(F30:F31)-SUM(F71:F72))+F80 -> 0 | H85: =(SUM(H30:H31)-SUM(H71:H72))+H80 -> 0 | J85: =H85+E85 -> 0
A86: Total revenue balance carried forward | B86: B01 + B02 + B06 | C86: =C85+C84 -> 0 | D86: =D85+D84 ->  | E86: =E85+E84 -> 0 | F86: =F85+F84 -> 0 | H86: =H85+H84 -> 0 | J86: =J85+J84 -> 0
A89: IN YEAR CAPITAL ACCOUNTS
A90: All figures should be net of VAT | C90: =C13 -> 2021-22 Outturn | D90: =D13 -> 2022-23 Budget (as per Q2 return) | E90: =E83 -> 2022-23 Year-to-date actuals (System Reports) (accruals for Q4 only) | F90: =F13 -> 2022-23 Projected Outturn | H90: =H13 -> 2022-23 Year End Adjustments (Accruals) - only Q4 | J90: =J13 -> 2022-23 Final Year End Balances | L90: =L13 -> Variance (budget vs projected outturn) | M90: Explanation of material variances
A91: Capital Income | B91: CFR Code | C91: £ | D91: £ | E91: £ | F91: £ | H91: £ | J91: £ | L91: £
A92: Capital income | B92: CI01 | C92: =IFERROR(VLOOKUP($D$2,CFR20212022_BenchMarkDataReport!$D$4:$CJ$91,72,0),0) -> 0 | D92: =VLOOKUP($D$2, '22-23 Budget YTD'!$D$4:$CL$90, MATCH($B$92, '22-23 Budget YTD'!$D$3:$CL$3, 0), 0) ->  | J92: =H92+E92 -> 0 | L92: =D92-F92 -> 
A93: Voluntary or private income | B93: CI03 | C93: =IFERROR(VLOOKUP($D$2,CFR20212022_BenchMarkDataReport!$D$4:$CJ$91,73,0),0) -> 0 | D93: =VLOOKUP($D$2, '22-23 Budget YTD'!$D$4:$CL$90, MATCH($B$93, '22-23 Budget YTD'!$D$3:$CL$3, 0), 0) ->  | J93: 0
A94: Direct revenue financing (from E30) | B94: CI04 | C94: =IFERROR(VLOOKUP($D$2,CFR20212022_BenchMarkDataReport!$D$4:$CJ$91,74,0),0) -> 0 | D94: =VLOOKUP($D$2, '22-23 Budget YTD'!$D$4:$CL$90, MATCH($B$94, '22-23 Budget YTD'!$D$3:$CL$3, 0), 0) ->  | J94: 0
A95: TOTAL CAPITAL INCOME | C95: =SUM(C92:C94) -> 0 | D95: =SUM(D92:D94) ->  | E95: =SUM(E92:E94) -> 0 | F95: =SUM(F92:F94) -> 0 | H95: =SUM(H92:H94) -> 0 | J95: =SUM(J92:J94) -> 0 | L95: =SUM(L92:L94) -> 
A98: Capital expenditure | B98: CFR Code | C98: £ | D98: £ | E98: £ | F98: £ | H98: £ | J98: £ | L98: £
A99: Acquisition of land and existing buildings | B99: CE01 | C99: =IFERROR(VLOOKUP($D$2,CFR20212022_BenchMarkDataReport!$D$4:$CJ$91,76,0),0) -> 0 | D99: =VLOOKUP($D$2, '22-23 Budget YTD'!$D$4:$CL$90, MATCH($B$99, '22-23 Budget YTD'!$D$3:$CL$3, 0), 0) ->  | J99: =H99+E99 -> 0 | L99: =D99-F99 -> 
A100: New construction conversion and renovation | B100: CE02 | C100: =IFERROR(VLOOKUP($D$2,CFR20212022_BenchMarkDataReport!$D$4:$CJ$91,77,0),0) -> 0 | D100: =VLOOKUP($D$2, '22-23 Budget YTD'!$D$4:$CL$90, MATCH($B$100, '22-23 Budget YTD'!$D$3:$CL$3, 0), 0) ->  | J100: 0
A101: Vehicles, plant, equipment and machinery | B101: CE03 | C101: =IFERROR(VLOOKUP($D$2,CFR20212022_BenchMarkDataReport!$D$4:$CJ$91,79,0),0) -> 0 | D101: =VLOOKUP($D$2, '22-23 Budget YTD'!$D$4:$CL$90, MATCH($B$101, '22-23 Budget YTD'!$D$3:$CL$3, 0), 0) ->  | J101: 0
A102: Information and communication technology | B102: CE04 | C102: =IFERROR(VLOOKUP($D$2,CFR20212022_BenchMarkDataReport!$D$4:$CJ$91,80,0),0) -> 0 | D102: =VLOOKUP($D$2, '22-23 Budget YTD'!$D$4:$CL$90, MATCH($B$102, '22-23 Budget YTD'!$D$3:$CL$3, 0), 0) ->  | J102: 0
A103: TOTAL CAPITAL EXPENDITURE | C103: =SUM(C99:C102) -> 0 | D103: =SUM(D99:D102) ->  | E103: =SUM(E99:E102) -> 0 | F103: =SUM(F99:F102) -> 0 | H103: =SUM(H99:H102) -> 0 | J103: =SUM(J99:J102) -> 0 | L103: =SUM(L99:L102) -> 
A105: IN-YEAR CAPITAL MOVEMENT [surplus/(deficit)] | C105: =C95-C103 -> 0 | D105: =D95-D103 ->  | E105: =E95-E103 -> 0 | F105: =F95-F103 -> 0 | H105: =H95-H103 -> 0 | J105: =J95-J103 -> 0 | L105: =L95-L103 -> 
A107: CAPITAL BALANCES
A109: Balance brought forwards | B109: CFR Code | C109: Opening capital balance 2021-22 | D109: Opening capital balance 2022-23 | E109: Opening capital balance 2022-23 | F109: Opening capital balance 2022-23 | J109: Opening capital balance 2022-23
A110: Capital balance brought forwards | B110: OB03 | C110: =IFERROR(VLOOKUP(D2,CFR20212022_BenchMarkDataReport!$D$4:$CJ$91,17,0),0) -> 0 | D110: =C113 -> 0 | E110: =C113 -> 0 | F110: =C113 -> 0 | G110: =F113 -> 0 | H110: 0 | I110: 0 | J110: 0
A112: Balance carried forwards to next year | B112: CFR Code | C112: 2021-22 Closing Balance | D112: 2022-23 (as per budgeted figures) | E112: 2022-23 (as per year to date figures) | F112: 2022-23 (as per year end projected figures) | H112: 2022-23 NET YEAR END CAP. ADJUSTMENTS (only Q4) | J112: 2022-23 Year End Capital Balances incl. accruals
A113: Capital balance carried forwards | B113: B03+B05 | C113: =C110+C105 -> 0 | D113: =D110+D105 ->  | E113: =E110+E105 -> 0 | F113: =F110+F105 -> 0 | H113: =H105 -> 0 | J113: =H113+E113 -> 0
A116: COMBINED ACCOUNTS - CHECK | C116: 2021-22 Outturn | D116: Budget | E116: Year to Date | F116: Projected Outturn | H116: Accruals | J116: Year End Balances
B117: TOTAL INCOME (REV + CAP) | C117: =C95+C36 -> 0 | D117: =D95+D36 ->  | E117: =E95+E36 -> 0 | F117: =F95+F36 -> 0 | H117: =H95+H36 -> 0 | J117: =H117+E117 -> 0
B118: TOTAL EXPENDITURE(REV + CAP) | C118: =C103+C73 -> 0 | D118: =D103+D73 ->  | E118: =E103+E73 -> 0 | F118: =F103+F73 -> 0 | H118: =H103+H73 -> 0 | J118: =H118+E118 -> 0
B119: Surplus/Deficit | C119: =C117-C118 -> 0 | D119: =D117-D118 ->  | E119: =E117-E118 -> 0 | F119: =F117-F118 -> 0 | H119: =H117-H118 -> 0 | J119: =J117-J118 -> 0
A124: Summary of Balances | B124: CFR Code | C124: 2022-23 Opening Balance | D124: 2022-23 (projected closing balances as per budgeted figures) | E124: 2022-23 (balances as per year to date figures) (BEFORE ACCRUALS - only Q4) | F124: =F83 -> 2022-23 Projected Outturn | H124: 2022-23 (year end balances incl. accruals) - only Q4
A125: Pupil focused revenue balance | B125: OB01 | C125: =D79 -> 0 | D125: =((SUM(D15:D29)+SUM(D32:D35))-SUM(D40:D70))+$C$125 ->  | E125: =((SUM(E15:E29)+SUM(E32:E35)-SUM(E40:E70))+C125) -> 0 | F125: =((SUM(F15:F29)+SUM(F32:F35)-SUM(F40:F70))+C125) -> 0 | H125: =J84 -> 0
A126: Community focused revenue balance (I16+I17)-(E31+E32) | B126: OB02 | C126: =D80 -> 0 | D126: =SUM(D30:D31)-SUM(D71:D72)+$C$126 ->  | E126: =SUM(E30:E31)-SUM(E71:E72)+C126 -> 0 | F126: =SUM(F30:F31)-SUM(F71:F72)+C126 -> 0 | H126: =J85 -> 0
A127: Capital balance | B127: OB03 | C127: =D110 -> 0 | D127: =D105+$C$127 ->  | E127: =E105+C127 -> 0 | F127: =F105+C127 -> 0 | H127: =J113 -> 0
B128: TOTAL BALANCES | C128: =SUM(C125:C127) -> 0 | D128: =SUM(D125:D127) ->  | E128: =SUM(E125:E127) -> 0 | F128: =SUM(F125:F127) -> 0 | H128: =SUM(H125:H127) -> 0
A130: I certify that the figures above agree to our financial system's figures for 2022/23
A133: Signed
A136: Name
A139: Position | B139: Head Teacher
A142: Date

Sheet 22-23 Budget YTD (hidden)
D1: 1 | E1: 7 | F1: 8 | G1: 9 | H1: 10 | I1: 11 | J1: 12 | K1: 13 | L1: 14 | M1: 15 | N1: 16 | O1: 17 | P1: 18 | Q1: 19 | R1: 20 | S1: 21 | T1: 22 | U1: 23 | V1: 24 | W1: 25 | X1: 26 | Y1: 27 | Z1: 28 | AA1: 29 | AB1: 30 | AC1: 31 | AD1: 32 | AE1: 33 | AF1: 34 | AG1: 35 | AH1: 36 | AI1: 37 | AJ1: 38 | AK1: 39 | AL1: 40 | AM1: 41 | AN1: 42 | AO1: 43 | AP1: 44 | AQ1: 45 | AR1: 46 | AS1: 47 | AT1: 48 | AU1: 49 | AV1: 50 | AW1: 51 | AX1: 52 | AY1: 53 | AZ1: 54 | BA1: 55 | BB1: 56 | BC1: 57 | BD1: 58 | BE1: 59 | BF1: 60 | BG1: 61 | BH1: 62 | BI1: 63 | BJ1: 64 | BK1: 65 | BL1: 66 | BM1: 67 | BN1: 68 | BO1: 69 | BP1: 70 | BQ1: 71 | BR1: 72 | BS1: 73 | BT1: 74 | BU1: 75 | BV1: 76 | BW1: 77 | BX1: 78 | BY1: 79 | BZ1: 80 | CA1: 81 | CB1: 82 | CC1: 83 | CD1: 84 | CE1: 85 | CF1: 86 | CG1: 87 | CH1: 88 | CI1: 89 | CJ1: 90 | CK1: 91 | CL1: 92
BS2: B03/05 | BU2: B01/02 | BV2: B01/02 | BW2: B01/02 | BY2: B06 | BZ2: B06 | CA2: B06 | CC2: B03/05 | CD2: B03/05 | CE2: B03/05
A3: School Name | B3: Sector | C3: URN | D3: Current LAESTAB | E3: I01 | F3: I02 | G3: I03 | H3: I04 | I3: I05 | J3: I06 | K3: I07 | L3: I08a | M3: I08b | N3: I09 | O3: I10 | P3: I11 | Q3: I12 | R3: I13 | S3: I15 | T3: I16 | U3: I17 | V3: I18a | W3: I18b | X3: I18c | Y3: I18d | Z3: Total Revenue Income | AA3: E01 | AB3: E02 | AC3: E03 | AD3: E04 | AE3: E05 | AF3: E06 | AG3: E07 | AH3: E08 | AI3: E09 | AJ3: E10 | AK3: E11 | AL3: E12 | AM3: E13 | AN3: E14 | AO3: E15 | AP3: E16 | AQ3: E17 | AR3: E18 | AS3: E19 | AT3: E20 | AU3: E21 | AV3: E22 | AW3: E23 | AX3: E24 | AY3: E25 | AZ3: E26 | BA3: E27 | BB3: E28a | BC3: E28b | BD3: E29 | BE3: E30 | BF3: E31 | BG3: E32 | BH3: Total Revenue Expenditure | BI3: In Year Movement | BJ3: Closing OB01 | BK3: Closing OB02 | BL3: Opening Capital Balance | BM3: CI01 | BN3: CI03 | BO3: CI04 | BP3: Total Capital Income | BQ3: CE01 | BR3: CE02 | BS3: CE03 | BT3: CE04 | BU3: Total Capital Expenditure | BV3: In year capital movement | BW3: Closing Capital Balance | BX3: OB01 2021-22 Opening Balance | BY3: OB01 2021-22 (closing as per budgeted figures) | BZ3: OB01 2021-21 (clsoing as per year to date figures) | CA3: OB01 2021-22 (closing as per year end projected figures) | CB3: OB02 2021-22 Opening Balance | CC3: OB02 2021-22 (closing as per budgeted figures) | CD3: OB02 2021-22 (closing as per year to date figures) | CE3: OB02 2021-22 (closing as per year end projected figures) | CF3: OB03 2022-23 Opening Balance | CG3: OB03 2022-23 (closing as per budgeted figures) | CH3: OB03 2022-23 (closing as per year to date figures) | CI3: OB03 2022-23 (closing as per year end projected figures) | CJ3: Total Budgeted balances | CK3: Total year to date balances | CL3: total Projected balances
A4: BEYA | B4: Nursery | C4: 101251 | D4: 3021000 | E4: 1204929 | F4: 0 | G4: 35000 | H4: 0 | I4: 0 | J4: 300000 | K4: 7500 | L4: 0 | M4: 720495 | N4: 0 | O4: 0 | P4: 0 | Q4: 0 | R4: 0 | S4: 0 | T4: 149294 | U4: 750 | V4: 0 | W4: 0 | X4: 0 | Y4: 0 | Z4: 2417968 | AA4: 426609 | AB4: 0 | AC4: 1276845 | AD4: 50881 | AE4: 126088 | AF4: 0 | AG4: 75411 | AH4: 12954 | AI4: 1100 | AJ4: 0 | AK4: 0 | AL4: 19000 | AM4: 3500 | AN4: 6150 | AO4: 3400 | AP4: 29400 | AQ4: 25950 | AR4: 15465 | AS4: 26150 | AT4: 14468 | AU4: 0 | AV4: 32400 | AW4: 7500 | AX4: 0 | AY4: 4000 | AZ4: 0 | BA4: 10000 | BB4: 46188 | BC4: 0 | BD4: 0 | BE4: 0 | BF4: 104836 | BG4: 21000 | BH4: 2339295 | BI4: 78673 | BJ4: -15495 | BK4: 27845 | BL4: 59469.8 | BM4: 15260 | BN4: 0 | BO4: 0 | BP4: 15260 | BQ4: 0 | BR4: 0 | BS4: 0 | BT4: 0 | BU4: 0 | BV4: 15260 | BW4: 74729.8 | BX4: -69960 | BY4: -15495 | BZ4: -236404.96 | CA4: -236404.96 | CB4: 3637 | CC4: 27845 | CD4: -28845.29 | CE4: -28845.29 | CF4: 59469.8 | CG4: 74729.8 | CH4: 74275.32 | CI4: 74275.32 | CJ4: 87079.8 | CK4: -190974.93 | CL4: -190974.93
A5: Moss Hall Nursery | B5: Nursery | C5: 101253 | D5: 3021002 | E5: 440723 | F5: 0 | G5: 15800 | H5: 0 | I5: 0 | J5: 0 | K5: 61338 | L5: 0 | M5: 193728 | N5: 10000 | O5: 0 | P5: 0 | Q5: 500 | R5: 3750 | S5: 0 | T5: 0 | U5: 0 | V5: 0 | W5: 0 | X5: 0 | Y5: 0 | Z5: 725839 | AA5: 194809 | AB5: 0 | AC5: 238195 | AD5: 36011 | AE5: 65339 | AF5: 0 | AG5: 35792 | AH5: 55489 | AI5: 2200 | AJ5: 0 | AK5: 0 | AL5: 4500 | AM5: 2000 | AN5: 3000 | AO5: 1500 | AP5: 8163 | AQ5: 7236 | AR5: 4337 | AS5: 13952 | AT5: 4150 | AU5: 0 | AV5: 6750 | AW5: 1800 | AX5: 1950 | AY5: 10000 | AZ5: 10710 | BA5: 3750 | BB5: 8906 | BC5: 0 | BD5: 0 | BE5: 0 | BF5: 0 | BG5: 0 | BH5: 720539 | BI5: 5300 | BJ5: -108900 | BK5: 0 | BL5: 11261.07 | BM5: 4945 | BN5: 0 | BO5: 0 | BP5: 4945 | BQ5: 0 | BR5: 16206 | BS5: 0 | BT5: 0 | BU5: 16206 | BV5: -11261 | BW5: 0.07 | BX5: -114200 | BY5: -108900 | BZ5: -81589.72 | CA5: -81589.72 | CB5: 0 | CC5: 0 | CD5: 0 | CE5: 0 | CF5: 11261.07 | CG5: 0.07 | CH5: 16030.57 | CI5: 16030.57 | CJ5: -108899.93 | CK5: -65559.15 | CL5: -65559.15
A6: Akiva School | B6: Primary | C6: 135086 | D6: 3023520 | E6: 1844462.955 | F6: 0 | G6: 92386 | H6: 0 | I6: 4155 | J6: 28039 | K6: 0 | L6: 36000 | M6: 2000 | N6: 82000 | O6: 3500 | P6: 0 | Q6: 65247 | R6: 461500 | S6: 0 | T6: 0 | U6: 0 | V6: 0 | W6: 0 | X6: 0 | Y6: 88512 | Z6: 2707801.955 | AA6: 1216074.725 | AB6: 0 | AC6: 535282.3959 | AD6: 46603.8499 | AE6: 151127.8049 | AF6: 0 | AG6: 28181.6184 | AH6: 7130 | AI6: 6194.996 | AJ6: 10660.645 | AK6: 0 | AL6: 42345 | AM6: 1500 | AN6: 44944.83 | AO6: 12000 | AP6: 43823.92 | AQ6: 0 | AR6: 113380.7968 | AS6: 138244.9247 | AT6: 19224 | AU6: 0 | AV6: 10319.9448 | AW6: 48992 | AX6: 2938 | AY6: 170453 | AZ6: 27905 | BA6: 79453 | BB6: 48268.1165 | BC6: 0 | BD6: 0 | BE6: 0 | BF6: 0 | BG6: 0 | BH6: 2805048.568 | BI6: -97246.6132 | BJ6: 51063.3868 | BK6: 0 | BL6: 0 | BM6: 0 | BN6: 0 | BO6: 0 | BP6: 0 | BQ6: 0 | BR6: 0 | BS6: 0 | BT6: 0 | BU6: 0 | BV6: 0 | BW6: 0 | BX6: 148310 | BY6: 51063.3868 | BZ6: 641023.64 | CA6: 641023.64 | CB6: 0 | CC6: 0 | CD6: 0 | CE6: 0 | CF6: 0 | CG6: 0 | CH6: 0 | CI6: 0 | CJ6: 51063.3868 | CK6: 641023.64 | CL6: 641023.64
A7: All Saints' CE Primary School NW2 | B7: Primary | C7: 101315 | D7: 3023300 | E7: 964220 | F7: 0 | G7: 30117 | H7: 0 | I7: 121880 | J7: 0 | K7: 0 | L7: 0 | M7: 9120 | N7: 5061 | O7: 0 | P7: 0 | Q7: 11550 | R7: 2700 | S7: 0 | T7: 0 | U7: 0 | V7: 0 | W7: 0 | X7: 10043 | Y7: 16743 | Z7: 1171434 | AA7: 595894.8648 | AB7: 0 | AC7: 164628.7036 | AD7: 38173.10909 | AE7: 48607.5678 | AF7: 0 | AG7: 19025.76888 | AH7: 4450 | AI7: 2650 | AJ7: 2466 | AK7: 2200 | AL7: 9500 | AM7: 3500 | AN7: 26176 | AO7: 7000 | AP7: 30496.4 | AQ7: 0 | AR7: 6524.72 | AS7: 87819.75 | AT7: 13250 | AU7: 0 | AV7: 8669.9 | AW7: 5902 | AX7: 5914.57 | AY7: 34509.5 | AZ7: 7605 | BA7: 68896.00909 | BB7: 32910.65 | BC7: 0 | BD7: 0 | BE7: 0 | BF7: 0 | BG7: 0 | BH7: 1226770.513 | BI7: -55336.51328 | BJ7: 3626.486717 | BK7: 0 | BL7: 0 | BM7: 0 | BN7: 0 | BO7: 0 | BP7: 0 | BQ7: 0 | BR7: 0 | BS7: 0 | BT7: 0 | BU7: 0 | BV7: 0 | BW7: 0 | BX7: 58963 | BY7: 3626.486717 | BZ7: 180679.65 | CA7: 180679.65 | CB7: 0 | CC7: 0 | CD7: 0 | CE7: 0 | CF7: 0 | CG7: 0 | CH7: 0 | CI7: 0 | CJ7: 3626.486717 | CK7: 180679.65 | CL7: 180679.65
A8: All Saints' CE Primary School, N20 | B8: Primary | C8: 101329 | D8: 3023317 | E8: 1212616 | F8: 0 | G8: 76508 | H8: 0 | I8: 64727 | J8: 0 | K8: 2563 | L8: 21000 | M8: 36616 | N8: 35200 | O8: 0 | P8: 0 | Q8: 18000 | R8: 23268 | S8: 0 | T8: 0 | U8: 0 | V8: 0 | W8: 0 | X8: 0 | Y8: 52659 | Z8: 1543157 | AA8: 659126 | AB8: 43169 | AC8: 339133 | AD8: 28869 | AE8: 57877 | AF8: 0 | AG8: 45044 | AH8: 500 | AI8: 7352 | AJ8: 7355 | AK8: 0 | AL8: 22247 | AM8: 6500 | AN8: 44574 | AO8: 3500 | AP8: 47000 | AQ8: 0 | AR8: 9321 | AS8: 32539 | AT8: 10425 | AU8: 0 | AV8: 12452 | AW8: 7943 | AX8: 10691 | AY8: 72727 | AZ8: 17000 | BA8: 52008 | BB8: 23825 | BC8: 0 | BD8: 0 | BE8: 0 | BF8: 0 | BG8: 0 | BH8: 1561177 | BI8: -18020 | BJ8: 85234 | BK8: -2791 | BL8: 0 | BM8: 0 | BN8: 0 | BO8: 0 | BP8: 0 | BQ8: 0 | BR8: 0 | BS8: 0 | BT8: 0 | BU8: 0 | BV8: 0 | BW8: 0 | BX8: 103254 | BY8: 85234 | BZ8: 291696.9 | CA8: 291696.9 | CB8: -2791 | CC8: -2791 | CD8: -2791 | CE8: -2791 | CF8: 0 | CG8: 0 | CH8: 0 | CI8: 0 | CJ8: 82443 | CK8: 288905.9 | CL8: 288905.9
A9: Annunciation Catholic Infant School | B9: Primary | C9: 101330 | D9: 3023500 | E9: 868980.3516 | F9: 0 | G9: 33675 | H9: 0 | I9: 24930 | J9: 0 | K9: 0 | L9: 0 | M9: 14220 | N9: 0 | O9: 0 | P9: 0 | Q9: 1000 | R9: 0 | S9: 0 | T9: 0 | U9: 0 | V9: 0 | W9: 0 | X9: 1606 | Y9: 40570 | Z9: 984981.3516 | AA9: 561751.6912 | AB9: 0 | AC9: 187453.163 | AD9: 49426.5266 | AE9: 41457.2092 | AF9: 0 | AG9: 6713.7157 | AH9: 799.9984 | AI9: 2010 | AJ9: 212 | AK9: 0 | AL9: 13450 | AM9: 245 | AN9: 11535 | AO9: 1430 | AP9: 22290 | AQ9: 0 | AR9: 3584 | AS9: 9793.18 | AT9: 9518.54 | AU9: 0 | AV9: 8825 | AW9: 7271 | AX9: 5360 | AY9: 41708 | AZ9: 30550 | BA9: 54163 | BB9: 18954 | BC9: 0 | BD9: 0 | BE9: 0 | BF9: 0 | BG9: 0 | BH9: 1088501.024 | BI9: -103519.6725 | BJ9: -94175.6725 | BK9: 0 | BL9: 0 | BM9: 0 | BN9: 0 | BO9: 0 | BP9: 0 | BQ9: 0 | BR9: 0 | BS9: 0 | BT9: 0 | BU9: 0 | BV9: 0 | BW9: 0 | BX9: 9344 | BY9: -94175.6725 | BZ9: -23181.59 | CA9: -23181.59 | CB9: 0 | CC9: 0 | CD9: 0 | CE9: 0 | CF9: 0 | CG9: 0 | CH9: 0 | CI9: 0 | CJ9: -94175.6725 | CK9: -23181.59 | CL9: -23181.59
A10: Annunciation Catholic Junior School | B10: Primary | C10: 101342 | D10: 3023514 | E10: 920592 | F10: 0 | G10: 16275 | H10: 0 | I10: 72000 | J10: 2 | K10: 3 | L10: 807 | M10: 0 | N10: 30001 | O10: 1 | P10: 0 | Q10: 500 | R10: 404 | S10: 0 | T10: 0 | U10: 0 | V10: 1 | W10: 1 | X10: 1 | Y10: 1 | Z10: 1040589 | AA10: 636683 | AB10: 0 | AC10: 117176 | AD10: 46922 | AE10: 39637 | AF10: 0 | AG10: 3431 | AH10: 2711 | AI10: 2246 | AJ10: 347 | AK10: 1 | AL10: 11601 | AM10: 3615 | AN10: 9001 | AO10: 4080 | AP10: 19000 | AQ10: 1 | AR10: 6952 | AS10: 19897 | AT10: 14990 | AU10: 0 | AV10: 13005 | AW10: 6455.58 | AX10: 5656.12 | AY10: 39792 | AZ10: 13001 | BA10: 45237 | BB10: 31173 | BC10: 0 | BD10: 0 | BE10: 0 | BF10: 0 | BG10: 0 | BH10: 1092610.7 | BI10: -52021.7 | BJ10: 18461.3 | BK10: 0 | BL10: 0 | BM10: 0 | BN10: 0 | BO10: 0 | BP10: 0 | BQ10: 0 | BR10: 0 | BS10: 0 | BT10: 0 | BU10: 0 | BV10: 0 | BW10: 0 | BX10: 70483 | BY10: 18461.3 | BZ10: 89680.95 | CA10: 89680.95 | CB10: 0 | CC10: 0 | CD10: 0 | CE10: 0 | CF10: 0 | CG10: 0 | CH10: 0 | CI10: 0 | CJ10: 18461.3 | CK10: 89680.95 | CL10: 89680.95
A11: Barnfield School | B11: Primary | C11: 101258 | D11: 3022002 | E11: 2419901 | F11: 0 | G11: 89460 | H11: 0 | I11: 144040 | J11: 0 | K11: 0 | L11: 9015 | M11: 6400 | N11: 30000 | O11: 5000 | P11: 0 | Q11: 3250 | R11: 500 | S11: 0 | T11: 0 | U11: 0 | V11: 0 | W11: 0 | X11: 0 | Y11: 71566 | Z11: 2779132 | AA11: 1265342.896 | AB11: 0 | AC11: 618870.6484 | AD11: 53358.53412 | AE11: 137813.3492 | AF11: 0 | AG11: 30848.82724 | AH11: 13483.37616 | AI11: 11000 | AJ11: 15860 | AK11: 0 | AL11: 39580 | AM11: 0 | AN11: 67685 | AO11: 6000 | AP11: 69750 | AQ11: 30250 | AR11: 14632 | AS11: 66065 | AT11: 19495 | AU11: 0 | AV11: 24950 | AW11: 20523 | AX11: 8800 | AY11: 102645 | AZ11: 31395 | BA11: 156056 | BB11: 45733 | BC11: 0 | BD11: 0 | BE11: 36005 | BF11: 0 | BG11: 0 | BH11: 2886141.631 | BI11: -107009.6313 | BJ11: 21445.36874 | BK11: 0 | BL11: 0 | BM11: 8995 | BN11: 0 | BO11: 36005 | BP11: 45000 | BQ11: 0 | BR11: 25000 | BS11: 20000 | BT11: 0 | BU11: 45000 | BV11: 0 | BW11: 0 | BX11: 128455 | BY11: 21445.36874 | BZ11: 286777.71 | CA11: 286777.71 | CB11: 0 | CC11: 0 | CD11: 5550 | CE11: 5550 | CF11: 0 | CG11: 0 | CH11: 8995 | CI11: 8995 | CJ11: 21445.36874 | CK11: 301322.71 | CL11: 301322.71
A12: Beis Yaakov | B12: Primary | C12: 133365 | D12: 3022079 | E12: 2076585.98 | F12: 0 | G12: 10570 | H12: 0 | I12: 21120 | J12: 0 | K12: 0 | L12: 0 | M12: 0 | N12: 0 | O12: 0 | P12: 0 | Q12: 4333 | R12: 88917 | S12: 0 | T12: 0 | U12: 0 | V12: 0 | W12: 0 | X12: 0 | Y12: 153010.78 | Z12: 2354536.76 | AA12: 1320439 | AB12: 0 | AC12: 190344.3 | AD12: 40812.59 | AE12: 69287 | AF12: 0 | AG12: 48949.2 | AH12: 24010 | AI12: 2880 | AJ12: 697 | AK12: 0 | AL12: 20000 | AM12: 0 | AN12: 56110 | AO12: 4080 | AP12: 50700 | AQ12: 28728 | AR12: 15632.22 | AS12: 86710 | AT12: 51184.28 | AU12: 0 | AV12: 13723.2 | AW12: 16208.96 | AX12: 86399 | AY12: 181299 | AZ12: 0 | BA12: 118659.28 | BB12: 23589.36 | BC12: 0 | BD12: 0 | BE12: 0 | BF12: 0 | BG12: 0 | BH12: 2450442.39 | BI12: -95905.63 | BJ12: -59352.63 | BK12: 0 | BL12: 0 | BM12: 0 | BN12: 0 | BO12: 0 | BP12: 0 | BQ12: 0 | BR12: 0 | BS12: 0 | BT12: 0 | BU12: 0 | BV12: 0 | BW12: 0 | BX12: 36553 | BY12: -59352.63 | BZ12: 280260.11 | CA12: 280260.11 | CB12: 0 | CC12: 0 | CD12: 0 | CE12: 0 | CF12: 0 | CG12: 0 | CH12: 0 | CI12: 0 | CJ12: -59352.63 | CK12: 280260.11 | CL12: 280260.11
A13: Beit Shvidler Primary School | B13: Primary | C13: 136402 | D13: 3023524 | E13: 1067634 | F13: 0 | G13: 78521 | H13: 0 | I13: 15235 | J13: 0 | K13: 4234 | L13: 0 | M13: 30000 | N13: 21400 | O13: 0 | P13: 0 | Q13: 8323 | R13: 379296 | S13: 0 | T13: 0 | U13: 0 | V13: 0 | W13: 0 | X13: 1824 | Y13: 53635 | Z13: 1660102 | AA13: 891148 | AB13: 0 | AC13: 244250 | AD13: 34226 | AE13: 106861 | AF13: 0 | AG13: 0 | AH13: 1636 | AI13: 1250 | AJ13: 340 | AK13: 2512 | AL13: 45717 | AM13: 537 | AN13: 31000 | AO13: 4600 | AP13: 31418 | AQ13: 7993 | AR13: 11132 | AS13: 75258 | AT13: 16221 | AU13: 0 | AV13: 16730 | AW13: 20089 | AX13: 0 | AY13: 55706 | AZ13: 8952 | BA13: 15098 | BB13: 29120 | BC13: 0 | BD13: 0 | BE13: 0 | BF13: 0 | BG13: 0 | BH13: 1651794 | BI13: 8308 | BJ13: 111063 | BK13: 0 | BL13: 0 | BM13: 0 | BN13: 0 | BO13: 0 | BP13: 0 | BQ13: 0 | BR13: 0 | BS13: 0 | BT13: 0 | BU13: 0 | BV13: 0 | BW13: 0 | BX13: 102755 | BY13: 111063 | BZ13: -76307.45 | CA13: -76307.45 | CB13: 0 | CC13: 0 | CD13: 0 | CE13: 0 | CF13: 0 | CG13: 0 | CH13: 0 | CI13: 0 | CJ13: 111063 | CK13: -76307.45 | CL13: -76307.45
A14: Bell Lane Primary School | B14: Primary | C14: 101259 | D14: 3022003 | E14: 2033362 | F14: 0 | G14: 132731 | H14: 0 | I14: 196370 | J14: 15000 | K14: 0 | L14: 0 | M14: 60200 | N14: 25330 | O14: 0 | P14: 0 | Q14: 17000 | R14: 1800 | S14: 0 | T14: 168811 | U14: 1000 | V14: 0 | W14: 0 | X14: 64624 | Y14: 51921 | Z14: 2768149 | AA14: 900821 | AB14: 0 | AC14: 568824 | AD14: 98202 | AE14: 63494 | AF14: 0 | AG14: 58433 | AH14: 71885 | AI14: 18908 | AJ14: 605 | AK14: 1275 | AL14: 59203 | AM14: 3777 | AN14: 4744 | AO14: 7585 | AP14: 54905 | AQ14: 19532 | AR14: 9549 | AS14: 81183 | AT14: 22095 | AU14: 0 | AV14: 28280 | AW14: 10681 | AX14: 12129 | AY14: 96497 | AZ14: 197815 | BA14: 137992 | BB14: 73517 | BC14: 0 | BD14: 0 | BE14: 0 | BF14: 125042 | BG14: 54586 | BH14: 2781559 | BI14: -13410 | BJ14: -68124 | BK14: 107926 | BL14: 8581 | BM14: 0 | BN14: 0 | BO14: 0 | BP14: 0 | BQ14: 0 | BR14: 0 | BS14: 0 | BT14: 0 | BU14: 0 | BV14: 0 | BW14: 8581 | BX14: -64531 | BY14: -68124 | BZ14: 270179.64 | CA14: 270179.64 | CB14: 117743 | CC14: 107926 | CD14: 140721.05 | CE14: 140721.05 | CF14: 8581 | CG14: 8581 | CH14: 70.75 | CI14: 70.75 | CJ14: 48383 | CK14: 410971.44 | CL14: 410971.44
A15: Blessed Dominic School | B15: Primary | C15: 101339 | D15: 3023511 | E15: 2376210.231 | F15: 0 | G15: 27825 | H15: 0 | I15: 148915 | J15: 0 | K15: 43021 | L15: 0 | M15: 54700 | N15: 35500 | O15: 3000 | P15: 0 | Q15: 24000 | R15: 0 | S15: 0 | T15: 0 | U15: 0 | V15: 0 | W15: 0 | X15: 12757 | Y15: 55332 | Z15: 2781260.231 | AA15: 1147589.818 | AB15: 0 | AC15: 527421.6649 | AD15: 45016.5503 | AE15: 147158.9682 | AF15: 0 | AG15: 16965.798 | AH15: 3200 | AI15: 17500 | AJ15: 11690.56 | AK15: 0 | AL15: 12000 | AM15: 6850 | AN15: 46800 | AO15: 3200 | AP15: 54000 | AQ15: 8612 | AR15: 13050 | AS15: 87497 | AT15: 29650 | AU15: 0 | AV15: 27875 | AW15: 26110.24 | AX15: 47500 | AY15: 118132 | AZ15: 121677 | BA15: 183421 | BB15: 37468 | BC15: 0 | BD15: 0 | BE15: 0 | BF15: 0 | BG15: 0 | BH15: 2740385.599 | BI15: 40874.6312 | BJ15: 311998.6312 | BK15: 0 | BL15: 1 | BM15: 0 | BN15: 0 | BO15: 0 | BP15: 0 | BQ15: 0 | BR15: 0 | BS15: 0 | BT15: 0 | BU15: 0 | BV15: 0 | BW15: 1 | BX15: 271124 | BY15: 311998.6312 | BZ15: 393404.48 | CA15: 393404.48 | CB15: 0 | CC15: 0 | CD15: 0 | CE15: 0 | CF15: 1 | CG15: 1 | CH15: 1 | CI15: 1 | CJ15: 311999.6312 | CK15: 393405.48 | CL15: 393405.48
A16: Brookland Infant & Nursery School | B16: Primary | C16: 101263 | D16: 3022008 | E16: 1550820.297 | F16: 0 | G16: 96942 | H16: 0 | I16: 52455 | J16: 0 | K16: 0 | L16: 38343 | M16: 94265 | N16: 12323 | O16: 0 | P16: 7110 | Q16: 22000 | R16: 14810 | S16: 0 | T16: 0 | U16: 0 | V16: 0 | W16: 0 | X16: 1019 | Y16: 96765 | Z16: 1986852.297 | AA16: 865185.0974 | AB16: 0 | AC16: 492386.3867 | AD16: 49420.0698 | AE16: 88291.7502 | AF16: 0 | AG16: 25157.5646 | AH16: 11225.9761 | AI16: 1150 | AJ16: 16444 | AK16: 0 | AL16: 11246 | AM16: 4350 | AN16: 22175 | AO16: 6000 | AP16: 47123 | AQ16: 0 | AR16: 8932 | AS16: 59810 | AT16: 17859.38 | AU16: 0 | AV16: 13255 | AW16: 10515 | AX16: 8500 | AY16: 123069 | AZ16: 33810 | BA16: 106062 | BB16: 28608 | BC16: 0 | BD16: 0 | BE16: 0 | BF16: 0 | BG16: 0 | BH16: 2050575.225 | BI16: -63722.9274 | BJ16: 26281.0726 | BK16: 0 | BL16: -0.25 | BM16: 7422 | BN16: 0 | BO16: 0 | BP16: 7422 | BQ16: 0 | BR16: 0 | BS16: 0 | BT16: 7422 | BU16: 7422 | BV16: 0 | BW16: -0.25 | BX16: 90004 | BY16: 26281.0726 | BZ16: 117923.99 | CA16: 117923.99 | CB16: 0 | CC16: 0 | CD16: 0 | CE16: 0 | CF16: -0.25 | CG16: -0.25 | CH16: 7419.75 | CI16: 7419.75 | CJ16: 26280.8226 | CK16: 125343.74 | CL16: 125343.74
A17: Brookland Junior School | B17: Primary | C17: 101262 | D17: 3022007 | E17: 1686147.641 | F17: 0 | G17: 148587 | H17: 0 | I17: 98185 | J17: 2500 | K17: 1000 | L17: 47500 | M17: 11560 | N17: 74260 | O17: 0 | P17: 0 | Q17: 59660 | R17: 14149.995 | S17: 0 | T17: 0 | U17: 0 | V17: 0 | W17: 0 | X17: 9005.5 | Y17: 8163 | Z17: 2160718.136 | AA17: 1090679.83 | AB17: 0 | AC17: 302040.8677 | AD17: 54892.8254 | AE17: 96773.0714 | AF17: 0 | AG17: 45284.3755 | AH17: 7841.7425 | AI17: 4600 | AJ17: 13145 | AK17: 0 | AL17: 39843 | AM17: 5149 | AN17: 26944 | AO17: 6400 | AP17: 56723 | AQ17: 0 | AR17: 8728 | AS17: 66277 | AT17: 24567 | AU17: 0 | AV17: 15741 | AW17: 12709 | AX17: 800 | AY17: 83506 | AZ17: 7000 | BA17: 217666 | BB17: 26513.5 | BC17: 0 | BD17: 0 | BE17: 0 | BF17: 0 | BG17: 0 | BH17: 2213824.212 | BI17: -53106.0766 | BJ17: 19526.9234 | BK17: 0 | BL17: -0.55 | BM17: 8016 | BN17: 0 | BO17: 0 | BP17: 8016 | BQ17: 0 | BR17: 8016 | BS17: 0 | BT17: 0 | BU17: 8016 | BV17: 0 | BW17: -0.55 | BX17: 72633 | BY17: 19526.9234 | BZ17: 111734.67 | CA17: 111734.67 | CB17: 0 | CC17: 0 | CD17: 0 | CE17: 0 | CF17: -0.55 | CG17: -0.55 | CH17: 8038.2 | CI17: 8038.2 | CJ17: 19526.3734 | CK17: 119772.87 | CL17: 119772.87
A18: Brunswick Park Primary & Nursery School | B18: Primary | C18: 101264 | D18: 3022009 | E18: 2295482.576 | F18: 0 | G18: 128137 | H18: 0 | I18: 97975 | J18: 17100 | K18: 0 | L18: 8055 | M18: 175556 | N18: 30100 | O18: 0 | P18: 0 | Q18: 0 | R18: 1000 | S18: 0 | T18: 0 | U18: 0 | V18: 0 | W18: 0 | X18: 4657 | Y18: 70380 | Z18: 2828442.576 | AA18: 1401366.441 | AB18: 0 | AC18: 622830.509 | AD18: 40297.2161 | AE18: 92111.0282 | AF18: 0 | AG18: 100605.4222 | AH18: 11018.1328 | AI18: 15843.5 | AJ18: 697 | AK18: 0 | AL18: 16766 | AM18: 7374.9941 | AN18: 44586 | AO18: 7000 | AP18: 62980 | AQ18: 0 | AR18: 16182.9997 | AS18: 65624 | AT18: 10363.9 | AU18: 0 | AV18: 23467 | AW18: 18022 | AX18: 24005 | AY18: 83017 | AZ18: 7000 | BA18: 100224 | BB18: 31558.3 | BC18: 0 | BD18: 0 | BE18: 0 | BF18: 0 | BG18: 0 | BH18: 2802940.443 | BI18: 25502.1334 | BJ18: 179278.1334 | BK18: 0 | BL18: 3899.74 | BM18: 9077 | BN18: 0 | BO18: 0 | BP18: 9077 | BQ18: 0 | BR18: 9077 | BS18: 0 | BT18: 0 | BU18: 9077 | BV18: 0 | BW18: 3899.74 | BX18: 153776 | BY18: 179278.1334 | BZ18: -71116.5 | CA18: -71116.5 | CB18: 0 | CC18: 0 | CD18: 0 | CE18: 0 | CF18: 3899.74 | CG18: 3899.74 | CH18: 12977.99 | CI18: 12977.99 | CJ18: 183177.8734 | CK18: -58138.51 | CL18: -58138.51
A19: Chalgrove Primary School | B19: Primary | C19: 101309 | D19: 3022067 | E19: 1265135 | F19: 0 | G19: 303049 | H19: 0 | I19: 72020 | J19: 0 | K19: 21302 | L19: 20450 | M19: 0 | N19: 25500 | O19: 0 | P19: 0 | Q19: 2000 | R19: 900 | S19: 0 | T19: 0 | U19: 0 | V19: 0 | W19: 0 | X19: 0 | Y19: 42700 | Z19: 1753056 | AA19: 835764 | AB19: 0 | AC19: 432824 | AD19: 39365 | AE19: 77345 | AF19: 0 | AG19: 8268 | AH19: 7135 | AI19: 2700 | AJ19: 0 | AK19: 0 | AL19: 15525 | AM19: 6800 | AN19: 31820 | AO19: 3500 | AP19: 27000 | AQ19: 0 | AR19: 9007 | AS19: 45590 | AT19: 18586 | AU19: 0 | AV19: 8505 | AW19: 10798 | AX19: 5000 | AY19: 61955 | AZ19: 33901 | BA19: 50852 | BB19: 42721 | BC19: 0 | BD19: 0 | BE19: 0 | BF19: 0 | BG19: 0 | BH19: 1774961 | BI19: -21905 | BJ19: 18994 | BK19: 0 | BL19: 6576.33 | BM19: 6576 | BN19: 0 | BO19: 0 | BP19: 6576 | BQ19: 0 | BR19: 0 | BS19: 0 | BT19: 0 | BU19: 0 | BV19: 6576 | BW19: 13152.33 | BX19: 40899 | BY19: 18994 | BZ19: 76648.37 | CA19: 76648.37 | CB19: 0 | CC19: 0 | CD19: 0 | CE19: 0 | CF19: 6576.33 | CG19: 13152.33 | CH19: 13253.83 | CI19: 13253.83 | CJ19: 32146.33 | CK19: 89902.2 | CL19: 89902.2
A20: Christ Church CE Primary School | B20: Primary | C20: 101316 | D20: 3023302 | E20: 1072775.703 | F20: 0 | G20: 48601 | H20: 0 | I20: 35290 | J20: 2400 | K20: 0 | L20: 5200 | M20: 57820 | N20: 28556 | O20: 1400 | P20: 800 | Q20: 43700 | R20: 5585 | S20: 0 | T20: 0 | U20: 0 | V20: 0 | W20: 0 | X20: 2680.5 | Y20: 39146 | Z20: 1343954.203 | AA20: 672577.9863 | AB20: 0 | AC20: 274204.4586 | AD20: 40048.5386 | AE20: 60071.099 | AF20: 0 | AG20: 53300.6965 | AH20: 2850 | AI20: 5050 | AJ20: 8409 | AK20: 0 | AL20: 16129 | AM20: 1500 | AN20: 26000 | AO20: 3400 | AP20: 34000 | AQ20: 0 | AR20: 3524 | AS20: 76359 | AT20: 18150 | AU20: 0 | AV20: 8825 | AW20: 8872 | AX20: 5308 | AY20: 72179 | AZ20: 1000 | BA20: 43254 | BB20: 24250 | BC20: 0 | BD20: 0 | BE20: 0 | BF20: 0 | BG20: 0 | BH20: 1459261.779 | BI20: -115307.5759 | BJ20: 263662.4241 | BK20: 0 | BL20: 0 | BM20: 0 | BN20: 0 | BO20: 0 | BP20: 0 | BQ20: 0 | BR20: 0 | BS20: 0 | BT20: 0 | BU20: 0 | BV20: 0 | BW20: 0 | BX20: 378970 | BY20: 263662.4241 | BZ20: 449818.12 | CA20: 449818.12 | CB20: 0 | CC20: 0 | CD20: 0 | CE20: 0 | CF20: 0 | CG20: 0 | CH20: 0 | CI20: 0 | CJ20: 263662.4241 | CK20: 449818.12 | CL20: 449818.12
A21: Church Hill Primary School | B21: Primary | C21: 101266 | D21: 3022011 | E21: 2295482.576 | F21: 0 | G21: 128137 | H21: 0 | I21: 97975 | J21: 17100 | K21: 0 | L21: 8055 | M21: 175556 | N21: 30100 | O21: 0 | P21: 0 | Q21: 0 | R21: 1000 | S21: 0 | T21: 0 | U21: 0 | V21: 0 | W21: 0 | X21: 4657 | Y21: 70380 | Z21: 2828442.576 | AA21: 1401366.441 | AB21: 0 | AC21: 622830.509 | AD21: 40297.2161 | AE21: 92111.0282 | AF21: 0 | AG21: 100605.4222 | AH21: 11018.1328 | AI21: 15843.5 | AJ21: 697 | AK21: 0 | AL21: 16766 | AM21: 7374.9941 | AN21: 44586 | AO21: 7000 | AP21: 62980 | AQ21: 0 | AR21: 16182.9997 | AS21: 65624 | AT21: 10363.9 | AU21: 0 | AV21: 23467 | AW21: 18022 | AX21: 24005 | AY21: 83017 | AZ21: 7000 | BA21: 100224 | BB21: 31558.3 | BC21: 0 | BD21: 0 | BE21: 0 | BF21: 0 | BG21: 0 | BH21: 2802940.443 | BI21: 25502.1334 | BJ21: -150293.8666 | BK21: 0 | BL21: 14611.44 | BM21: 9077 | BN21: 0 | BO21: 0 | BP21: 9077 | BQ21: 0 | BR21: 9077 | BS21: 0 | BT21: 0 | BU21: 9077 | BV21: 0 | BW21: 14611.44 | BX21: -175796 | BY21: -150293.8666 | BZ21: -43515.34 | CA21: -43515.34 | CB21: 0 | CC21: 0 | CD21: 0 | CE21: 0 | CF21: 14611.44 | CG21: 14611.44 | CH21: 20631.19 | CI21: 20631.19 | CJ21: -135682.4266 | CK21: -22884.15 | CL21: -22884.15
A22: Colindale School | B22: Primary | C22: 101269 | D22: 3022014 | E22: 3462803.572 | F22: 0 | G22: 227545 | H22: 0 | I22: 270075 | J22: 0 | K22: 0 | L22: 58252 | M22: 131040 | N22: 60300 | O22: 0 | P22: 0 | Q22: 23500 | R22: 3200 | S22: 0 | T22: 0 | U22: 0 | V22: 0 | W22: 0 | X22: 40567 | Y22: 98639 | Z22: 4375921.572 | AA22: 1950800.36 | AB22: 0 | AC22: 1134507.702 | AD22: 156092.0714 | AE22: 168386.9974 | AF22: 0 | AG22: 73115.124 | AH22: 22782.812 | AI22: 8465.978 | AJ22: 1041 | AK22: 1950.75 | AL22: 114020 | AM22: 1248.48 | AN22: 16403.975 | AO22: 7687.5 | AP22: 95000 | AQ22: 0 | AR22: 25602 | AS22: 105189 | AT22: 37616 | AU22: 0 | AV22: 52982.804 | AW22: 22241.238 | AX22: 23368.978 | AY22: 175395 | AZ22: 31350 | BA22: 119181.4203 | BB22: 79527.484 | BC22: 0 | BD22: 0 | BE22: 0 | BF22: 0 | BG22: 0 | BH22: 4423956.673 | BI22: -48035.1012 | BJ22: 297972.8988 | BK22: 0 | BL22: 34373.45 | BM22: 11500 | BN22: 0 | BO22: 0 | BP22: 11500 | BQ22: 0 | BR22: 19372 | BS22: 0 | BT22: 26500 | BU22: 45872 | BV22: -34372 | BW22: 1.45 | BX22: 346008 | BY22: 297972.8988 | BZ22: 442419.33 | CA22: 442419.33 | CB22: 0 | CC22: 0 | CD22: 0 | CE22: 0 | CF22: 34373.45 | CG22: 1.45 | CH22: 12967.97 | CI22: 12967.97 | CJ22: 297974.3488 | CK22: 455387.3 | CL22: 455387.3
A23: Coppetts Wood | B23: Primary | C23: 101270 | D23: 3022015 | E23: 1503326 | F23: 0 | G23: 443517 | H23: 0 | I23: 90115 | J23: 0 | K23: 0 | L23: 31000 | M23: 3900 | N23: 18000 | O23: 0 | P23: 0 | Q23: 22200 | R23: 0 | S23: 0 | T23: 197079 | U23: 0 | V23: 0 | W23: 0 | X23: 0 | Y23: 33134 | Z23: 2342271 | AA23: 953992 | AB23: 0 | AC23: 695102 | AD23: 34215 | AE23: 80890 | AF23: 53959 | AG23: 10005 | AH23: 21581 | AI23: 5698 | AJ23: 14287 | AK23: 2043 | AL23: 35000 | AM23: 10200 | AN23: 34680 | AO23: 4631 | AP23: 29072 | AQ23: 0 | AR23: 8144 | AS23: 60000 | AT23: 28000 | AU23: 0 | AV23: 19133 | AW23: 7035 | AX23: 800 | AY23: 51000 | AZ23: 24000 | BA23: 60390 | BB23: 30814 | BC23: 0 | BD23: 0 | BE23: 0 | BF23: 159622 | BG23: 67457 | BH23: 2501750 | BI23: -159479 | BJ23: 110560 | BK23: 130920 | BL23: 17961.5 | BM23: 7051 | BN23: 0 | BO23: 0 | BP23: 7051 | BQ23: 0 | BR23: 0 | BS23: 0 | BT23: 7051 | BU23: 7051 | BV23: 0 | BW23: 17961.5 | BX23: 240039 | BY23: 110560 | BZ23: 72849.9 | CA23: 72849.9 | CB23: 160920 | CC23: 130920 | CD23: 63737.09 | CE23: 63737.09 | CF23: 17961.5 | CG23: 17961.5 | CH23: 11667.32 | CI23: 11667.32 | CJ23: 259441.5 | CK23: 148254.31 | CL23: 148254.31
A24: Courtland School | B24: Primary | C24: 101271 | D24: 3022016 | E24: 1027538 | F24: 0 | G24: 44030 | H24: 0 | I24: 21520 | J24: 1200 | K24: 240 | L24: 1500 | M24: 1905 | N24: 23550 | O24: 0 | P24: 0 | Q24: 19067 | R24: 5200 | S24: 0 | T24: 0 | U24: 0 | V24: 0 | W24: 0 | X24: 2229 | Y24: 41838 | Z24: 1189817 | AA24: 567235 | AB24: 7532 | AC24: 220748 | AD24: 35883 | AE24: 64762 | AF24: 0 | AG24: 17640 | AH24: 6297 | AI24: 800 | AJ24: 7265 | AK24: 0 | AL24: 14878 | AM24: 6875 | AN24: 21892 | AO24: 3750 | AP24: 25012 | AQ24: 0 | AR24: 7770 | AS24: 57096 | AT24: 8262 | AU24: 0 | AV24: 9217 | AW24: 7658 | AX24: 1800 | AY24: 63049 | AZ24: 10000 | BA24: 96639 | BB24: 19538 | BC24: 0 | BD24: 0 | BE24: 14572 | BF24: 0 | BG24: 0 | BH24: 1296170 | BI24: -106353 | BJ24: 1395 | BK24: 0 | BL24: 3368.34 | BM24: 6374 | BN24: 0 | BO24: 0 | BP24: 6374 | BQ24: 0 | BR24: 0 | BS24: 0 | BT24: 6374 | BU24: 6374 | BV24: 0 | BW24: 3368.34 | BX24: 107748 | BY24: 1395 | BZ24: 153249.44 | CA24: 153249.44 | CB24: 0 | CC24: 0 | CD24: 0 | CE24: 0 | CF24: 3368.34 | CG24: 3368.34 | CH24: 9742.09 | CI24: 9742.09 | CJ24: 4763.34 | CK24: 162991.53 | CL24: 162991.53
A25: Cromer Road Primary School | B25: Primary | C25: 101272 | D25: 3022017 | E25: 1971109 | F25: 0 | G25: 79361 | H25: 0 | I25: 131575 | J25: 0 | K25: 0 | L25: 14650 | M25: 89350 | N25: 38998 | O25: 8000 | P25: 0 | Q25: 0 | R25: 10875 | S25: 0 | T25: 0 | U25: 0 | V25: 0 | W25: 0 | X25: 6598 | Y25: 65065 | Z25: 2415581 | AA25: 1150327 | AB25: 0 | AC25: 424843 | AD25: 35142 | AE25: 79364 | AF25: 0 | AG25: 163650 | AH25: 14123 | AI25: 7200 | AJ25: 12689 | AK25: 0 | AL25: 39500 | AM25: 5200 | AN25: 33948 | AO25: 8000 | AP25: 70000 | AQ25: 0 | AR25: 13120 | AS25: 48350 | AT25: 21820 | AU25: 0 | AV25: 17223 | AW25: 15194 | AX25: 15210 | AY25: 131986 | AZ25: 45000 | BA25: 53650 | BB25: 55476 | BC25: 0 | BD25: 0 | BE25: 0 | BF25: 0 | BG25: 0 | BH25: 2461015 | BI25: -45434 | BJ25: 89469 | BK25: 0 | BL25: 111690.5 | BM25: 0 | BN25: 0 | BO25: 0 | BP25: 0 | BQ25: 0 | BR25: 103000 | BS25: 10642 | BT25: 11480 | BU25: 125122 | BV25: -125122 | BW25: -13431.5 | BX25: 134903 | BY25: 89469 | BZ25: 277663 | CA25: 277663 | CB25: 0 | CC25: 0 | CD25: 0 | CE25: 0 | CF25: 111690.5 | CG25: -13431.5 | CH25: 3660.5 | CI25: 3660.5 | CJ25: 76037.5 | CK25: 281323.5 | CL25: 281323.5
A26: Danegrove JMI School | B26: Primary | C26: 101314 | D26: 3022073 | E26: 2987872.353 | F26: 0 | G26: 293399 | H26: 0 | I26: 253455 | J26: 1500 | K26: 0 | L26: 0 | M26: 107300 | N26: 71500 | O26: 0 | P26: 4850 | Q26: 30542 | R26: 6000 | S26: 0 | T26: 0 | U26: 0 | V26: 0 | W26: 0 | X26: 32846 | Y26: 103162 | Z26: 3892426.353 | AA26: 1590722.906 | AB26: 0 | AC26: 1100570.027 | AD26: 163280.7028 | AE26: 138575.7999 | AF26: 153547.8364 | AG26: 180637.5274 | AH26: 16165.1914 | AI26: 9190 | AJ26: 1023 | AK26: 0 | AL26: 18500 | AM26: 15000 | AN26: 5000 | AO26: 6500 | AP26: 77600 | AQ26: 0 | AR26: 34640 | AS26: 65153 | AT26: 27346.34 | AU26: 0 | AV26: 46937.2 | AW26: 25788 | AX26: 14120 | AY26: 99000 | AZ26: 47500 | BA26: 86677 | BB26: 41558 | BC26: 0 | BD26: 0 | BE26: 0 | BF26: 0 | BG26: 0 | BH26: 3965032.531 | BI26: -72606.1783 | BJ26: 47347.8217 | BK26: -1965 | BL26: 8176.91 | BM26: 11076 | BN26: 0 | BO26: 0 | BP26: 11076 | BQ26: 0 | BR26: 19254 | BS26: 0 | BT26: 0 | BU26: 19254 | BV26: -8178 | BW26: -1.09 | BX26: 119954 | BY26: 47347.8217 | BZ26: 498746.88 | CA26: 498746.88 | CB26: -1965 | CC26: -1965 | CD26: -1965 | CE26: -1965 | CF26: 8176.91 | CG26: -1.09 | CH26: 15882.44 | CI26: 15882.44 | CJ26: 45381.7317 | CK26: 512664.32 | CL26: 512664.32
A27: Deansbrook Infant School | B27: Primary | C27: 101274 | D27: 3022019 | E27: 1375372.943 | F27: 0 | G27: 87643 | H27: 0 | I27: 65095 | J27: 2149 | K27: 0 | L27: 3280 | M27: 46454 | N27: 0 | O27: 0 | P27: 0 | Q27: 12700 | R27: 1500 | S27: 0 | T27: 0 | U27: 0 | V27: 0 | W27: 0 | X27: 5656 | Y27: 77870.13 | Z27: 1677720.073 | AA27: 758577.5541 | AB27: 35.7072 | AC27: 451531.0295 | AD27: 38878.6937 | AE27: 85776.1456 | AF27: 0 | AG27: 55619.1831 | AH27: 7610.5217 | AI27: 700 | AJ27: 360.22 | AK27: 0 | AL27: 11279.7386 | AM27: 7070 | AN27: 1425 | AO27: 6500 | AP27: 51000 | AQ27: 0 | AR27: 5731.2952 | AS27: 20355 | AT27: 13676.86 | AU27: 0 | AV27: 13898 | AW27: 8448.13 | AX27: 850 | AY27: 63303 | AZ27: 23548 | BA27: 45335.4692 | BB27: 31500 | BC27: 0 | BD27: 0 | BE27: 0 | BF27: 0 | BG27: 0 | BH27: 1703009.548 | BI27: -25289.4745 | BJ27: -71461.4745 | BK27: 0 | BL27: 5158.27 | BM27: 7020 | BN27: 0 | BO27: 0 | BP27: 7020 | BQ27: 0 | BR27: 0 | BS27: 0 | BT27: 7020 | BU27: 7020 | BV27: 0 | BW27: 5158.27 | BX27: -46172 | BY27: -71461.4745 | BZ27: -26744.02 | CA27: -26744.02 | CB27: 0 | CC27: 0 | CD27: 0 | CE27: 0 | CF27: 5158.27 | CG27: 5158.27 | CH27: 10949.71 | CI27: 10949.71 | CJ27: -66303.2045 | CK27: -15794.31 | CL27: -15794.31
A28: Dollis Primary School | B28: Primary | C28: 101275 | D28: 3022021
A29: Edgware Primary School | B29: Primary | C29: 101277 | D29: 3022023 | E29: 2518670 | F29: 0 | G29: 125696 | H29: 0 | I29: 230995 | J29: 0 | K29: 101780 | L29: 0 | M29: 5025 | N29: 25500 | O29: 0 | P29: 0 | Q29: 12200 | R29: 600 | S29: 0 | T29: 0 | U29: 0 | V29: 0 | W29: 0 | X29: 0 | Y29: 46980 | Z29: 3067446 | AA29: 1321231 | AB29: 0 | AC29: 809082 | AD29: 64920 | AE29: 189815 | AF29: 0 | AG29: 36243 | AH29: 20113 | AI29: 14700 | AJ29: 0 | AK29: 0 | AL29: 68750 | AM29: 6270 | AN29: 63920 | AO29: 12000 | AP29: 48750 | AQ29: 0 | AR29: 8333 | AS29: 98941 | AT29: 21515 | AU29: 0 | AV29: 20596 | AW29: 23765 | AX29: 7506 | AY29: 116830 | AZ29: 83764 | BA29: 43142 | BB29: 42875 | BC29: 0 | BD29: 0 | BE29: 0 | BF29: 0 | BG29: 0 | BH29: 3123061 | BI29: -55615 | BJ29: 31155 | BK29: 0 | BL29: 1841.26 | BM29: 0 | BN29: 0 | BO29: 0 | BP29: 0 | BQ29: 0 | BR29: 0 | BS29: 0 | BT29: 0 | BU29: 0 | BV29: 0 | BW29: 1841.26 | BX29: 86770 | BY29: 31155 | BZ29: 465969.33 | CA29: 465969.33 | CB29: 0 | CC29: 0 | CD29: 0 | CE29: 0 | CF29: 1841.26 | CG29: 1841.26 | CH29: 11728.38 | CI29: 11728.38 | CJ29: 32996.26 | CK29: 477697.71 | CL29: 477697.71
A30: Fairway Primary School | B30: Primary | C30: 101278 | D30: 3022024 | E30: 1350344.79 | F30: 0 | G30: 56000 | H30: 0 | I30: 85500 | J30: 37399.9936 | K30: 9236 | L30: 12800 | M30: 81000 | N30: 14000 | O30: 0 | P30: 0 | Q30: 700 | R30: 3500 | S30: 0 | T30: 180000 | U30: 0 | V30: 0 | W30: 0 | X30: 9788 | Y30: 28435 | Z30: 1868703.783 | AA30: 684625.6505 | AB30: 0 | AC30: 217360.9825 | AD30: 22148.1889 | AE30: 75173.7549 | AF30: 0 | AG30: 314330.1551 | AH30: 6395.4531 | AI30: 9752.5 | AJ30: 337 | AK30: 0 | AL30: 30086 | AM30: 3000 | AN30: 34050 | AO30: 8300 | AP30: 40000 | AQ30: 0 | AR30: 7550 | AS30: 16800.4815 | AT30: 15900 | AU30: 0 | AV30: 11340 | AW30: 7725 | AX30: 1800 | AY30: 63500 | AZ30: 47000 | BA30: 66306.21 | BB30: 47821 | BC30: 0 | BD30: 0 | BE30: 0 | BF30: 146550.2636 | BG30: 33450 | BH30: 1911302.64 | BI30: -42598.8567 | BJ30: -114522.5931 | BK30: -0.2636 | BL30: 2865 | BM30: 6992 | BN30: 0 | BO30: 0 | BP30: 6992 | BQ30: 0 | BR30: 0 | BS30: 9857 | BT30: 0 | BU30: 9857 | BV30: -2865 | BW30: 0 | BX30: -71924 | BY30: -114522.5931 | BZ30: 186144.19 | CA30: 258068.19 | CB30: 0 | CC30: -0.2636 | CD30: 13221.15 | CE30: 13221.15 | CF30: 2865 | CG30: 0 | CH30: 9659.5 | CI30: 6794.5 | CJ30: -114522.8567 | CK30: 209024.84 | CL30: 278083.84
A31: Foulds | B31: Primary | C31: 101279 | D31: 3022025 | E31: 1445807 | F31: 0 | G31: 51405 | H31: 0 | I31: 14200 | J31: 0 | K31: 0 | L31: 51890 | M31: 0 | N31: 35500 | O31: 0 | P31: 0 | Q31: 42360 | R31: 11500 | S31: 0 | T31: 0 | U31: 0 | V31: 0 | W31: 0 | X31: 0 | Y31: 62800 | Z31: 1715462 | AA31: 927969 | AB31: 2000 | AC31: 226140 | AD31: 78319 | AE31: 64818 | AF31: 0 | AG31: 41653 | AH31: 5888 | AI31: 2530 | AJ31: 526 | AK31: 0 | AL31: 10000 | AM31: 0 | AN31: 4600 | AO31: 4750 | AP31: 39750 | AQ31: 34048 | AR31: 6600 | AS31: 69315 | AT31: 7480 | AU31: 0 | AV31: 9341 | AW31: 14198 | AX31: 4600 | AY31: 92000 | AZ31: 32165 | BA31: 69019 | BB31: 37663 | BC31: 0 | BD31: 0 | BE31: 0 | BF31: 0 | BG31: 0 | BH31: 1785372 | BI31: -69910 | BJ31: 72923 | BK31: 0 | BL31: 9210.8 | BM31: 7544 | BN31: 0 | BO31: 0 | BP31: 7544 | BQ31: 0 | BR31: 11968 | BS31: 0 | BT31: 0 | BU31: 11968 | BV31: -4424 | BW31: 4786.8 | BX31: 142833 | BY31: 72923 | BZ31: 174354.25 | CA31: 174354.25 | CB31: 0 | CC31: 0 | CD31: 0 | CE31: 0 | CF31: 9210.8 | CG31: 4786.8 | CH31: -17503.74 | CI31: -17503.74 | CJ31: 77709.8 | CK31: 156850.51 | CL31: 156850.51
A32: Frith Manor School | B32: Primary | C32: 101280 | D32: 3022026 | E32: 2710569 | F32: 0 | G32: 98488 | H32: 0 | I32: 109415 | J32: 0 | K32: 0 | L32: 36000 | M32: 100690 | N32: 35000 | O32: 0 | P32: 0 | Q32: 67540 | R32: 0 | S32: 0 | T32: 0 | U32: 0 | V32: 0 | W32: 0 | X32: 0 | Y32: 75997 | Z32: 3233699 | AA32: 1321324.53 | AB32: 0 | AC32: 542050.1519 | AD32: 52474.42627 | AE32: 168708.1032 | AF32: 0 | AG32: 75877.27225 | AH32: 11047.97747 | AI32: 6800 | AJ32: 12325 | AK32: 0 | AL32: 35239 | AM32: 5400 | AN32: 59900 | AO32: 3500 | AP32: 82000 | AQ32: 42997 | AR32: 18610 | AS32: 67765 | AT32: 19245 | AU32: 0 | AV32: 36208 | AW32: 11193 | AX32: 0 | AY32: 121998 | AZ32: 62814 | BA32: 104140 | BB32: 37962 | BC32: 0 | BD32: 0 | BE32: 4864 | BF32: 0 | BG32: 0 | BH32: 2904442.461 | BI32: 329256.5392 | BJ32: 96389.53922 | BK32: 0 | BL32: -0.15 | BM32: 0 | BN32: 0 | BO32: 0 | BP32: 0 | BQ32: 0 | BR32: 0 | BS32: 0 | BT32: 0 | BU32: 0 | BV32: 0 | BW32: -0.15 | BX32: -232867 | BY32: 96389.53922 | BZ32: 111732.25 | CA32: 111732.25 | CB32: 0 | CC32: 0 | CD32: 0 | CE32: 0 | CF32: -0.15 | CG32: -0.15 | CH32: -2154.65 | CI32: -2154.65 | CJ32: 96389.38922 | CK32: 109577.6 | CL32: 109577.6
A33: Garden Suburb Infant School | B33: Primary | C33: 101282 | D33: 3022028 | E33: 1192907.437 | F33: 0 | G33: 51306 | H33: 0 | I33: 66480 | J33: 4170 | K33: 0 | L33: 9000 | M33: 6830 | N33: 1350 | O33: 0 | P33: 0 | Q33: 0 | R33: 5000 | S33: 0 | T33: 0 | U33: 0 | V33: 0 | W33: 8419 | X33: 8279 | Y33: 76500 | Z33: 1430241.437 | AA33: 790688.4516 | AB33: 2240 | AC33: 203357.4519 | AD33: 39267.9653 | AE33: 93473.6565 | AF33: 0 | AG33: 32495.2903 | AH33: 9620.21 | AI33: 1000 | AJ33: 9369 | AK33: 0 | AL33: 11020 | AM33: 1100 | AN33: 22624 | AO33: 2835 | AP33: 26875 | AQ33: 0 | AR33: 11382 | AS33: 8534 | AT33: 7250 | AU33: 0 | AV33: 12925 | AW33: 8028 | AX33: 0 | AY33: 80271.3 | AZ33: 15633 | BA33: 102204 | BB33: 29180 | BC33: 0 | BD33: 0 | BE33: 0 | BF33: 0 | BG33: 0 | BH33: 1521373.326 | BI33: -91131.8891 | BJ33: -126130.8891 | BK33: 0 | BL33: 900.6 | BM33: 6800 | BN33: 0 | BO33: 0 | BP33: 6800 | BQ33: 0 | BR33: 3134 | BS33: 0 | BT33: 4567 | BU33: 7701 | BV33: -901 | BW33: -0.4 | BX33: -34999 | BY33: -126130.8891 | BZ33: -39046.61 | CA33: -39046.61 | CB33: 0 | CC33: 0 | CD33: 0 | CE33: 0 | CF33: 900.6 | CG33: -0.4 | CH33: 1831.86 | CI33: 1831.86 | CJ33: -126131.2891 | CK33: -37214.75 | CL33: -37214.75
A34: Garden Suburb Junior | B34: Primary | C34: 101281 | D34: 3022027 | E34: 1637144.487 | F34: 0 | G34: 80192 | H34: 0 | I34: 87255 | J34: 6300 | K34: 0 | L34: 10000 | M34: 11475 | N34: 57600 | O34: 0 | P34: 0 | Q34: 33368 | R34: 3060 | S34: 0 | T34: 0 | U34: 0 | V34: 0 | W34: 3684 | X34: 12012 | Y34: 19500 | Z34: 1961590.487 | AA34: 1092320.531 | AB34: 0 | AC34: 279374.4385 | AD34: 40140.3443 | AE34: 95646.8108 | AF34: 0 | AG34: 22001.6775 | AH34: 10330.9956 | AI34: 1200 | AJ34: 10559 | AK34: 0 | AL34: 12580 | AM34: 2100 | AN34: 28952 | AO34: 4250 | AP34: 40325 | AQ34: 0 | AR34: 16335 | AS34: 57410 | AT34: 17350 | AU34: 0 | AV34: 15565 | AW34: 12055 | AX34: 9039 | AY34: 82215 | AZ34: 32450 | BA34: 113477 | BB34: 34876 | BC34: 0 | BD34: 0 | BE34: 0 | BF34: 0 | BG34: 0 | BH34: 2030552.798 | BI34: -68962.3105 | BJ34: -85502.3105 | BK34: 0 | BL34: -1.27 | BM34: 7938 | BN34: 0 | BO34: 0 | BP34: 7938 | BQ34: 0 | BR34: 3134 | BS34: 0 | BT34: 4804 | BU34: 7938 | BV34: 0 | BW34: -1.27 | BX34: -16540 | BY34: -85502.3105 | BZ34: 64365.47 | CA34: 64365.47 | CB34: 0 | CC34: 0 | CD34: 0 | CE34: 0 | CF34: -1.27 | CG34: -1.27 | CH34: 4763.17 | CI34: 4763.17 | CJ34: -85503.5805 | CK34: 69128.64 | CL34: 69128.64
A35: Goldbeaters Primary School | B35: Primary | C35: 101283 | D35: 3022029 | E35: 2514653.899 | F35: 0 | G35: 139174 | H35: 0 | I35: 227085 | J35: 0 | K35: 0 | L35: 0 | M35: 43520 | N35: 36300 | O35: 0 | P35: 0 | Q35: 13075 | R35: 5750 | S35: 0 | T35: 0 | U35: 0 | V35: 0 | W35: 0 | X35: 38003 | Y35: 53221 | Z35: 3070781.899 | AA35: 1240080.549 | AB35: 0 | AC35: 827164.3144 | AD35: 113454.5625 | AE35: 64198.9219 | AF35: 75663.9306 | AG35: 156492.2574 | AH35: 10025 | AI35: 3055 | AJ35: 692.9064 | AK35: 0 | AL35: 22500 | AM35: 100 | AN35: 2100 | AO35: 60000 | AP35: 81063 | AQ35: 0 | AR35: 17640 | AS35: 67149.3428 | AT35: 15930 | AU35: 0 | AV35: 20150 | AW35: 15446.68 | AX35: 16156.864 | AY35: 71150 | AZ35: 44880 | BA35: 228764.77 | BB35: 42996.8 | BC35: 0 | BD35: 0 | BE35: 0 | BF35: 0 | BG35: 0 | BH35: 3196854.899 | BI35: -126072.9992 | BJ35: -182811.9992 | BK35: 0 | BL35: 22570.75 | BM35: 9173 | BN35: 0 | BO35: 0 | BP35: 9173 | BQ35: 0 | BR35: 0 | BS35: 0 | BT35: 24173 | BU35: 24173 | BV35: -15000 | BW35: 7570.75 | BX35: -56739 | BY35: -182811.9992 | BZ35: -11590.41 | CA35: -11590.41 | CB35: 0 | CC35: 0 | CD35: 0 | CE35: 0 | CF35: 22570.75 | CG35: 7570.75 | CH35: 31651.25 | CI35: 31651.25 | CJ35: -175241.2492 | CK35: 20060.84 | CL35: 20060.84
A36: Hasmonean Primary School | B36: Primary | C36: 130998 | D36: 3023516 | E36: 1028039.719 | F36: 0 | G36: 82285 | H36: 0 | I36: 32280 | J36: 45337 | K36: 0 | L36: 5790 | M36: 0 | N36: 0 | O36: 1600 | P36: 0 | Q36: 0 | R36: 366195.5 | S36: 0 | T36: 0 | U36: 0 | V36: 0 | W36: 0 | X36: 2812 | Y36: 35791 | Z36: 1600130.219 | AA36: 913386.2825 | AB36: 0 | AC36: 247698.9102 | AD36: 66935.6131 | AE36: 106370.7048 | AF36: 0 | AG36: 37512.6229 | AH36: 1953 | AI36: 2255 | AJ36: 7718.42 | AK36: 706 | AL36: 21000 | AM36: 500 | AN36: 2085 | AO36: 4150 | AP36: 19492 | AQ36: 0 | AR36: 58158 | AS36: 42120 | AT36: 15313 | AU36: 0 | AV36: 10050.345 | AW36: 3893 | AX36: 809.796 | AY36: 51238 | AZ36: 3000 | BA36: 17430 | BB36: 20206 | BC36: 0 | BD36: 0 | BE36: 0 | BF36: 0 | BG36: 0 | BH36: 1653981.694 | BI36: -53851.4753 | BJ36: -79642.4753 | BK36: 0 | BL36: 0 | BM36: 0 | BN36: 0 | BO36: 0 | BP36: 0 | BQ36: 0 | BR36: 0 | BS36: 0 | BT36: 0 | BU36: 0 | BV36: 0 | BW36: 0 | BX36: -25791 | BY36: -79642.4753 | BZ36: -14281.12 | CA36: -14281.12 | CB36: 0 | CC36: 0 | CD36: 0 | CE36: 0 | CF36: 0 | CG36: 0 | CH36: 0 | CI36: 0 | CJ36: -79642.4753 | CK36: -14281.12 | CL36: -14281.12
A37: Hollickwood JMI School | B37: Primary | C37: 101285 | D37: 3022031 | E37: 1174971.687 | F37: 0 | G37: 53298 | H37: 0 | I37: 94180 | J37: 0 | K37: 2216 | L37: 15000 | M37: 48000 | N37: 12000 | O37: 0 | P37: 0 | Q37: 19250 | R37: 5799.98 | S37: 0 | T37: 0 | U37: 0 | V37: 0 | W37: 0 | X37: 10146.5 | Y37: 27568 | Z37: 1462430.167 | AA37: 640097.7273 | AB37: 0 | AC37: 344829.194 | AD37: 36525.6396 | AE37: 82929.8423 | AF37: 0 | AG37: 34408.8319 | AH37: 2995 | AI37: 1900 | AJ37: 307.1 | AK37: 0 | AL37: 9500 | AM37: 4200 | AN37: 22283.23 | AO37: 4000 | AP37: 23409.62 | AQ37: 0 | AR37: 16526.51 | AS37: 53985 | AT37: 9117.576 | AU37: 0 | AV37: 6800 | AW37: 6939.69 | AX37: 6250 | AY37: 42048.9906 | AZ37: 48360 | BA37: 78049.2192 | BB37: 19660 | BC37: 0 | BD37: 0 | BE37: 0 | BF37: 0 | BG37: 0 | BH37: 1495123.171 | BI37: -32693.0041 | BJ37: -74421.0041 | BK37: 0 | BL37: 789.29 | BM37: 0 | BN37: 0 | BO37: 0 | BP37: 0 | BQ37: 0 | BR37: 0 | BS37: 0 | BT37: 6374 | BU37: 6374 | BV37: -6374 | BW37: -5584.71 | BX37: -41728 | BY37: -74421.0041 | BZ37: -11323.15 | CA37: -11323.15 | CB37: 0 | CC37: 0 | CD37: 0 | CE37: 0 | CF37: 789.29 | CG37: -5584.71 | CH37: 6286.28 | CI37: 6286.28 | CJ37: -80005.7141 | CK37: -5036.87 | CL37: -5036.87
A38: Holly Park School | B38: Primary | C38: 101286 | D38: 3022032 | E38: 2164085.775 | F38: 0 | G38: 146490.92 | H38: 0 | I38: 120495 | J38: 6000 | K38: 0 | L38: 0 | M38: 108197 | N38: 59675 | O38: 0 | P38: 0 | Q38: 1700 | R38: 180 | S38: 0 | T38: 0 | U38: 0 | V38: 0 | W38: 0 | X38: 0 | Y38: 66962 | Z38: 2673785.695 | AA38: 1373555.25 | AB38: 0 | AC38: 659055.7273 | AD38: 39869.9604 | AE38: 46569.7952 | AF38: 0 | AG38: 69906.6508 | AH38: 10621.146 | AI38: 3579 | AJ38: 10732.36 | AK38: 3066 | AL38: 18980 | AM38: 3040 | AN38: 53302.98 | AO38: 5358.06 | AP38: 32000 | AQ38: 0 | AR38: 9232.3 | AS38: 54031.2 | AT38: 27050 | AU38: 0 | AV38: 12750 | AW38: 11916 | AX38: 2700 | AY38: 109425 | AZ38: 121320 | BA38: 55454.7 | BB38: 47713 | BC38: 0 | BD38: 0 | BE38: 0 | BF38: 0 | BG38: 0 | BH38: 2781229.129 | BI38: -107443.4339 | BJ38: 1507.5661 | BK38: 0 | BL38: -3070.86 | BM38: 9488 | BN38: 0 | BO38: 0 | BP38: 9488 | BQ38: 0 | BR38: 6416 | BS38: 0 | BT38: 0 | BU38: 6416 | BV38: 3072 | BW38: 1.14 | BX38: 108951 | BY38: 1507.5661 | BZ38: 137145.31 | CA38: 137145.31 | CB38: 0 | CC38: 0 | CD38: 0 | CE38: 0 | CF38: -3070.86 | CG38: 1.14 | CH38: 2463.59 | CI38: 2463.59 | CJ38: 1508.7061 | CK38: 139608.9 | CL38: 139608.9
A39: Holy Trinity School | B39: Primary | C39: 101317 | D39: 3023304 | E39: 1107303.978 | F39: 0 | G39: 87614 | H39: 0 | I39: 69250 | J39: 0 | K39: 0 | L39: 0 | M39: 38700 | N39: 38000 | O39: 2800 | P39: 0 | Q39: 14000 | R39: 5000 | S39: 0 | T39: 0 | U39: 0 | V39: 0 | W39: 0 | X39: 0 | Y39: 41201 | Z39: 1403868.978 | AA39: 638405.6173 | AB39: 0 | AC39: 333632.432 | AD39: 33777.0962 | AE39: 63826.3803 | AF39: 0 | AG39: 31484.0964 | AH39: 28360 | AI39: 6250 | AJ39: 7320.38 | AK39: 0 | AL39: 17955 | AM39: 0 | AN39: 19472 | AO39: 3000 | AP39: 18900 | AQ39: 0 | AR39: 11120 | AS39: 26955 | AT39: 7140 | AU39: 0 | AV39: 13190 | AW39: 7066.77 | AX39: 4193 | AY39: 64000 | AZ39: 10000 | BA39: 60988.59 | BB39: 47773 | BC39: 0 | BD39: 0 | BE39: 0 | BF39: 0 | BG39: 0 | BH39: 1454809.362 | BI39: -50940.3842 | BJ39: 1220.6158 | BK39: 0 | BL39: 0 | BM39: 0 | BN39: 0 | BO39: 0 | BP39: 0 | BQ39: 0 | BR39: 0 | BS39: 0 | BT39: 0 | BU39: 0 | BV39: 0 | BW39: 0 | BX39: 52161 | BY39: 1220.6158 | BZ39: 65316.94 | CA39: 65316.94 | CB39: 0 | CC39: 0 | CD39: 0 | CE39: 0 | CF39: 0 | CG39: 0 | CH39: 0 | CI39: 0 | CJ39: 1220.6158 | CK39: 65316.94 | CL39: 65316.94
A40: Livingstone School | B40: Primary | C40: 101289 | D40: 3022036 | E40: 1648978.597 | F40: 0 | G40: 361594 | H40: 0 | I40: 109415 | J40: 0 | K40: 0 | L40: 0 | M40: 62500 | N40: 15500 | O40: 0 | P40: 0 | Q40: 24400 | R40: 15250 | S40: 0 | T40: 0 | U40: 0 | V40: 0 | W40: 0 | X40: 0 | Y40: 45801.31 | Z40: 2283438.907 | AA40: 1039752.64 | AB40: 0 | AC40: 698028.7867 | AD40: 91641.4949 | AE40: 33462.3684 | AF40: 0 | AG40: 66359.538 | AH40: 13806.7725 | AI40: 7500 | AJ40: 0 | AK40: 0 | AL40: 40500 | AM40: 15100 | AN40: 8650 | AO40: 4500 | AP40: 56000 | AQ40: 0 | AR40: 15000 | AS40: 122430.2912 | AT40: 43100 | AU40: 0 | AV40: 18968.52 | AW40: 10000 | AX40: 11250 | AY40: 74272.32 | AZ40: 4000 | BA40: 134808.35 | BB40: 46434 | BC40: 0 | BD40: 0 | BE40: 45552 | BF40: 0 | BG40: 0 | BH40: 2601117.082 | BI40: -317678.1753 | BJ40: 430565.8247 | BK40: 0 | BL40: 7552.75 | BM40: 7553 | BN40: 0 | BO40: 45552 | BP40: 53105 | BQ40: 0 | BR40: 60658 | BS40: 0 | BT40: 0 | BU40: 60658 | BV40: -7553 | BW40: -0.25 | BX40: 748244 | BY40: 430565.8247 | BZ40: 1087083.24 | CA40: 1087083.24 | CB40: 0 | CC40: 0 | CD40: 0 | CE40: 0 | CF40: 7552.75 | CG40: -0.25 | CH40: -17447.72 | CI40: -17447.72 | CJ40: 430565.5747 | CK40: 1069635.52 | CL40: 1069635.52
A41: Manorside Primary School | B41: Primary | C41: 101290 | D41: 3022037 | E41: 1341189 | F41: 0 | G41: 62666 | H41: 0 | I41: 50000 | J41: 900 | K41: 0 | L41: 31485 | M41: 47384 | N41: 37770 | O41: 0 | P41: 0 | Q41: 17050 | R41: 10000 | S41: 0 | T41: 0 | U41: 0 | V41: 0 | W41: 0 | X41: 4818 | Y41: 33604 | Z41: 1636866 | AA41: 676566 | AB41: 0 | AC41: 338666 | AD41: 38225 | AE41: 52928 | AF41: 0 | AG41: 84083 | AH41: 5439 | AI41: 1570 | AJ41: 395 | AK41: 1997 | AL41: 11220 | AM41: 189 | AN41: 29383 | AO41: 4613 | AP41: 56000 | AQ41: 0 | AR41: 8945 | AS41: 43218 | AT41: 13415 | AU41: 0 | AV41: 14087 | AW41: 9682 | AX41: 9355 | AY41: 73308 | AZ41: 45900 | BA41: 75460 | BB41: 38535 | BC41: 0 | BD41: 0 | BE41: 0 | BF41: 0 | BG41: 0 | BH41: 1633179 | BI41: 3687 | BJ41: 218240 | BK41: 0 | BL41: 21846.25 | BM41: 0 | BN41: 0 | BO41: 0 | BP41: 0 | BQ41: 0 | BR41: 0 | BS41: 0 | BT41: 0 | BU41: 0 | BV41: 0 | BW41: 21846.25 | BX41: 214553 | BY41: 218240 | BZ41: 456611.85 | CA41: 456611.85 | CB41: 0 | CC41: 0 | CD41: 0 | CE41: 0 | CF41: 21846.25 | CG41: 21846.25 | CH41: 24152.51 | CI41: 24152.51 | CJ41: 240086.25 | CK41: 480764.36 | CL41: 480764.36
A42: Martin Primary School | B42: Primary | C42: 135226 | D42: 3023523 | E42: 3217743 | F42: 0 | G42: 109965 | H42: 0 | I42: 204130 | J42: 0 | K42: 0 | L42: 161300 | M42: 0 | N42: 70750 | O42: 0 | P42: 0 | Q42: 52818 | R42: 21860 | S42: 0 | T42: 0 | U42: 0 | V42: 0 | W42: 0 | X42: 0 | Y42: 88896 | Z42: 3927462 | AA42: 1786092 | AB42: 0 | AC42: 835553 | AD42: 175930 | AE42: 152729 | AF42: 0 | AG42: 128760 | AH42: 34336 | AI42: 2000 | AJ42: 10200 | AK42: 0 | AL42: 16000 | AM42: 3000 | AN42: 10150 | AO42: 6000 | AP42: 57750 | AQ42: 0 | AR42: 13310 | AS42: 160260 | AT42: 13156 | AU42: 0 | AV42: 13707 | AW42: 28298 | AX42: 750 | AY42: 166750 | AZ42: 40140 | BA42: 205187 | BB42: 43260 | BC42: 0 | BD42: 0 | BE42: 0 | BF42: 0 | BG42: 0 | BH42: 3903318 | BI42: 24144 | BJ42: 194137 | BK42: 0 | BL42: 24955 | BM42: 0 | BN42: 0 | BO42: 0 | BP42: 0 | BQ42: 0 | BR42: 0 | BS42: 0 | BT42: 0 | BU42: 0 | BV42: 0 | BW42: 24955 | BX42: 169993 | BY42: 194137 | BZ42: 416769.82 | CA42: 416769.82 | CB42: 0 | CC42: 0 | CD42: 0 | CE42: 0 | CF42: 24955 | CG42: 24955 | CH42: 26552.38 | CI42: 26552.38 | CJ42: 219092 | CK42: 443322.2 | CL42: 443322.2
A43: Mathilda Marks-Kennedy School | B43: Primary | C43: 101376 | D43: 3025948
A44: Menorah Foundation School | B44: Primary | C44: 131359 | D44: 3025949 | E44: 1776743 | F44: 0 | G44: 31305 | H44: 0 | I44: 15235 | J44: 0 | K44: 4000 | L44: 500 | M44: 5000 | N44: 22200 | O44: 0 | P44: 0 | Q44: 6500 | R44: 1275888 | S44: 0 | T44: 0 | U44: 0 | V44: 0 | W44: 0 | X44: 2500 | Y44: 84209 | Z44: 3224080 | AA44: 1211735 | AB44: 0 | AC44: 1151836 | AD44: 48311 | AE44: 111585 | AF44: 0 | AG44: 18111 | AH44: 37041 | AI44: 17500 | AJ44: 632 | AK44: 0 | AL44: 27890 | AM44: 0 | AN44: 70700 | AO44: 3000 | AP44: 19120 | AQ44: 0 | AR44: 11500 | AS44: 103850 | AT44: 13472 | AU44: 0 | AV44: 3296 | AW44: 32135 | AX44: 1750 | AY44: 92500 | AZ44: 52750 | BA44: 52537 | BB44: 138880 | BC44: 0 | BD44: 0 | BE44: 0 | BF44: 0 | BG44: 0 | BH44: 3220131 | BI44: 3949 | BJ44: 15351 | BK44: 0 | BL44: 0 | BM44: 0 | BN44: 0 | BO44: 0 | BP44: 0 | BQ44: 0 | BR44: 0 | BS44: 0 | BT44: 0 | BU44: 0 | BV44: 0 | BW44: 0 | BX44: 11402 | BY44: 15351 | BZ44: -50402.19 | CA44: -50402.19 | CB44: 0 | CC44: 0 | CD44: 0 | CE44: 0 | CF44: 0 | CG44: 0 | CH44: 0 | CI44: 0 | CJ44: 15351 | CK44: -50402.19 | CL44: -50402.19
A45: Menorah Primary School | B45: Primary | C45: 101341 | D45: 3023513 | E45: 1823744.296 | F45: 0 | G45: 68372 | H45: 0 | I45: 22160 | J45: 67637 | K45: 0 | L45: 120000 | M45: 1750 | N45: 24000 | O45: 0 | P45: 0 | Q45: 6200 | R45: 263517 | S45: 0 | T45: 0 | U45: 0 | V45: 0 | W45: 0 | X45: 3784.88 | Y45: 92602 | Z45: 2493767.176 | AA45: 1323705.741 | AB45: 0 | AC45: 169387.2984 | AD45: 35778.3484 | AE45: 109063.9885 | AF45: 0 | AG45: 39012.7334 | AH45: 7316 | AI45: 2540 | AJ45: 629.14 | AK45: 0 | AL45: 16100 | AM45: 200 | AN45: 35000 | AO45: 5740 | AP45: 43560 | AQ45: 0 | AR45: 88742.242 | AS45: 123259 | AT45: 10726.1 | AU45: 0 | AV45: 11870 | AW45: 6022.31 | AX45: 29250 | AY45: 99222 | AZ45: 0 | BA45: 249479.86 | BB45: 30027.9937 | BC45: 0 | BD45: 0 | BE45: 0 | BF45: 0 | BG45: 0 | BH45: 2436632.756 | BI45: 57134.4199 | BJ45: -4415.5801 | BK45: 0 | BL45: 0 | BM45: 0 | BN45: 0 | BO45: 0 | BP45: 0 | BQ45: 0 | BR45: 0 | BS45: 0 | BT45: 0 | BU45: 0 | BV45: 0 | BW45: 0 | BX45: -61550 | BY45: -4415.5801 | BZ45: -594714.24 | CA45: -594714.24 | CB45: 0 | CC45: 0 | CD45: 0 | CE45: 0 | CF45: 0 | CG45: 0 | CH45: 0 | CI45: 0 | CJ45: -4415.5801 | CK45: -594714.24 | CL45: -594714.24
A46: Monken Hadley C E Primary School | B46: Primary | C46: 101318 | D46: 3023305 | E46: 770471 | F46: 0 | G46: 39981 | H46: 0 | I46: 23520 | J46: 0 | K46: 35075 | L46: 7950 | M46: 0 | N46: 20250 | O46: 0 | P46: 0 | Q46: 5000 | R46: 1000 | S46: 0 | T46: 0 | U46: 0 | V46: 0 | W46: 0 | X46: 0 | Y46: 29971 | Z46: 933218 | AA46: 521422 | AB46: 0 | AC46: 126197 | AD46: 39543 | AE46: 38070 | AF46: 0 | AG46: 38890 | AH46: 3500 | AI46: 4100 | AJ46: 6000 | AK46: 0 | AL46: 9250 | AM46: 0 | AN46: 1000 | AO46: 2400 | AP46: 16000 | AQ46: 1587 | AR46: 5500 | AS46: 38182 | AT46: 10152 | AU46: 0 | AV46: 7810 | AW46: 5823 | AX46: 1825 | AY46: 47017 | AZ46: 1000 | BA46: 17628 | BB46: 25386 | BC46: 0 | BD46: 0 | BE46: 0 | BF46: 0 | BG46: 0 | BH46: 968282 | BI46: -35064 | BJ46: 38680 | BK46: 0 | BL46: 0 | BM46: 0 | BN46: 0 | BO46: 0 | BP46: 0 | BQ46: 0 | BR46: 0 | BS46: 0 | BT46: 0 | BU46: 0 | BV46: 0 | BW46: 0 | BX46: 73744 | BY46: 38680 | BZ46: 91012.84 | CA46: 91012.84 | CB46: 0 | CC46: 0 | CD46: 0 | CE46: 0 | CF46: 0 | CG46: 0 | CH46: 0 | CI46: 0 | CJ46: 38680 | CK46: 91012.84 | CL46: 91012.84
A47: Monkfrith School | B47: Primary | C47: 101293 | D47: 3022042 | E47: 1889276 | F47: 0 | G47: 82072 | H47: 0 | I47: 50290 | J47: 0 | K47: 0 | L47: 95000 | M47: 14000 | N47: 45000 | O47: 5000 | P47: 0 | Q47: 51000 | R47: 3000 | S47: 0 | T47: 0 | U47: 0 | V47: 0 | W47: 0 | X47: 0 | Y47: 70000 | Z47: 2304638 | AA47: 1094213 | AB47: 0 | AC47: 543688 | AD47: 28955 | AE47: 82932 | AF47: 0 | AG47: 166479 | AH47: 11035 | AI47: 2000 | AJ47: 12000 | AK47: 2500 | AL47: 17500 | AM47: 6150 | AN47: 35200 | AO47: 3000 | AP47: 35000 | AQ47: 0 | AR47: 10830 | AS47: 109953 | AT47: 8505 | AU47: 0 | AV47: 32228 | AW47: 8300 | AX47: 9150 | AY47: 135000 | AZ47: 10500 | BA47: 101385 | BB47: 17292 | BC47: 0 | BD47: 0 | BE47: 0 | BF47: 0 | BG47: 0 | BH47: 2483795 | BI47: -179157 | BJ47: 157315 | BK47: 0 | BL47: 26171.89 | BM47: 8438 | BN47: 0 | BO47: 0 | BP47: 8438 | BQ47: 0 | BR47: 8776 | BS47: 0 | BT47: 0 | BU47: 8776 | BV47: -338 | BW47: 25833.89 | BX47: 336472 | BY47: 157315 | BZ47: 448865.33 | CA47: 448865.33 | CB47: 0 | CC47: 0 | CD47: 0 | CE47: 0 | CF47: 26171.89 | CG47: 25833.89 | CH47: 24683.64 | CI47: 24683.64 | CJ47: 183148.89 | CK47: 473548.97 | CL47: 473548.97
A48: Moss Hall Infant School | B48: Primary | C48: 101295 | D48: 3022044 | E48: 1703378.75 | F48: 0 | G48: 86987 | H48: 0 | I48: 66480 | J48: 46356.49 | K48: 12741 | L48: 7900 | M48: 51700 | N48: 477 | O48: 0 | P48: 0 | Q48: 8600 | R48: 10000 | S48: 0 | T48: 0 | U48: 0 | V48: 0 | W48: 0 | X48: 3742 | Y48: 141913 | Z48: 2140275.24 | AA48: 929444.496 | AB48: 4050 | AC48: 388434.9036 | AD48: 42597.4739 | AE48: 95250.6416 | AF48: 0 | AG48: 70580.9089 | AH48: 8070.2456 | AI48: 5432.9991 | AJ48: 6714.96 | AK48: 4443 | AL48: 17393 | AM48: 3489.9731 | AN48: 49121.3366 | AO48: 9000 | AP48: 58562 | AQ48: 0 | AR48: 11166.2893 | AS48: 41230 | AT48: 8805.94 | AU48: 0 | AV48: 22131.22 | AW48: 13232.84 | AX48: 500 | AY48: 118705.5 | AZ48: 25693 | BA48: 79180 | BB48: 30427 | BC48: 0 | BD48: 0 | BE48: 0 | BF48: 0 | BG48: 0 | BH48: 2043657.728 | BI48: 96617.5123 | BJ48: 7713.5123 | BK48: 0 | BL48: 7926.25 | BM48: 7926 | BN48: 0 | BO48: 0 | BP48: 7926 | BQ48: 0 | BR48: 0 | BS48: 0 | BT48: 15852 | BU48: 15852 | BV48: -7926 | BW48: 0.25 | BX48: -88904 | BY48: 7713.5123 | BZ48: 73625.92 | CA48: 73625.92 | CB48: 0 | CC48: 0 | CD48: 0 | CE48: 0 | CF48: 7926.25 | CG48: 0.25 | CH48: 7269.28 | CI48: 7269.28 | CJ48: 7713.7623 | CK48: 80895.2 | CL48: 80895.2
A49: Moss Hall Junior School | B49: Primary | C49: 101294 | D49: 3022043 | E49: 1994808.25 | F49: 0 | G49: 105332 | H49: 0 | I49: 105565 | J49: 61117.24 | K49: 17449 | L49: 94000 | M49: 2100 | N49: 86944 | O49: 0 | P49: 0 | Q49: 67227 | R49: 14629 | S49: 0 | T49: 0 | U49: 0 | V49: 0 | W49: 0 | X49: 11467 | Y49: 8504 | Z49: 2569142.49 | AA49: 1175364.217 | AB49: 14174 | AC49: 379255.1815 | AD49: 46960.9443 | AE49: 67590.519 | AF49: 0 | AG49: 23256.1404 | AH49: 8343.2261 | AI49: 7247.267 | AJ49: 8220.73 | AK49: 5427 | AL49: 50346.456 | AM49: 4985.5702 | AN49: 55726.726 | AO49: 14726 | AP49: 84776 | AQ49: 0 | AR49: 12085.7696 | AS49: 116916.2396 | AT49: 14155.404 | AU49: 0 | AV49: 18555.3046 | AW49: 16416.05 | AX49: 455 | AY49: 107632.22 | AZ49: 33557 | BA49: 138837.1649 | BB49: 35454.46 | BC49: 0 | BD49: 0 | BE49: 0 | BF49: 0 | BG49: 0 | BH49: 2440464.59 | BI49: 128677.9003 | BJ49: -43466.0997 | BK49: 0 | BL49: 5613.18 | BM49: 9186 | BN49: 0 | BO49: 0 | BP49: 9186 | BQ49: 0 | BR49: 0 | BS49: 0 | BT49: 17112 | BU49: 17112 | BV49: -7926 | BW49: -2312.82 | BX49: -172144 | BY49: -43466.0997 | BZ49: 91313.29 | CA49: 91313.29 | CB49: 0 | CC49: 0 | CD49: 0 | CE49: 0 | CF49: 5613.18 | CG49: -2312.82 | CH49: 14574.43 | CI49: 14574.43 | CJ49: -45778.9197 | CK49: 105887.72 | CL49: 105887.72
A50: Shalom Noam Primary School | B50: Primary | C50: 149998 | D50: 3022053
A51: Northside School | B51: Primary | C51: 101296 | D51: 3022045 | E51: 1414686 | F51: 0 | G51: 85689 | H51: 0 | I51: 70115 | J51: 0 | K51: 0 | L51: 23426 | M51: 67000 | N51: 27450 | O51: 0 | P51: 0 | Q51: 15900 | R51: 12000 | S51: 0 | T51: 0 | U51: 0 | V51: 0 | W51: 0 | X51: 6515 | Y51: 37061 | Z51: 1759842 | AA51: 722948 | AB51: 0 | AC51: 555295 | AD51: 57521 | AE51: 51178 | AF51: 0 | AG51: 35376 | AH51: 5553 | AI51: 2948 | AJ51: 12349 | AK51: 1621 | AL51: 9258 | AM51: 150 | AN51: 2800 | AO51: 3150 | AP51: 51000 | AQ51: 0 | AR51: 9497 | AS51: 90417 | AT51: 12400 | AU51: 0 | AV51: 9982 | AW51: 9337 | AX51: 11950 | AY51: 62961 | AZ51: 13500 | BA51: 32239 | BB51: 34681 | BC51: 0 | BD51: 0 | BE51: 0 | BF51: 0 | BG51: 0 | BH51: 1798111 | BI51: -38269 | BJ51: 36891 | BK51: 0 | BL51: 884.84 | BM51: 7074 | BN51: 0 | BO51: 0 | BP51: 7074 | BQ51: 0 | BR51: 0 | BS51: 0 | BT51: 7074 | BU51: 7074 | BV51: 0 | BW51: 884.84 | BX51: 75160 | BY51: 36891 | BZ51: 150649.41 | CA51: 150649.41 | CB51: 0 | CC51: 0 | CD51: 0 | CE51: 0 | CF51: 884.84 | CG51: 884.84 | CH51: 7623.09 | CI51: 7623.09 | CJ51: 37775.84 | CK51: 158272.5 | CL51: 158272.5
A52: Orion Primary School | B52: Primary | C52: 131970 | D52: 3022077 | E52: 5623492.081 | F52: 0 | G52: 734467 | H52: 0 | I52: 591975 | J52: 0 | K52: 0 | L52: 0 | M52: 101600 | N52: 87800 | O52: 0 | P52: 0 | Q52: 20602 | R52: 24250 | S52: 0 | T52: 0 | U52: 0 | V52: 0 | W52: 0 | X52: 109599 | Y52: 83563 | Z52: 7377348.081 | AA52: 3316843.679 | AB52: 0 | AC52: 1848961.026 | AD52: 247686.834 | AE52: 266954.9835 | AF52: 138552.3837 | AG52: 257272.966 | AH52: 3775 | AI52: 7950 | AJ52: 0 | AK52: 0 | AL52: 55600 | AM52: 15000 | AN52: 7150 | AO52: 25000 | AP52: 123454 | AQ52: 0 | AR52: 39400 | AS52: 171161.16 | AT52: 21250 | AU52: 0 | AV52: 85890 | AW52: 34781.71 | AX52: 28500 | AY52: 157000 | AZ52: 41800 | BA52: 306864.1 | BB52: 69697.8756 | BC52: 0 | BD52: 0 | BE52: 0 | BF52: 0 | BG52: 0 | BH52: 7270545.717 | BI52: 106802.3638 | BJ52: 24824.3638 | BK52: 0 | BL52: 25663.7 | BM52: 14775 | BN52: 0 | BO52: 0 | BP52: 14775 | BQ52: 0 | BR52: 24000 | BS52: 0 | BT52: 16439 | BU52: 40439 | BV52: -25664 | BW52: -0.3 | BX52: -81978 | BY52: 24824.3638 | BZ52: -104325.15 | CA52: -104325.15 | CB52: 0 | CC52: 0 | CD52: 0 | CE52: 0 | CF52: 25663.7 | CG52: -0.3 | CH52: 40290.45 | CI52: 40290.45 | CJ52: 24824.0638 | CK52: -64034.7 | CL52: -64034.7
A53: Osidge Primary School | B53: Primary | C53: 101356 | D53: 3025201 | E53: 2072067.002 | F53: 0 | G53: 136978 | H53: 0 | I53: 124650 | J53: 780 | K53: 0 | L53: 5000 | M53: 35942 | N53: 40712 | O53: 0 | P53: 0 | Q53: 44088 | R53: 20500 | S53: 0 | T53: 0 | U53: 0 | V53: 0 | W53: 0 | X53: 9185 | Y53: 53049.5794 | Z53: 2542951.582 | AA53: 1159889.999 | AB53: 0 | AC53: 522268.1717 | AD53: 72011.4053 | AE53: 142932.4528 | AF53: 0 | AG53: 45766.4455 | AH53: 5035 | AI53: 3850 | AJ53: 687 | AK53: 0 | AL53: 87500 | AM53: 44179 | AN53: 36790 | AO53: 10700 | AP53: 71700 | AQ53: 0 | AR53: 13650.2 | AS53: 104351 | AT53: 16872 | AU53: 0 | AV53: 17210 | AW53: 16522 | AX53: 8950 | AY53: 118254.8594 | AZ53: 11100 | BA53: 92594 | BB53: 37262 | BC53: 0 | BD53: 0 | BE53: 0 | BF53: 0 | BG53: 0 | BH53: 2640075.533 | BI53: -97123.9519 | BJ53: 182725.0481 | BK53: 0 | BL53: -0.75 | BM53: 8399 | BN53: 0 | BO53: 0 | BP53: 8399 | BQ53: 0 | BR53: 8399 | BS53: 0 | BT53: 0 | BU53: 8399 | BV53: 0 | BW53: -0.75 | BX53: 279849 | BY53: 182725.0481 | BZ53: 425628.28 | CA53: 425628.28 | CB53: 0 | CC53: 0 | CD53: 0 | CE53: 0 | CF53: -0.75 | CG53: -0.75 | CH53: 8448.63 | CI53: 8448.63 | CJ53: 182724.2981 | CK53: 434076.91 | CL53: 434076.91
A54: Our Lady of Lourdes School | B54: Primary | C54: 101331 | D54: 3023501 | E54: 1157000 | F54: 0 | G54: 39118 | H54: 0 | I54: 71605 | J54: 0 | K54: 0 | L54: 0 | M54: 17000 | N54: 36570 | O54: 0 | P54: 0 | Q54: 0 | R54: 0 | S54: 0 | T54: 0 | U54: 0 | V54: 0 | W54: 0 | X54: 0 | Y54: 33232 | Z54: 1354525 | AA54: 737879 | AB54: 0 | AC54: 182107 | AD54: 65322 | AE54: 68520 | AF54: 0 | AG54: 29714 | AH54: 2248 | AI54: 3106 | AJ54: 7482 | AK54: 1220 | AL54: 14997 | AM54: 1000 | AN54: 3575 | AO54: 8683 | AP54: 30000 | AQ54: 3796 | AR54: 8092 | AS54: 27006 | AT54: 18905 | AU54: 0 | AV54: 28117 | AW54: 10747 | AX54: 2000 | AY54: 80315 | AZ54: 18400 | BA54: 47692 | BB54: 34127 | BC54: 0 | BD54: 0 | BE54: 0 | BF54: 0 | BG54: 0 | BH54: 1435050 | BI54: -80525 | BJ54: -129664 | BK54: 0 | BL54: -0.3 | BM54: 0 | BN54: 0 | BO54: 0 | BP54: 0 | BQ54: 0 | BR54: 0 | BS54: 0 | BT54: 0 | BU54: 0 | BV54: 0 | BW54: -0.3 | BX54: -49139 | BY54: -129664 | BZ54: -54325 | CA54: -54325 | CB54: 0 | CC54: 0 | CD54: 0 | CE54: 0 | CF54: -0.3 | CG54: -0.3 | CH54: -0.3 | CI54: -0.3 | CJ54: -129664.3 | CK54: -54325.3 | CL54: -54325.3
A55: Pardes House School | B55: Primary | C55: 133364 | D55: 3022078
A56: Queenswell Federation | B56: Primary | C56: 101313 | D56: 3022072 | E56: 2686442 | F56: 0 | G56: 190556 | H56: 0 | I56: 186765 | J56: 8853 | K56: 2193 | L56: 42239 | M56: 89299 | N56: 39302 | O56: 9000 | P56: 14341 | Q56: 31000 | R56: 11050 | S56: 0 | T56: 0 | U56: 0 | V56: 0 | W56: 0 | X56: 18215 | Y56: 58838 | Z56: 3388093 | AA56: 1570483 | AB56: 0 | AC56: 946694 | AD56: 68629 | AE56: 178689 | AF56: 0 | AG56: 66855 | AH56: 16250 | AI56: 9750 | AJ56: 13544 | AK56: 12779 | AL56: 35103 | AM56: 60016 | AN56: 69543 | AO56: 9000 | AP56: 54376 | AQ56: 0 | AR56: 18494 | AS56: 80489 | AT56: 12921 | AU56: 0 | AV56: 20450 | AW56: 17006 | AX56: 4600 | AY56: 112419 | AZ56: 23734 | BA56: 75499 | BB56: 23947 | BC56: 0 | BD56: 0 | BE56: 0 | BF56: 0 | BG56: 0 | BH56: 3501270 | BI56: -113177 | BJ56: 3129.14 | BK56: 0 | BL56: 3941.25 | BM56: 13961 | BN56: 0 | BO56: 0 | BP56: 13961 | BQ56: 0 | BR56: 0 | BS56: 0 | BT56: 17902 | BU56: 17902 | BV56: -3941 | BW56: 0.25 | BX56: 116306.14 | BY56: 3129.14 | BZ56: 183986.88 | CA56: 183986.88 | CB56: 0 | CC56: 0 | CD56: 0 | CE56: 0 | CF56: 3941.25 | CG56: 0.25 | CH56: 9401.5 | CI56: 9401.5 | CJ56: 3129.39 | CK56: 193388.38 | CL56: 193388.38
A57: Rosh Pinah | B57: Primary | C57: 101340 | D57: 3023512 | E57: 1595053 | F57: 0 | G57: 29221 | H57: 0 | I57: 6925 | J57: 0 | K57: 0 | L57: 3000 | M57: 68820 | N57: 144225 | O57: 0 | P57: 0 | Q57: 53875 | R57: 310000 | S57: 0 | T57: 0 | U57: 0 | V57: 0 | W57: 0 | X57: 0 | Y57: 70354 | Z57: 2281473 | AA57: 1129171 | AB57: 44270 | AC57: 351506 | AD57: 68676 | AE57: 163638 | AF57: 0 | AG57: 77628 | AH57: 14995 | AI57: 11900 | AJ57: 9093 | AK57: 0 | AL57: 35850 | AM57: 500 | AN57: 46510 | AO57: 5000 | AP57: 63000 | AQ57: 0 | AR57: 12034 | AS57: 120678 | AT57: 15500 | AU57: 0 | AV57: 18250 | AW57: 16440 | AX57: 13000 | AY57: 233970 | AZ57: 9300 | BA57: 82760 | BB57: 58684 | BC57: 0 | BD57: 0 | BE57: 0 | BF57: 0 | BG57: 0 | BH57: 2602353 | BI57: -320880 | BJ57: 28314 | BK57: 0 | BL57: 0.4 | BM57: 0 | BN57: 0 | BO57: 0 | BP57: 0 | BQ57: 0 | BR57: 0 | BS57: 0 | BT57: 0 | BU57: 0 | BV57: 0 | BW57: 0.4 | BX57: 349194 | BY57: 28314 | BZ57: 458633.16 | CA57: 458633.16 | CB57: 0 | CC57: 0 | CD57: 0 | CE57: 0 | CF57: 0.4 | CG57: 0.4 | CH57: 0.4 | CI57: 0.4 | CJ57: 28314.4 | CK57: 458633.56 | CL57: 458633.56
A58: Sacred Heart School | B58: Primary | C58: 101338 | D58: 3023510 | E58: 1779714.813 | F58: 0 | G58: 71258 | H58: 0 | I58: 56785 | J58: 1900 | K58: 1000 | L58: 0 | M58: 47500 | N58: 50500 | O58: 0 | P58: 0 | Q58: 32500 | R58: 28351 | S58: 0 | T58: 0 | U58: 0 | V58: 0 | W58: 0 | X58: 0 | Y58: 68410 | Z58: 2137918.813 | AA58: 1121751.195 | AB58: 0 | AC58: 296151.1531 | AD58: 45278.5346 | AE58: 100606.3107 | AF58: 0 | AG58: 14179.9776 | AH58: 13200 | AI58: 5250 | AJ58: 650 | AK58: 0 | AL58: 22200 | AM58: 3950 | AN58: 30500 | AO58: 8800 | AP58: 60000 | AQ58: 0 | AR58: 9545 | AS58: 114248 | AT58: 16800 | AU58: 0 | AV58: 12775 | AW58: 14800 | AX58: 2500 | AY58: 123519 | AZ58: 16385 | BA58: 184719.1113 | BB58: 37346.2 | BC58: 0 | BD58: 0 | BE58: 0 | BF58: 0 | BG58: 0 | BH58: 2255154.482 | BI58: -117235.6694 | BJ58: 130433.3306 | BK58: 0 | BL58: 0 | BM58: 0 | BN58: 0 | BO58: 0 | BP58: 0 | BQ58: 0 | BR58: 0 | BS58: 0 | BT58: 0 | BU58: 0 | BV58: 0 | BW58: 0 | BX58: 247669 | BY58: 130433.3306 | BZ58: 363808.29 | CA58: 363808.29 | CB58: 0 | CC58: 0 | CD58: 0 | CE58: 0 | CF58: 0 | CG58: 0 | CH58: 0 | CI58: 0 | CJ58: 130433.3306 | CK58: 363808.29 | CL58: 363808.29
A59: St Agnes' RC Primary School | B59: Primary | C59: 101332 | D59: 3023502 | E59: 2121143.131 | F59: 0 | G59: 118191 | H59: 0 | I59: 141270 | J59: 500 | K59: 750 | L59: 0 | M59: 16000 | N59: 27500 | O59: 0 | P59: 0 | Q59: 18000 | R59: 4000 | S59: 0 | T59: 0 | U59: 0 | V59: 0 | W59: 0 | X59: 0 | Y59: 64149 | Z59: 2511503.131 | AA59: 1182953.977 | AB59: 0 | AC59: 604608.4777 | AD59: 75357.5924 | AE59: 59304.0361 | AF59: 0 | AG59: 21656.1135 | AH59: 4700 | AI59: 6000 | AJ59: 639 | AK59: 0 | AL59: 25250 | AM59: 500 | AN59: 4500 | AO59: 7500 | AP59: 70000 | AQ59: 0 | AR59: 15650 | AS59: 133165 | AT59: 17750 | AU59: 0 | AV59: 26477.26 | AW59: 16868 | AX59: 6750 | AY59: 105659 | AZ59: 21450 | BA59: 136471.6 | BB59: 44884 | BC59: 0 | BD59: 0 | BE59: 15000 | BF59: 0 | BG59: 0 | BH59: 2603094.057 | BI59: -91590.9264 | BJ59: 528767.0736 | BK59: 0 | BL59: 1 | BM59: 0 | BN59: 0 | BO59: 15000 | BP59: 15000 | BQ59: 0 | BR59: 0 | BS59: 0 | BT59: 15000 | BU59: 15000 | BV59: 0 | BW59: 1 | BX59: 620358 | BY59: 528767.0736 | BZ59: 826142.17 | CA59: 826142.17 | CB59: 0 | CC59: 0 | CD59: 0 | CE59: 0 | CF59: 1 | CG59: 1 | CH59: 1 | CI59: 1 | CJ59: 528768.0736 | CK59: 826143.17 | CL59: 826143.17
A60: St Andrew's C E | B60: Primary | C60: 101327 | D60: 3023315 | E60: 990726.2192 | F60: 0 | G60: 16275 | H60: 0 | I60: 18830 | J60: 0 | K60: 0 | L60: 21500 | M60: 15994 | N60: 38850 | O60: 0 | P60: 0 | Q60: 20160 | R60: 33670 | S60: 0 | T60: 0 | U60: 0 | V60: 0 | W60: 0 | X60: 0 | Y60: 47065.5 | Z60: 1203070.719 | AA60: 648440.788 | AB60: 0 | AC60: 189602.7467 | AD60: 37930.9222 | AE60: 58071.0802 | AF60: 0 | AG60: 42746.923 | AH60: 20500 | AI60: 2655 | AJ60: 3930.23 | AK60: 1900 | AL60: 5900 | AM60: 0 | AN60: 1700 | AO60: 3000 | AP60: 43500 | AQ60: 0 | AR60: 9124.5 | AS60: 34819 | AT60: 9815 | AU60: 0 | AV60: 6970 | AW60: 6364.82 | AX60: 6400 | AY60: 76490 | AZ60: 5000 | BA60: 13298.55 | BB60: 37863.5544 | BC60: 0 | BD60: 0 | BE60: 0 | BF60: 0 | BG60: 0 | BH60: 1266023.114 | BI60: -62952.3953 | BJ60: 30856.6047 | BK60: 0 | BL60: -0.4 | BM60: 0 | BN60: 0 | BO60: 0 | BP60: 0 | BQ60: 0 | BR60: 0 | BS60: 0 | BT60: 0 | BU60: 0 | BV60: 0 | BW60: -0.4 | BX60: 93809 | BY60: 30856.6047 | BZ60: 203483.19 | CA60: 203483.19 | CB60: 0 | CC60: 0 | CD60: 0 | CE60: 0 | CF60: -0.4 | CG60: -0.4 | CH60: -0.4 | CI60: -0.4 | CJ60: 30856.2047 | CK60: 203482.79 | CL60: 203482.79
A61: St Catherine's R C Primary | B61: Primary | C61: 101333 | D61: 3023504 | E61: 2131133.633 | F61: 0 | G61: 64147 | H61: 0 | I61: 54320 | J61: 0 | K61: 0 | L61: 1440 | M61: 201172 | N61: 66714 | O61: 5000 | P61: 0 | Q61: 36160 | R61: 0 | S61: 0 | T61: 0 | U61: 0 | V61: 0 | W61: 0 | X61: 328 | Y61: 77671 | Z61: 2638085.633 | AA61: 1214650.495 | AB61: 0 | AC61: 567137.7796 | AD61: 58177.4353 | AE61: 153028.4919 | AF61: 0 | AG61: 78540.8438 | AH61: 10275 | AI61: 3925 | AJ61: 12663 | AK61: 0 | AL61: 30301 | AM61: 11875 | AN61: 22001 | AO61: 6610 | AP61: 38398 | AQ61: 0 | AR61: 14123.984 | AS61: 110357.18 | AT61: 20843.96 | AU61: 0 | AV61: 15372 | AW61: 19550.9984 | AX61: 31755 | AY61: 152409 | AZ61: 21298 | BA61: 56185.9516 | BB61: 61080.7538 | BC61: 0 | BD61: 0 | BE61: 0 | BF61: 0 | BG61: 0 | BH61: 2710559.874 | BI61: -72474.2409 | BJ61: 42335.7591 | BK61: 0 | BL61: -0.4 | BM61: 0 | BN61: 0 | BO61: 0 | BP61: 0 | BQ61: 0 | BR61: 0 | BS61: 0 | BT61: 0 | BU61: 0 | BV61: 0 | BW61: -0.4 | BX61: 114810 | BY61: 42335.7591 | BZ61: 392855.3 | CA61: 392855.3 | CB61: 0 | CC61: 0 | CD61: 0 | CE61: 0 | CF61: 0 | CG61: 0 | CH61: -10879.92 | CI61: -10880.32 | CJ61: 42335.7591 | CK61: 381975.38 | CL61: 381974.98
A62: St John's CE N20 | B62: Primary | C62: 101321 | D62: 3023309 | E62: 1104015 | F62: 0 | G62: 38254 | H62: 0 | I62: 30770 | J62: 0 | K62: 1000 | L62: 9000 | M62: 90600 | N62: 25150 | O62: 0 | P62: 0 | Q62: 38545 | R62: 6400 | S62: 0 | T62: 0 | U62: 0 | V62: 0 | W62: 0 | X62: 2764 | Y62: 42418 | Z62: 1388916 | AA62: 668166.4391 | AB62: 0 | AC62: 241070.5844 | AD62: 33597.40696 | AE62: 54711.84248 | AF62: 0 | AG62: 51569.62276 | AH62: 1350 | AI62: 9250 | AJ62: 349 | AK62: 0 | AL62: 17500 | AM62: 6000 | AN62: 21226 | AO62: 4500 | AP62: 32400 | AQ62: 0 | AR62: 7592.4 | AS62: 102014.9167 | AT62: 13000 | AU62: 0 | AV62: 11372 | AW62: 8293 | AX62: 4250 | AY62: 67850 | AZ62: 7410 | BA62: 32812 | BB62: 34525.75 | BC62: 0 | BD62: 0 | BE62: 0 | BF62: 0 | BG62: 0 | BH62: 1430810.962 | BI62: -41894.96234 | BJ62: 95415.03766 | BK62: 0 | BL62: 0 | BM62: 0 | BN62: 0 | BO62: 0 | BP62: 0 | BQ62: 0 | BR62: 0 | BS62: 0 | BT62: 0 | BU62: 0 | BV62: 0 | BW62: 0 | BX62: 137310 | BY62: 95415.03766 | BZ62: 189495.38 | CA62: 189495.38 | CB62: 0 | CC62: 0 | CD62: 0 | CE62: 0 | CF62: 0 | CG62: 0 | CH62: 0 | CI62: 0 | CJ62: 95415.03766 | CK62: 189495.38 | CL62: 189495.38
A63: St John's CE School N11 | B63: Primary | C63: 101319 | D63: 3023307 | E63: 1134409 | F63: 0 | G63: 30777 | H63: 0 | I63: 27900 | J63: 0 | K63: 0 | L63: 53600 | M63: 24160 | N63: 15276 | O63: 0 | P63: 0 | Q63: 58608 | R63: 20058 | S63: 0 | T63: 0 | U63: 0 | V63: 0 | W63: 0 | X63: 2229 | Y63: 40642 | Z63: 1407659 | AA63: 586211 | AB63: 3400 | AC63: 229682 | AD63: 65692 | AE63: 53226 | AF63: 0 | AG63: 22790 | AH63: 820 | AI63: 1090 | AJ63: 349 | AK63: 0 | AL63: 43672 | AM63: 5400 | AN63: 3500 | AO63: 7800 | AP63: 62400 | AQ63: 0 | AR63: 10889 | AS63: 79665 | AT63: 16895 | AU63: 0 | AV63: 10187 | AW63: 11387 | AX63: 1470 | AY63: 54685 | AZ63: 61130 | BA63: 54203 | BB63: 37081 | BC63: 0 | BD63: 0 | BE63: 0 | BF63: 0 | BG63: 0 | BH63: 1423624 | BI63: -15965 | BJ63: 49600 | BK63: 0 | BL63: 0 | BM63: 0 | BN63: 0 | BO63: 0 | BP63: 0 | BQ63: 0 | BR63: 0 | BS63: 0 | BT63: 0 | BU63: 0 | BV63: 0 | BW63: 0 | BX63: 65565 | BY63: 49600 | BZ63: 119894.85 | CA63: 119894.85 | CB63: 0 | CC63: 0 | CD63: 0 | CE63: 0 | CF63: 0 | CG63: 0 | CH63: -7990.7 | CI63: -7990.7 | CJ63: 49600 | CK63: 111904.15 | CL63: 111904.15
A64: St Joseph's Primary School | B64: Primary | C64: 101337 | D64: 3023509 | E64: 2264670.082 | F64: 0 | G64: 108985 | H64: 0 | I64: 114325 | J64: 0 | K64: 0 | L64: 0 | M64: 44304 | N64: 42602 | O64: 0 | P64: 0 | Q64: 31000 | R64: 0 | S64: 0 | T64: 0 | U64: 0 | V64: 0 | W64: 0 | X64: 0 | Y64: 60532 | Z64: 2666418.082 | AA64: 1393833.225 | AB64: 0 | AC64: 454357.2059 | AD64: 113252.2156 | AE64: 103473.531 | AF64: 0 | AG64: 96180.5066 | AH64: 3161.9033 | AI64: 4684.9872 | AJ64: 11049.3 | AK64: 3883.0393 | AL64: 21079.3564 | AM64: 1513.7007 | AN64: 3383.7913 | AO64: 7428.456 | AP64: 44569.3651 | AQ64: 0 | AR64: 16893.4398 | AS64: 89459.0705 | AT64: 18970.7328 | AU64: 0 | AV64: 14957.9788 | AW64: 22761.0449 | AX64: 40383.4301 | AY64: 103675.7954 | AZ64: 18147 | BA64: 98030.3475 | BB64: 30174.2004 | BC64: 0 | BD64: 0 | BE64: 0 | BF64: 0 | BG64: 0 | BH64: 2715303.624 | BI64: -48885.5419 | BJ64: -412809.5419 | BK64: 0 | BL64: 0 | BM64: 0 | BN64: 0 | BO64: 0 | BP64: 0 | BQ64: 0 | BR64: 0 | BS64: 0 | BT64: 0 | BU64: 0 | BV64: 0 | BW64: 0 | BX64: -363924 | BY64: -412809.5419 | BZ64: -263069.92 | CA64: -263069.92 | CB64: 0 | CC64: 0 | CD64: 0 | CE64: 0 | CF64: 0 | CG64: 0 | CH64: 0 | CI64: 0 | CJ64: -412809.5419 | CK64: -263069.92 | CL64: -263069.92
A65: St Mary's C E Primary School N3 | B65: Primary | C65: 101323 | D65: 3023311 | E65: 2096046 | F65: 0 | G65: 73719 | H65: 0 | I65: 98115 | J65: 2400 | K65: 0 | L65: 10000 | M65: 66650 | N65: 62500 | O65: 0 | P65: 0 | Q65: 46140 | R65: 12200 | S65: 0 | T65: 0 | U65: 0 | V65: 0 | W65: 0 | X65: 0 | Y65: 73450 | Z65: 2541220 | AA65: 1206880 | AB65: 0 | AC65: 488539 | AD65: 34336 | AE65: 88098 | AF65: 0 | AG65: 39217 | AH65: 13092 | AI65: 2700 | AJ65: 682 | AK65: 0 | AL65: 45000 | AM65: 4500 | AN65: 51500 | AO65: 8000 | AP65: 34000 | AQ65: 0 | AR65: 14020 | AS65: 123470 | AT65: 21000 | AU65: 0 | AV65: 17950 | AW65: 15886 | AX65: 1200 | AY65: 155563 | AZ65: 63000 | BA65: 72308 | BB65: 39220 | BC65: 0 | BD65: 0 | BE65: 0 | BF65: 0 | BG65: 0 | BH65: 2540161 | BI65: 1059 | BJ65: 59274 | BK65: 0 | BL65: 0 | BM65: 0 | BN65: 0 | BO65: 0 | BP65: 0 | BQ65: 0 | BR65: 0 | BS65: 0 | BT65: 0 | BU65: 0 | BV65: 0 | BW65: 0 | BX65: 58215 | BY65: 59274 | BZ65: 135269.78 | CA65: 135269.78 | CB65: 0 | CC65: 0 | CD65: 0 | CE65: 0 | CF65: 0 | CG65: 0 | CH65: -15294.92 | CI65: -15294.92 | CJ65: 59274 | CK65: 119974.86 | CL65: 119974.86
A66: St Mary's School EN4 | B66: Primary | C66: 101324 | D66: 3023312 | E66: 1021757.877 | F66: 0 | G66: 33674 | H66: 0 | I66: 25226.64 | J66: 0 | K66: 0 | L66: 0 | M66: 10000 | N66: 25457 | O66: 0 | P66: 0 | Q66: 36700 | R66: 6120 | S66: 0 | T66: 0 | U66: 0 | V66: 0 | W66: 0 | X66: 1649 | Y66: 43430 | Z66: 1204014.517 | AA66: 566357.6292 | AB66: 2000 | AC66: 224844.9655 | AD66: 43213.6499 | AE66: 59549.6552 | AF66: 0 | AG66: 0 | AH66: 67 | AI66: 3600 | AJ66: 354 | AK66: 7752 | AL66: 8270 | AM66: 2850 | AN66: 26800 | AO66: 4000 | AP66: 23000 | AQ66: 0 | AR66: 11440 | AS66: 58690.4104 | AT66: 16860.492 | AU66: 0 | AV66: 9474 | AW66: 7842.4 | AX66: 500 | AY66: 69898.88 | AZ66: 0 | BA66: 23695 | BB66: 31292.16 | BC66: 0 | BD66: 0 | BE66: 0 | BF66: 0 | BG66: 0 | BH66: 1202352.242 | BI66: 1662.2748 | BJ66: 55362.2748 | BK66: 0 | BL66: 0 | BM66: 0 | BN66: 0 | BO66: 0 | BP66: 0 | BQ66: 0 | BR66: 0 | BS66: 0 | BT66: 0 | BU66: 0 | BV66: 0 | BW66: 0 | BX66: 53700 | BY66: 55362.2748 | BZ66: 133732.78 | CA66: 133732.78 | CB66: 0 | CC66: 0 | CD66: 0 | CE66: 0 | CF66: 0 | CG66: 0 | CH66: 0 | CI66: 0 | CJ66: 55362.2748 | CK66: 133732.78 | CL66: 133732.78
A67: St Paul's CE Primary, NW7 | B67: Primary | C67: 101326 | D67: 3023314 | E67: 1028718 | F67: 0 | G67: 50382 | H67: 0 | I67: 55400 | J67: 0 | K67: 58111 | L67: 0 | M67: 69650 | N67: 20500 | O67: 0 | P67: 0 | Q67: 22820 | R67: 15000 | S67: 0 | T67: 0 | U67: 0 | V67: 0 | W67: 0 | X67: 0 | Y67: 41458 | Z67: 1362039 | AA67: 636304.07 | AB67: 0 | AC67: 198271.2481 | AD67: 33096.87821 | AE67: 48611.37516 | AF67: 0 | AG67: 67279.03624 | AH67: 9162 | AI67: 6700 | AJ67: 12701 | AK67: 0 | AL67: 20480 | AM67: 1500 | AN67: 19500 | AO67: 4500 | AP67: 30000 | AQ67: 0 | AR67: 7060 | AS67: 53599 | AT67: 23199 | AU67: 0 | AV67: 14747 | AW67: 5000 | AX67: 15050 | AY67: 58077 | AZ67: 22422 | BA67: 43946 | BB67: 35237 | BC67: 0 | BD67: 0 | BE67: 0 | BF67: 0 | BG67: 0 | BH67: 1366442.608 | BI67: -4403.607728 | BJ67: 27232.39227 | BK67: 0 | BL67: 0 | BM67: 0 | BN67: 0 | BO67: 0 | BP67: 0 | BQ67: 0 | BR67: 0 | BS67: 0 | BT67: 0 | BU67: 0 | BV67: 0 | BW67: 0 | BX67: 31636 | BY67: 27232.39227 | BZ67: 85137.97 | CA67: 85137.97 | CB67: 0 | CC67: 0 | CD67: 0 | CE67: 0 | CF67: 0 | CG67: 0 | CH67: 0 | CI67: 0 | CJ67: 27232.39227 | CK67: 85137.97 | CL67: 85137.97
A68: St Paul's School, N11 | B68: Primary | C68: 101325 | D68: 3023313 | E68: 1185724 | F68: 0 | G68: 39981 | H68: 0 | I68: 75320 | J68: 0 | K68: 0 | L68: 800 | M68: 8950 | N68: 16300 | O68: 0 | P68: 1500 | Q68: 14645 | R68: 12100 | S68: 0 | T68: 0 | U68: 0 | V68: 0 | W68: 0 | X68: 2500 | Y68: 26000 | Z68: 1383820 | AA68: 627194 | AB68: 35582 | AC68: 270354 | AD68: 38261 | AE68: 59658 | AF68: 0 | AG68: 11117 | AH68: 14700 | AI68: 16500 | AJ68: 22490 | AK68: 0 | AL68: 20000 | AM68: 6000 | AN68: 22250 | AO68: 3500 | AP68: 21750 | AQ68: 3328 | AR68: 9600 | AS68: 78653 | AT68: 8500 | AU68: 0 | AV68: 12150 | AW68: 7000 | AX68: 9578 | AY68: 47500 | AZ68: 26860 | BA68: 75781 | BB68: 34860 | BC68: 0 | BD68: 0 | BE68: 1000 | BF68: 0 | BG68: 0 | BH68: 1484166 | BI68: -100346 | BJ68: 46316 | BK68: 0 | BL68: 0 | BM68: 0 | BO68: 0 | BP68: 0 | BQ68: 0 | BR68: 0 | BS68: 0 | BT68: 0 | BU68: 0 | BV68: 0 | BW68: 0 | BX68: 146662 | BY68: 46316 | BZ68: 242454.1 | CA68: 242454.1 | CB68: 0 | CC68: 0 | CD68: 0 | CE68: 0 | CF68: 0 | CG68: 0 | CH68: 0 | CI68: 0 | CJ68: 46316 | CK68: 242454.1 | CL68: 242454.1
A69: St Theresa's R.C. Primary School | B69: Primary | C69: 101335 | D69: 3023507 | E69: 877377 | F69: 0 | G69: 85033 | H69: 0 | I69: 41510 | J69: 10000 | K69: 0 | L69: 1000 | M69: 5150 | N69: 12250 | O69: 0 | P69: 0 | Q69: 9300 | R69: 0 | S69: 0 | T69: 0 | U69: 0 | V69: 0 | W69: 0 | X69: 0 | Y69: 37952 | Z69: 1079572 | AA69: 598732 | AB69: 0 | AC69: 173614 | AD69: 33600 | AE69: 40533 | AF69: 0 | AG69: 33403 | AH69: 550 | AI69: 1600 | AJ69: 284 | AK69: 1220 | AL69: 7450 | AM69: 400 | AN69: 12621 | AO69: 3200 | AP69: 28800 | AQ69: 0 | AR69: 5791 | AS69: 9076 | AT69: 12051 | AU69: 0 | AV69: 13041 | AW69: 11409 | AX69: 1300 | AY69: 37417 | AZ69: 7804 | BA69: 60428 | BB69: 28475 | BC69: 0 | BD69: 0 | BE69: 0 | BF69: 0 | BG69: 0 | BH69: 1122799 | BI69: -43227 | BJ69: -180133 | BK69: 0 | BL69: 0 | BM69: 0 | BN69: 0 | BO69: 0 | BP69: 0 | BQ69: 0 | BR69: 0 | BS69: 0 | BT69: 0 | BU69: 0 | BV69: 0 | BW69: 0 | BX69: -136906 | BY69: -180133 | BZ69: -47132 | CA69: -47132 | CB69: 0 | CC69: 0 | CD69: 0 | CE69: 0 | CF69: 0 | CG69: 0 | CH69: 0 | CI69: 0 | CJ69: -180133 | CK69: -47132 | CL69: -47132
A70: St Vincent's Catholic Primary School | B70: Primary | C70: 101334 | D70: 3023506 | E70: 1357623 | F70: 0 | G70: 112367 | H70: 0 | I70: 23820 | J70: 1100 | K70: 2000 | L70: 29000 | M70: 11900 | N70: 23650 | O70: 0 | P70: 0 | Q70: 23900 | R70: 5000 | S70: 0 | T70: 0 | U70: 0 | V70: 0 | W70: 0 | X70: 2010 | Y70: 50919 | Z70: 1643289 | AA70: 801083 | AB70: 0 | AC70: 405529 | AD70: 76321 | AE70: 80339 | AF70: 0 | AG70: 0 | AH70: 4250 | AI70: 7537 | AJ70: 475 | AK70: 0 | AL70: 20748 | AM70: 7502 | AN70: 5484 | AO70: 3745 | AP70: 31000 | AQ70: 0 | AR70: 10672 | AS70: 37780 | AT70: 23743 | AU70: 0 | AV70: 12353 | AW70: 12899 | AX70: 15616 | AY70: 78497 | AZ70: 19000 | BA70: 67668 | BB70: 52461 | BC70: 0 | BD70: 0 | BE70: 0 | BF70: 0 | BG70: 0 | BH70: 1774702 | BI70: -131413 | BJ70: 187 | BK70: 0 | BL70: 0 | BM70: 0 | BN70: 0 | BO70: 0 | BP70: 0 | BQ70: 0 | BR70: 0 | BS70: 0 | BT70: 0 | BU70: 0 | BV70: 0 | BW70: 0 | BX70: 131600 | BY70: 187 | BZ70: 178557.44 | CA70: 178557.44 | CB70: 0 | CC70: 0 | CD70: 0 | CE70: 0 | CF70: 0 | CG70: 0 | CH70: 0 | CI70: 0 | CJ70: 187 | CK70: 178557.44 | CL70: 178557.44
A71: Sunnyfields Primary School | B71: Primary | C71: 101311 | D71: 3022070 | E71: 1344565 | F71: 0 | G71: 49208 | H71: 0 | I71: 95565 | J71: 0 | K71: 4000 | L71: 13548 | M71: 8896 | N71: 16145 | O71: 0 | P71: 0 | Q71: 26200 | R71: 1000 | S71: 0 | T71: 0 | U71: 0 | V71: 0 | W71: 0 | X71: 9922 | Y71: 34229 | Z71: 1603278 | AA71: 794754 | AB71: 0 | AC71: 357641 | AD71: 71193 | AE71: 139267 | AF71: 0 | AG71: 33265 | AH71: 9816 | AI71: 5300 | AJ71: 0 | AK71: 0 | AL71: 27950 | AM71: 2000 | AN71: 2250 | AO71: 3600 | AP71: 25100 | AQ71: 0 | AR71: 19884 | AS71: 63964 | AT71: 18257 | AU71: 0 | AV71: 12725 | AW71: 11469 | AX71: 2405 | AY71: 62370 | AZ71: 0 | BA71: 41277 | BB71: 15106 | BC71: 0 | BD71: 0 | BE71: 6582 | BF71: 0 | BG71: 0 | BH71: 1726175 | BI71: -122897 | BJ71: 186882 | BK71: 0 | BL71: 6709 | BM71: 6709 | BN71: 0 | BO71: 6582 | BP71: 13291 | BQ71: 0 | BR71: 10000 | BS71: 0 | BT71: 10000 | BU71: 20000 | BV71: -6709 | BW71: 0 | BX71: 309779 | BY71: 186882 | BZ71: 471329.74 | CA71: 471329.74 | CB71: 0 | CC71: 0 | CD71: 0 | CE71: 0 | CF71: 6709 | CG71: 0 | CH71: 22239.68 | CI71: 22239.68 | CJ71: 186882 | CK71: 493569.42 | CL71: 493569.42
A72: Trent C of E Primary School | B72: Primary | C72: 101328 | D72: 3023316 | E72: 994500 | F72: 0 | G72: 73829 | H72: 0 | I72: 32150 | J72: 950 | K72: 1500 | L72: 0 | M72: 27207 | N72: 37300 | O72: 0 | P72: 0 | Q72: 19070 | R72: 0 | S72: 0 | T72: 0 | U72: 0 | V72: 0 | W72: 0 | X72: 0 | Y72: 81864 | Z72: 1268370 | AA72: 620755 | AB72: 0 | AC72: 189497 | AD72: 30614 | AE72: 48578 | AF72: 0 | AG72: 22150 | AH72: 1632 | AI72: 4875 | AJ72: 4355 | AK72: 918 | AL72: 12708 | AM72: 200 | AN72: 17794 | AO72: 1836 | AP72: 12176 | AQ72: 4073 | AR72: 7533 | AS72: 35569 | AT72: 12041 | AU72: 0 | AV72: 9034 | AW72: 10083 | AX72: 7010 | AY72: 79136 | AZ72: 8310 | BA72: 64289 | BB72: 61415 | BC72: 0 | BD72: 0 | BE72: 8000 | BF72: 0 | BG72: 0 | BH72: 1274581 | BI72: -6211 | BJ72: 28962 | BK72: 0 | BL72: 0 | BM72: 0 | BN72: 0 | BO72: 0 | BP72: 0 | BQ72: 0 | BR72: 0 | BS72: 0 | BT72: 0 | BU72: 0 | BV72: 0 | BW72: 0 | BX72: 35173 | BY72: 28962 | BZ72: 222217.05 | CA72: 222217.05 | CB72: 0 | CC72: 0 | CD72: 0 | CE72: 0 | CF72: 0 | CG72: 0 | CH72: 0 | CI72: 0 | CJ72: 28962 | CK72: 222217.05 | CL72: 222217.05
A73: Tudor School | B73: Primary | C73: 101299 | D73: 3022055 | E73: 1319444.866 | F73: 0 | G73: 73656 | H73: 0 | I73: 103565 | J73: 1200 | K73: 0 | L73: 20000 | M73: 22650 | N73: 16200 | O73: 0 | P73: 0 | Q73: 9625 | R73: 2000 | S73: 0 | T73: 0 | U73: 0 | V73: 0 | W73: 0 | X73: 14359 | Y73: 32710 | Z73: 1615409.866 | AA73: 763057.8215 | AB73: 0 | AC73: 278024.5513 | AD73: 12571.3848 | AE73: 50735.4717 | AF73: 0 | AG73: 42351.508 | AH73: 9213.9037 | AI73: 1132.2 | AJ73: 355 | AK73: 816 | AL73: 10823.2 | AM73: 6472 | AN73: 27340.1412 | AO73: 7300 | AP73: 56000 | AQ73: 27041 | AR73: 11905.44 | AS73: 38977.9963 | AT73: 8822.12 | AU73: 0 | AV73: 15121 | AW73: 8400 | AX73: 2722 | AY73: 52304.664 | AZ73: 25350 | BA73: 125054.07 | BB73: 40191.5 | BC73: 0 | BD73: 0 | BE73: 0 | BF73: 0 | BG73: 0 | BH73: 1622082.973 | BI73: -6673.1063 | BJ73: -105944.1063 | BK73: 0 | BL73: 19725 | BM73: 0 | BN73: 0 | BO73: 0 | BP73: 0 | BQ73: 0 | BR73: 0 | BS73: 0 | BT73: 0 | BU73: 0 | BV73: 0 | BW73: 19725 | BX73: -99271 | BY73: -105944.1063 | BZ73: 108850.12 | CA73: 108850.12 | CB73: 0 | CC73: 0 | CD73: 0 | CE73: 0 | CF73: 19725 | CG73: 19725 | CH73: 22457.26 | CI73: 22457.26 | CJ73: -86219.1063 | CK73: 131307.38 | CL73: 131307.38
A74: Underhill School | B74: Primary | C74: 101301 | D74: 3022057 | E74: 2829986 | F74: 0 | G74: 170266 | H74: 0 | I74: 238220 | J74: 0 | K74: 0 | L74: 11000 | M74: 51364 | N74: 25000 | O74: 0 | P74: 0 | Q74: 4000 | R74: 0 | S74: 0 | T74: 187416 | U74: 0 | V74: 0 | W74: 0 | X74: 0 | Y74: 47169 | Z74: 3564421 | AA74: 1467439 | AB74: 0 | AC74: 909199 | AD74: 76040 | AE74: 106010 | AF74: 0 | AG74: 115884 | AH74: 15102 | AI74: 5350 | AJ74: 802 | AK74: 0 | AL74: 24000 | AM74: 8500 | AN74: 11510 | AO74: 13320 | AP74: 76061 | AQ74: 0 | AR74: 17560 | AS74: 38579 | AT74: 12400 | AU74: 0 | AV74: 26080 | AW74: 7675 | AX74: 14600 | AY74: 115174 | AZ74: 101250 | BA74: 135152 | BB74: 39295 | BC74: 0 | BD74: 0 | BE74: 0 | BF74: 130865 | BG74: 63161 | BH74: 3531008 | BI74: 33413 | BJ74: 72471 | BK74: 14389 | BL74: 13443.87 | BM74: 9280.3 | BN74: 0 | BO74: 0 | BP74: 9280.3 | BQ74: 0 | BR74: 2713.04 | BS74: 831.19 | BT74: 0 | BU74: 3544.23 | BV74: 5736.07 | BW74: 19179.94 | BX74: 32448 | BY74: 72471 | BZ74: 269416.71 | CA74: 269416.71 | CB74: 20999 | CC74: 14389 | CD74: -5844.64 | CE74: -5844.64 | CF74: 13443.87 | CG74: 19179.94 | CH74: 19179.94 | CI74: 19179.94 | CJ74: 106039.94 | CK74: 282752.01 | CL74: 282752.01
A75: Wessex Gardens Primary School | B75: Primary | C75: 131617 | D75: 3022076 | E75: 1835557 | F75: 0 | G75: 127748 | H75: 0 | I75: 162745 | J75: 0 | K75: 900 | L75: 45488 | M75: 23895 | N75: 20000 | O75: 0 | P75: 0 | Q75: 11042 | R75: 0 | S75: 0 | T75: 0 | U75: 0 | V75: 0 | W75: 0 | X75: 0 | Y75: 64805 | Z75: 2292180 | AA75: 1094959.119 | AB75: 23595 | AC75: 392736.3223 | AD75: 8418.290143 | AE75: 196898.1091 | AF75: 0 | AG75: 39458.79841 | AH75: 9142.445911 | AI75: 7005 | AJ75: 12543 | AK75: 0 | AL75: 33408 | AM75: 500 | AN75: 85830 | AO75: 8000 | AP75: 68150 | AQ75: 0 | AR75: 11608 | AS75: 38515 | AT75: 22545 | AU75: 0 | AV75: 11574 | AW75: 12987 | AX75: 11200 | AY75: 93859 | AZ75: 0 | BA75: 263585 | BB75: 25041 | BC75: 0 | BD75: 0 | BE75: 0 | BF75: 0 | BG75: 0 | BH75: 2471558.085 | BI75: -179378.0851 | BJ75: 9593.914928 | BK75: 0 | BL75: 6040.8 | BM75: 8221 | BN75: 0 | BO75: 0 | BP75: 8221 | BQ75: 0 | BR75: 0 | BS75: 0 | BT75: 9000 | BU75: 9000 | BV75: -779 | BW75: 5261.8 | BX75: 188972 | BY75: 9593.914928 | BZ75: 188453.88 | CA75: 188453.88 | CB75: 0 | CC75: 0 | CD75: 0 | CE75: 0 | CF75: 6040.8 | CG75: 5261.8 | CH75: 6566.64 | CI75: 6566.64 | CJ75: 14855.71493 | CK75: 195020.52 | CL75: 195020.52
A76: Whitings Hill Primary School | B76: Primary | C76: 101304 | D76: 3022060 | E76: 2556118 | F76: 0 | G76: 106548 | H76: 0 | I76: 183705 | J76: 1000 | K76: 6816 | L76: 110000 | M76: 50200 | N76: 23000 | O76: 0 | P76: 0 | Q76: 19500 | R76: 1500 | S76: 0 | T76: 0 | U76: 0 | V76: 0 | W76: 0 | X76: 15508 | Y76: 59673 | Z76: 3133568 | AA76: 1337481 | AB76: 0 | AC76: 790103 | AD76: 78288 | AE76: 82975 | AF76: 0 | AG76: 100779 | AH76: 12459 | AI76: 6300 | AJ76: 699 | AK76: 0 | AL76: 52073 | AM76: 13829 | AN76: 43948 | AO76: 12000 | AP76: 141900 | AQ76: 0 | AR76: 13596 | AS76: 150035 | AT76: 14900 | AU76: 0 | AV76: 14885 | AW76: 17621 | AX76: 4950 | AY76: 101825 | AZ76: 61266 | BA76: 77205 | BB76: 56414 | BC76: 0 | BD76: 0 | BE76: 0 | BF76: 0 | BG76: 0 | BH76: 3185531 | BI76: -51963 | BJ76: 36490 | BK76: 0 | BL76: 18830.25 | BM76: 9227 | BN76: 0 | BO76: 0 | BP76: 9227 | BQ76: 0 | BR76: 28058 | BS76: 0 | BT76: 0 | BU76: 28058 | BV76: -18831 | BW76: -0.75 | BX76: 88453 | BY76: 36490 | BZ76: 246590.61 | CA76: 246590.61 | CB76: 0 | CC76: 0 | CD76: 0 | CE76: 0 | CF76: 18830.25 | CG76: -0.75 | CH76: 20690.63 | CI76: 20690.63 | CJ76: 36489.25 | CK76: 267281.24 | CL76: 267281.24
A77: Woodcroft Primary School | B77: Primary | C77: 134677 | D77: 3023518 | E77: 2217527.89 | F77: 0 | G77: 35401 | H77: 0 | I77: 192515 | J77: 0 | K77: 0 | L77: 6000 | M77: 28500 | N77: 31000 | O77: 8000 | P77: 0 | Q77: 15000 | R77: 0 | S77: 0 | T77: 0 | U77: 0 | V77: 0 | W77: 0 | X77: 35422 | Y77: 61681 | Z77: 2631046.89 | AA77: 1231316.603 | AB77: 0 | AC77: 568020.1562 | AD77: 24833.2856 | AE77: 46102.8946 | AF77: 0 | AG77: 112242.0972 | AH77: 11290.6952 | AI77: 3750 | AJ77: 12295 | AK77: 0 | AL77: 18176.7201 | AM77: 2500 | AN77: 56200 | AO77: 3000 | AP77: 80000 | AQ77: 0 | AR77: 10250 | AS77: 43483.6737 | AT77: 20260 | AU77: 0 | AV77: 18800 | AW77: 14070 | AX77: 8250 | AY77: 97500 | AZ77: 68086 | BA77: 111249.48 | BB77: 52981.5 | BC77: 0 | BD77: 0 | BE77: 0 | BF77: 0 | BG77: 0 | BH77: 2614658.105 | BI77: 16388.7842 | BJ77: 42.7842 | BK77: 0 | BL77: 686.36 | BM77: 8761 | BN77: 0 | BO77: 0 | BP77: 8761 | BQ77: 0 | BR77: 0 | BS77: 0 | BT77: 9447 | BU77: 9447 | BV77: -686 | BW77: 0.36 | BX77: -16346 | BY77: 42.7842 | BZ77: 201165.77 | CA77: 201165.77 | CB77: 0 | CC77: 0 | CD77: 0 | CE77: 0 | CF77: 686.36 | CG77: 0.36 | CH77: 9235.86 | CI77: 9235.86 | CJ77: 43.1442 | CK77: 210401.63 | CL77: 210401.63
A78: Woodridge Primary School | B78: Primary | C78: 101298 | D78: 3022054 | E78: 987809 | F78: 0 | G78: 51145 | H78: 0 | I78: 17483 | J78: 0 | K78: 0 | L78: 37324 | M78: 19500 | N78: 26250 | O78: 0 | P78: 0 | Q78: 31100 | R78: 29558 | S78: 0 | T78: 0 | U78: 0 | V78: 0 | W78: 0 | X78: 1388 | Y78: 39675 | Z78: 1241232 | AA78: 569068 | AB78: 2000 | AC78: 172590 | AD78: 59285 | AE78: 66303 | AF78: 0 | AG78: 41733 | AH78: 3928 | AI78: 1530 | AJ78: 2865 | AK78: 794 | AL78: 21666 | AM78: 1850 | AN78: 7500 | AO78: 2905 | AP78: 23772 | AQ78: 0 | AR78: 10055 | AS78: 54975 | AT78: 12367 | AU78: 0 | AV78: 10564 | AW78: 6379 | AX78: 7577 | AY78: 64684 | AZ78: 9425 | BA78: 128315 | BB78: 20394 | BC78: 0 | BD78: 0 | BE78: 0 | BF78: 0 | BG78: 0 | BH78: 1302524 | BI78: -61292 | BJ78: 41935 | BK78: 0 | BL78: 10058 | BM78: 6317 | BN78: 0 | BO78: 0 | BP78: 6317 | BQ78: 0 | BR78: 10058 | BS78: 0 | BT78: 6316 | BU78: 16374 | BV78: -10057 | BW78: 1 | BX78: 103227 | BY78: 41935 | BZ78: 191877.29 | CA78: 191877.29 | CB78: 0 | CC78: 0 | CD78: 0 | CE78: 0 | CF78: 10058 | CG78: 1 | CH78: 16375 | CI78: 16375 | CJ78: 41936 | CK78: 208252.29 | CL78: 208252.29
A79: Northgate | B79: PRU | C79: 133749 | D79: 3021102 | E79: 486327 | F79: 0 | G79: 0 | H79: 0 | I79: 6895 | J79: 0 | K79: 1500 | L79: 0 | M79: 27090 | N79: 0 | O79: 0 | P79: 0 | Q79: 0 | R79: 0 | S79: 0 | T79: 0 | U79: 0 | V79: 0 | W79: 0 | X79: 6440 | Y79: 0 | Z79: 528252 | AA79: 496531 | AB79: 0 | AC79: 34653 | AD79: 0 | AE79: 38434 | AF79: 0 | AG79: 500 | AH79: 5899 | AI79: 3400 | AJ79: 0 | AK79: 0 | AL79: 2000 | AM79: 200 | AN79: 200 | AO79: 0 | AP79: 0 | AQ79: 0 | AR79: 1800 | AS79: 14000 | AT79: 6280 | AU79: 4700 | AV79: 7920 | AW79: 400 | AX79: 0 | AY79: 1836 | AZ79: 4500 | BA79: 21883 | BB79: 32223 | BC79: 0 | BD79: 0 | BE79: 0 | BF79: 0 | BG79: 0 | BH79: 677359 | BI79: -149107 | BJ79: 17175 | BK79: 0 | BL79: -0.13 | BM79: 4835 | BN79: 0 | BO79: 0 | BP79: 4835 | BQ79: 0 | BR79: 0 | BS79: 0 | BT79: 4835 | BU79: 4835 | BV79: 0 | BW79: -0.13 | BX79: 166282 | BY79: 17175 | BZ79: -52940.7 | CA79: -52940.7 | CB79: 0 | CC79: 0 | CD79: 0 | CE79: 0 | CF79: -0.13 | CG79: -0.13 | CH79: 4911.12 | CI79: 4911.12 | CJ79: 17174.87 | CK79: -48029.58 | CL79: -48029.58
A80: Pavilion | B80: PRU | C80: 101255 | D80: 3021100 | E80: 1768094 | F80: 0 | G80: 1006733 | H80: 0 | I80: 32100 | J80: 0 | K80: 0 | L80: 0 | M80: 75000 | N80: 0 | O80: 0 | P80: 0 | Q80: 0 | R80: 0 | S80: 0 | T80: 0 | U80: 0 | V80: 0 | W80: 0 | X80: 0 | Y80: 11956 | Z80: 2893883 | AA80: 1613246.897 | AB80: 167376 | AC80: 544739.6386 | AD80: 51072.1723 | AE80: 79057.0308 | AF80: 0 | AG80: 0 | AH80: 17832.5605 | AI80: 8000 | AJ80: 21011.918 | AK80: 1672.3575 | AL80: 4470 | AM80: 5000 | AN80: 31000 | AO80: 1800 | AP80: 30000 | AQ80: 0 | AR80: 11550 | AS80: 46612.0722 | AT80: 25000 | AU80: 11444.4 | AV80: 21905.216 | AW80: 4101 | AX80: 5000 | AY80: 35000 | AZ80: 38000 | BA80: 61540 | BB80: 51574.584 | BC80: 0 | BD80: 0 | BE80: 0 | BF80: 0 | BG80: 0 | BH80: 2888005.847 | BI80: 5877.1532 | BJ80: 558545.1532 | BK80: 0 | BL80: 47717.75 | BM80: 6329 | BN80: 0 | BO80: 0 | BP80: 6329 | BQ80: 0 | BR80: 51870 | BS80: 0 | BT80: 0 | BU80: 51870 | BV80: -45541 | BW80: 2176.75 | BX80: 552668 | BY80: 558545.1532 | BZ80: 403046.58 | CA80: 403046.58 | CB80: 0 | CC80: 0 | CD80: 0 | CE80: 0 | CF80: 47717.75 | CG80: 2176.75 | CH80: 55312.13 | CI80: 55312.13 | CJ80: 560721.9032 | CK80: 458358.71 | CL80: 458358.71
A81: Finchley Catholic High School | B81: Secondary | C81: 101362 | D81: 3025405 | E81: 5589225 | F81: 1763564 | G81: 175596 | H81: 0 | I81: 132090 | J81: 0 | K81: 1800 | L81: 40000 | M81: 49070 | N81: 362000 | O81: 0 | P81: 0 | Q81: 31200 | R81: 0 | S81: 0 | T81: 0 | U81: 0 | V81: 0 | W81: 14933 | X81: 0 | Y81: 0 | Z81: 8159478 | AA81: 4832849 | AB81: 0 | AC81: 653534 | AD81: 101976 | AE81: 702962 | AF81: 179653 | AG81: 0 | AH81: 47295 | AI81: 21971 | AJ81: 1289 | AK81: 0 | AL81: 91800 | AM81: 45000 | AN81: 122600 | AO81: 14000 | AP81: 250000 | AQ81: 0 | AR81: 45100 | AS81: 187561 | AT81: 93800 | AU81: 102000 | AV81: 51522 | AW81: 61975 | AX81: 0 | AY81: 222450 | AZ81: 152816 | BA81: 132015 | BB81: 67096 | BC81: 0 | BD81: 0 | BE81: 0 | BF81: 0 | BG81: 0 | BH81: 8181264 | BI81: -21786 | BJ81: 805531 | BK81: -4590 | BL81: 0 | BM81: 0 | BN81: 0 | BO81: 0 | BP81: 0 | BQ81: 0 | BR81: 0 | BS81: 0 | BT81: 0 | BU81: 0 | BV81: 0 | BW81: 0 | BX81: 827317 | BY81: 805531 | BZ81: 1075190.87 | CA81: 1075190.87 | CB81: -4590 | CC81: -4590 | CD81: -4590 | CE81: -4590 | CF81: 0 | CG81: 0 | CH81: 0 | CI81: 0 | CJ81: 800941 | CK81: 1070600.87 | CL81: 1070600.87
A82: Friern Barnet School | B82: Secondary | C82: 101345 | D82: 3024003 | E82: 5171736 | F82: 0 | G82: 382422 | H82: 0 | I82: 294515 | J82: 5000 | K82: 343 | L82: 10550 | M82: 500 | N82: 180000 | O82: 0 | P82: 0 | Q82: 16000 | R82: 50000 | S82: 0 | T82: 0 | U82: 0 | V82: 28870 | W82: 0 | X82: 21913 | Y82: 0 | Z82: 6161849 | AA82: 3648669 | AB82: 0 | AC82: 945511 | AD82: 82603 | AE82: 504126 | AF82: 0 | AG82: 45000 | AH82: 42795 | AI82: 12400 | AJ82: 1045 | AK82: 0 | AL82: 59490 | AM82: 9000 | AN82: 82325 | AO82: 5000 | AP82: 100000 | AQ82: 0 | AR82: 42135 | AS82: 130000 | AT82: 97030 | AU82: 68000 | AV82: 26840 | AW82: 28666 | AX82: 0 | AY82: 199815 | AZ82: 90200 | BA82: 92668 | BB82: 16079 | BC82: 0 | BD82: 0 | BE82: 0 | BF82: 0 | BG82: 0 | BH82: 6329397 | BI82: -167548 | BJ82: 6126 | BK82: 0 | BL82: 5042.28 | BM82: 16589 | BN82: 0 | BO82: 0 | BP82: 16589 | BQ82: 0 | BR82: 6631 | BS82: 0 | BT82: 15000 | BU82: 21631 | BV82: -5042 | BW82: 0.28 | BX82: 173674 | BY82: 6126 | BZ82: 492131.97 | CA82: 492131.97 | CB82: 0 | CC82: 0 | CD82: 0 | CE82: 0 | CF82: 5042.28 | CG82: 0.28 | CH82: -2061.07 | CI82: -2061.07 | CJ82: 6126.28 | CK82: 490070.9 | CL82: 490070.9
A83: JCoSS | B83: Secondary | C83: 135747 | D83: 3025427 | E83: 7078143 | F83: 1698387 | G83: 1368151 | H83: 0 | I83: 64216 | J83: 173000 | K83: 0 | L83: 0 | M83: 0 | N83: 60000 | O83: 0 | P83: 0 | Q83: 0 | R83: 2119358 | S83: 0 | T83: 0 | U83: 0 | V83: 0 | W83: 0 | X83: 0 | Y83: 0 | Z83: 12561255 | AA83: 7213270 | AB83: 20000 | AC83: 1960522 | AD83: 163384 | AE83: 886965 | AF83: 0 | AG83: 66377 | AH83: 129229 | AI83: 36900 | AJ83: 50000 | AK83: 0 | AL83: 230500 | AM83: 30000 | AN83: 166179 | AO83: 21000 | AP83: 209848 | AQ83: 0 | AR83: 148800 | AS83: 220701 | AT83: 151000 | AU83: 160000 | AV83: 43750 | AW83: 70600 | AX83: 0 | AY83: 39643 | AZ83: 55000 | BA83: 348090 | BB83: 55385 | BC83: 0 | BD83: 0 | BE83: 0 | BF83: 0 | BG83: 0 | BH83: 12477143 | BI83: 84112 | BJ83: 110119 | BK83: 0 | BL83: 0 | BM83: 0 | BN83: 0 | BO83: 0 | BP83: 0 | BQ83: 0 | BR83: 0 | BS83: 0 | BT83: 0 | BU83: 0 | BV83: 0 | BW83: 0 | BX83: 26007 | BY83: 110119 | BZ83: 546121 | CA83: 546121 | CB83: 0 | CC83: 0 | CD83: 0 | CE83: 0 | CF83: 0 | CG83: 0 | CH83: -88290 | CI83: -88290 | CJ83: 110119 | CK83: 457831 | CL83: 457831
A84: Menorah High School (Girls) | B84: Secondary | C84: 142627 | D84: 3024004 | E84: 1826095 | F84: 390720 | G84: 82000 | H84: 0 | I84: 11460 | J84: 49043 | K84: 0 | L84: 0 | M84: 0 | N84: 0 | O84: 0 | P84: 0 | Q84: 0 | R84: 789500 | S84: 0 | T84: 0 | U84: 0 | V84: 0 | W84: 0 | X84: 0 | Y84: 0 | Z84: 3148818 | AA84: 2160822 | AB84: 0 | AC84: 187807 | AD84: 49267 | AE84: 155902 | AF84: 0 | AG84: 0 | AH84: 8200 | AI84: 24500 | AJ84: 4832 | AK84: 0 | AL84: 100000 | AM84: 0 | AN84: 55000 | AO84: 2346 | AP84: 22700 | AQ84: 0 | AR84: 97123 | AS84: 43523 | AT84: 29079 | AU84: 36000 | AV84: 63650 | AW84: 7182 | AX84: 0 | AY84: 3300 | AZ84: 0 | BA84: 28195 | BB84: 69076 | BC84: 0 | BD84: 0 | BE84: 0 | BF84: 0 | BG84: 0 | BH84: 3148504 | BI84: 314 | BJ84: 58057 | BK84: 0 | BL84: 0 | BM84: 0 | BN84: 0 | BO84: 0 | BP84: 0 | BQ84: 0 | BR84: 0 | BS84: 0 | BT84: 0 | BU84: 0 | BV84: 0 | BW84: 0 | BX84: 57743 | BY84: 58057 | BZ84: 164343 | CA84: 164343 | CB84: 0 | CC84: 0 | CD84: 0 | CE84: 0 | CF84: 0 | CG84: 0 | CH84: -27692 | CI84: -27692 | CJ84: 58057 | CK84: 136651 | CL84: 136651
A85: St Michael's Catholic Grammar School | B85: Secondary | C85: 101361 | D85: 3025404 | E85: 3672003 | F85: 1658031 | G85: 0 | H85: 0 | I85: 0 | J85: 0 | K85: 0 | L85: 20000 | M85: 17760 | N85: 148200 | O85: 0 | P85: 0 | Q85: 26489 | R85: 9600 | S85: 0 | T85: 0 | U85: 0 | V85: 0 | W85: 0 | X85: 0 | Y85: 0 | Z85: 5552083 | AA85: 3577587 | AB85: 0 | AC85: 316144 | AD85: 91916 | AE85: 446839 | AF85: 61132 | AG85: 3000 | AH85: 34100 | AI85: 30345 | AJ85: 865 | AK85: 0 | AL85: 291858 | AM85: 9000 | AN85: 82068 | AO85: 28800 | AP85: 160000 | AQ85: 17987 | AR85: 62625 | AS85: 184478 | AT85: 41050 | AU85: 90000 | AV85: 57317 | AW85: 22814 | AX85: 7000 | AY85: 71000 | AZ85: 10500 | BA85: 84498 | BB85: 130085 | BC85: 0 | BD85: 0 | BE85: 0 | BF85: 0 | BG85: 0 | BH85: 5913008 | BI85: -360925 | BJ85: 52862 | BK85: 0 | BL85: 0 | BM85: 0 | BN85: 0 | BO85: 0 | BP85: 0 | BQ85: 0 | BR85: 0 | BS85: 0 | BT85: 0 | BU85: 0 | BV85: 0 | BW85: 0 | BX85: 413787 | BY85: 52862 | BZ85: 619379.87 | CA85: 619379.87 | CB85: 0 | CC85: 0 | CD85: 0 | CE85: 0 | CF85: 0 | CG85: 0 | CH85: 0 | CI85: 0 | CJ85: 52862 | CK85: 619379.87 | CL85: 619379.87
A86: St. James' Catholic High School | B86: Secondary | C86: 101364 | D86: 3025407 | E86: 6965193.5 | F86: 1126404 | G86: 445224.5 | H86: 0 | I86: 269513.5 | J86: 0 | K86: 0 | L86: 53 | M86: 0 | N86: 0 | O86: 0 | P86: 0 | Q86: 14025 | R86: 23801 | S86: 0 | T86: 0 | U86: 0 | V86: 20000 | W86: 0 | X86: 0 | Y86: 0 | Z86: 8864214.5 | AA86: 5159946 | AB86: 0 | AC86: 986054 | AD86: 143695 | AE86: 520546 | AF86: 0 | AG86: 49726 | AH86: 97726 | AI86: 17061 | AJ86: 1800 | AK86: 4775 | AL86: 88001 | AM86: 8001 | AN86: 165202 | AO86: 10000 | AP86: 271000 | AQ86: 1 | AR86: 55764 | AS86: 194527 | AT86: 87208 | AU86: 145000 | AV86: 95187 | AW86: 50306 | AX86: 797 | AY86: 51002 | AZ86: 144316 | BA86: 426585 | BB86: 87279 | BC86: 0 | BD86: 0 | BE86: 0 | BF86: 0 | BG86: 0 | BH86: 8861505 | BI86: 2709.5 | BJ86: 277806.5 | BK86: 0 | BL86: 0.4 | BM86: 0 | BN86: 0 | BO86: 0 | BP86: 0 | BQ86: 0 | BR86: 0 | BS86: 0 | BT86: 0 | BU86: 0 | BV86: 0 | BW86: 0.4 | BX86: 275097 | BY86: 277806.5 | BZ86: 853216.12 | CA86: 853216.12 | CB86: 0 | CC86: 0 | CD86: 0 | CE86: 0 | CF86: 0.4 | CG86: 0.4 | CH86: 0.4 | CI86: 0.4 | CJ86: 277806.9 | CK86: 853216.52 | CL86: 853216.52
A87: Mapledown | B87: Special | C87: 101397 | D87: 3027010 | E87: 920388 | F87: 300000 | G87: 2705040 | H87: 0 | I87: 37430 | J87: 0 | K87: 23397 | L87: 8716 | M87: 0 | N87: 8000 | O87: 0 | P87: 0 | Q87: 0 | R87: 0 | S87: 0 | T87: 0 | U87: 0 | V87: 0 | W87: 0 | X87: 0 | Y87: 5075 | Z87: 4008046 | AA87: 1351785.02 | AB87: 0 | AC87: 1625360.24 | AD87: 117578.0148 | AE87: 133589.2849 | AF87: 0 | AG87: 81188.26027 | AH87: 18970.97735 | AI87: 15884 | AJ87: 14972 | AK87: 29944 | AL87: 79500 | AM87: 20500 | AN87: 6500 | AO87: 6500 | AP87: 52105 | AQ87: 0 | AR87: 18879 | AS87: 53852 | AT87: 27339 | AU87: 1000 | AV87: 13590 | AW87: 8249 | AX87: 0 | AY87: 27400 | AZ87: 0 | BA87: 276861 | BB87: 31474 | BC87: 0 | BD87: 0 | BE87: 0 | BF87: 0 | BG87: 0 | BH87: 4013020.797 | BI87: -4974.797379 | BJ87: 606837.2026 | BK87: 0 | BL87: 13326.45 | BM87: 8556 | BN87: 0 | BO87: 0 | BP87: 8556 | BQ87: 0 | BR87: 0 | BS87: 7000 | BT87: 0 | BU87: 7000 | BV87: 1556 | BW87: 14882.45 | BX87: 611812 | BY87: 606837.2026 | BZ87: 644390.81 | CA87: 644390.81 | CB87: 0 | CC87: 0 | CD87: 0 | CE87: 0 | CF87: 13326.45 | CG87: 14882.45 | CH87: 21882.7 | CI87: 21882.7 | CJ87: 621719.6526 | CK87: 666273.51 | CL87: 666273.51
A88: Northway | B88: Special | C88: 101395 | D88: 3027005 | E88: 1595684 | F88: 0 | G88: 1913186 | H88: 0 | I88: 69000 | J88: 0 | K88: 0 | L88: 34800 | M88: 0 | N88: 17200 | O88: 0 | P88: 0 | Q88: 0 | R88: 0 | S88: 0 | T88: 0 | U88: 0 | V88: 0 | W88: 0 | X88: 13340 | Y88: 16791 | Z88: 3660001 | AA88: 1308941.44 | AB88: 0 | AC88: 1263025.722 | AD88: 43273.9136 | AE88: 207086.3657 | AF88: 0 | AG88: 22614.7363 | AH88: 20790.5654 | AI88: 47800 | AJ88: 0 | AK88: 0 | AL88: 95999.734 | AM88: 6800 | AN88: 51200 | AO88: 12000 | AP88: 106000 | AQ88: 0 | AR88: 11450 | AS88: 82757.1 | AT88: 50000 | AU88: 0 | AV88: 17470 | AW88: 9100 | AX88: 0 | AY88: 46900 | AZ88: 34000 | BA88: 375980 | BB88: 58217.2 | BC88: 0 | BD88: 0 | BE88: 77000 | BF88: 0 | BG88: 0 | BH88: 3948406.777 | BI88: -288405.7767 | BJ88: 208118.2233 | BK88: 0 | BL88: -0.18 | BM88: 9670 | BN88: 0 | BO88: 77000 | BP88: 86670 | BQ88: 0 | BR88: 0 | BS88: 86670 | BT88: 0 | BU88: 86670 | BV88: 0 | BW88: -0.18 | BX88: 496524 | BY88: 208118.2233 | BZ88: 620907.99 | CA88: 620907.99 | CB88: 0 | CC88: 0 | CD88: 0 | CE88: 0 | CF88: -0.18 | CG88: -0.18 | CH88: 10176.07 | CI88: 10176.07 | CJ88: 208118.0433 | CK88: 631084.06 | CL88: 631084.06
A89: Oakleigh | B89: Special | C89: 101396 | D89: 3027009 | E89: 1995115.533 | F89: 0 | G89: 2281665.333 | H89: 0 | I89: 48475 | J89: 0 | K89: 703122 | L89: 2500 | M89: 16600 | N89: 7200 | O89: 0 | P89: 0 | Q89: 4500 | R89: 15700 | S89: 0 | T89: 0 | U89: 0 | V89: 0 | W89: 0 | X89: 14985 | Y89: 30674 | Z89: 5120536.867 | AA89: 2029983.032 | AB89: 0 | AC89: 1955459.056 | AD89: 45410.01622 | AE89: 132291.6466 | AF89: 0 | AG89: 132390.242 | AH89: 32295.53775 | AI89: 23250 | AJ89: 0 | AK89: 0 | AL89: 69317 | AM89: 3000 | AN89: 38350 | AO89: 6000 | AP89: 60280 | AQ89: 0 | AR89: 32975 | AS89: 129639 | AT89: 26250 | AU89: 0 | AV89: 26900 | AW89: 5800 | AX89: 52931.55 | AY89: 42438.48 | AZ89: 0 | BA89: 314943 | BB89: 37436 | BC89: 0 | BD89: 0 | BE89: 19740 | BF89: 0 | BG89: 0 | BH89: 5217079.561 | BI89: -96542.69385 | BJ89: 447971.3061 | BK89: 0 | BL89: 18222.88 | BM89: 10388 | BN89: 0 | BO89: 19740 | BP89: 30128 | BQ89: 0 | BR89: 48351 | BS89: 0 | BT89: 0 | BU89: 48351 | BV89: -18223 | BW89: -0.12 | BX89: 544514 | BY89: 447971.3061 | BZ89: 476488.09 | CA89: 476488.09 | CB89: 0 | CC89: 0 | CD89: 0 | CE89: 0 | CF89: 18222.88 | CG89: -0.12 | CH89: 29442 | CI89: 29442 | CJ89: 447971.1861 | CK89: 505930.09 | CL89: 505930.09
A90: St Mary's & St John's CE School | B90: All through | C90: 103119 | D90: 3023521 | E90: 8854598 | F90: 399028 | G90: 199147 | H90: 0 | I90: 528920 | J90: 0 | K90: 11025 | L90: 20000 | M90: 73523 | N90: 205400 | O90: 0 | P90: 0 | Q90: 33245 | R90: 13000 | S90: 0 | T90: 0 | U90: 0 | V90: 0 | W90: 0 | X90: 0 | Y90: 142221 | Z90: 10480107 | AA90: 5800875.368 | AB90: 0 | AC90: 1215532.345 | AD90: 218223.5862 | AE90: 679830.0581 | AF90: 0 | AG90: 82449.95575 | AH90: 99801.55171 | AI90: 26431 | AJ90: 2232 | AK90: 0 | AL90: 70000 | AM90: 18473 | AN90: 168000 | AO90: 31000 | AP90: 236820 | AQ90: 0 | AR90: 65954 | AS90: 329287 | AT90: 129500 | AU90: 101500 | AV90: 118800 | AW90: 58194 | AX90: 36700 | AY90: 396056 | AZ90: 390039 | BA90: 397219 | BB90: 169794 | BC90: 0 | BD90: 0 | BE90: 40000 | BF90: 0 | BG90: 0 | BH90: 10882711.86 | BI90: -402604.8638 | BJ90: 862427.1362 | BK90: 0 | BL90: 0 | BM90: 0 | BN90: 0 | BO90: 0 | BP90: 0 | BQ90: 0 | BR90: 0 | BS90: 0 | BT90: 0 | BU90: 0 | BV90: 0 | BW90: 0 | BX90: 1265032 | BY90: 862427.1362 | BZ90: 1700666.1 | CA90: 1700666.1 | CB90: 0 | CC90: 0 | CD90: 0 | CE90: 0 | CF90: 0 | CG90: 0 | CH90: 0 | CI90: 0 | CJ90: 862427.1362 | CK90: 1700666.1 | CL90: 1700666.1

Sheet Blade-Export_03-09-2019_cfrdata (hidden)
A1: cfrdatatableid | B1: NativeId | C1: Dfe | D1: cfrdataorderseqcolumn | E1: sourceid | F1: sourceschooltableid | G1: ob01openingpupilfocusedrevenuebalance | H1: ob02openingcommunityfocusedrevenuebalance | I1: ob03openingcapitalbalance | J1: i01la | K1: i02sixthform | L1: i03highneedstopup | M1: i04minorityethnic | N1: i05pupilpremium | O1: i06othergovgrants | P1: i07othergrants | Q1: i08services | R1: i09catering | S1: i10supplyinsurance | T1: i11otherinsurance | U1: i12contributions | V1: i13donations | W1: i14schoolstandardsgrant | X1: i15pupilfocusedextendedfunding | Y1: i16communityfocusedfunding | Z1: i17communityfocusedschoolfacilitiesincome | AA1: i18additionalgrantschools | AB1: e01teachingstaff | AC1: e02supplystaff | AD1: e03supportstaff | AE1: e04premisesstaff | AF1: e05adminstaff | AG1: e06cateringstaff | AH1: e07otherstaff | AI1: e08indirectemployee | AJ1: e09staffdevelopment | AK1: e10supplyinsurance | AL1: e11staffinsurance | AM1: e12buildings | AN1: e13grounds | AO1: e14cleaningcaretaking | AP1: e15watersewerage | AQ1: e16energy | AR1: e17rates | AS1: e18otheroccupation | AT1: e19learningresources | AU1: e20ictlearningresources | AV1: e21examinationfees | AW1: e22administrativesupplies | AX1: e23otherinsurance | AY1: e24specialfacilities | AZ1: e25cateringsupplies | BA1: e26agencysupplystaff | BB1: e27curriculumservices | BC1: e28aotherservicesexceptpfi | BD1: e28botherservicespfi | BE1: e29loaninterest | BF1: e30directrevenuefinancing | BG1: e31communityfocusedstaff | BH1: e32communityfocusedschoolcosts | BI1: ci01capitalincome | BJ1: ci03voluntaryincome | BK1: ci04directrevenuefinancing | BL1: deminimis | BM1: ce01landbuildings | BN1: ce02constructionconversion | BO1: ce03equipment | BP1: ce04ict | BQ1: b01committedrevenue | BR1: b02uncommittedrevenue | BS1: b03devolvedcapital | BT1: b04standardscapital | BU1: b05othercapital | BV1: b06communityfocused | BW1: incometotal | BX1: expendituretotal | BY1: capitalincometotal | BZ1: capitalexpendituretotal | CA1: balancestotal
A2: ed0f1c30-9a26-4578-b6fb-d5db174f5de3 | B2: 3021100 | C2: 1100 | D2: 21768 | E2: 94055 | F2: c7ce71d6-da1b-4bb7-9fec-c397d20bb647 | G2: 114164.9 | H2: 0 | I2: 8037 | J2: 1468288 | K2: 0 | L2: 919323 | M2: 0 | N2: 66754.25 | O2: 67 | P2: 9132 | Q2: 135175.76 | R2: 896.68 | S2: 0 | T2: 661.76 | U2: 999 | V2: 0 | X2: 0 | Y2: 0 | Z2: 0 | AA2: 4342.65 | AB2: 1384191.98 | AC2: 133052.81 | AD2: 359650.2 | AE2: 0 | AF2: 58191.74 | AG2: 0 | AH2: 0 | AI2: 26992.98 | AJ2: 10486.49 | AK2: 17235.6 | AL2: 0 | AM2: 7994.27 | AN2: 4280.98 | AO2: 49424.98 | AP2: 1585.59 | AQ2: 11495.7 | AR2: 6711.81 | AS2: 18823.22 | AT2: 44287.89 | AU2: 20746.9 | AV2: 10597.29 | AW2: 20367.78 | AX2: 2165.55 | AY2: 7875.05 | AZ2: 33396.05 | BA2: 164178.73 | BB2: 174647.12 | BC2: 46740.29 | BD2: 0 | BE2: 0 | BF2: 0 | BG2: 0 | BH2: 0 | BI2: 18315 | BJ2: 0 | BK2: 0 | BL2: 6000 | BM2: 0 | BN2: 0 | BO2: 0 | BP2: 0 | BQ2: 0 | BR2: 104684 | BS2: 26352 | BU2: 0 | BV2: 0 | BW2: 2605640.1 | BX2: 2615121 | BY2: 18315 | BZ2: 0 | CA2: 131036 | CC2: =BW2+BY2-BZ2-BX2 -> 8834.1
A3: 0c96ac87-1bbf-4cee-b8a5-d18805995787 | B3: 3021102 | C3: 1102 | D3: 20095 | E3: 72115 | F3: 8ebf93fa-c5da-4a91-b347-2f97926bb0c1 | G3: 100275 | H3: 0 | I3: 10655 | J3: 409196 | K3: 0 | L3: 92802 | M3: 0 | N3: 4675 | O3: 0 | P3: 12940 | Q3: 39223.02 | R3: 0 | S3: 4224 | T3: 0 | U3: 0 | V3: 1107.62 | X3: 0 | Y3: 0 | Z3: 0 | AA3: 0 | AB3: 285638.98 | AC3: 0 | AD3: 48278.24 | AE3: 0 | AF3: 0 | AG3: 0 | AH3: 0 | AI3: 2397.29 | AJ3: 2296.63 | AK3: 1933.44 | AL3: 0 | AM3: 1265.01 | AN3: 432.78 | AO3: 0 | AP3: 0 | AQ3: 0 | AR3: 5976 | AS3: 0 | AT3: 21081.97 | AU3: 6502.54 | AV3: 1954.12 | AW3: 14465.07 | AX3: 45.13 | AY3: 0 | AZ3: 1789.6 | BA3: 91008 | BB3: 33832.44 | BC3: 14729.4 | BD3: 0 | BE3: 0 | BF3: 0 | BG3: 0 | BH3: 0 | BI3: 8675 | BJ3: 0 | BK3: 0 | BL3: 6000 | BM3: 0 | BN3: 0 | BO3: 0 | BP3: 1380 | BQ3: 6089 | BR3: 124727 | BS3: 17950 | BU3: 0 | BV3: 0 | BW3: 564167.64 | BX3: 533626.64 | BY3: 8675 | BZ3: 1380 | CA3: 148766
A4: 285d8e59-d236-44a2-b620-2c33b6f251eb | B4: 3023524 | C4: 3524 | D4: 20106 | E4: 170878 | F4: d1bb57ad-f079-408b-b175-19192d577548 | G4: 72683 | H4: 0 | I4: 0 | J4: 929907 | K4: 0 | L4: 67548 | M4: 0 | N4: 14520 | O4: 51968.4 | P4: 494.5 | Q4: 23663.11 | R4: 14294.26 | S4: 0 | T4: 1005 | U4: 16642.43 | V4: 524723.51 | X4: 0 | Y4: 0 | Z4: 0 | AA4: 49246.5 | AB4: 801878.39 | AC4: 0 | AD4: 302352.99 | AE4: 24684.96 | AF4: 92616.24 | AG4: 0 | AH4: 0 | AI4: 30775.06 | AJ4: 2465.71 | AK4: 320 | AL4: 1146.12 | AM4: 57731.49 | AN4: 18417.04 | AO4: 31373.09 | AP4: 3051.82 | AQ4: 18807.54 | AR4: 7438.5 | AS4: 61140.07 | AT4: 83624.39 | AU4: 58917.81 | AV4: 0 | AW4: 10793.62 | AX4: 14886 | AY4: 2737.89 | AZ4: 49778.77 | BA4: 18906 | BB4: 47121.1 | BC4: 25458.84 | BD4: 0 | BE4: 0 | BF4: 0.27 | BG4: 0 | BH4: 0 | BI4: 0 | BJ4: 0 | BK4: 0 | BL4: 6000 | BM4: 0 | BN4: 0 | BO4: 0 | BP4: 0 | BQ4: 0 | BR4: 272 | BS4: 0 | BU4: 0 | BV4: 0 | BW4: 1694012.71 | BX4: 1766423.71 | BY4: 0 | BZ4: 0 | CA4: 272
A5: 857fa0c3-35a5-4e84-af97-f3f47c8f5a4f | B5: 3025427 | C5: 5427 | D5: 20175 | E5: 170749 | F5: 07aa3dbf-689c-4b77-a95c-2483323475c2 | G5: 89343 | H5: 0 | I5: 0 | J5: 6101303.48 | K5: 1437632 | L5: 1276587.38 | M5: 0 | N5: 92430 | O5: 171742.63 | P5: 47143 | Q5: 1192.25 | R5: 6400 | S5: 35728 | T5: 208.9 | U5: 1024694.21 | V5: 1391883 | X5: 0 | Y5: 0 | Z5: 0 | AA5: 2640 | AB5: 5617204.26 | AC5: 17052.74 | AD5: 1809578.77 | AE5: 149284.07 | AF5: 629827 | AG5: 0 | AH5: 113904.43 | AI5: 91850.76 | AJ5: 53695.06 | AK5: 63821.55 | AL5: 0 | AM5: 169769.2 | AN5: 23998.78 | AO5: 136088.77 | AP5: 10100.53 | AQ5: 157885.68 | AR5: 68528.5 | AS5: 143338.75 | AT5: 581228.11 | AU5: 154549.94 | AV5: 135728.8 | AW5: 57691.73 | AX5: 76297 | AY5: 0 | AZ5: 38017.78 | BA5: 113708.32 | BB5: 381992.71 | BC5: 696804.61 | BD5: 0 | BE5: 0 | BF5: 0 | BG5: 0 | BH5: 0 | BI5: 0 | BJ5: 0 | BK5: 0 | BL5: 6000 | BM5: 0 | BN5: 0 | BO5: 0 | BP5: 0 | BQ5: 0 | BR5: 186980 | BS5: 0 | BU5: 0 | BV5: 0 | BW5: 11589584.85 | BX5: 11491947.85 | BY5: 0 | BZ5: 0 | CA5: 186980
A6: e6be9c69-0a5f-4e85-a82d-b4ddadca8c62 | B6: 3023520 | C6: 3520 | D6: 20153 | E6: 148234 | F6: 01c85b0e-2fc9-4b2c-bae8-6c8dcea1e702 | G6: 37545 | H6: 0 | I6: 0 | J6: 1550451 | K6: 0 | L6: 95407 | M6: 0 | N6: 3620 | O6: 22857.7 | P6: 1644.5 | Q6: 13067.56 | R6: 86181.6 | S6: 12464.36 | T6: 1904 | U6: 54788.6 | V6: 632827.98 | X6: 0 | Y6: 0 | Z6: 0 | AA6: 97713.67 | AB6: 1014732.79 | AC6: 30618.76 | AD6: 391817.87 | AE6: 39754.21 | AF6: 124391.65 | AG6: 0 | AH6: 19695.96 | AI6: 9052.34 | AJ6: 6683.06 | AK6: 13415.6 | AL6: 0 | AM6: 101885.96 | AN6: 1032.57 | AO6: 38243.62 | AP6: 7233.88 | AQ6: 22109.87 | AR6: 11566.05 | AS6: 111893.46 | AT6: 112879.75 | AU6: 22435.98 | AV6: 0 | AW6: 10707.07 | AX6: 33227 | AY6: 3645.77 | AZ6: 177268.54 | BA6: 82247.44 | BB6: 46159.32 | BC6: 50431.83 | BD6: 0 | BE6: 0 | BF6: 12522.62 | BG6: 0 | BH6: 0 | BI6: 0 | BJ6: 0 | BK6: 12522.62 | BL6: 6000 | BM6: 0 | BN6: 0 | BO6: 0 | BP6: 12522.62 | BQ6: 52431 | BR6: 62389 | BS6: 0 | BU6: 0 | BV6: 0 | BW6: 2572927.97 | BX6: 2495652.97 | BY6: 12522.62 | BZ6: 12522.62 | CA6: 114820
A7: cdc2e9d9-2041-478f-8f87-8b9214377870 | B7: 3023300 | C7: 3300 | D7: 20108 | E7: 94010 | F7: 6ee14bf5-90be-4a66-b408-f93690986061 | G7: 106584 | H7: 0 | I7: 0 | J7: 928093 | K7: 0 | L7: 31054 | M7: 0 | N7: 96020 | O7: 4500 | P7: 64.9 | Q7: 1748.67 | R7: 16458.95 | S7: 5409.29 | T7: 0 | U7: 18622.41 | V7: 10618.26 | X7: 0 | Y7: 0 | Z7: 0 | AA7: 35847.17 | AB7: 594256.89 | AC7: 0 | AD7: 234812.19 | AE7: 32425.18 | AF7: 35295.1 | AG7: 0 | AH7: 8493.11 | AI7: 1625.48 | AJ7: 8319.51 | AK7: 9915.5 | AL7: 0 | AM7: 17728.84 | AN7: 2320 | AO7: 15355.5 | AP7: 6994.1 | AQ7: 8916.43 | AR7: 2843.02 | AS7: 3288.63 | AT7: 35950.27 | AU7: 11251.11 | AV7: 0 | AW7: 16707.99 | AX7: 5222.24 | AY7: 1174.84 | AZ7: 44627.07 | BA7: 35623.37 | BB7: 59470.42 | BC7: 31267.86 | BD7: 0 | BE7: 0 | BF7: 0 | BG7: 0 | BH7: 0 | BI7: 0 | BJ7: 0 | BK7: 0 | BL7: 6000 | BM7: 0 | BN7: 0 | BO7: 0 | BP7: 0 | BQ7: 0 | BR7: 31136 | BS7: 0 | BU7: 0 | BV7: 0 | BW7: 1148436.65 | BX7: 1223884.65 | BY7: 0 | BZ7: 0 | CA7: 31136
A8: 8d55b5eb-3d77-46c9-b38d-29478a806db2 | B8: 3023317 | C8: 3317 | D8: 20162 | E8: 94022 | F8: 2c6d98e8-37a4-42ce-b4d3-03de4d87f348 | G8: 123257 | H8: 0 | I8: 0 | J8: 1173853.97 | K8: 0 | L8: 35907.01 | M8: 0 | N8: 79848 | O8: 70 | P8: 13643.79 | Q8: 35632.65 | R8: 38553.63 | S8: 7104 | T8: 0 | U8: 30184 | V8: 19925.63 | X8: 0 | Y8: 0 | Z8: 0 | AA8: 50115.33 | AB8: 675393.25 | AC8: 56890.47 | AD8: 254664.91 | AE8: 30431.39 | AF8: 45743.14 | AG8: 0 | AH8: 27094.21 | AI8: 1405.29 | AJ8: 16476.48 | AK8: 11149.64 | AL8: 3134.04 | AM8: 35567.94 | AN8: 3164.62 | AO8: 28019.73 | AP8: 2591.95 | AQ8: 20440.83 | AR8: 3639.42 | AS8: 7394.53 | AT8: 59385.94 | AU8: 12105.91 | AV8: 0 | AW8: 13092.3 | AX8: 4170.54 | AY8: 9268.26 | AZ8: 86451.47 | BA8: 26439.62 | BB8: 62147.79 | BC8: 22122.34 | BD8: 0 | BE8: 0 | BF8: 0 | BG8: 0 | BH8: 0 | BI8: 0 | BJ8: 0 | BK8: 0 | BL8: 6000 | BM8: 0 | BN8: 0 | BO8: 0 | BP8: 0 | BQ8: 0 | BR8: 89709 | BS8: 0 | BU8: 0 | BV8: 0 | BW8: 1484838.01 | BX8: 1518386.01 | BY8: 0 | BZ8: 0 | CA8: 89709
A9: b7cadde1-be12-46e7-86d8-843ab2d4f04f | B9: 3022002 | C9: 2002 | D9: 20105 | E9: 94057 | F9: db86b136-2951-48b6-8cf6-c49c257e02a7 | G9: 406876 | H9: 4314 | I9: 0 | J9: 2275691 | K9: 0 | L9: 74033 | M9: 0 | N9: 276520 | O9: 2200 | P9: 0 | Q9: 38298.35 | R9: 30083.22 | S9: 0 | T9: 0 | U9: 21889.44 | V9: 3172.69 | X9: 0 | Y9: 261792 | Z9: 3458.41 | AA9: 76037.5 | AB9: 1318911.3 | AC9: 0 | AD9: 667536.33 | AE9: 33736.15 | AF9: 60728.49 | AG9: 0 | AH9: 93567.58 | AI9: 19818.88 | AJ9: 7035.56 | AK9: 17581 | AL9: 12030.16 | AM9: 34864.05 | AN9: 0 | AO9: 38994.06 | AP9: 3793.24 | AQ9: 31644.79 | AR9: 29826.5 | AS9: 13953.35 | AT9: 81972.29 | AU9: 22550.54 | AV9: 0 | AW9: 23429.94 | AX9: 14068.91 | AY9: 22692.54 | AZ9: 99010.63 | BA9: 34483.31 | BB9: 115068.9 | BC9: 25928.1 | BD9: 0 | BE9: 0 | BF9: 0 | BG9: 209061.73 | BH9: 48538.21 | BI9: 28865.74 | BJ9: 0 | BK9: 0 | BL9: 6000 | BM9: 0 | BN9: 0 | BO9: 8377.5 | BP9: 11182.24 | BQ9: 28564 | BR9: 353011.07 | BS9: 9306 | BU9: 0 | BV9: 11964 | BW9: 3063175.61 | BX9: 3080826.54 | BY9: 28865.74 | BZ9: 19559.74 | CA9: 402845.07
A10: f4d45097-c363-4bba-888c-0c5048c1187e | B10: 3022079 | C10: 2079 | D10: 20101 | E10: 97118 | F10: e3d106fc-525e-482a-906e-cde6b7469608 | G10: 55568 | H10: 0 | I10: 0 | J10: 1932612 | K10: 0 | L10: 2712 | M10: 0 | N10: 62040 | O10: 82.4 | P10: 11737 | Q10: 644.6 | R10: 19013.45 | S10: 4484.48 | T10: 0 | U10: 6545 | V10: 0 | X10: 0 | Y10: 0 | Z10: 0 | AA10: 91588.5 | AB10: 1209216.34 | AC10: 0 | AD10: 178945.8 | AE10: 34330.92 | AF10: 100010.18 | AG10: 0 | AH10: 49243.15 | AI10: 44540.29 | AJ10: 6819.18 | AK10: 15014.22 | AL10: 0 | AM10: 24149.5 | AN10: 0 | AO10: 50484.68 | AP10: 94.15 | AQ10: 25385.51 | AR10: 29593.9 | AS10: 15035.7 | AT10: 45645.41 | AU10: 23400.5 | AV10: 0 | AW10: 12913.43 | AX10: 888 | AY10: 53289.14 | AZ10: 89580.66 | BA10: 8138.4 | BB10: 23569.6 | BC10: 34619.77 | BD10: 0 | BE10: 0 | BF10: 0 | BG10: 0 | BH10: 0 | BI10: 0 | BJ10: 0 | BK10: 0 | BL10: 6000 | BM10: 0 | BN10: 0 | BO10: 0 | BP10: 0 | BQ10: 0 | BR10: 112119 | BS10: 0 | BU10: 0 | BV10: 0 | BW10: 2131459.43 | BX10: 2074908.43 | BY10: 0 | BZ10: 0 | CA10: 112119
A11: bb9f4341-5d97-4b1b-91de-f03ca9055a35 | B11: 3022003 | C11: 2003 | D11: 20098 | E11: 94058 | F11: 3899c6c2-b43d-4388-adbf-d7b698f1882c | G11: 70401 | H11: 30328 | I11: 980 | J11: 1943830 | K11: 0 | L11: 65530 | M11: 0 | N11: 237600 | O11: 2760 | P11: 3250 | Q11: 37650.02 | R11: 25015.26 | S11: 0 | T11: 3485.43 | U11: 13353.51 | V11: 3114.87 | X11: 0 | Y11: 240062 | Z11: 4635.51 | AA11: 69896.5 | AB11: 903595.67 | AC11: 0 | AD11: 461674.91 | AE11: 90908.02 | AF11: 60121.94 | AG11: 0 | AH11: 59322.36 | AI11: 9367.15 | AJ11: 18145.17 | AK11: 15862.68 | AL11: 2140.16 | AM11: 19963.79 | AN11: 3657.45 | AO11: 3587.13 | AP11: 3724.25 | AQ11: 23865.57 | AR11: 18792 | AS11: 7021.77 | AT11: 67904.45 | AU11: 18208.18 | AV11: 0 | AW11: 32439.06 | AX11: 9840.31 | AY11: 10794.05 | AZ11: 88601.03 | BA11: 256444.88 | BB11: 251303.17 | BC11: 59290.23 | BD11: 0 | BE11: 0 | BF11: 0 | BG11: 205764.79 | BH11: 38743.93 | BI11: 25390.87 | BJ11: 0 | BK11: 0 | BL11: 6000 | BM11: 0 | BN11: 2149.87 | BO11: 0 | BP11: 0 | BQ11: 21588 | BR11: -42277 | BS11: 24221 | BU11: 0 | BV11: 30517 | BW11: 2650183.1 | BX11: 2741084.1 | BY11: 25390.87 | BZ11: 2149.87 | CA11: 34049
A12: 83cd9110-7e06-4779-9e7a-ecaac824dd9b | B12: 3023511 | C12: 3511 | D12: 21762 | E12: 93951 | F12: 87fd4a26-952f-448d-b456-d02a112d6047 | G12: 214488 | H12: 0 | I12: 1 | J12: 2052391.16 | K12: 0 | L12: 77971 | M12: 0 | N12: 164620 | O12: 1500 | P12: 825 | Q12: 62690.56 | R12: 36528.3 | S12: 6000 | T12: 5865 | U12: 44380.76 | V12: 150 | X12: 0 | Y12: 0 | Z12: 0 | AA12: 80655.5 | AB12: 956061.69 | AC12: 0 | AD12: 427603.41 | AE12: 36324.66 | AF12: 144542.51 | AG12: 0 | AH12: 17552.09 | AI12: 2299.16 | AJ12: 23592.91 | AK12: 12521.37 | AL12: 2340.3 | AM12: 3888.47 | AN12: 1467.64 | AO12: 34533.49 | AP12: 1484.18 | AQ12: 22926.28 | AR12: 3273.51 | AS12: 13379.33 | AT12: 111082.57 | AU12: 26520.32 | AV12: 0 | AW12: 22512.17 | AX12: 10664.61 | AY12: 53378.92 | AZ12: 113821.75 | BA12: 136694.67 | BB12: 160699.78 | BC12: 28200.49 | BD12: 0 | BE12: 0 | BF12: 0 | BG12: 0 | BH12: 0 | BI12: 0 | BJ12: 0 | BK12: 0 | BL12: 6000 | BM12: 0 | BN12: 0 | BO12: 0 | BP12: 0 | BQ12: 100000 | BR12: 280699 | BS12: 0 | BU12: 1 | BV12: 0 | BW12: 2533577.28 | BX12: 2367366.28 | BY12: 0 | BZ12: 0 | CA12: 380700
A13: d01c9408-fed9-4b89-b6ab-b64c520e3044 | B13: 3021000 | C13: 1000 | D13: 21763 | E13: 94051 | F13: 6db308f5-485a-4a48-8ec0-32c898dda653 | G13: 298639 | H13: 40706 | I13: 14418 | J13: 1231942 | K13: 0 | L13: 64351 | M13: 0 | N13: 0 | O13: 272757 | P13: 48107 | Q13: 490033 | R13: 25916 | S13: 8360 | T13: 4136 | U13: 0 | V13: 6236 | X13: 0 | Y13: 178941 | Z13: 936 | AA13: 0 | AB13: 401231 | AC13: 2053 | AD13: 1125309 | AE13: 54706 | AF13: 83072 | AG13: 0 | AH13: 103966 | AI13: 8643 | AJ13: 7856 | AK13: 7225 | AL13: 2001 | AM13: 14794 | AN13: 1820 | AO13: 2760 | AP13: 4232 | AQ13: 16702 | AR13: 23064 | AS13: 13990 | AT13: 45359 | AU13: 18085 | AV13: 0 | AW13: 32311 | AX13: 3465 | AY13: 5330 | AZ13: 30458 | BA13: 490 | BB13: 23911 | BC13: 43329 | BD13: 0 | BE13: 0 | BF13: 0 | BG13: 143838 | BH13: 31547 | BI13: 50667 | BJ13: 0 | BK13: 0 | BL13: 6000 | BM13: 0 | BN13: 6218 | BO13: 0 | BP13: 0 | BQ13: 0 | BR13: 374315 | BS13: 43350 | BU13: 15517 | BV13: 45198 | BW13: 2331715 | BX13: 2251547 | BY13: 50667 | BZ13: 6218 | CA13: 478380
A14: dd562f17-4384-4bf9-9cb7-ab8e4c8f63a3 | B14: 3022008 | C14: 2008 | D14: 20163 | E14: 94060 | F14: 87d74956-e2fe-4bf5-95ec-b1720235ea88 | G14: 118777 | H14: 0 | I14: 9148 | J14: 1353084 | K14: 0 | L14: 112154 | M14: 0 | N14: 64680 | O14: 5090 | P14: 500 | Q14: 50802.93 | R14: 8089.88 | S14: 4834.5 | T14: 0 | U14: 25756 | V14: 7713.4 | X14: 0 | Y14: 0 | Z14: 0 | AA14: 116480.5 | AB14: 770922.63 | AC14: 0 | AD14: 333768.42 | AE14: 39878.41 | AF14: 69037.46 | AG14: 0 | AH14: 31584.79 | AI14: 7128.4 | AJ14: 3413.5 | AK14: 6088.86 | AL14: 7235.94 | AM14: 16025.43 | AN14: 3981.28 | AO14: 11724.04 | AP14: 3950.97 | AQ14: 17403.07 | AR14: 19366.13 | AS14: 7003.58 | AT14: 36528.28 | AU14: 9192.66 | AV14: 0 | AW14: 9418.98 | AX14: 6955.01 | AY14: 12673.57 | AZ14: 104761.31 | BA14: 71024.83 | BB14: 101224.1 | BC14: 30520.56 | BD14: 0 | BE14: 0 | BF14: 0 | BG14: 0 | BH14: 0 | BI14: 19883.62 | BJ14: 0 | BK14: 0 | BL14: 6000 | BM14: 0 | BN14: 0 | BO14: 0 | BP14: 12037.62 | BQ14: 8000 | BR14: 129150 | BS14: 16994 | BU14: 0 | BV14: 0 | BW14: 1749185.21 | BX14: 1730812.21 | BY14: 19883.62 | BZ14: 12037.62 | CA14: 154144
A15: 6535cb14-9c19-4fae-97ce-8817d3426f15 | B15: 3022007 | C15: 2007 | D15: 20165 | E15: 94059 | F15: db32eede-28f5-4f4e-a5c0-14434d4d9539 | G15: 154040 | H15: 0 | I15: 0 | J15: 1453456 | K15: 0 | L15: 77951 | M15: 0 | N15: 103000 | O15: 2100 | P15: 3010 | Q15: 43210.84 | R15: 76206.6 | S15: 6828.8 | T15: 0 | U15: 58190.83 | V15: 11162 | X15: 0 | Y15: 0 | Z15: 0 | AA15: 19549.83 | AB15: 951040.45 | AC15: 0 | AD15: 332971.82 | AE15: 44361.89 | AF15: 68865.44 | AG15: 0 | AH15: 36645.94 | AI15: 10504.5 | AJ15: 5604.03 | AK15: 8066.94 | AL15: 7896.66 | AM15: 19640.13 | AN15: 9664.35 | AO15: 17526.49 | AP15: 4275.46 | AQ15: 19411.93 | AR15: 19364.37 | AS15: 7805.02 | AT15: 77173.84 | AU15: 16178.46 | AV15: 0 | AW15: 15954.59 | AX15: 8372.38 | AY15: 7806.52 | AZ15: 76209 | BA15: 10145.84 | BB15: 44357.22 | BC15: 29541.63 | BD15: 0 | BE15: 0 | BF15: 0 | BG15: 0 | BH15: 0 | BI15: 22389.25 | BJ15: 0 | BK15: 0 | BL15: 6000 | BM15: 0 | BN15: 9200 | BO15: 0 | BP15: 6040.25 | BQ15: 9300 | BR15: 150021 | BS15: 7149 | BU15: 0 | BV15: 0 | BW15: 1854665.9 | BX15: 1849384.9 | BY15: 22389.25 | BZ15: 15240.25 | CA15: 166470
A16: 036fd843-e9f8-4fcb-8ccf-aec0dd6bb245 | B16: 3022009 | C16: 2009 | D16: 21750 | E16: 94061 | F16: f0424e48-e303-4522-8737-e98a206daadc | G16: 265274 | H16: 0 | I16: 1546 | J16: 2065099 | K16: 0 | L16: 94073 | M16: 0 | N16: 126720 | O16: 56672.3 | P16: 0 | Q16: 158081.08 | R16: 38983.52 | S16: 0 | T16: 0 | U16: 17120.14 | V16: 33089.64 | X16: 0 | Y16: 0 | Z16: 0 | AA16: 87765 | AB16: 1245105.72 | AC16: 0 | AD16: 454190.96 | AE16: 22547.67 | AF16: 69847.12 | AG16: 2853.6 | AH16: 94174.62 | AI16: 11339.99 | AJ16: 33127.17 | AK16: 18043.8 | AL16: 2437.14 | AM16: 23006.94 | AN16: 4532.93 | AO16: 35832.37 | AP16: 2729.4 | AQ16: 24815.08 | AR16: 38475 | AS16: 10060.24 | AT16: 147945.33 | AU16: 26550.81 | AV16: 0 | AW16: 18329.86 | AX16: 11289.5 | AY16: 32619.35 | AZ16: 105362.96 | BA16: 56346 | BB16: 173767.51 | BC16: 33390.61 | BD16: 0 | BE16: 0 | BF16: 45794 | BG16: 0 | BH16: 0 | BI16: 25180.99 | BJ16: 2858.04 | BK16: 45794 | BL16: 6000 | BM16: 0 | BN16: 57715.03 | BO16: 0 | BP16: 0 | BQ16: 17596 | BR16: 180766 | BS16: 17664 | BU16: 0 | BV16: 0 | BW16: 2677603.68 | BX16: 2744515.68 | BY16: 73833.03 | BZ16: 57715.03 | CA16: 216026
A17: b2f913f1-5b80-4c1c-935c-8e6c0fb08133 | B17: 3022067 | C17: 2067 | D17: 20123 | E17: 94005 | F17: 41f939e4-9967-48c9-9c04-387cc3906642 | G17: 113348 | H17: 0 | I17: 6957 | J17: 1236970 | K17: 0 | L17: 97705 | M17: 0 | N17: 75820 | O17: 42795.96 | P17: 1070 | Q17: 28358.81 | R17: 25512.61 | S17: 0 | T17: 1034.04 | U17: 21692 | V17: 7420.48 | X17: 0 | Y17: 0 | Z17: 0 | AA17: 58552.17 | AB17: 695557.39 | AC17: 3883.51 | AD17: 285283.51 | AE17: 28848.8 | AF17: 62893.83 | AG17: 0 | AH17: 12318.06 | AI17: 7307.41 | AJ17: 4340.86 | AK17: 11564.36 | AL17: 1355.76 | AM17: 11862.18 | AN17: 8917 | AO17: 26728.65 | AP17: 2424.74 | AQ17: 13639.58 | AR17: 23227 | AS17: 9120.33 | AT17: 87092.75 | AU17: 17045.88 | AV17: 0 | AW17: 7566.3 | AX17: 6103.31 | AY17: 13676.19 | AZ17: 66558.43 | BA17: 34548.03 | BB17: 89281.63 | BC17: 19448.58 | BD17: 0 | BE17: 0 | BF17: 36596 | BG17: 0 | BH17: 0 | BI17: 18054.25 | BJ17: 1830.48 | BK17: 36596 | BL17: 6000 | BM17: 0 | BN17: 45672.11 | BO17: 0 | BP17: 17765.62 | BQ17: 7275 | BR17: 115814 | BS17: 0 | BU17: 0 | BV17: 0 | BW17: 1596931.07 | BX17: 1587190.07 | BY17: 56480.73 | BZ17: 63437.73 | CA17: 123089
A18: c96b4f50-b89b-4c41-a514-32c10b34c695 | B18: 3022010 | C18: 2010 | D18: 20125 | E18: 94062 | F18: f192cdb8-e554-4f20-a721-0cafbb9abf1b | G18: 6741 | H18: 0 | I18: 0 | J18: 2020375 | K18: 0 | L18: 342187.32 | M18: 0 | N18: 182160 | O18: 12400 | P18: 1069 | Q18: 87248.6 | R18: 35437.26 | S18: 6160 | T18: 4164.85 | U18: 30712.65 | V18: 12745.49 | X18: 0 | Y18: 0 | Z18: 0 | AA18: 78717.33 | AB18: 1196089.97 | AC18: 0 | AD18: 536450.88 | AE18: 68300.45 | AF18: 94559.36 | AG18: 0 | AH18: 77242.79 | AI18: 15481.82 | AJ18: 6945.39 | AK18: 17479.88 | AL18: 2135.86 | AM18: 50551.58 | AN18: 446.48 | AO18: 17331.94 | AP18: 11618.73 | AQ18: 21419.16 | AR18: 29255.37 | AS18: 20689.28 | AT18: 95518.58 | AU18: 35092.8 | AV18: 0 | AW18: 22732.55 | AX18: 10827.83 | AY18: 29899.88 | AZ18: 105635.41 | BA18: 53571.35 | BB18: 203038.21 | BC18: 40711.95 | BD18: 0 | BE18: 0 | BF18: 0 | BG18: 0 | BH18: 0 | BI18: 22614.67 | BJ18: 13500 | BK18: 0 | BL18: 6000 | BM18: 0 | BN18: 20689.67 | BO18: 0 | BP18: 0 | BQ18: 12622 | BR18: 44469 | BS18: 15425 | BU18: 0 | BV18: 0 | BW18: 2813377.5 | BX18: 2763027.5 | BY18: 36114.67 | BZ18: 20689.67 | CA18: 72516
A19: 7c7cc81d-329f-4a01-b8ea-392601dc6588 | B19: 3023302 | C19: 3302 | D19: 20138 | E19: 94011 | F19: f71d40fe-dc6a-4a28-a26b-3221526ba806 | G19: 262448 | H19: 0 | I19: 0 | J19: 953164 | K19: 0 | L19: 50280 | M19: 0 | N19: 29040 | O19: 1200 | P19: 3160.66 | Q19: 63240.77 | R19: 36527.32 | S19: 0 | T19: 889.72 | U19: 37261.16 | V19: 13515.28 | X19: 0 | Y19: 0 | Z19: 0 | AA19: 51495.83 | AB19: 545397.92 | AC19: 0 | AD19: 192712.21 | AE19: 33896.91 | AF19: 40053.89 | AG19: 0 | AH19: 56562.93 | AI19: 2357.4 | AJ19: 11071.76 | AK19: 4087 | AL19: 5448.95 | AM19: 26090.79 | AN19: 5385.04 | AO19: 17396.04 | AP19: 2398.66 | AQ19: 4506.36 | AR19: 3375.08 | AS19: 2348.02 | AT19: 60158.95 | AU19: 30353.16 | AV19: 0 | AW19: 7933.11 | AX19: 3185.63 | AY19: 9395.07 | AZ19: 71781.41 | BA19: 330 | BB19: 37233.52 | BC19: 22897.93 | BD19: 0 | BE19: 0 | BF19: 0 | BG19: 0 | BH19: 0 | BI19: 0 | BJ19: 0 | BK19: 0 | BL19: 6000 | BM19: 0 | BN19: 0 | BO19: 0 | BP19: 0 | BQ19: 12463 | BR19: 293402 | BS19: 0 | BU19: 0 | BV19: 0 | BW19: 1239774.74 | BX19: 1196357.74 | BY19: 0 | BZ19: 0 | CA19: 305865
A20: 157fbf3b-d732-4c3e-9e68-1488f50adf5a | B20: 3022011 | C20: 2011 | D20: 21752 | E20: 94063 | F20: 5cecdf92-5464-46fc-af27-0d13b3ead2b4 | G20: 71784 | H20: 0 | I20: 0 | J20: 957522 | K20: 0 | L20: 45017 | M20: 0 | N20: 55740 | O20: 8105.95 | P20: 19025.84 | Q20: 53558.97 | R20: 25662.33 | S20: 12074.27 | T20: 410 | U20: 20921.6 | V20: 2535.1 | X20: 0 | Y20: 0 | Z20: 0 | AA20: 49212.67 | AB20: 526379.33 | AC20: 0 | AD20: 286520.68 | AE20: 38478.59 | AF20: 67763.08 | AG20: 0 | AH20: 33233.56 | AI20: 7675.36 | AJ20: 2258.21 | AK20: 7795.54 | AL20: 1248.16 | AM20: 13363.24 | AN20: 2320 | AO20: 16472.54 | AP20: -653.6 | AQ20: 14494.09 | AR20: 19996.78 | AS20: 4978.17 | AT20: 60707.23 | AU20: 7504.45 | AV20: 0 | AW20: 7586.69 | AX20: 6246.77 | AY20: 10236.78 | AZ20: 61276.58 | BA20: 59966 | BB20: 82840.98 | BC20: 20889.52 | BD20: 0 | BE20: 0 | BF20: 25369 | BG20: 0 | BH20: 0 | BI20: 16840.45 | BJ20: 0 | BK20: 25369 | BL20: 6000 | BM20: 0 | BN20: 21416 | BO20: 0 | BP20: 20793.45 | BQ20: 0 | BR20: -63378 | BS20: 0 | BU20: 0 | BV20: 0 | BW20: 1249785.73 | BX20: 1384947.73 | BY20: 42209.45 | BZ20: 42209.45 | CA20: -63378
A21: 86a6fe9a-0fa9-4db2-9bb6-4e7461d10847 | B21: 3022014 | C21: 2014 | D21: 20109 | E21: 94066 | F21: 6def75bc-8508-4db9-93ba-efb0515e3e47 | G21: 500698 | H21: 0 | I21: 0 | J21: 3199635 | K21: 0 | L21: 352894.33 | M21: 0 | N21: 316800 | O21: 10129 | P21: 564.35 | Q21: 90238.6 | R21: 72814.85 | S21: 10208 | T21: 8913.74 | U21: 16514.75 | V21: 9487.49 | X21: 0 | Y21: 0 | Z21: 0 | AA21: 136134.33 | AB21: 1731730.3 | AC21: 0 | AD21: 905325.27 | AE21: 94404.69 | AF21: 137895.56 | AG21: 0 | AH21: 54063.34 | AI21: 108050.22 | AJ21: 7314.86 | AK21: 27133.66 | AL21: 3878.98 | AM21: 66681.82 | AN21: 552.12 | AO21: 36485.48 | AP21: 3462.71 | AQ21: 55399.72 | AR21: 120807.63 | AS21: 22568.56 | AT21: 90132.87 | AU21: 40973.46 | AV21: 0 | AW21: 42272.54 | AX21: 22168.25 | AY21: 32802.18 | AZ21: 200507.07 | BA21: 72566.82 | BB21: 282460.53 | BC21: 65978.8 | BD21: 0 | BE21: 0 | BF21: 0 | BG21: 0 | BH21: 0 | BI21: 37553.08 | BJ21: 0 | BK21: 0 | BL21: 6000 | BM21: 0 | BN21: 264 | BO21: 0 | BP21: 24115.08 | BQ21: 24955 | BR21: 474460 | BS21: 13174 | BU21: 0 | BV21: 0 | BW21: 4224334.44 | BX21: 4225617.44 | BY21: 37553.08 | BZ21: 24379.08 | CA21: 512589
A22: 92717a86-7ac4-462b-8197-2b20e09c90b8 | B22: 3022015 | C22: 2015 | D22: 21767 | E22: 94067 | F22: eb525aec-ddfe-4555-a612-fa7af2bcdac4 | G22: 340451 | H22: 105213 | I22: 14118 | J22: 1465926 | K22: 0 | L22: 127386 | M22: 0 | N22: 122760 | O22: 12584 | P22: 14359 | Q22: 20722 | R22: 30789 | S22: 2181 | T22: 0 | U22: 32519 | V22: 10330 | X22: 0 | Y22: 250619 | Z22: 51264 | AA22: 50328 | AB22: 916227 | AC22: 0 | AD22: 470890 | AE22: 34061 | AF22: 49477 | AG22: 0 | AH22: 6519 | AI22: 8893 | AJ22: 5490 | AK22: 16250 | AL22: 1276 | AM22: 27164 | AN22: 6145 | AO22: 28347 | AP22: 2804 | AQ22: 12756 | AR22: 32334 | AS22: 5867 | AT22: 68997 | AU22: 20010 | AV22: 0 | AW22: 7917 | AX22: 5369 | AY22: 4897 | AZ22: 73280 | BA22: 2612 | BB22: 47336 | BC22: 30508 | BD22: 0 | BE22: 0 | BF22: 0 | BG22: 244989 | BH22: 53647 | BI22: 18619 | BJ22: 0 | BK22: 0 | BL22: 6000 | BM22: 0 | BN22: 0 | BO22: 0 | BP22: 19092 | BQ22: 0 | BR22: 344909 | BS22: 3645 | BU22: 10000 | BV22: 108460 | BW22: 2191767 | BX22: 2184062 | BY22: 18619 | BZ22: 19092 | CA22: 467014
A23: 27107665-51bc-4908-a792-9c508fe4fbca | B23: 3022016 | C23: 2016 | D23: 20142 | E23: 94068 | F23: 87b55651-df49-4743-8b86-46fe2e839b2b | G23: 92609 | H23: 0 | I23: 1 | J23: 944268.72 | K23: 0 | L23: 42541 | M23: 0 | N23: 39260 | O23: 5300 | P23: 34773.08 | Q23: 6077.44 | R23: 21989.77 | S23: 7462.4 | T23: 0 | U23: 23158.07 | V23: 16864.08 | X23: 0 | Y23: 0 | Z23: 0 | AA23: 51500 | AB23: 580519.82 | AC23: 4824.45 | AD23: 204385.05 | AE23: 29047.02 | AF23: 49119.72 | AG23: 0 | AH23: 17665.95 | AI23: 4158 | AJ23: 687.5 | AK23: 7084.95 | AL23: 1135.18 | AM23: 3034.55 | AN23: 5020.5 | AO23: 13956.83 | AP23: 7299.29 | AQ23: 8702.49 | AR23: 20040 | AS23: 5743.28 | AT23: 60996.74 | AU23: 12025.49 | AV23: 0 | AW23: 7073.75 | AX23: 6389.1 | AY23: 1450 | AZ23: 53477.12 | BA23: 13538 | BB23: 43894.69 | BC23: 26988.3 | BD23: 0 | BE23: 37.79 | BF23: 0 | BG23: 0 | BH23: 0 | BI23: 12190.2 | BJ23: 0 | BK23: 0 | BL23: 6000 | BM23: 0 | BN23: 0 | BO23: 0 | BP23: 0 | BQ23: 33146 | BR23: 64362 | BS23: 12191 | BU23: 0 | BV23: 0 | BW23: 1193194.56 | BX23: 1188295.56 | BY23: 12190.2 | BZ23: 0 | CA23: 109699
A24: 3b1cf76f-164b-4fef-bfc7-9c9b37f2f980 | B24: 3022017 | C24: 2017 | D24: 21759 | E24: 94131 | F24: 9794e04c-a856-4779-aa06-f392b3bf4430 | G24: 173553 | H24: 0 | I24: 14873 | J24: 1740339 | K24: 0 | L24: 18337 | M24: 0 | N24: 148820 | O24: 2500 | P24: 313 | Q24: 81735 | R24: 44773 | S24: 2546 | T24: 2017 | U24: 32195 | V24: 22604 | X24: 0 | Y24: 0 | Z24: 0 | AA24: 84851 | AB24: 1062037 | AC24: 0 | AD24: 361849 | AE24: 37939 | AF24: 83736 | AG24: 0 | AH24: 89893 | AI24: 33470 | AJ24: 1829 | AK24: 17502 | AL24: 2195 | AM24: 34565 | AN24: 5577 | AO24: 29010 | AP24: 7098 | AQ24: 35113 | AR24: 22080 | AS24: 8160 | AT24: 73660 | AU24: 18086 | AV24: 0 | AW24: 22762 | AX24: 10109 | AY24: 9321 | AZ24: 105801 | BA24: 19342 | BB24: 68382 | BC24: 69850 | BD24: 0 | BE24: 0 | BF24: 83585 | BG24: 0 | BH24: 0 | BI24: 26801 | BJ24: 0 | BK24: 83585 | BL24: 6000 | BM24: 0 | BN24: 0 | BO24: 0 | BP24: 121858 | BQ24: 41632 | BR24: 0 | BS24: 3401 | BU24: 0 | BV24: 0 | BW24: 2181030 | BX24: 2312951 | BY24: 110386 | BZ24: 121858 | CA24: 45033
A25: 782fa9b4-559c-4309-9ffe-b3715043b058 | B25: 3022073 | C25: 2073 | D25: 23568 | E25: 94009 | F25: fa29d668-0401-4c5c-8c95-3e5144fd2c47 | G25: 353119.75 | H25: -1199.75 | I25: 647 | J25: 2672147 | K25: 0 | L25: 201749 | M25: 0 | N25: 222360 | O25: 0 | P25: 11862 | Q25: 122189 | R25: 89459 | S25: 0 | T25: 3130 | U25: 72785 | V25: 0 | X25: 0 | Y25: 0 | Z25: 0 | AA25: 127460 | AB25: 1355070 | AC25: 0 | AD25: 821674 | AE25: 123416 | AF25: 119726 | AG25: 137568 | AH25: 183894 | AI25: 14338 | AJ25: 8416 | AK25: 28084 | AL25: 8329 | AM25: 52869 | AN25: 18662 | AO25: 8053 | AP25: 5315 | AQ25: 42298 | AR25: 51681 | AS25: 23942 | AT25: 110617 | AU25: 28946 | AV25: 0 | AW25: 23267 | AX25: 16341 | AY25: 10564 | AZ25: 159753 | BA25: 69858 | BB25: 33247 | BC25: 21523 | BD25: 0 | BE25: 0 | BF25: 0 | BG25: 510 | BH25: 255 | BI25: 35438 | BJ25: 0 | BK25: 0 | BL25: 6000 | BM25: 0 | BN25: 0 | BO25: 0 | BP25: 0 | BQ25: 0 | BR25: 398809.75 | BS25: 36085 | BU25: 0 | BV25: -1964.75 | BW25: 3523141 | BX25: 3478216 | BY25: 35438 | BZ25: 0 | CA25: 432930
A26: d6c05a68-9760-404b-b39e-0d0bb80178f8 | B26: 3022019 | C26: 2019 | D26: 20141 | E26: 94133 | F26: 518c7509-ada2-42c1-9121-5744a5abdb7e | G26: 116843 | H26: 0 | I26: 13770 | J26: 1464920.12 | K26: 0 | L26: 27327 | M26: 0 | N26: 78480 | O26: 3100 | P26: 0 | Q26: 40713.31 | R26: 401.29 | S26: 6399.71 | T26: 0 | U26: 12381.2 | V26: 1613.98 | X26: 0 | Y26: 0 | Z26: 0 | AA26: 102418.83 | AB26: 756735.49 | AC26: 0 | AD26: 402234.59 | AE26: 37952.45 | AF26: 87316.72 | AG26: 0 | AH26: 56823.29 | AI26: 7390.43 | AJ26: 8381.64 | AK26: 14086.8 | AL26: 1716.22 | AM26: 29157.44 | AN26: 3900 | AO26: 1894.29 | AP26: 2607.08 | AQ26: 17807.66 | AR26: 16262.94 | AS26: 5064.38 | AT26: 22780.29 | AU26: 13717.72 | AV26: 0 | AW26: 15732.98 | AX26: 6855.46 | AY26: 2142.26 | AZ26: 81909.79 | BA26: 18574.99 | BB26: 37755.25 | BC26: 29964.23 | BD26: 0 | BE26: 0 | BF26: 0 | BG26: 289.05 | BH26: 0 | BI26: 20048.35 | BJ26: 0 | BK26: 0 | BL26: 6000 | BM26: 0 | BN26: 0 | BO26: 0 | BP26: 17552.35 | BQ26: 0 | BR26: 175545 | BS26: 16266 | BU26: 0 | BV26: 0 | BW26: 1737755.44 | BX26: 1679053.44 | BY26: 20048.35 | BZ26: 17552.35 | CA26: 191811
B27: 3022021 | C27: 2021 | G27: =G28+G29 -> 246362 | H27: =H28+H29 -> 0 | I27: 20985 | J27: 2900693.46 | K27: 0 | L27: 163023.67 | M27: 0 | N27: 271306 | O27: 2200 | P27: 13808.38 | Q27: 113640.7 | R27: 59592.67 | S27: 25171.3 | T27: 18845.4 | U27: 33330.3 | V27: 13191.61 | W27: 0 | X27: 0 | Y27: 0 | Z27: 0 | AA27: 116758.34 | AB27: 1495263.3 | AC27: 0 | AD27: 1038635.85 | AE27: 96881.54 | AF27: 228690.24 | AG27: 0 | AH27: 18193.2 | AI27: 8507.83 | AJ27: 9912.6 | AK27: 24283.69 | AL27: 13719.15 | AM27: 22499.83 | AN27: 7006.11 | AO27: 26172.82 | AP27: 8712.37 | AQ27: 52468.33 | AR27: 33200.21 | AS27: 24151.8 | AT27: 111222.13 | AU27: 17717.15 | AV27: 0 | AW27: 22439.79 | AX27: 12072.91 | AY27: 6821.46 | AZ27: 144902.18 | BA27: 75022 | BB27: 98817.49 | BC27: 47866.85 | BD27: 0 | BE27: 0 | BF27: 12209 | BG27: 0 | BH27: 0 | BI27: 40287.44 | BJ27: 0 | BK27: 12209 | BL27: 12000 | BM27: 0 | BN27: 8730 | BO27: 0 | BP27: 29311.44 | BQ27: 0 | BR27: 320534 | BS27: 35440 | BT27: =BT28+BT29 -> 0 | BU27: 0 | BV27: 0 | BW27: 3731561.83 | BX27: 3657389.83 | BY27: 52496.44 | BZ27: 38041.44 | CA27: 355974
A28: e48a6d70-d6e0-4e29-876d-96672263b3ef | B28: Dollis 1 | C28: 2021 | D28: 20167 | E28: 94134 | F28: 87cf0dff-20bd-4833-bfb9-3d0414de6cb1 | G28: 184964 | H28: 0 | I28: 14581 | J28: 1327718.46 | K28: 0 | L28: 54014.67 | M28: 0 | N28: 71280 | O28: 2200 | P28: 4080 | Q28: 72714.47 | R28: 1936.4 | S28: 10736 | T28: 4286.4 | U28: 12092.7 | V28: 4789.05 | X28: 0 | Y28: 0 | Z28: 0 | AA28: 95203.67 | AB28: 638782.08 | AC28: 0 | AD28: 562423.45 | AE28: 28784.46 | AF28: 83096.89 | AG28: 0 | AH28: 0 | AI28: 5188.33 | AJ28: 1423.26 | AK28: 14714.69 | AL28: 4235.73 | AM28: 11020.94 | AN28: 3411.11 | AO28: 24689.27 | AP28: 3087.31 | AQ28: 20136.85 | AR28: 27875.81 | AS28: 10883.14 | AT28: 46121.99 | AU28: 7713.97 | AV28: 0 | AW28: 8522.89 | AX28: 3863.82 | AY28: 2459.07 | AZ28: 79994.13 | BA28: 28441 | BB28: 13388.83 | BC28: 14379.8 | BD28: 0 | BE28: 0 | BF28: 0 | BG28: 0 | BH28: 0 | BI28: 18721.84 | BJ28: 0 | BK28: 0 | BL28: 6000 | BM28: 0 | BN28: 0 | BO28: 0 | BP28: 10349.84 | BQ28: 0 | BR28: 201377 | BS28: 22953 | BU28: 0 | BV28: 0 | BW28: 1661051.82 | BX28: 1644638.82 | BY28: 18721.84 | BZ28: 10349.84 | CA28: 224330
A29: b6168461-da96-44bb-aa08-a344ba2b34cf | B29: Dollis 2 | C29: 5200 | D29: 20157 | E29: 93955 | F29: 6d1e4bea-529c-460d-b5a7-62735fed4cca | G29: 61398 | H29: 0 | I29: 6404 | J29: 1572975 | K29: 0 | L29: 109009 | M29: 0 | N29: 200026 | O29: 0 | P29: 9728.38 | Q29: 40926.23 | R29: 57656.27 | S29: 14435.3 | T29: 14559 | U29: 21237.6 | V29: 8402.56 | X29: 0 | Y29: 0 | Z29: 0 | AA29: 21554.67 | AB29: 856481.22 | AC29: 0 | AD29: 476212.4 | AE29: 68097.08 | AF29: 145593.35 | AG29: 0 | AH29: 18193.2 | AI29: 3319.5 | AJ29: 8489.34 | AK29: 9569 | AL29: 9483.42 | AM29: 11478.89 | AN29: 3595 | AO29: 1483.55 | AP29: 5625.06 | AQ29: 32331.48 | AR29: 5324.4 | AS29: 13268.66 | AT29: 65100.14 | AU29: 10003.18 | AV29: 0 | AW29: 13916.9 | AX29: 8209.09 | AY29: 4362.39 | AZ29: 64908.05 | BA29: 46581 | BB29: 85428.66 | BC29: 33487.05 | BD29: 0 | BE29: 0 | BF29: 12209 | BG29: 0 | BH29: 0 | BI29: 21565.6 | BJ29: 0 | BK29: 12209 | BL29: 6000 | BM29: 0 | BN29: 8730 | BO29: 0 | BP29: 18961.6 | BQ29: 0 | BR29: 119157 | BS29: 12487 | BU29: 0 | BV29: 0 | BW29: 2070510.01 | BX29: 2012751.01 | BY29: 33774.6 | BZ29: 27691.6 | CA29: 131644
A30: f45d3a46-4499-46a1-8f89-4f0f355d51dc | B30: 3022023 | C30: 2023 | D30: 20151 | E30: 94136 | F30: 7cb59e73-ef45-4a50-8e76-eba4ea8bee43 | G30: 56561 | H30: 0 | I30: 0 | J30: 2818716.5 | K30: 0 | L30: 173588.67 | M30: 0 | N30: 259020 | O30: 11989.99 | P30: 15465.12 | Q30: 14104.5 | R30: 46871.19 | S30: 5975 | T30: 0 | U30: 17344.91 | V30: 5207.84 | X30: 0 | Y30: 0 | Z30: 0 | AA30: 112340.5 | AB30: 1294811.4 | AC30: 0 | AD30: 868603.58 | AE30: 62163.19 | AF30: 203449.53 | AG30: 0 | AH30: 132804.75 | AI30: 25264.75 | AJ30: 9989.8 | AK30: 19595 | AL30: 3470.1 | AM30: 34516.9 | AN30: 7737 | AO30: 52058.85 | AP30: 13613.61 | AQ30: 37143.35 | AR30: 23040 | AS30: 8914.74 | AT30: 82746.88 | AU30: 29406.75 | AV30: 0 | AW30: 16531.15 | AX30: 14400.49 | AY30: 10264.27 | AZ30: 177043.13 | BA30: 129608.76 | BB30: 147096.74 | BC30: 40022.5 | BD30: 0 | BE30: 0 | BF30: 1293 | BG30: 0 | BH30: 0 | BI30: 33209.41 | BJ30: 0 | BK30: 1293 | BL30: 6000 | BM30: 0 | BN30: 34502.41 | BO30: 0 | BP30: 0 | BQ30: 154 | BR30: 91441 | BS30: 0 | BU30: 0 | BV30: 0 | BW30: 3480624.22 | BX30: 3445590.22 | BY30: 34502.41 | BZ30: 34502.41 | CA30: 91595
A31: e6acc507-bcd0-40c4-a499-bccbc802baf4 | B31: 3022024 | C31: 2024 | D31: 20094 | E31: 94137 | F31: e4a593fa-3c3c-4fef-b20a-6a346ada6d31 | G31: 112027 | H31: 55123 | I31: 21469 | J31: 1440185.22 | K31: 0 | L31: 101351.04 | M31: 0 | N31: 113820 | O31: 15703 | P31: 12071.56 | Q31: 150891.55 | R31: 23109.28 | S31: 0 | T31: 0 | U31: 26449.99 | V31: 1578 | X31: 0 | Y31: 225020 | Z31: 16032.62 | AA31: 43667.5 | AB31: 757315.62 | AC31: 0 | AD31: 300970.74 | AE31: 17504.16 | AF31: 75084.04 | AG31: 0 | AH31: 305222.29 | AI31: 10070.07 | AJ31: 8046.36 | AK31: 395 | AL31: 3211.54 | AM31: 22179.08 | AN31: 3946.48 | AO31: 39140.68 | AP31: 2874.39 | AQ31: 24323.89 | AR31: 47196 | AS31: 12441.65 | AT31: 47166.02 | AU31: 18297.84 | AV31: 0 | AW31: 14878.79 | AX31: 4929.48 | AY31: 11523.12 | AZ31: 77042.84 | BA31: 25513.29 | BB31: 58517.47 | BC31: 42303.82 | BD31: 0 | BE31: 0 | BF31: 0 | BG31: 234540.96 | BH31: 32829.14 | BI31: 19677.27 | BJ31: 0 | BK31: 0 | BL31: 6000 | BM31: 0 | BN31: 25292.27 | BO31: 0 | BP31: 0 | BQ31: 15914 | BR31: 94846 | BS31: 15854 | BU31: 0 | BV31: 28805 | BW31: 2169879.76 | BX31: 2197464.76 | BY31: 19677.27 | BZ31: 25292.27 | CA31: 155419
A32: 60f79794-0cc2-45dc-9bdc-e2c134d6b288 | B32: 3025405 | C32: 5405 | D32: 21761 | E32: 93962 | F32: b9e976cb-c5b7-499e-a4f5-2a72a81fe6fc | G32: 547444 | H32: -3615 | I32: 1 | J32: 4757275 | K32: 1377552 | L32: 198204 | M32: 0 | N32: 134285 | O32: 45359 | P32: 5093 | Q32: 136215 | R32: 397185 | S32: 0 | T32: 0 | U32: 81016 | V32: 1404 | X32: 0 | Y32: 0 | Z32: 0 | AA32: 880 | AB32: 4262326 | AC32: 32811 | AD32: 584105 | AE32: 108537 | AF32: 521805 | AG32: 127078 | AH32: 0 | AI32: 27260 | AJ32: 32012 | AK32: 900 | AL32: 6332 | AM32: 114440 | AN32: 38473 | AO32: 101242 | AP32: 8704 | AQ32: 102192 | AR32: 25295 | AS32: 42407 | AT32: 222677 | AU32: 63556 | AV32: 150605 | AW32: 37124 | AX32: 45388 | AY32: 0 | AZ32: 256116 | BA32: 166017 | BB32: 56623 | BC32: 52888 | BD32: 0 | BE32: 0 | BF32: 0 | BG32: 0 | BH32: 0 | BI32: 0 | BJ32: 0 | BK32: 0 | BL32: 6000 | BM32: 0 | BN32: 0 | BO32: 0 | BP32: 0 | BQ32: 30199 | BR32: 464800 | BS32: 0 | BU32: 1 | BV32: -3615 | BW32: 7134468 | BX32: 7186913 | BY32: 0 | BZ32: 0 | CA32: 491385
A33: 1f5eaaed-cc67-42fb-a494-c3b987cc09bb | B33: 3022025 | C33: 2025 | D33: 21754 | E33: 94138 | F33: 2507bd42-e139-4e51-8e11-14b230463e07 | G33: 171440 | H33: 0 | I33: 10534 | J33: 1244555 | K33: 0 | L33: 59577 | M33: 0 | N33: 39180 | O33: 3290 | P33: 2570 | Q33: 52921.83 | R33: 25563.71 | S33: 0 | T33: 0 | U33: 64462.56 | V33: 14240.9 | X33: 0 | Y33: 0 | Z33: 0 | AA33: 58012.17 | AB33: 814939.32 | AC33: 14077.55 | AD33: 212468.62 | AE33: 66908.79 | AF33: 54793.09 | AG33: 0 | AH33: 41160.95 | AI33: 18206.95 | AJ33: 5971.41 | AK33: 11928.6 | AL33: 1700.08 | AM33: 8095.28 | AN33: 0 | AO33: 2667.48 | AP33: 2267.82 | AQ33: 19023.77 | AR33: 24240 | AS33: 5642.38 | AT33: 72017.14 | AU33: 17506.79 | AV33: 0 | AW33: 11885.91 | AX33: 8181.15 | AY33: 9235.57 | AZ33: 72952.74 | BA33: 4814.75 | BB33: 78290.21 | BC33: 30328.82 | BD33: 0 | BE33: 0 | BF33: 1864 | BG33: 0 | BH33: 0 | BI33: 20568.55 | BJ33: 10000 | BK33: 1864 | BL33: 6000 | BM33: 0 | BN33: 42966.55 | BO33: 0 | BP33: 0 | BQ33: 12587 | BR33: 112057 | BS33: 0 | BU33: 0 | BV33: 0 | BW33: 1564373.17 | BX33: 1611169.17 | BY33: 32432.55 | BZ33: 42966.55 | CA33: 124644
A34: 5bb8474a-e85a-405b-86c6-a01d913cff7d | B34: 3024003 | C34: 4003 | D34: 20100 | E34: 94098 | F34: 56bc975f-be98-4994-97f2-c4f993c62b83 | G34: 174784 | H34: 0 | I34: 25217 | J34: 4770401 | K34: 0 | L34: 245285.56 | M34: 0 | N34: 376357.5 | O34: 16566 | P34: 500 | Q34: 7581.2 | R34: 149190.32 | S34: 0 | T34: 0 | U34: 103112.72 | V34: 24161.34 | X34: 0 | Y34: 0 | Z34: 0 | AA34: 1760 | AB34: 3254237.01 | AC34: 0 | AD34: 814045.91 | AE34: 89456.86 | AF34: 405508.98 | AG34: 0 | AH34: 44644.43 | AI34: 47640.06 | AJ34: 23342.14 | AK34: 806 | AL34: 4207.16 | AM34: 46864.4 | AN34: 3958.54 | AO34: 62000.55 | AP34: 5277.79 | AQ34: 57039.72 | AR34: 58482 | AS34: 36856.31 | AT34: 191179.68 | AU34: 89247.19 | AV34: 22794.79 | AW34: 30748.47 | AX34: 23568.29 | AY34: 0 | AZ34: 190400.31 | BA34: 105912.36 | BB34: 84071.26 | BC34: 17408.43 | BD34: 0 | BE34: 0 | BF34: 20000 | BG34: 0 | BH34: 0 | BI34: 65584.41 | BJ34: 0 | BK34: 20000 | BL34: 6000 | BM34: 0 | BN34: 7460 | BO34: 26656.64 | BP34: 24396.77 | BQ34: 24150 | BR34: 115851 | BS34: 7071 | BU34: 45217 | BV34: 0 | BW34: 5694915.64 | BX34: 5729698.64 | BY34: 85584.41 | BZ34: 58513.41 | CA34: 192289
A35: a8bf82e2-dcf3-42a5-a191-99ff122095c5 | B35: 3022026 | C35: 2026 | D35: 21758 | E35: 94139 | F35: 07f27ae9-237f-41f9-bf8c-f13e9583b1b1 | G35: -2177 | H35: 0 | I35: 21611 | J35: 2587770.98 | K35: 0 | L35: 60111 | M35: 0 | N35: 145270 | O35: 4915 | P35: 0 | Q35: 84435.01 | R35: 34616.38 | S35: 0 | T35: 0 | U35: 97521.41 | V35: 53940.95 | X35: 0 | Y35: 0 | Z35: 0 | AA35: 96346 | AB35: 1543361.3 | AC35: 2565.39 | AD35: 600836.98 | AE35: 63149.33 | AF35: 151091.25 | AG35: 0 | AH35: 89342.21 | AI35: 11629.31 | AJ35: 3557.81 | AK35: 986 | AL35: 3351.74 | AM35: 16204.99 | AN35: 3322 | AO35: 47193.79 | AP35: -332.9 | AQ35: 32220.29 | AR35: 40014 | AS35: 14160.94 | AT35: 113129.99 | AU35: 21980.56 | AV35: 0 | AW35: 35354.32 | AX35: 14740.12 | AY35: 22678.73 | AZ35: 114010.47 | BA35: 70754.81 | BB35: 107671.96 | BC35: 43352.34 | BD35: 0 | BE35: 0 | BF35: 0 | BG35: 0 | BH35: 0 | BI35: 34735.33 | BJ35: 0 | BK35: 0 | BL35: 6000 | BM35: 0 | BN35: 27843.33 | BO35: 0 | BP35: 0 | BQ35: 0 | BR35: -3578 | BS35: 28503 | BU35: 0 | BV35: 0 | BW35: 3164926.73 | BX35: 3166327.73 | BY35: 34735.33 | BZ35: 27843.33 | CA35: 24925
A36: 1c359446-18f0-4f31-a190-239ea92c4c1b | B36: 3022028 | C36: 2028 | D36: 20107 | E36: 94141 | F36: 006660d5-5de7-4d70-93b4-bc3f68d440bc | G36: 31127 | H36: 0 | I36: 17071 | J36: 1155618 | K36: 0 | L36: 41810.92 | M36: 0 | N36: 44200 | O36: 4075 | P36: 175 | Q36: 11322.17 | R36: 2179.51 | S36: 11228.8 | T36: 2333.08 | U36: 6419.7 | V36: 23979.6 | X36: 0 | Y36: 0 | Z36: 0 | AA36: 108543.5 | AB36: 651487.78 | AC36: 3097.18 | AD36: 279658.44 | AE36: 30735.85 | AF36: 43487.55 | AG36: 0 | AH36: 31119.46 | AI36: 7405.17 | AJ36: 4560.84 | AK36: 12018.2 | AL36: 1436.46 | AM36: 16686.59 | AN36: 655.13 | AO36: 13163.74 | AP36: 1524.38 | AQ36: 11683.15 | AR36: 20135.25 | AS36: 6126.36 | AT36: 23940.73 | AU36: 10794.81 | AV36: 0 | AW36: 8658.57 | AX36: 6413.28 | AY36: 1620.52 | AZ36: 88863.87 | BA36: 46587 | BB36: 41345.77 | BC36: 30276.2 | BD36: 0 | BE36: 0 | BF36: 0 | BG36: 0 | BH36: 0 | BI36: 72700.8 | BJ36: 19789.42 | BK36: 0 | BL36: 6000 | BM36: 0 | BN36: 74572.32 | BO36: 0 | BP36: 23385.9 | BQ36: 14595 | BR36: 34935 | BS36: 11603 | BU36: 0 | BV36: 0 | BW36: 1411885.28 | BX36: 1393482.28 | BY36: 92490.22 | BZ36: 97958.22 | CA36: 61133
A37: a17ca624-0592-4f60-9101-05d532dcc472 | B37: 3022027 | C37: 2027 | D37: 20137 | E37: 94140 | F37: 0422619b-f7c3-4971-be04-129a0eb02a9c | G37: 139043 | H37: 0 | I37: 10119 | J37: 1479875 | K37: 0 | L37: 71736.86 | M37: 0 | N37: 107577.8 | O37: 1800 | P37: 500 | Q37: 24053.36 | R37: 83056.49 | S37: 0 | T37: 2472.2 | U37: 29104.2 | V37: 5556.68 | X37: 0 | Y37: 0 | Z37: 0 | AA37: 19533.33 | AB37: 969035.24 | AC37: 2831.37 | AD37: 214518.53 | AE37: 30736.37 | AF37: 45861.97 | AG37: 0 | AH37: 19763.78 | AI37: 7415.17 | AJ37: 2036.8 | AK37: 12468.72 | AL37: 1883 | AM37: 13938.52 | AN37: 4268.56 | AO37: 18373.78 | AP37: 2286.47 | AQ37: 17524.49 | AR37: 20135.25 | AS37: 8591.3 | AT37: 58857.51 | AU37: 14338.22 | AV37: 0 | AW37: 11712.25 | AX37: 8929.21 | AY37: 17191.21 | AZ37: 92413.97 | BA37: 68626.06 | BB37: 171901.16 | BC37: 30895.01 | BD37: 0 | BE37: 0 | BF37: 0 | BG37: 0 | BH37: 0 | BI37: 28519.3 | BJ37: 0 | BK37: 0 | BL37: 6000 | BM37: 0 | BN37: 28942.3 | BO37: 0 | BP37: 0 | BQ37: 33211 | BR37: 64564 | BS37: 9696 | BU37: 0 | BV37: 0 | BW37: 1825265.92 | BX37: 1866533.92 | BY37: 28519.3 | BZ37: 28942.3 | CA37: 107471
A38: d14fa869-388c-468b-8dda-af1ae79b144e | B38: 3022029 | C38: 2029 | D38: 20168 | E38: 94142 | F38: 5286b0cc-e59f-461b-8c92-cc5a6a6b8473 | G38: 59290 | H38: 0 | I38: 8467 | J38: 2296657 | K38: 0 | L38: 79579 | M38: 0 | N38: 263520 | O38: 4000 | P38: 0 | Q38: 39362.12 | R38: 35146.21 | S38: 0 | T38: 0 | U38: 22545.5 | V38: 4143.11 | X38: 0 | Y38: 0 | Z38: 0 | AA38: 69286.5 | AB38: 1244845.09 | AC38: 0 | AD38: 595172.62 | AE38: 118246.72 | AF38: 81628.81 | AG38: 0 | AH38: 132633.18 | AI38: 19523.22 | AJ38: 3031.56 | AK38: 693.88 | AL38: 2566.26 | AM38: 26984.55 | AN38: 19.01 | AO38: 1752.63 | AP38: 13786.13 | AQ38: 44880.53 | AR38: 25143 | AS38: 16634.55 | AT38: 91198.28 | AU38: 23773.14 | AV38: 0 | AW38: 17390.13 | AX38: 10836.25 | AY38: 28318.37 | AZ38: 142828.92 | BA38: 25131.4 | BB38: 132720.35 | BC38: 38391.86 | BD38: 0 | BE38: 0 | BF38: 0 | BG38: 0 | BH38: 0 | BI38: 32008.12 | BJ38: 0 | BK38: 0 | BL38: 6000 | BM38: 0 | BN38: 6584.12 | BO38: 0 | BP38: 6285 | BQ38: 35399 | BR38: 0 | BS38: 27606 | BU38: 0 | BV38: 0 | BW38: 2814239.44 | BX38: 2838130.44 | BY38: 32008.12 | BZ38: 12869.12 | CA38: 63005
A39: 2b0c976a-cb49-4f0c-b3b0-ddfff1c9f45c | B39: 3021001 | C39: 1001 | D39: 20089 | E39: 94052 | F39: 24f2c3a7-f684-49c7-88a3-af3c393428cb | G39: 0 | H39: 0 | I39: 0 | J39: 0 | K39: 0 | L39: 0 | M39: 0 | N39: 0 | O39: 0 | P39: 0 | Q39: 0 | R39: 0 | S39: 0 | T39: 0 | U39: 0 | V39: 0 | X39: 0 | Y39: 0 | Z39: 0 | AA39: 0 | AB39: 0 | AC39: 0 | AD39: 0 | AE39: 0 | AF39: 0 | AG39: 0 | AH39: 0 | AI39: 0 | AJ39: 0 | AK39: 0 | AL39: 0 | AM39: 0 | AN39: 0 | AO39: 0 | AP39: 0 | AQ39: 0 | AR39: 0 | AS39: 0 | AT39: 0 | AU39: 0 | AV39: 0 | AW39: 0 | AX39: 0 | AY39: 0 | AZ39: 0 | BA39: 0 | BB39: 0 | BC39: 0 | BD39: 0 | BE39: 0 | BF39: 0 | BG39: 0 | BH39: 0 | BI39: 0 | BJ39: 0 | BK39: 0 | BL39: 6000 | BM39: 0 | BN39: 0 | BO39: 0 | BP39: 0 | BQ39: 0 | BR39: 0 | BS39: 0 | BU39: 0 | BV39: 0 | BW39: 0 | BX39: 0 | BY39: 0 | BZ39: 0 | CA39: 0
A40: 56b913a5-535b-4c46-a567-820f75d7381d | B40: 3023516 | C40: 3516 | D40: 20118 | E40: 95689 | F40: 122f4b31-e4c2-4eba-afa8-6826617d161b | G40: -21034 | H40: 0 | I40: 0 | J40: 1006876.65 | K40: 0 | L40: 41739 | M40: 0 | N40: 25000 | O40: 34397.05 | P40: 0 | Q40: 6535.9 | R40: 24423.46 | S40: 0 | T40: 0 | U40: 2726.25 | V40: 104915.15 | X40: 0 | Y40: 0 | Z40: 0 | AA40: 53447.5 | AB40: 623024.93 | AC40: 1786.63 | AD40: 211749.93 | AE40: 31168.89 | AF40: 93985.92 | AG40: 0 | AH40: 19960.15 | AI40: 2290.23 | AJ40: 3141 | AK40: 0 | AL40: 0 | AM40: 5778.23 | AN40: 830 | AO40: 25870.26 | AP40: 2175.36 | AQ40: 11108.4 | AR40: 16005.6 | AS40: 55299.33 | AT40: 32827.19 | AU40: 11471.06 | AV40: 0 | AW40: 8406.75 | AX40: 7616 | AY40: 641.78 | AZ40: 53380.17 | BA40: 3119 | BB40: 23580.26 | BC40: 16921.89 | BD40: 0 | BE40: 0 | BF40: 0 | BG40: 0 | BH40: 0 | BI40: 0 | BJ40: 4801.5 | BK40: 0 | BL40: 6000 | BM40: 0 | BN40: 0 | BO40: 0 | BP40: 4801.5 | BQ40: 0 | BR40: 16888 | BS40: 0 | BU40: 0 | BV40: 0 | BW40: 1300060.96 | BX40: 1262138.96 | BY40: 4801.5 | BZ40: 4801.5 | CA40: 16888
A41: 3647c43f-7061-4e15-9944-a9c2c7574044 | B41: 3022031 | C41: 2031 | D41: 20173 | E41: 94144 | F41: febd3601-d452-47a8-8b0c-71c6c9aff586 | G41: 111211 | H41: 0 | I41: 14317 | J41: 1115132 | K41: 0 | L41: 40413 | M41: 0 | N41: 118800 | O41: 585 | P41: 43678.86 | Q41: 37748.5 | R41: 13967.98 | S41: 0 | T41: 0 | U41: 30558.32 | V41: 4559.73 | X41: 0 | Y41: 0 | Z41: 0 | AA41: 36692.73 | AB41: 690260.6 | AC41: 0 | AD41: 366640.01 | AE41: 31825.26 | AF41: 64339.47 | AG41: 0 | AH41: 27811.52 | AI41: 3049.15 | AJ41: 4977.72 | AK41: 2504.57 | AL41: 10731.27 | AM41: 41663.36 | AN41: 4125.27 | AO41: 19276.38 | AP41: 5106.69 | AQ41: 10282.99 | AR41: 3125.84 | AS41: 12381.73 | AT41: 48524.55 | AU41: 10501.69 | AV41: 0 | AW41: 10286.82 | AX41: 5978.79 | AY41: 7114.99 | AZ41: 38120.46 | BA41: 12235 | BB41: 32730.81 | BC41: 29511.18 | BD41: 0 | BE41: 0 | BF41: 0 | BG41: 0 | BH41: 0 | BI41: 16146.85 | BJ41: 0 | BK41: 0 | BL41: 6000 | BM41: 0 | BN41: 9920 | BO41: 0 | BP41: 7108.85 | BQ41: 0 | BR41: 60241 | BS41: 13435 | BU41: 0 | BV41: 0 | BW41: 1442136.12 | BX41: 1493106.12 | BY41: 16146.85 | BZ41: 17028.85 | CA41: 73676
A42: 522c8f41-9d8b-43c5-9f75-fdfcd7e58d44 | B42: 3022032 | C42: 2032 | D42: 20170 | E42: 94145 | F42: d72a285a-da0f-4d02-9ee5-ad3513f2266d | G42: 158878 | H42: 0 | I42: 13 | J42: 2253437 | K42: 0 | L42: 91490 | M42: 0 | N42: 143460 | O42: 0 | P42: 0 | Q42: 101281.46 | R42: 40970.58 | S42: 3400 | T42: 0 | U42: 2526.99 | V42: 127968.82 | X42: 0 | Y42: 0 | Z42: 0 | AA42: 109910.83 | AB42: 1266661.18 | AC42: 0 | AD42: 610805.65 | AE42: 30618.52 | AF42: 72588.99 | AG42: 0 | AH42: 52060.41 | AI42: 8779.85 | AJ42: 7385.52 | AK42: 9169.97 | AL42: 2948.24 | AM42: 77142.84 | AN42: 2791.67 | AO42: 40164.14 | AP42: 3672.23 | AQ42: 30524.87 | AR42: 25882.5 | AS42: 7289.96 | AT42: 132705.81 | AU42: 19957.02 | AV42: 0 | AW42: 18493.21 | AX42: 12282.64 | AY42: 5400 | AZ42: 139257.15 | BA42: 80042.01 | BB42: 115648.38 | BC42: 33706.92 | BD42: 0 | BE42: 0 | BF42: 0 | BG42: 0 | BH42: 0 | BI42: 29273.23 | BJ42: 0 | BK42: 0 | BL42: 6000 | BM42: 0 | BN42: 9831.23 | BO42: 0 | BP42: 0 | BQ42: 227344 | BR42: 0 | BS42: 19455 | BU42: 0 | BV42: 0 | BW42: 2874445.68 | BX42: 2805979.68 | BY42: 29273.23 | BZ42: 9831.23 | CA42: 246799
A43: 4a23702c-1c57-49d0-a552-045fdaec3a64 | B43: 3023304 | C43: 3304 | D43: 21760 | E43: 94012 | F43: 80ed24ab-2444-431a-9f8c-6880181a7d15 | G43: 132956 | H43: 0 | I43: 0 | J43: 1150010.74 | K43: 0 | L43: 48305 | M43: 0 | N43: 92700 | O43: 10566 | P43: 1559.9 | Q43: 84365.56 | R43: 39266.34 | S43: 16720 | T43: 0 | U43: 22171.85 | V43: 9858.81 | X43: 0 | Y43: 0 | Z43: 0 | AA43: 53515.17 | AB43: 562765.19 | AC43: 0 | AD43: 279494.66 | AE43: 32676.11 | AF43: 59359.17 | AG43: 0 | AH43: 24928.5 | AI43: 10646.33 | AJ43: 11063.38 | AK43: 10500.16 | AL43: 2022.05 | AM43: 17597.5 | AN43: 1864.73 | AO43: 24425.68 | AP43: 2170.76 | AQ43: 12761.09 | AR43: 3098.32 | AS43: 8600.03 | AT43: 54441.89 | AU43: 12345.25 | AV43: 0 | AW43: 14730.66 | AX43: 2127.61 | AY43: 18271.68 | AZ43: 59094.75 | BA43: 82469.75 | BB43: 91460.89 | BC43: 54516.23 | BD43: 0 | BE43: 0 | BF43: 0 | BG43: 0 | BH43: 0 | BI43: 0 | BJ43: 0 | BK43: 1 | BL43: 6000 | BM43: 0 | BN43: 0 | BO43: 0 | BP43: 1 | BQ43: 3900 | BR43: 204663 | BS43: 0 | BU43: 0 | BV43: 0 | BW43: 1529039.37 | BX43: 1453432.37 | BY43: 1 | BZ43: 1 | CA43: 208563
A44: 72914a8b-5aac-41f7-a05d-b17daaf75996 | B44: 3022036 | C44: 2036 | D44: 20115 | E44: 93990 | F44: 53878b24-2aca-48a4-a7cb-79cfd7f96470 | G44: 528877 | H44: 0 | I44: 0 | J44: 1789178.19 | K44: 0 | L44: 292425 | M44: 0 | N44: 169140 | O44: 5909 | P44: 2667.72 | Q44: 76562 | R44: 28196.91 | S44: 0 | T44: 0 | U44: 28045.55 | V44: 18576.66 | X44: 0 | Y44: 0 | Z44: 0 | AA44: 38093.83 | AB44: 1004628.4 | AC44: 17017.5 | AD44: 644240.7 | AE44: 78138.56 | AF44: 28275.57 | AG44: 0 | AH44: 60562.87 | AI44: 23758.49 | AJ44: 8167.53 | AK44: 448 | AL44: 1635.52 | AM44: 65302.83 | AN44: 13922.93 | AO44: 6951.63 | AP44: 2887.37 | AQ44: 24926.65 | AR44: 18652.46 | AS44: 13204.61 | AT44: 89049.12 | AU44: 37816.96 | AV44: 0 | AW44: 15069.9 | AX44: 8440.9 | AY44: 13983.74 | AZ44: 77168.09 | BA44: 18092.35 | BB44: 107959.51 | BC44: 48661.51 | BD44: 0 | BE44: 0 | BF44: 102646.16 | BG44: 0 | BH44: 0 | BI44: 19467.46 | BJ44: 0 | BK44: 102646.16 | BL44: 6000 | BM44: 0 | BN44: 96331.62 | BO44: 25782 | BP44: 0 | BQ44: 49986 | BR44: 396076 | BS44: 0 | BU44: 0 | BV44: 0 | BW44: 2448794.86 | BX44: 2531609.86 | BY44: 122113.62 | BZ44: 122113.62 | CA44: 446062
A45: cdd1ac15-bebe-4cc7-af48-a15fb431f550 | B45: 3022037 | C45: 2037 | D45: 20159 | E45: 93991 | F45: 77fbec35-70f6-42fe-bd43-ff3f7529e83b | G45: -10523 | H45: 0 | I45: 15414 | J45: 1374350.35 | K45: 0 | L45: 84584 | M45: 0 | N45: 74680 | O45: 540 | P45: 3047.5 | Q45: 87485.99 | R45: 35189.39 | S45: 13728 | T45: 0 | U45: 32414.46 | V45: 32860.92 | X45: 0 | Y45: 0 | Z45: 0 | AA45: 54762.83 | AB45: 751362.69 | AC45: 0 | AD45: 368508.13 | AE45: 40368.84 | AF45: 54718.64 | AG45: 0 | AH45: 82621.53 | AI45: 7001.43 | AJ45: 2334 | AK45: 11277.2 | AL45: 1834.58 | AM45: 14808.31 | AN45: 325.92 | AO45: 21535.48 | AP45: 3726.03 | AQ45: 26457.84 | AR45: 33974.21 | AS45: 9352.48 | AT45: 51452.44 | AU45: 11825.85 | AV45: 0 | AW45: 14313.3 | AX45: 12463.89 | AY45: 8670.16 | AZ45: 72088.18 | BA45: 25230 | BB45: 47234.2 | BC45: 45229.11 | BD45: 0 | BE45: 0 | BF45: 418 | BG45: 0 | BH45: 0 | BI45: 21348.85 | BJ45: 0 | BK45: 418 | BL45: 6000 | BM45: 0 | BN45: 23455.85 | BO45: 0 | BP45: 0 | BQ45: 12875 | BR45: 51113 | BS45: 13725 | BU45: 0 | BV45: 0 | BW45: 1793643.44 | BX45: 1719132.44 | BY45: 21766.85 | BZ45: 23455.85 | CA45: 77713
A46: 36ca187f-8a25-4dce-946c-04ea8f8b8dd5 | B46: 3027010 | C46: 7010 | D46: 23569 | E46: 93910 | F46: e69233c3-94e2-4919-a134-3b9fddc0a8fa | G46: 155334 | H46: -5652 | I46: 0 | J46: 485636 | K46: 358187 | L46: 1808769 | M46: 0 | N46: 20570 | O46: 7400 | P46: 10484 | Q46: 12376 | R46: 11223 | S46: 44709 | T46: 5817 | U46: 0 | V46: 0 | X46: 0 | Y46: 0 | Z46: 0 | AA46: 1320 | AB46: 1102302 | AC46: 0 | AD46: 1200551 | AE46: 60014 | AF46: 86673 | AG46: 0 | AH46: 67107 | AI46: 30000 | AJ46: 15575 | AK46: 25101 | AL46: 414 | AM46: 41941 | AN46: 3311 | AO46: 2350 | AP46: 1054 | AQ46: 18962 | AR46: 0 | AS46: 14800 | AT46: 41055 | AU46: 15100 | AV46: 855 | AW46: 8891 | AX46: 3670 | AY46: 0 | AZ46: 19060 | BA46: 10685 | BB46: 16112 | BC46: 24905 | BD46: 0 | BE46: 0 | BF46: 0 | BG46: 0 | BH46: 0 | BI46: 16754 | BJ46: 0 | BK46: 0 | BL46: 6000 | BM46: 0 | BN46: 0 | BO46: 16559 | BP46: 0 | BQ46: 4440 | BR46: 106897 | BS46: 195 | BU46: 0 | BV46: -5652 | BW46: 2766491 | BX46: 2810488 | BY46: 16754 | BZ46: 16559 | CA46: 105880
A47: 47958fcb-0201-47b5-abbd-ce17297a3c10 | B47: 3023523 | C47: 3523 | D47: 20139 | E47: 148235 | F47: 5539f01a-dd61-4e7e-94e6-26bf75562a14 | G47: 309496 | H47: 0 | I47: 9203 | J47: 2910172 | K47: 0 | L47: 113846 | M47: 0 | N47: 166500 | O47: 194 | P47: 15409.44 | Q47: 136351.43 | R47: 65626.27 | S47: 10208 | T47: 7468.9 | U47: 77753.12 | V47: 26571.73 | X47: 0 | Y47: 0 | Z47: 0 | AA47: 115545.5 | AB47: 1598753.47 | AC47: 0 | AD47: 881574.88 | AE47: 150268.66 | AF47: 139791.58 | AG47: 0 | AH47: 137613.39 | AI47: 21278.92 | AJ47: 13442.13 | AK47: 31922.16 | AL47: 3722.96 | AM47: 27270.47 | AN47: 3970.41 | AO47: 7292.31 | AP47: 5122.01 | AQ47: 35173.18 | AR47: 54891 | AS47: 7588.92 | AT47: 131226.66 | AU47: 19626.61 | AV47: 0 | AW47: 17159.72 | AX47: 15681.23 | AY47: 1736.7 | AZ47: 173903.92 | BA47: 24349 | BB47: 115423.1 | BC47: 51212 | BD47: 0 | BE47: 0 | BF47: 0 | BG47: 0 | BH47: 0 | BI47: 34449.22 | BJ47: 0 | BK47: 0 | BL47: 6000 | BM47: 0 | BN47: 20175.22 | BO47: 0 | BP47: 0 | BQ47: 42748 | BR47: 242399 | BS47: 23477 | BU47: 0 | BV47: 0 | BW47: 3645646.39 | BX47: 3669995.39 | BY47: 34449.22 | BZ47: 20175.22 | CA47: 308624
A48: 6a1943c0-5a7f-4174-a98c-e8033003e93f | B48: 3025948 | C48: 5948 | D48: 20178 | E48: 93975 | F48: 47eafc52-f0c2-4fed-bf9c-963cc7159794 | G48: 29058 | H48: 0 | I48: 0 | J48: 939642 | K48: 0 | L48: 52162 | M48: 0 | N48: 16820 | O48: 47221.94 | P48: 5117.38 | Q48: 40201.25 | R48: 17343.97 | S48: 18304 | T48: 0 | U48: 29524.88 | V48: 299588.67 | X48: 0 | Y48: 0 | Z48: 0 | AA48: 48861.5 | AB48: 663077.08 | AC48: 12129.83 | AD48: 315677.56 | AE48: 43034.32 | AF48: 95716.64 | AG48: 0 | AH48: 14778.85 | AI48: 4011.44 | AJ48: 5364.66 | AK48: 4184.51 | AL48: 7149.09 | AM48: 26527.63 | AN48: 1324.43 | AO48: 20401.53 | AP48: 3196.87 | AQ48: 13489.23 | AR48: 13953.6 | AS48: 65827.15 | AT48: 46854.39 | AU48: 15029.7 | AV48: 0 | AW48: 19732.59 | AX48: 12460.07 | AY48: 10339.42 | AZ48: 55075.36 | BA48: 245.66 | BB48: 14132.95 | BC48: 23335.03 | BD48: 0 | BE48: 0 | BF48: 0 | BG48: 0 | BH48: 0 | BI48: 0 | BJ48: 0 | BK48: 0 | BL48: 6000 | BM48: 0 | BN48: 0 | BO48: 0 | BP48: 0 | BQ48: 0 | BR48: 36796 | BS48: 0 | BU48: 0 | BV48: 0 | BW48: 1514787.59 | BX48: 1507049.59 | BY48: 0 | BZ48: 0 | CA48: 36796
A49: 612c74b5-947a-48c7-a764-a2d7677b7c47 | B49: 3025949 | C49: 5949 | D49: 20126 | E49: 95871 | F49: 5c084d42-a69a-47e2-b565-a4c7cc434941 | G49: -31960 | H49: 0 | I49: 0 | J49: 1655009 | K49: 0 | L49: 49870 | M49: 0 | N49: 31555 | O49: 0 | P49: 1973.85 | Q49: 4903.06 | R49: 14588.81 | S49: 14235 | T49: 0 | U49: 18723.71 | V49: 980276.73 | X49: 0 | Y49: 0 | Z49: 0 | AA49: 103736.33 | AB49: 918439.6 | AC49: 0 | AD49: 1059167.45 | AE49: 47190.77 | AF49: 77167.46 | AG49: 0 | AH49: 31524.37 | AI49: 11074.22 | AJ49: 28748.44 | AK49: 12875 | AL49: 0 | AM49: 30314.24 | AN49: 0 | AO49: 39719.27 | AP49: 3407.37 | AQ49: 17701.59 | AR49: 31549.44 | AS49: 7766.38 | AT49: 93624.38 | AU49: 17256.34 | AV49: 0 | AW49: 13705.65 | AX49: 17594.18 | AY49: 4314.18 | AZ49: 104554.54 | BA49: 154993.8 | BB49: 13558.28 | BC49: 122744.54 | BD49: 0 | BE49: 0 | BF49: 0 | BG49: 0 | BH49: 0 | BI49: 0 | BJ49: 0 | BK49: 0 | BL49: 6000 | BM49: 0 | BN49: 0 | BO49: 0 | BP49: 0 | BQ49: 0 | BR49: -16080 | BS49: 0 | BU49: 0 | BV49: 0 | BW49: 2874871.49 | BX49: 2858991.49 | BY49: 0 | BZ49: 0 | CA49: -16080
A50: 66b46c85-cf66-4922-bde8-4ca8a6305b3f | B50: 3023513 | C50: 3513 | D50: 21772 | E50: 93953 | F50: 4c123115-4927-4cfb-a67c-32f4e7c96b93 | G50: 53321 | H50: 0 | I50: 0 | J50: 1623503 | K50: 0 | L50: 113812 | M50: 0 | N50: 33000 | O50: 63449.02 | P50: 0 | Q50: 2495.13 | R50: 28657.28 | S50: 17529.6 | T50: 0 | U50: 35589.7 | V50: 47438.77 | X50: 0 | Y50: 0 | Z50: 0 | AA50: 84711.17 | AB50: 1220946.78 | AC50: 13448.41 | AD50: 171366.67 | AE50: 36368.17 | AF50: 114782.16 | AG50: 5723.21 | AH50: 19555.65 | AI50: 2967.22 | AJ50: 1655.77 | AK50: 12091.31 | AL50: 0 | AM50: 12301.75 | AN50: 210 | AO50: 28639 | AP50: 3328.43 | AQ50: 33252.56 | AR50: 4429.71 | AS50: 79911.44 | AT50: 86298.6 | AU50: 9370.38 | AV50: 0 | AW50: 12023.21 | AX50: 772 | AY50: 17297.12 | AZ50: 72123.54 | BA50: 0 | BB50: 111997.97 | BC50: 27037.61 | BD50: 0 | BE50: 0 | BF50: 0 | BG50: 0 | BH50: 0 | BI50: 0 | BJ50: 0 | BK50: 0 | BL50: 6000 | BM50: 0 | BN50: 0 | BO50: 0 | BP50: 0 | BQ50: 0 | BR50: 5608 | BS50: 0 | BU50: 0 | BV50: 0 | BW50: 2050185.67 | BX50: 2097898.67 | BY50: 0 | BZ50: 0 | CA50: 5608
A51: 03223498-c6f5-4206-ae6d-c6adbf7adfde | B51: 3023305 | C51: 3305 | D51: 20160 | E51: 94013 | F51: 53f9e5c4-c2aa-4260-a9c3-79921514b318 | G51: 180210 | H51: 0 | I51: 0 | J51: 621576.25 | K51: 0 | L51: 22161.37 | M51: 0 | N51: 15500 | O51: 64.9 | P51: 601.12 | Q51: 12034.04 | R51: 20595.14 | S51: 8782.4 | T51: 248.3 | U51: 16174.85 | V51: 6641.4 | X51: 0 | Y51: 0 | Z51: 0 | AA51: 37593.67 | AB51: 378120.06 | AC51: 0 | AD51: 69164.77 | AE51: 36166.89 | AF51: 26403.76 | AG51: 0 | AH51: 25568.32 | AI51: 2898.37 | AJ51: 3473.68 | AK51: 5071.04 | AL51: 763.96 | AM51: 3306.49 | AN51: 150 | AO51: 279.21 | AP51: 1140.56 | AQ51: 6374.42 | AR51: 1329.89 | AS51: 4774.79 | AT51: 32422.16 | AU51: 8091.79 | AV51: 0 | AW51: 6568.09 | AX51: 2964.96 | AY51: 6360.65 | AZ51: 43972.4 | BA51: 27358.75 | BB51: 55886.86 | BC51: 15173.57 | BD51: 0 | BE51: 0 | BF51: 8335 | BG51: 0 | BH51: 0 | BI51: 0 | BJ51: 0 | BK51: 8335 | BL51: 6000 | BM51: 0 | BN51: 0 | BO51: 8335 | BP51: 0 | BQ51: 0 | BR51: 170063 | BS51: 0 | BU51: 0 | BV51: 0 | BW51: 761973.44 | BX51: 772120.44 | BY51: 8335 | BZ51: 8335 | CA51: 170063
A52: 25c968ca-7433-41a6-b277-5a596544ded3 | B52: 3022042 | C52: 2042 | D52: 20158 | E52: 93994 | F52: 47db9b40-3d67-4eae-80fa-f804788ef4bf | G52: 80106 | H52: 0 | I52: 0 | J52: 1386087 | K52: 0 | L52: 79500.57 | M52: 0 | N52: 60040 | O52: 0 | P52: 3306.76 | Q52: 108394.65 | R52: 38753.6 | S52: 0 | T52: 0 | U52: 34454.52 | V52: 9567.72 | X52: 0 | Y52: 0 | Z52: 0 | AA52: 89862.83 | AB52: 696335.35 | AC52: 0 | AD52: 428055.82 | AE52: 14.41 | AF52: 85184.89 | AG52: 0 | AH52: 126197.93 | AI52: 7419.07 | AJ52: 1245 | AK52: 4812 | AL52: 1753.88 | AM52: 11543.34 | AN52: 3551.32 | AO52: 31774.02 | AP52: 1256.98 | AQ52: 18911.44 | AR52: 21203.81 | AS52: 5004.02 | AT52: 58170.3 | AU52: 6696.56 | AV52: 0 | AW52: 10105.76 | AX52: 8088.18 | AY52: 5679.69 | AZ52: 112880.91 | BA52: 14382.44 | BB52: 71815.95 | BC52: 26219.58 | BD52: 0 | BE52: 0 | BF52: 0 | BG52: 0 | BH52: 0 | BI52: 21305.5 | BJ52: 10000 | BK52: 0 | BL52: 6000 | BM52: 0 | BN52: 19999.5 | BO52: 0 | BP52: 0 | BQ52: 25631 | BR52: 106140 | BS52: 11306 | BU52: 0 | BV52: 0 | BW52: 1809967.65 | BX52: 1758302.65 | BY52: 31305.5 | BZ52: 19999.5 | CA52: 143077
A53: 884a7488-e5f6-4de5-822b-633fd15975a1 | B53: 3022044 | C53: 2044 | D53: 20161 | E53: 93996 | F53: b1104f07-0829-4ee4-94d9-f33b9153489f | G53: 69526 | H53: 0 | I53: 8084 | J53: 1536565 | K53: 0 | L53: 55487 | M53: 0 | N53: 69620 | O53: 0 | P53: 9039 | Q53: 57932.57 | R53: 1509.18 | S53: 7040 | T53: 366.4 | U53: 40286.5 | V53: 19125.96 | X53: 0 | Y53: 0 | Z53: 0 | AA53: 149848.5 | AB53: 837558.36 | AC53: 0 | AD53: 378412.43 | AE53: 43020.28 | AF53: 99199.42 | AG53: 0 | AH53: 59801.18 | AI53: 8859.27 | AJ53: 3941.36 | AK53: 8669.98 | AL53: 8427.32 | AM53: 15814.57 | AN53: 7989.32 | AO53: 45156.45 | AP53: 4043.37 | AQ53: 25317.79 | AR53: 16042.42 | AS53: 12894.43 | AT53: 64538.2 | AU53: 9485.35 | AV53: 0 | AW53: 17109.07 | AX53: 8602.14 | AY53: 5632.26 | AZ53: 118948.83 | BA53: 23906.59 | BB53: 74362.45 | BC53: 24004.27 | BD53: 0 | BE53: 0 | BF53: 0 | BG53: 0 | BH53: 0 | BI53: 22562.65 | BJ53: 0 | BK53: 0 | BL53: 6000 | BM53: 0 | BN53: 16061.65 | BO53: 0 | BP53: 0 | BQ53: 0 | BR53: 94609 | BS53: 14585 | BU53: 0 | BV53: 0 | BW53: 1946820.11 | BX53: 1921737.11 | BY53: 22562.65 | BZ53: 16061.65 | CA53: 109194
A54: 4f762909-505b-4a1a-bc25-42d094a4c698 | B54: 3022043 | C54: 2043 | D54: 20127 | E54: 93995 | F54: ec1888cb-49b9-40de-9f7b-ff5f168bc43e | G54: 192321 | H54: 0 | I54: 0 | J54: 1822873 | K54: 0 | L54: 194997 | M54: 0 | N54: 143860 | O54: 4800 | P54: 5035 | Q54: 90663.71 | R54: 111581.1 | S54: 27456 | T54: 1683 | U54: 69433.36 | V54: 16812.06 | X54: 0 | Y54: 0 | Z54: 0 | AA54: 25149.67 | AB54: 1052084.75 | AC54: 0 | AD54: 350475.78 | AE54: 35472.68 | AF54: 106240.34 | AG54: 0 | AH54: 32368.15 | AI54: 10231.12 | AJ54: 4414.3 | AK54: 11003.06 | AL54: 7914.82 | AM54: 45330.06 | AN54: 4693.75 | AO54: 64949.06 | AP54: 8657.99 | AQ54: 39345.73 | AR54: 13497.73 | AS54: 10704.81 | AT54: 133515.89 | AU54: 17530.95 | AV54: 0 | AW54: 17237.58 | AX54: 13231.9 | AY54: 311 | AZ54: 113657.96 | BA54: 158882.02 | BB54: 193053.3 | BC54: 35103.63 | BD54: 0 | BE54: 0 | BF54: 0 | BG54: 0 | BH54: 0 | BI54: 24946.9 | BJ54: 0 | BK54: 0 | BL54: 6000 | BM54: 0 | BN54: 0 | BO54: 0 | BP54: 10139.9 | BQ54: 48935 | BR54: 177821.54 | BS54: 14807 | BU54: 0 | BV54: 0 | BW54: 2514343.9 | BX54: 2479908.36 | BY54: 24946.9 | BZ54: 10139.9 | CA54: 241563.54
A55: 6dc713a5-b051-462c-844f-ee568292229d | B55: 3021002 | C55: 1002 | D55: 21775 | E55: 94053 | F55: 1187223e-190a-4f69-a62f-eca2682fdfb2 | G55: 304597 | H55: 0 | I55: 9136 | J55: 450513 | K55: 0 | L55: 10895 | M55: 0 | N55: 0 | O55: 800 | P55: 0 | Q55: 126475.22 | R55: 18869.4 | S55: 0 | T55: 1048.3 | U55: 0 | V55: 5791.05 | X55: 0 | Y55: 0 | Z55: 0 | AA55: 0 | AB55: 244638.08 | AC55: 0 | AD55: 255158.74 | AE55: 28880.04 | AF55: 32043.58 | AG55: 0 | AH55: 28761.85 | AI55: 6160.25 | AJ55: 5677.25 | AK55: 1921 | AL55: 3057.79 | AM55: 1444.59 | AN55: 1521.75 | AO55: 148.08 | AP55: 1130.41 | AQ55: 4149.31 | AR55: 6744.02 | AS55: 2688.38 | AT55: 11322.73 | AU55: 4728.24 | AV55: 0 | AW55: 6135.96 | AX55: 1089.2 | AY55: 2564.89 | AZ55: 19359.02 | BA55: 0 | BB55: 2982.5 | BC55: 18317.31 | BD55: 0 | BE55: 0 | BF55: 0 | BG55: 0 | BH55: 0 | BI55: 10953.52 | BJ55: 0 | BK55: 0 | BL55: 6000 | BM55: 0 | BN55: 2499.52 | BO55: 0 | BP55: 0 | BQ55: 12620 | BR55: 215744 | BS55: 17590 | BU55: 0 | BV55: 0 | BW55: 614391.97 | BX55: 690624.97 | BY55: 10953.52 | BZ55: 2499.52 | CA55: 245954
A56: ffeb54ae-74f7-49d5-8dc4-b4d80864b066 | B56: 3022045 | C56: 2045 | D56: 21756 | E56: 93997 | F56: d9fa2e20-3911-43d1-b37a-440be5aa3863 | G56: 242852 | H56: 0 | I56: 0 | J56: 1325711.1 | K56: 0 | L56: 47846 | M56: 0 | N56: 86931 | O56: 303 | P56: 0 | Q56: 57908.34 | R56: 27908.78 | S56: 15639.46 | T56: 4466.88 | U56: 22538.47 | V56: 41490.95 | X56: 0 | Y56: 0 | Z56: 0 | AA56: 45340.33 | AB56: 753217.78 | AC56: 0.37 | AD56: 428871.06 | AE56: 22632.78 | AF56: 43910.42 | AG56: 0 | AH56: 39822.81 | AI56: 8886.99 | AJ56: 10781.17 | AK56: 14613.72 | AL56: 1527.92 | AM56: 24510.91 | AN56: 1685 | AO56: 21002.23 | AP56: 2347.82 | AQ56: 18437.03 | AR56: 23290.89 | AS56: 6725.75 | AT56: 139812.69 | AU56: 12917.81 | AV56: 0 | AW56: 7010.48 | AX56: 9021.04 | AY56: 18150.73 | AZ56: 60891.27 | BA56: 24751.78 | BB56: 41521.86 | BC56: 39228 | BD56: 0 | BE56: 0 | BF56: 0 | BG56: 0 | BH56: 0 | BI56: 18818 | BJ56: 0 | BK56: 0 | BL56: 6000 | BM56: 0 | BN56: 0 | BO56: 0 | BP56: 0 | BQ56: 26689 | BR56: 116677 | BS56: 18818 | BU56: 0 | BV56: 0 | BW56: 1676084.31 | BX56: 1775570.31 | BY56: 18818 | BZ56: 0 | CA56: 162184
A57: 68a18cd0-86c0-4308-bef5-9215fd718473 | B57: 3027005 | C57: 7005 | D57: 20130 | E57: 93908 | F57: 26d1f230-81dc-41ef-bef8-29ab5d5acb76 | G57: 185977 | H57: 0 | I57: 1 | J57: 1107949 | K57: 0 | L57: 1409983.69 | M57: 0 | N57: 74117 | O57: 2300 | P57: 4095 | Q57: 41808.94 | R57: 7870.58 | S57: 15882.24 | T57: 0 | U57: 0 | V57: 1212.65 | X57: 0 | Y57: 0 | Z57: 0 | AA57: 31444 | AB57: 1004235.58 | AC57: 0 | AD57: 785792.93 | AE57: 22930.97 | AF57: 91643.96 | AG57: 0 | AH57: 7192.02 | AI57: 19288.67 | AJ57: 18730.44 | AK57: 20699.68 | AL57: 1802.3 | AM57: 62218.3 | AN57: 3654.4 | AO57: 22483.67 | AP57: 2015.92 | AQ57: 44222.63 | AR57: 0 | AS57: 7749.13 | AT57: 29446.57 | AU57: 13925.53 | AV57: 0 | AW57: 9159.35 | AX57: 9102.36 | AY57: 113.6 | AZ57: 40370.53 | BA57: 0 | BB57: 325681.51 | BC57: 40868.05 | BD57: 0 | BE57: 0 | BF57: 0 | BG57: 0 | BH57: 0 | BI57: 19744.9 | BJ57: 0 | BK57: 0 | BL57: 6000 | BM57: 0 | BN57: -2405.1 | BO57: 0 | BP57: 0 | BQ57: 18643 | BR57: 280669 | BS57: 22151 | BU57: 0 | BV57: 0 | BW57: 2696663.1 | BX57: 2583328.1 | BY57: 19744.9 | BZ57: -2405.1 | CA57: 321463
A58: 25f67bd7-886f-4841-837a-7feef8b8b381 | B58: 3027009 | C58: 7009 | D58: 20133 | E58: 93909 | F58: 7758e0e3-9e3d-4745-a620-74ecd8bd101e | G58: 214291 | H58: 0 | I58: 0 | J58: 1413117 | K58: 0 | L58: 1730431 | M58: 0 | N58: 55100 | O58: 4256 | P58: 703160.94 | Q58: 57075.36 | R58: 6712.14 | S58: 7180.8 | T58: 15890.7 | U58: 6273.96 | V58: 7174.22 | X58: 28445.34 | Y58: 0 | Z58: 0 | AA58: 28499.83 | AB58: 1693737.43 | AC58: 8938.23 | AD58: 1383266.67 | AE58: 54771.64 | AF58: 89595.29 | AG58: 0 | AH58: 88472.38 | AI58: 41128.74 | AJ58: 16882.24 | AK58: 11791.44 | AL58: 22030.84 | AM58: 58394.53 | AN58: 150 | AO58: 32374.42 | AP58: 14330.57 | AQ58: 29617.58 | AR58: 0 | AS58: 17692.01 | AT58: 75810.32 | AU58: 27676.77 | AV58: 0 | AW58: 18289.77 | AX58: 3950.35 | AY58: 49312.94 | AZ58: 20101.2 | BA58: 35082 | BB58: 353215.66 | BC58: 55611.27 | BD58: 0 | BE58: 0 | BF58: 0 | BG58: 0 | BH58: 0 | BI58: 21253.48 | BJ58: 0 | BK58: 0 | BL58: 6000 | BM58: 0 | BN58: 0 | BO58: 0 | BP58: 0.48 | BQ58: 33092 | BR58: 42292 | BS58: 21253 | BU58: 0 | BV58: 0 | BW58: 4063317.29 | BX58: 4202224.29 | BY58: 21253.48 | BZ58: 0.48 | CA58: 96637
A59: 310a4a5f-42ac-40cd-9d04-acfc59038d61 | B59: 3025201 | C59: 5201 | D59: 20169 | E59: 93956 | F59: adde1dfc-ce3b-4866-bce5-0b6a5ef65b58 | G59: 248451 | H59: 0 | I59: 1 | J59: 1573096.29 | K59: 0 | L59: 109461.54 | M59: 0 | N59: 83460 | O59: 8835 | P59: 1139.86 | Q59: 64742.61 | R59: 47395.94 | S59: 0 | T59: 0 | U59: 43166.11 | V59: 3708.08 | X59: 0 | Y59: 0 | Z59: 0 | AA59: 66757.88 | AB59: 959113.11 | AC59: 0 | AD59: 321065.29 | AE59: 81736.95 | AF59: 164765.61 | AG59: 22968.09 | AH59: 47216.25 | AI59: 91.17 | AJ59: 6291.21 | AK59: 637 | AL59: 2082.06 | AM59: 23348.39 | AN59: 8696.77 | AO59: 3838.76 | AP59: 2918.01 | AQ59: 22674.25 | AR59: 6754.1 | AS59: 8809.2 | AT59: 83054.19 | AU59: 11207.21 | AV59: 0 | AW59: 13957.32 | AX59: 8861.56 | AY59: 11405.49 | AZ59: 83270.15 | BA59: 3478 | BB59: 66630.25 | BC59: 19544.92 | BD59: 0 | BE59: 0 | BF59: 0 | BG59: 0 | BH59: 0 | BI59: 25848.58 | BJ59: 0 | BK59: 0 | BL59: 6000 | BM59: 0 | BN59: 4074 | BO59: 0 | BP59: 7039.58 | BQ59: 18507 | BR59: 247292 | BS59: 14736 | BU59: 0 | BV59: 0 | BW59: 2001763.31 | BX59: 1984415.31 | BY59: 25848.58 | BZ59: 11113.58 | CA59: 280535
A60: d6d0a918-dd98-40eb-b089-5c6f5932a7d2 | B60: 3023501 | C60: 3501 | D60: 20124 | E60: 94024 | F60: 463f2618-5c4a-4141-b7e8-217f0ed535e0 | G60: 21391 | H60: 0 | I60: 1 | J60: 1052369 | K60: 0 | L60: 51290 | M60: 0 | N60: 66300 | O60: 9037 | P60: 0 | Q60: 36657.85 | R60: 25330.18 | S60: 8862.75 | T60: 0 | U60: 37752.27 | V60: 20929.52 | X60: 0 | Y60: 0 | Z60: 0 | AA60: 48407.83 | AB60: 626409.94 | AC60: 0 | AD60: 190411.48 | AE60: 54564.63 | AF60: 63162.7 | AG60: 0 | AH60: 29455.09 | AI60: 560.35 | AJ60: 3833.2 | AK60: 10423.02 | AL60: 0 | AM60: 8495.42 | AN60: 163.33 | AO60: 2037.62 | AP60: 3389.58 | AQ60: 16815.58 | AR60: 3380.7 | AS60: 6816.83 | AT60: 56803.34 | AU60: 14580.87 | AV60: 0 | AW60: 20078.34 | AX60: 9265.28 | AY60: 8344.09 | AZ60: 59094.19 | BA60: 12998.02 | BB60: 42428.32 | BC60: 28273.48 | BD60: 0 | BE60: 0 | BF60: 0 | BG60: 0 | BH60: 0 | BI60: 0 | BJ60: 0 | BK60: 0 | BL60: 6000 | BM60: 0 | BN60: 0 | BO60: 0 | BP60: 0 | BQ60: 6500 | BR60: 100042 | BS60: 0 | BU60: 1 | BV60: 0 | BW60: 1356936.4 | BX60: 1271785.4 | BY60: 0 | BZ60: 0 | CA60: 106543
A61: 8923957d-bc2a-4187-aba5-0fbaa0750d10 | B61: 3022078 | C61: 2078 | D61: 20150 | E61: 97117 | F61: e98a5123-bba1-4ec4-a364-d8ed2dd46fd0 | G61: 17532 | H61: 0 | I61: 0 | J61: 1321182.08 | K61: 0 | L61: 106548.63 | M61: 0 | N61: 44880 | O61: 56045.98 | P61: 0 | Q61: 19496.95 | R61: 27982.13 | S61: 9241.82 | T61: 43200 | U61: 16762.7 | V61: 136167.97 | X61: 0 | Y61: 0 | Z61: 0 | AA61: 99840.67 | AB61: 694140.04 | AC61: 0 | AD61: 316086.14 | AE61: 26796.18 | AF61: 130008.15 | AG61: 0 | AH61: 31109.8 | AI61: 10199.1 | AJ61: 3045.6 | AK61: 11804.15 | AL61: 0 | AM61: 14967.34 | AN61: 0 | AO61: 31055.6 | AP61: 2606.38 | AQ61: 20290.79 | AR61: 18468 | AS61: 59409.07 | AT61: 64214.77 | AU61: 10696.23 | AV61: 0 | AW61: 10940.21 | AX61: 642 | AY61: 19824.75 | AZ61: 86365.67 | BA61: 145486.28 | BB61: 49112.45 | BC61: 25136.38 | BD61: 0 | BE61: 0 | BF61: 43200 | BG61: 0 | BH61: 0 | BI61: 0 | BJ61: 0 | BK61: 0 | BL61: 6000 | BM61: 0 | BN61: 0 | BO61: 0 | BP61: 0 | BQ61: 13548.85 | BR61: 59727 | BS61: 0 | BU61: 0 | BV61: 0 | BW61: 1881348.93 | BX61: 1825605.08 | BY61: 0 | BZ61: 0 | CA61: 73275.85
A62: faabaca9-1c37-4c42-acf7-5eed1004a669 | B62: 3022071 | C62: 2071 | D62: 20113 | E62: 94007 | F62: ca4efed0-8050-4cc9-9e76-77f971447d92 | G62: 79254 | H62: 0 | I62: 15091 | J62: 1322701 | K62: 0 | L62: 63419.92 | M62: 0 | N62: 90060 | O62: 3064.9 | P62: 10290.56 | Q62: 29518.64 | R62: 5539.72 | S62: 950.4 | T62: 13947.54 | U62: 9151.85 | V62: 8039.28 | X62: 0 | Y62: 0 | Z62: 0 | AA62: 84709.83 | AB62: 631768.59 | AC62: 0 | AD62: 470596.32 | AE62: 28099.7 | AF62: 93971.1 | AG62: 0 | AH62: 15133.05 | AI62: 6392.23 | AJ62: 4346 | AK62: 6418.48 | AL62: 7540.74 | AM62: 11017 | AN62: 10727.37 | AO62: 35166.13 | AP62: 4515.87 | AQ62: 19223.88 | AR62: 28519.63 | AS62: 4801.11 | AT62: 35164.38 | AU62: 9026.11 | AV62: 0 | AW62: 8654.46 | AX62: 5821.01 | AY62: 3039.64 | AZ62: 77067.5 | BA62: 32053.21 | BB62: 82976.21 | BC62: 14607.92 | BD62: 0 | BE62: 0 | BF62: 0 | BG62: 0 | BH62: 0 | BI62: 29710.22 | BJ62: 0 | BK62: 0 | BL62: 6000 | BM62: 0 | BN62: 4012.87 | BO62: 0 | BP62: 15541.35 | BQ62: 21405 | BR62: 52595 | BS62: 4013 | BU62: 21234 | BV62: 0 | BW62: 1641393.64 | BX62: 1646647.64 | BY62: 29710.22 | BZ62: 19554.22 | CA62: 99247
A63: 535f91fd-3fa4-49c1-a9f1-24e282498480 | B63: 3022072 | C63: 2072 | D63: 20149 | E63: 94008 | F63: 600fc482-a248-4c94-9388-751d55139fa2 | G63: 134490 | H63: 0 | I63: 9697 | J63: 1601404 | K63: 0 | L63: 128459 | M63: 0 | N63: 184320 | O63: 1800 | P63: 630 | Q63: 9423.54 | R63: 50081.74 | S63: 1760.5 | T63: 1645.4 | U63: 48029.09 | V63: 25519.4 | X63: 0 | Y63: 0 | Z63: 0 | AA63: 22096.67 | AB63: 1010244.48 | AC63: 0 | AD63: 548328.64 | AE63: 30036.98 | AF63: 94095.03 | AG63: 0 | AH63: 20289.97 | AI63: 10876.39 | AJ63: 6716.29 | AK63: 7126.27 | AL63: 5490.26 | AM63: 33009.18 | AN63: 9158.52 | AO63: 22533.47 | AP63: 358.38 | AQ63: 9270.24 | AR63: 14283.42 | AS63: 11858.52 | AT63: 78392.87 | AU63: 8401.87 | AV63: 0 | AW63: 11287.02 | AX63: 6512.67 | AY63: 2753.16 | AZ63: 68864.03 | BA63: 0 | BB63: 40882.41 | BC63: 23156.27 | BD63: 0 | BE63: 0 | BF63: 0 | BG63: 0 | BH63: 0 | BI63: 22085.8 | BJ63: 0 | BK63: 0 | BL63: 6000 | BM63: 0 | BN63: 0 | BO63: 0 | BP63: 19035.8 | BQ63: 5501 | BR63: 130232 | BS63: 12747 | BU63: 0 | BV63: 0 | BW63: 2075169.34 | BX63: 2073926.34 | BY63: 22085.8 | BZ63: 19035.8 | CA63: 148480
A64: 3755cd77-1562-4845-a7b5-e03191bf024e | B64: 3023512 | C64: 3512 | D64: 20156 | E64: 93952 | F64: c418f37e-e731-499e-abe8-586c7e69273e | G64: 129909 | H64: 0 | I64: 0 | J64: 1636781.38 | K64: 0 | L64: 68794 | M64: 0 | N64: 22100 | O64: 0 | P64: 0 | Q64: 166720.68 | R64: 151624.18 | S64: 11000 | T64: 300 | U64: 47337.24 | V64: 438752.64 | X64: 0 | Y64: 0 | Z64: 0 | AA64: 91412.67 | AB64: 1126550.65 | AC64: 30714.03 | AD64: 370514.5 | AE64: 56887.39 | AF64: 186668.56 | AG64: 0 | AH64: 50725.36 | AI64: -10439.7 | AJ64: 7547.74 | AK64: 20081.16 | AL64: 2437.14 | AM64: 96836.38 | AN64: 0 | AO64: 39930.72 | AP64: 5393.96 | AQ64: 29689.57 | AR64: 12825 | AS64: 9277.99 | AT64: 102559.62 | AU64: 9234.25 | AV64: 0 | AW64: 18252.96 | AX64: 6238.32 | AY64: 15770.65 | AZ64: 189851.81 | BA64: 12992.53 | BB64: 59003.34 | BC64: 36962.86 | BD64: 0 | BE64: 0 | BF64: 0 | BG64: 0 | BH64: 0 | BI64: 0 | BJ64: 0 | BK64: 0 | BL64: 6000 | BM64: 0 | BN64: 0 | BO64: 0 | BP64: 0 | BQ64: 90408 | BR64: 187817 | BS64: 0 | BU64: 0 | BV64: 0 | BW64: 2634822.79 | BX64: 2486506.79 | BY64: 0 | BZ64: 0 | CA64: 278225
A65: 52f853dc-ab22-4abc-bf16-deb137bf59cb | B65: 3023510 | C65: 3510 | D65: 21764 | E65: 93950 | F65: f9f9c33b-a995-479e-b4cc-9e510f0a0359 | G65: 147829 | H65: 0 | I65: 0 | J65: 1633011 | K65: 0 | L65: 72756 | M65: 0 | N65: 66980 | O65: 8493.1 | P65: 4057.51 | Q65: 56232.93 | R65: 56825.13 | S65: 3600 | T65: 3045 | U65: 49816.19 | V65: 24027.17 | X65: 0 | Y65: 0 | Z65: 0 | AA65: 90660.67 | AB65: 991808.37 | AC65: 3404.7 | AD65: 237854.24 | AE65: 36571.55 | AF65: 101078.47 | AG65: 0 | AH65: 6281.47 | AI65: 14205.66 | AJ65: 4630.45 | AK65: 24979.09 | AL65: 0 | AM65: 19140.14 | AN65: 2194.92 | AO65: 27348.03 | AP65: 3780.83 | AQ65: 21089.89 | AR65: 4419.2 | AS65: 7368.26 | AT65: 76176.6 | AU65: 7952.32 | AV65: 0 | AW65: 12213.78 | AX65: 14546.77 | AY65: 5799.12 | AZ65: 116721.7 | BA65: 26520.94 | BB65: 189347.36 | BC65: 35697.84 | BD65: 0 | BE65: 0 | BF65: 0 | BG65: 0 | BH65: 0 | BI65: 0 | BJ65: 0 | BK65: 0 | BL65: 6000 | BM65: 0 | BN65: 0 | BO65: 0 | BP65: 0 | BQ65: 0 | BR65: 226202 | BS65: 0 | BU65: 0 | BV65: 0 | BW65: 2069504.7 | BX65: 1991131.7 | BY65: 0 | BZ65: 0 | CA65: 226202
A66: bb3a01c2-096f-473f-8b4f-f7edea47b10b | B66: 3023502 | C66: 3502 | D66: 20145 | E66: 94025 | F66: 4ebc8037-b804-47d4-aebe-13f7bb546fba | G66: 407524 | H66: 0 | I66: 0 | J66: 1631743 | K66: 0 | L66: 56986.34 | M66: 0 | N66: 84480 | O66: 5000 | P66: 4540.55 | Q66: 23956.7 | R66: 42397.13 | S66: 1363 | T66: 0 | U66: 35539.15 | V66: 6143.07 | X66: 0 | Y66: 0 | Z66: 0 | AA66: 86458.83 | AB66: 911139.91 | AC66: 4204.34 | AD66: 395578.59 | AE66: 59163.6 | AF66: 50602.49 | AG66: 0 | AH66: 21327.49 | AI66: 3258.86 | AJ66: 13520.87 | AK66: 15497.12 | AL66: 2012.12 | AM66: 9109.07 | AN66: 41.33 | AO66: 2593.08 | AP66: 4366.48 | AQ66: 13250.27 | AR66: 3546.57 | AS66: 9856.03 | AT66: 60230.61 | AU66: 17462.72 | AV66: 0 | AW66: 27463.49 | AX66: 10356.37 | AY66: 8707.34 | AZ66: 98382.02 | BA66: 5105 | BB66: 69121.32 | BC66: 34170.73 | BD66: 0 | BE66: 0 | BF66: 9924.95 | BG66: 0 | BH66: 0 | BI66: 0 | BJ66: 0 | BK66: 9924.95 | BL66: 6000 | BM66: 0 | BN66: 0 | BO66: 0 | BP66: 9923.95 | BQ66: 136482 | BR66: 389657 | BS66: 0 | BU66: 1 | BV66: 0 | BW66: 1978607.77 | BX66: 1859992.77 | BY66: 9924.95 | BZ66: 9923.95 | CA66: 526140
A67: 99c99f22-459a-41c9-9d84-cf2cfb69cb30 | B67: 3023315 | C67: 3315 | D67: 20104 | E67: 94020 | F67: 6130b9be-224b-4c66-91cd-4014dbe3393a | G67: 201563 | H67: 0 | I67: 0 | J67: 884882 | K67: 0 | L67: 15568 | M67: 0 | N67: 17160 | O67: 0 | P67: 389 | Q67: 58263.23 | R67: 39887.2 | S67: 0 | T67: 5000 | U67: 35640.1 | V67: 16190.32 | X67: 0 | Y67: 0 | Z67: 0 | AA67: 53904 | AB67: 535896.74 | AC67: 0 | AD67: 155971.88 | AE67: 36226.28 | AF67: 55789.66 | AG67: 0 | AH67: 67705.55 | AI67: 619.35 | AJ67: 1892.96 | AK67: 2915 | AL67: 0 | AM67: 18646.22 | AN67: 0 | AO67: 2929.75 | AP67: 1737.6 | AQ67: 16488.14 | AR67: 3303.1 | AS67: 8534.42 | AT67: 49561.65 | AU67: 8262.97 | AV67: 0 | AW67: 8243.55 | AX67: 3935.22 | AY67: 15978.54 | AZ67: 96685.02 | BA67: 5134.91 | BB67: 17361.09 | BC67: 23527.25 | BD67: 0 | BE67: 0 | BF67: 0 | BG67: 0 | BH67: 0 | BI67: 0 | BJ67: 0 | BK67: 0 | BL67: 6000 | BM67: 0 | BN67: 0 | BO67: 0 | BP67: 0 | BQ67: 0 | BR67: 191100 | BS67: 0 | BU67: 0 | BV67: 0 | BW67: 1126883.85 | BX67: 1137346.85 | BY67: 0 | BZ67: 0 | CA67: 191100
A68: eb0b648c-635d-4392-8b30-fc263e893bc9 | B68: 3023504 | C68: 3504 | D68: 20164 | E68: 94026 | F68: fae1ac60-933c-4629-8ee4-4adf4d37f9fa | G68: 247131 | H68: 0 | I68: 0 | J68: 1953921 | K68: 0 | L68: 91708 | M68: 0 | N68: 87420 | O68: 7830.84 | P68: 1995 | Q68: 183764.92 | R68: 61265.04 | S68: 9000 | T68: 0 | U68: 57896.76 | V68: 3652.5 | X68: 0 | Y68: 0 | Z68: 0 | AA68: 93717.17 | AB68: 1194083.77 | AC68: 0 | AD68: 574828.83 | AE68: 42486.7 | AF68: 122552.7 | AG68: 0 | AH68: 97670.29 | AI68: 10033.65 | AJ68: 11686.63 | AK68: 30737.04 | AL68: 2673.86 | AM68: 22032.96 | AN68: 16102.58 | AO68: 32402.3 | AP68: 2836.13 | AQ68: 16033.66 | AR68: 6215.02 | AS68: 10707.35 | AT68: 84071.52 | AU68: 23507.45 | AV68: 0 | AW68: 15108.62 | AX68: 12836.24 | AY68: 27528.7 | AZ68: 136111.97 | BA68: 840 | BB68: 47479.4 | BC68: 53628.86 | BD68: 0 | BE68: 0 | BF68: 0 | BG68: 0 | BH68: 0 | BI68: 0 | BJ68: 0 | BK68: 0 | BL68: 6000 | BM68: 0 | BN68: 0 | BO68: 0 | BP68: 0 | BQ68: 10212 | BR68: 194894 | BS68: 0 | BU68: 0 | BV68: 0 | BW68: 2552171.23 | BX68: 2594196.23 | BY68: 0 | BZ68: 0 | CA68: 205106
A69: a7329b21-db71-4742-b79f-c7f67f56a096 | B69: 3025407 | C69: 5407 | D69: 20148 | E69: 93964 | F69: baa67251-d7cd-4c41-b06c-5460853d4ee1 | G69: -333260 | H69: 0 | I69: 0 | J69: 5171393 | K69: 812280 | L69: 353038.89 | M69: 0 | N69: 232815 | O69: 7885 | P69: 0 | Q69: 346.83 | R69: 0 | S69: 0 | T69: 0 | U69: 79131.07 | V69: 133155.47 | X69: 0 | Y69: 0 | Z69: 0 | AA69: 2640 | AB69: 3998183.79 | AC69: 0 | AD69: 756440.66 | AE69: 114069.27 | AF69: 378562.25 | AG69: 0 | AH69: 31092.11 | AI69: 63137.23 | AJ69: 15078.43 | AK69: 929 | AL69: 4707.11 | AM69: 68427.02 | AN69: 11427.33 | AO69: 108085.19 | AP69: 12859.3 | AQ69: 153102.34 | AR69: 37151.31 | AS69: 35363.24 | AT69: 190854.64 | AU69: 62386.75 | AV69: 102785.31 | AW69: 84281.36 | AX69: 38147.08 | AY69: 250 | AZ69: 40431.59 | BA69: 190732.18 | BB69: 212716.74 | BC69: 62326.03 | BD69: 0 | BE69: 0 | BF69: 0 | BG69: 0 | BH69: 0 | BI69: 0 | BJ69: 0 | BK69: 0 | BL69: 6000 | BM69: 0 | BN69: 0 | BO69: 0 | BP69: 0 | BQ69: 0 | BR69: -314102 | BS69: 0 | BU69: 0 | BV69: 0 | BW69: 6792685.26 | BX69: 6773527.26 | BY69: 0 | BZ69: 0 | CA69: -314102
A70: aa5ecd1b-23fc-428b-a169-dc8abe6ee0f6 | B70: 3023307 | C70: 3307 | D70: 20116 | E70: 94014 | F70: c5be0dd7-592b-49a6-a353-4c881252440d | G70: 81701 | H70: 0 | I70: 0 | J70: 1025020.49 | K70: 0 | L70: 0 | M70: 0 | N70: 39140 | O70: 1200 | P70: 3055.38 | Q70: 91105.36 | R70: 29543.73 | S70: 0 | T70: 0 | U70: 57156.92 | V70: 15982.3 | X70: 0 | Y70: 0 | Z70: 0 | AA70: 52383.67 | AB70: 621612.83 | AC70: 0 | AD70: 199401.55 | AE70: 41728.97 | AF70: 33221.86 | AG70: 0 | AH70: 17889.08 | AI70: 386.96 | AJ70: 2414.41 | AK70: 8821.52 | AL70: 1318.1 | AM70: 24440.44 | AN70: 1913.01 | AO70: 12999.69 | AP70: 4627.13 | AQ70: 22542.77 | AR70: 3497.38 | AS70: 9476.5 | AT70: 61765.87 | AU70: 17345.29 | AV70: 0 | AW70: 8923.85 | AX70: 4457.4 | AY70: 1313.29 | AZ70: 62150.09 | BA70: 18461 | BB70: 61697.94 | BC70: 39810.92 | BD70: 0 | BE70: 0 | BF70: 0 | BG70: 0 | BH70: 0 | BI70: 0 | BJ70: 0 | BK70: 0 | BL70: 6000 | BM70: 0 | BN70: 0 | BO70: 0 | BP70: 0 | BQ70: 23598 | BR70: 90473 | BS70: 0 | BU70: 0 | BV70: 0 | BW70: 1314587.85 | BX70: 1282217.85 | BY70: 0 | BZ70: 0 | CA70: 114071
A71: e434f325-084e-4875-9892-21cdad0ced37 | B71: 3023309 | C71: 3309 | D71: 20122 | E71: 94015 | F71: 46e9e955-9a3c-4e1b-9cc7-d846648a3c28 | G71: 69137 | H71: 0 | I71: 0 | J71: 974417 | K71: 0 | L71: 8136 | M71: 0 | N71: 32200 | O71: 2200 | P71: 1930.21 | Q71: 95251.7 | R71: 32282.37 | S71: 0 | T71: 0 | U71: 29649.68 | V71: 24381.3 | X71: 0 | Y71: 0 | Z71: 0 | AA71: 58491.5 | AB71: 592269.36 | AC71: 659.37 | AD71: 234889.25 | AE71: 27915.96 | AF71: 43821.72 | AG71: 0 | AH71: 17541.58 | AI71: 1976.19 | AJ71: 5834.2 | AK71: 2500 | AL71: 2581.1 | AM71: 20726.33 | AN71: 3281 | AO71: 22027.48 | AP71: 1971.05 | AQ71: 12241.63 | AR71: 4082.1 | AS71: 6135.54 | AT71: 48235.75 | AU71: 13933.8 | AV71: 0 | AW71: 7760.12 | AX71: 6197.51 | AY71: 5156.63 | AZ71: 77189.31 | BA71: 2028.75 | BB71: 36774.74 | BC71: 31144 | BD71: 0 | BE71: 0 | BF71: 16797.29 | BG71: 0 | BH71: 0 | BI71: 0 | BJ71: 0 | BK71: 0 | BL71: 6000 | BM71: 0 | BN71: 0 | BO71: 0 | BP71: 0 | BQ71: 7812 | BR71: 74593 | BS71: 0 | BU71: 0 | BV71: 0 | BW71: 1258939.76 | BX71: 1245671.76 | BY71: 0 | BZ71: 0 | CA71: 82405
A72: 44a37241-0765-482d-89ff-db2cea3b5dde | B72: 3023509 | C72: 3509 | D72: 20134 | E72: 93949 | F72: 940c1edf-b0f3-418e-a0e4-cb216f42b541 | G72: -122777 | H72: 0 | I72: 0 | J72: 2268594 | K72: 0 | L72: 38113 | M72: 0 | N72: 100320 | O72: 0 | P72: 9960 | Q72: 65856.79 | R72: 52051.61 | S72: 3868.59 | T72: 0.64 | U72: 63713.5 | V72: 7111.28 | X72: 0 | Y72: 0 | Z72: 0 | AA72: 132359 | AB72: 1070308.47 | AC72: 0 | AD72: 565440.68 | AE72: 117966.84 | AF72: 123760.99 | AG72: 0 | AH72: 100565.14 | AI72: 7057.29 | AJ72: 4964.93 | AK72: 858 | AL72: 20996.48 | AM72: 15489.88 | AN72: 0 | AO72: 3162.35 | AP72: 5569 | AQ72: 45264.08 | AR72: 12116.74 | AS72: 16423.79 | AT72: 128259.74 | AU72: 14732.65 | AV72: 0 | AW72: 14161.19 | AX72: 14547 | AY72: 26824.98 | AZ72: 143742.92 | BA72: 170383.23 | BB72: 44097.16 | BC72: 35949.88 | BD72: 0 | BE72: 0 | BF72: 0 | BG72: 0 | BH72: 0 | BI72: 0 | BJ72: 0 | BK72: 0 | BL72: 6000 | BM72: 0 | BN72: 0 | BO72: 0 | BP72: 0 | BQ72: 0 | BR72: -83472 | BS72: 0 | BU72: 0 | BV72: 0 | BW72: 2741948.41 | BX72: 2702643.41 | BY72: 0 | BZ72: 0 | CA72: -83472
A73: 798142d2-f2de-4e76-a992-dd570d367a85 | B73: 3021003 | C73: 1003 | D73: 20091 | E73: 94054 | F73: b039fc96-ec54-4686-8359-5fc7e09527df | G73: 0 | H73: 0 | I73: 0 | J73: 0 | K73: 0 | L73: 0 | M73: 0 | N73: 0 | O73: 0 | P73: 0 | Q73: 0 | R73: 0 | S73: 0 | T73: 0 | U73: 0 | V73: 0 | X73: 0 | Y73: 0 | Z73: 0 | AA73: 0 | AB73: 0 | AC73: 0 | AD73: 0 | AE73: 0 | AF73: 0 | AG73: 0 | AH73: 0 | AI73: 0 | AJ73: 0 | AK73: 0 | AL73: 0 | AM73: 0 | AN73: 0 | AO73: 0 | AP73: 0 | AQ73: 0 | AR73: 0 | AS73: 0 | AT73: 0 | AU73: 0 | AV73: 0 | AW73: 0 | AX73: 0 | AY73: 0 | AZ73: 0 | BA73: 0 | BB73: 0 | BC73: 0 | BD73: 0 | BE73: 0 | BF73: 0 | BG73: 0 | BH73: 0 | BI73: 0 | BJ73: 0 | BK73: 0 | BL73: 6000 | BM73: 0 | BN73: 0 | BO73: 0 | BP73: 0 | BQ73: 0 | BR73: 0 | BS73: 0 | BU73: 0 | BV73: 0 | BW73: 0 | BX73: 0 | BY73: 0 | BZ73: 0 | CA73: 0
A74: 9cf4d81a-f244-43f8-9e08-789e3bb4f8d3 | B74: 3023521 | C74: 3521 | D74: 20103 | E74: 99836 | F74: 339be314-c56a-43a4-8aba-3b49afc24f2e | G74: 309312 | H74: 0 | I74: 0 | J74: 6309492 | K74: 0 | L74: 214867.06 | M74: 0 | N74: 366983.5 | O74: 18477 | P74: 22078.35 | Q74: 52007.55 | R74: 202640.82 | S74: 0 | T74: 0 | U74: 143401.44 | V74: 102550.11 | X74: 0 | Y74: 0 | Z74: 0 | AA74: 107799.17 | AB74: 3614166.03 | AC74: 0 | AD74: 949771.13 | AE74: 144447.96 | AF74: 474716.3 | AG74: 0 | AH74: 116999.72 | AI74: 116903.75 | AJ74: 23438.23 | AK74: 1624 | AL74: 10668.24 | AM74: 37528.7 | AN74: 18865.1 | AO74: 110470.94 | AP74: 8957.27 | AQ74: 157025.29 | AR74: 42305.24 | AS74: 62848.21 | AT74: 316541.02 | AU74: 84119.31 | AV74: 0.65 | AW74: 87172.37 | AX74: 41332.34 | AY74: 29639.66 | AZ74: 339668.83 | BA74: 253438.95 | BB74: 280426.26 | BC74: 73157.5 | BD74: 0 | BE74: 0 | BF74: 120857 | BG74: 0 | BH74: 0 | BI74: 0 | BJ74: 0 | BK74: 0 | BL74: 6000 | BM74: 0 | BN74: 0 | BO74: 0 | BP74: 0 | BQ74: 25806 | BR74: 306713 | BS74: 0 | BU74: 0 | BV74: 0 | BW74: 7540297 | BX74: 7517090 | BY74: 0 | BZ74: 0 | CA74: 332519
A75: f8402034-182c-44d6-844a-0c9e4bc1479d | B75: 3023311 | C75: 3311 | D75: 20144 | E75: 94016 | F75: 34f4f3f9-957f-4634-950e-baf8b965133a | G75: 104322 | H75: 0 | I75: 0 | J75: 1898196 | K75: 0 | L75: 65289 | M75: 0 | N75: 74180 | O75: 0 | P75: 0 | Q75: 121189.84 | R75: 72969.54 | S75: 0 | T75: 0 | U75: 15911.2 | V75: 33766.4 | X75: 0 | Y75: 0 | Z75: 0 | AA75: 91528.33 | AB75: 1018048.8 | AC75: 4386.98 | AD75: 448711.78 | AE75: 89439.76 | AF75: 73845.9 | AG75: 0.05 | AH75: 70397.33 | AI75: 6413.18 | AJ75: 3744.04 | AK75: 697.2 | AL75: 2201.47 | AM75: 21764.86 | AN75: 9539.86 | AO75: 9891.97 | AP75: 6022.86 | AQ75: 15296.93 | AR75: 23392.8 | AS75: 10423.66 | AT75: 101426.48 | AU75: 16340.47 | AV75: 0 | AW75: 17073.82 | AX75: 11288.04 | AY75: 71938.79 | AZ75: 135151.38 | BA75: 28158.87 | BB75: 90572.16 | BC75: 39322.67 | BD75: 0 | BE75: 0 | BF75: 9385.2 | BG75: 0 | BH75: 0 | BI75: 0 | BJ75: 0 | BK75: 0 | BL75: 6000 | BM75: 0 | BN75: 0 | BO75: 0 | BP75: 0 | BQ75: 15640 | BR75: 126835 | BS75: 0 | BU75: 0 | BV75: 0 | BW75: 2373030.31 | BX75: 2334877.31 | BY75: 0 | BZ75: 0 | CA75: 142475
A76: c4155f56-84e7-46e1-b7dc-1a78db56da92 | B76: 3023312 | C76: 3312 | D76: 21773 | E76: 94017 | F76: 42a02384-ae4f-435f-8238-920c2e6e43e1 | G76: 139926 | H76: 0 | I76: 0 | J76: 890900.46 | K76: 0 | L76: 41662 | M76: 0 | N76: 41560 | O76: 11401.6 | P76: 14585 | Q76: 40616.88 | R76: 26292.88 | S76: 0 | T76: 0 | U76: 42916.98 | V76: 20051.63 | X76: 0 | Y76: 0 | Z76: 0 | AA76: 55989.67 | AB76: 572573.59 | AC76: 9296.92 | AD76: 194360.03 | AE76: 34390.69 | AF76: 50088.96 | AG76: 0 | AH76: 3121.55 | AI76: 2440.8 | AJ76: -201.63 | AK76: 8325.2 | AL76: 0 | AM76: 26887.93 | AN76: 1786 | AO76: 19829.34 | AP76: 2286.05 | AQ76: 6918.2 | AR76: 3292.27 | AS76: 7125.89 | AT76: 86611.93 | AU76: 12158.42 | AV76: 0 | AW76: 5902.36 | AX76: 8847.46 | AY76: 2949.36 | AZ76: 76717.71 | BA76: 0 | BB76: 36462.95 | BC76: 34911.12 | BD76: 0 | BE76: 0 | BF76: 0 | BG76: 0 | BH76: 0 | BI76: 0 | BJ76: 0 | BK76: 0 | BL76: 6000 | BM76: 0 | BN76: 0 | BO76: 0 | BP76: 0 | BQ76: 0 | BR76: 118820 | BS76: 0 | BU76: 0 | BV76: 0 | BW76: 1185977.1 | BX76: 1207083.1 | BY76: 0 | BZ76: 0 | CA76: 118820
A77: 1f52f058-cfa5-451e-a7ff-95c9f2774b30 | B77: 3025404 | C77: 5404 | D77: 20135 | E77: 93961 | F77: db5fcc92-c493-4f7a-9a02-16c1724bba19 | G77: -359988 | H77: 0 | I77: 4443 | J77: 2675970 | K77: 1205824 | L77: 12046.64 | M77: 0 | N77: 34090 | O77: 23917.57 | P77: 131134 | Q77: 55359.71 | R77: 87654.84 | S77: 0 | T77: 0 | U77: 24441.04 | V77: 198201.85 | X77: 0 | Y77: 0 | Z77: 0 | AA77: 0 | AB77: 2763161.94 | AC77: 11051.5 | AD77: 114046.23 | AE77: 80497.05 | AF77: 421553.39 | AG77: 75484.33 | AH77: 6157.84 | AI77: 276916.67 | AJ77: 14063.57 | AK77: 488 | AL77: 7304.48 | AM77: 65646.1 | AN77: 611.1 | AO77: 65024.13 | AP77: 8366.61 | AQ77: 75379.22 | AR77: 16518.6 | AS77: 35404.49 | AT77: 119944.82 | AU77: 151706.21 | AV77: 83958.08 | AW77: 13958.28 | AX77: 33314.91 | AY77: 2015.06 | AZ77: 39334.21 | BA77: 0 | BB77: 73477.52 | BC77: 30723.31 | BD77: 0 | BE77: 0 | BF77: 0 | BG77: 0 | BH77: 0 | BI77: 0 | BJ77: 0 | BK77: 0 | BL77: 6000 | BM77: 0 | BN77: 0 | BO77: 0 | BP77: 1192 | BQ77: 0 | BR77: -497456 | BS77: 0 | BU77: 3251 | BV77: 0 | BW77: 4448639.65 | BX77: 4586107.65 | BY77: 0 | BZ77: 1192 | CA77: -494205
A78: 5100a60d-f945-49af-b82b-f877e8bb605b | B78: 3023313 | C78: 3313 | D78: 20154 | E78: 94018 | F78: 8ec6cd83-7257-456c-b3fd-b2d98cbfbe7d | G78: 61680 | H78: 0 | I78: 0 | J78: 994017.59 | K78: 0 | L78: 21918 | M78: 0 | N78: 67960 | O78: 11338.27 | P78: 5177 | Q78: 17404.01 | R78: 21206.71 | S78: 27702.4 | T78: 1778.48 | U78: 17669.01 | V78: 16535.4 | X78: 0 | Y78: 0 | Z78: 0 | AA78: 45183.33 | AB78: 566251.93 | AC78: 3918.52 | AD78: 205793.62 | AE78: 29092.94 | AF78: 45883.76 | AG78: 0 | AH78: 14452.2 | AI78: 11930.64 | AJ78: 6780.6 | AK78: 8974.36 | AL78: 0 | AM78: 9823.95 | AN78: 756.29 | AO78: 17379.92 | AP78: 2726.05 | AQ78: 11090.39 | AR78: 3133.66 | AS78: 7614.32 | AT78: 49032.75 | AU78: 14430.83 | AV78: 0 | AW78: 5888.05 | AX78: 5555.04 | AY78: 10474.54 | AZ78: 63317.15 | BA78: 78878.39 | BB78: 58444.17 | BC78: 32327.13 | BD78: 0 | BE78: 0 | BF78: 0 | BG78: 0 | BH78: 0 | BI78: 0 | BJ78: 0 | BK78: 0 | BL78: 6000 | BM78: 0 | BN78: 0 | BO78: 0 | BP78: 0 | BQ78: 9237 | BR78: 36382 | BS78: 0 | BU78: 0 | BV78: 0 | BW78: 1247890.2 | BX78: 1263951.2 | BY78: 0 | BZ78: 0 | CA78: 45619
A79: c46e038a-f642-4ef2-9bd5-209ade827988 | B79: 3023314 | C79: 3314 | D79: 21771 | E79: 94019 | F79: df0ab601-e830-4459-b3be-18acf9454f0e | G79: 22194 | H79: 0 | I79: 0 | J79: 878270 | K79: 0 | L79: 38736 | M79: 0 | N79: 33640 | O79: 2400 | P79: 54101.2 | Q79: 47310.13 | R79: 28114.41 | S79: 0 | T79: 0 | U79: 50662.37 | V79: 15489.01 | X79: 0 | Y79: 0 | Z79: 0 | AA79: 47033.83 | AB79: 580150.01 | AC79: 0 | AD79: 157006.09 | AE79: 33386.44 | AF79: 41794.36 | AG79: 0 | AH79: 40476.04 | AI79: 6186.18 | AJ79: 8768.13 | AK79: 6600.4 | AL79: 1135.18 | AM79: 19139.48 | AN79: 0 | AO79: 16294.19 | AP79: 3197.07 | AQ79: 14961.58 | AR79: 2908.7 | AS79: 6203.82 | AT79: 91250.81 | AU79: 33648.94 | AV79: 0 | AW79: 13123.45 | AX79: 5665.46 | AY79: 22560.15 | AZ79: 64945.93 | BA79: 11667 | BB79: 24397 | BC79: 24246.54 | BD79: 0 | BE79: 0 | BF79: 0 | BG79: 0 | BH79: 0 | BI79: 0 | BJ79: 0 | BK79: 0 | BL79: 6000 | BM79: 0 | BN79: 0 | BO79: 0 | BP79: 0 | BQ79: 0 | BR79: -11762 | BS79: 0 | BU79: 0 | BV79: 0 | BW79: 1195756.95 | BX79: 1229712.95 | BY79: 0 | BZ79: 0 | CA79: -11762
A80: 161f1e1f-ada4-4685-b7d5-7f05041cdf9a | B80: 3023507 | C80: 3507 | D80: 20136 | E80: 93947 | F80: e69ceec9-e9d8-4bd4-b27b-35fbebb2114b | G80: 95043 | H80: 0 | I80: 0 | J80: 988365 | K80: 0 | L80: 5285 | M80: 0 | N80: 47780 | O80: 3000 | P80: 3064.9 | Q80: 17033.66 | R80: 27436.57 | S80: 11158.2 | T80: 0 | U80: 29535.2 | V80: 19153.44 | X80: 0 | Y80: 0 | Z80: 0 | AA80: 50348.33 | AB80: 557287.72 | AC80: 0 | AD80: 141239.92 | AE80: 25059.07 | AF80: 36045.86 | AG80: 0 | AH80: 24133.51 | AI80: 2931.55 | AJ80: 10007.22 | AK80: 8607.22 | AL80: 1258.92 | AM80: 16893.75 | AN80: 636.44 | AO80: 40256.17 | AP80: 2054.59 | AQ80: 11796.41 | AR80: 3138.13 | AS80: 5402.45 | AT80: 64945.93 | AU80: 10077.99 | AV80: 0 | AW80: 10594.24 | AX80: 7121.49 | AY80: 8739.5 | AZ80: 54939.97 | BA80: 60120.4 | BB80: 99787.67 | BC80: 30422.18 | BD80: 0 | BE80: 0 | BF80: 0 | BG80: 0 | BH80: 0 | BI80: 0 | BJ80: 0 | BK80: 0 | BL80: 6000 | BM80: 0 | BN80: 0 | BO80: 0 | BP80: 0 | BQ80: 0 | BR80: 63705 | BS80: 0 | BU80: 0 | BV80: 0 | BW80: 1202160.3 | BX80: 1233498.3 | BY80: 0 | BZ80: 0 | CA80: 63705
A81: 8b2e906c-2e03-4669-b5ec-07a19959ce51 | B81: 3023506 | C81: 3506 | D81: 21766 | E81: 94027 | F81: 90e86cf9-b970-4566-a1dd-796d2a0f1466 | G81: 69002 | H81: 0 | I81: 0 | J81: 1334176.95 | K81: 0 | L81: 44728 | M81: 0 | N81: 45860 | O81: 4500 | P81: 1462.35 | Q81: 23697.59 | R81: 24943.45 | S81: 1560 | T81: 0 | U81: 30036.6 | V81: 11518.01 | X81: 0 | Y81: 0 | Z81: 0 | AA81: 70858.17 | AB81: 746984.67 | AC81: 6755.27 | AD81: 304085.25 | AE81: 57831.75 | AF81: 73130.96 | AG81: 0 | AH81: 0 | AI81: 1367.6 | AJ81: 3429.95 | AK81: 8433.94 | AL81: 1721.6 | AM81: 16918.17 | AN81: 5377.05 | AO81: 2920.2 | AP81: 2559.58 | AQ81: 14967.53 | AR81: 3096.55 | AS81: 6995.47 | AT81: 46946.21 | AU81: 27802.01 | AV81: 0 | AW81: 11680.06 | AX81: 9081.45 | AY81: 4841.87 | AZ81: 70548.7 | BA81: 15965 | BB81: 70032.24 | BC81: 50071.04 | BD81: 0 | BE81: 0 | BF81: 0 | BG81: 0 | BH81: 0 | BI81: 0 | BJ81: 0 | BK81: 0 | BL81: 6000 | BM81: 0 | BN81: 0 | BO81: 0 | BP81: 0 | BQ81: 24921 | BR81: 73878 | BS81: 0 | BU81: 0 | BV81: 0 | BW81: 1593341.12 | BX81: 1563544.12 | BY81: 0 | BZ81: 0 | CA81: 98799
A82: 06d48b17-4f9d-4c4b-9999-a0fdaa6271cc | B82: 3022070 | C82: 2070 | D82: 20119 | E82: 94006 | F82: 1da3a986-4bb5-4611-aa77-b2137027899e | G82: 229601 | H82: 0 | I82: 0 | J82: 1225622 | K82: 0 | L82: 83277 | M82: 0 | N82: 138600 | O82: 22420 | P82: 17017.92 | Q82: 13829.49 | R82: 23953.5 | S82: 1122.88 | T82: 2954.32 | U82: 15697.02 | V82: 17165.77 | X82: 0 | Y82: 0 | Z82: 0 | AA82: 43319.33 | AB82: 694692.92 | AC82: 0 | AD82: 355104.52 | AE82: 54306.98 | AF82: 98692.27 | AG82: 0 | AH82: 33555.8 | AI82: 7769.18 | AJ82: 4580.25 | AK82: 7892.83 | AL82: 7083.63 | AM82: 16496.2 | AN82: 4187.31 | AO82: 2372.9 | AP82: 2160.27 | AQ82: 6858.1 | AR82: 16804.02 | AS82: 14313.42 | AT82: 58932.17 | AU82: 24843.64 | AV82: 0 | AW82: 11557.75 | AX82: 5933.12 | AY82: 9018.54 | AZ82: 69010.12 | BA82: 2025 | BB82: 28883.98 | BC82: 10410.31 | BD82: 0 | BE82: 0 | BF82: 35855 | BG82: 0 | BH82: 0 | BI82: 16909.81 | BJ82: 0 | BK82: 35855 | BL82: 6000 | BM82: 0 | BN82: 26785.06 | BO82: 15640.75 | BP82: 0 | BQ82: 41316 | BR82: 209924 | BS82: 0 | BU82: 10339 | BV82: 0 | BW82: 1604979.23 | BX82: 1583340.23 | BY82: 52764.81 | BZ82: 42425.81 | CA82: 261579
A83: cdb387c5-d692-424c-8e60-796c050b23c9 | B83: 3023500 | C83: 3500 | D83: 20099 | E83: 94023 | F83: 758942b5-3d40-4674-96db-adab97cb51bb | G83: 175894 | H83: 0 | I83: 0 | J83: 935439 | K83: 0 | L83: 22899 | M83: 0 | N83: 34320 | O83: 0 | P83: 3339.9 | Q83: 15005.1 | R83: 0 | S83: 0 | T83: 0 | U83: 2996.5 | V83: 10483.03 | X83: 0 | Y83: 0 | Z83: 0 | AA83: 70489.33 | AB83: 605727.91 | AC83: 0 | AD83: 230514.82 | AE83: 16252.51 | AF83: 36943.08 | AG83: 0 | AH83: 0 | AI83: 180.53 | AJ83: 3077.03 | AK83: 283.86 | AL83: 1178.22 | AM83: 8067.82 | AN83: 37.58 | AO83: 6614.73 | AP83: 6958.1 | AQ83: 6789.78 | AR83: 2198.04 | AS83: 3255.33 | AT83: 13226.46 | AU83: 8060.14 | AV83: 0 | AW83: 4718.57 | AX83: 6452.03 | AY83: 6160.7 | AZ83: 53626.8 | BA83: 0 | BB83: 21885.94 | BC83: 17577.88 | BD83: 0 | BE83: 0 | BF83: 0 | BG83: 0 | BH83: 0 | BI83: 0 | BJ83: 0 | BK83: 0 | BL83: 6000 | BM83: 0 | BN83: 0 | BO83: 0 | BP83: 0 | BQ83: 211078 | BR83: 0 | BS83: 0 | BU83: 0 | BV83: 0 | BW83: 1094971.86 | BX83: 1059787.86 | BY83: 0 | BZ83: 0 | CA83: 211078
A84: 965ab33c-ded3-4993-950b-77efb52e763c | B84: 3023514 | C84: 3514 | D84: 20112 | E84: 93954 | F84: 5eeeb862-9275-43d5-bf0d-e7117d735646 | G84: 103114 | H84: 0 | I84: 0 | J84: 971493 | K84: 0 | L84: 21840 | M84: 0 | N84: 73920 | O84: 0 | P84: 3000 | Q84: 24343.98 | R84: 32187.86 | S84: 0 | T84: 0 | U84: 8440.75 | V84: 1554.66 | X84: 0 | Y84: 0 | Z84: 0 | AA84: 18211 | AB84: 576796.31 | AC84: 0 | AD84: 112279.86 | AE84: 49703.02 | AF84: 35965.87 | AG84: 0 | AH84: 2964.36 | AI84: 11863.35 | AJ84: 2348.65 | AK84: 7486.28 | AL84: 0 | AM84: -4078.32 | AN84: 3891.71 | AO84: 1103.58 | AP84: 19213.71 | AQ84: 5933.24 | AR84: 3477.18 | AS84: 4181.14 | AT84: 28592.1 | AU84: 19446.07 | AV84: 0 | AW84: 15511.77 | AX84: 8087.6 | AY84: 20200.84 | AZ84: 36515.72 | BA84: 40791.8 | BB84: 53308.31 | BC84: 31946.1 | BD84: 0 | BE84: 0 | BF84: 0 | BG84: 0 | BH84: 0 | BI84: 0 | BJ84: 0 | BK84: 0 | BL84: 6000 | BM84: 0 | BN84: 0 | BO84: 0 | BP84: 0 | BQ84: 0 | BR84: 170575 | BS84: 0 | BU84: 0 | BV84: 0 | BW84: 1154991.25 | BX84: 1087530.25 | BY84: 0 | BZ84: 0 | CA84: 170575
A85: de07c3a1-4370-4f34-a24f-a199b846bd70 | B85: 3022077 | C85: 2077 | D85: 21757 | E85: 96153 | F85: 9a1170dc-8dbf-444e-8865-37ea8ad2b9c7 | G85: 221792 | H85: 0 | I85: 0 | J85: 4991100 | K85: 0 | L85: 596574 | M85: 0 | N85: 581180 | O85: 31680 | P85: 0 | Q85: 80324 | R85: 73511 | S85: 7800 | T85: 8662 | U85: 42288 | V85: 37361 | X85: 0 | Y85: 0 | Z85: 0 | AA85: 119375 | AB85: 2865814 | AC85: 0 | AD85: 1581250 | AE85: 216614 | AF85: 202966 | AG85: 0 | AH85: 193733 | AI85: 43304 | AJ85: 11767 | AK85: 1341 | AL85: 5133 | AM85: 65105 | AN85: 23311 | AO85: 9350 | AP85: 10582 | AQ85: 58265 | AR85: 1865 | AS85: 41842 | AT85: 278922 | AU85: 34855 | AV85: 0 | AW85: 81329 | AX85: 26792 | AY85: 65362 | AZ85: 246207 | BA85: 53550 | BB85: 397472 | BC85: 75578 | BD85: 0 | BE85: 0 | BF85: 0 | BG85: 0 | BH85: 0 | BI85: 44333 | BJ85: 0 | BK85: 0 | BL85: 6000 | BM85: 0 | BN85: 40682 | BO85: 0 | BP85: 0 | BQ85: 199338 | BR85: 0 | BS85: 3651 | BU85: 0 | BV85: 0 | BW85: 6569855 | BX85: 6592309 | BY85: 44333 | BZ85: 40682 | CA85: 202989
A86: 7648455c-6956-4260-8121-399c5c4e791f | B86: 3023316 | C86: 3316 | D86: 21774 | E86: 94021 | F86: 6a52b86c-69fe-4e57-9fce-3c66af7e4209 | G86: 25795 | H86: 0 | I86: 0 | J86: 856922.59 | K86: 0 | L86: 18314.75 | M86: 0 | N86: 25070 | O86: 294.9 | P86: 49507.86 | Q86: 47581.8 | R86: 35184.72 | S86: 0 | T86: 1292.76 | U86: 32622.75 | V86: 32012.84 | X86: 0 | Y86: 0 | Z86: 0 | AA86: 54306.33 | AB86: 589028.07 | AC86: 0 | AD86: 115647.83 | AE86: 26371.07 | AF86: 45092.79 | AG86: 0 | AH86: 39514.37 | AI86: 4856.93 | AJ86: 4053.94 | AK86: 7102 | AL86: 1119.04 | AM86: 4159.65 | AN86: 19.17 | AO86: 10897.96 | AP86: 1568.18 | AQ86: 8632.77 | AR86: 3087.73 | AS86: 6638.66 | AT86: 86543.91 | AU86: 7183.14 | AV86: 0 | AW86: 3801.07 | AX86: 5164.4 | AY86: 8556.46 | AZ86: 73866.87 | BA86: 12237.5 | BB86: 84381.37 | BC86: 10306.42 | BD86: 0 | BE86: 0 | BF86: 0 | BG86: 0 | BH86: 0 | BI86: 0 | BJ86: 0 | BK86: 0 | BL86: 6000 | BM86: 0 | BN86: 0 | BO86: 0 | BP86: 0 | BQ86: 19075 | BR86: 0 | BS86: 0 | BU86: 0 | BV86: 0 | BW86: 1153111.3 | BX86: 1159831.3 | BY86: 0 | BZ86: 0 | CA86: 19075
A87: 748e3a37-dcc1-4f21-a04a-460a618d8fab | B87: 3022055 | C87: 2055 | D87: 21770 | E87: 94000 | F87: ebc27d0b-8e12-413b-a706-845e0be5bf3f | G87: -87919 | H87: 0 | I87: 8084 | J87: 1257903.16 | K87: 0 | L87: 46853 | M87: 0 | N87: 101640 | O87: 5432.5 | P87: 12450 | Q87: 33073.6 | R87: 19997.92 | S87: 0 | T87: 4030.6 | U87: 5099.14 | V87: 11242.5 | X87: 0 | Y87: 0 | Z87: 0 | AA87: 53667 | AB87: 657843.37 | AC87: 0 | AD87: 324972.64 | AE87: 31013.45 | AF87: 71894.47 | AG87: 0 | AH87: 43949.6 | AI87: 6544.31 | AJ87: 4447 | AK87: 12444.8 | AL87: 1371.9 | AM87: 11831.8 | AN87: 4154.95 | AO87: 18047.62 | AP87: 9036.24 | AQ87: 27885.63 | AR87: 22004.1 | AS87: 11462.36 | AT87: 21526.15 | AU87: 10876.29 | AV87: 0 | AW87: 10736.13 | AX87: 7085.36 | AY87: 7121.25 | AZ87: 58539.3 | BA87: 9958.8 | BB87: 68488.09 | BC87: 34318.81 | BD87: 0 | BE87: 0 | BF87: 0 | BG87: 0 | BH87: 0 | BI87: 18410 | BJ87: 0 | BK87: 0 | BL87: 6000 | BM87: 0 | BN87: 0 | BO87: 0 | BP87: 0 | BQ87: 0 | BR87: -24084 | BS87: 26494 | BU87: 0 | BV87: 0 | BW87: 1551389.42 | BX87: 1487554.42 | BY87: 18410 | BZ87: 0 | CA87: 2410
A88: 4d8d344d-93a7-40e6-b085-44aabf0d9a5b | B88: 3022057 | C88: 2057 | D88: 21769 | E88: 94002 | F88: 095fb1a2-5be6-48b5-a7f2-0b63bcb1f5d3 | G88: 186713 | H88: 66609 | I88: 344 | J88: 2832723 | K88: 0 | L88: 124196 | M88: 0 | N88: 319100 | O88: 4035 | P88: 300 | Q88: 179545 | R88: 25274 | S88: 21773 | T88: 2284 | U88: 23723 | V88: 15096 | X88: 0 | Y88: 236126 | Z88: 7115 | AA88: 81759 | AB88: 1560454 | AC88: 0 | AD88: 1077956 | AE88: 100252 | AF88: 104975 | AG88: 0 | AH88: 138610 | AI88: 31088 | AJ88: 8292 | AK88: 15759 | AL88: 28081 | AM88: 29166 | AN88: 7956 | AO88: 15061 | AP88: 8384 | AQ88: 47684 | AR88: 52326 | AS88: 11941 | AT88: 56734 | AU88: 16679 | AV88: 0 | AW88: 35489 | AX88: 13377 | AY88: 11579 | AZ88: 113812 | BA88: 46758 | BB88: 112497 | BC88: 25950 | BD88: 0 | BE88: 0 | BF88: 0 | BG88: 169265 | BH88: 50488 | BI88: 32498 | BJ88: 0 | BK88: 0 | BL88: 6000 | BM88: 0 | BN88: 6852 | BO88: 0 | BP88: 9845 | BQ88: 24787 | BR88: =120874+53117 -> 173991 | BS88: 16145 | BU88: 0 | BV88: 36980 | BW88: 3873049 | BX88: 3890613 | BY88: 32498 | BZ88: 16697 | CA88: 251903
A89: 5ef6cb3a-2a85-48e8-97e6-ec4c1357a91a | B89: 3022076 | C89: 2076 | D89: 20147 | E89: 95960 | F89: 1a33c173-f479-4867-8e5d-4d2199c62cc4 | G89: 177512 | H89: 0 | I89: 18756 | J89: 1973125 | K89: 0 | L89: 58785 | M89: 0 | N89: 184580 | O89: 0 | P89: 8477.07 | Q89: 93634.97 | R89: 44742.7 | S89: 5481 | T89: 0 | U89: 12989.75 | V89: 5554.38 | X89: 0 | Y89: 0 | Z89: 0 | AA89: 82806 | AB89: 1058126.65 | AC89: 19021.69 | AD89: 390688.96 | AE89: 43546.18 | AF89: 178114.27 | AG89: 0 | AH89: 65492.93 | AI89: 9528.53 | AJ89: 5243.25 | AK89: 14377.85 | AL89: 7882.73 | AM89: 40824.5 | AN89: 3510 | AO89: 35282.24 | AP89: 6936.83 | AQ89: 36629.86 | AR89: 30812.5 | AS89: 12614.48 | AT89: 59612.49 | AU89: 27236.12 | AV89: 0 | AW89: 22494.24 | AX89: 10319 | AY89: 9793.99 | AZ89: 110224.76 | BA89: 24770 | BB89: 211309.49 | BC89: 23808.33 | BD89: 0 | BE89: 0 | BF89: 0 | BG89: 0 | BH89: 0 | BI89: 35544.13 | BJ89: 0 | BK89: 0 | BL89: 6000 | BM89: 0 | BN89: -1499.87 | BO89: 0 | BP89: 0 | BQ89: 9982 | BR89: 179504 | BS89: 55800 | BU89: 0 | BV89: 0 | BW89: 2470175.87 | BX89: 2458201.87 | BY89: 35544.13 | BZ89: -1499.87 | CA89: 245286
A90: 6b11aa00-1d1a-4e15-a30e-fe2cc245d1fd | B90: 3022060 | C90: 2060 | D90: 21765 | E90: 94003 | F90: 3b5c7664-ad7d-4dc1-b507-15811c90f537 | G90: 253134 | H90: 0 | I90: 7350 | J90: 2358125 | K90: 0 | L90: 60590 | M90: 0 | N90: 204600 | O90: 2920 | P90: 20087 | Q90: 156003 | R90: 31868 | S90: 10751 | T90: 4192 | U90: 38198 | V90: 6195 | X90: 0 | Y90: 0 | Z90: 0 | AA90: 72484 | AB90: 1174269 | AC90: 680 | AD90: 714783 | AE90: 40051 | AF90: 98760 | AG90: 0 | AH90: 49242 | AI90: 22152 | AJ90: 12071 | AK90: 16822 | AL90: 3695 | AM90: 109623 | AN90: 7555 | AO90: 22244 | AP90: 8742 | AQ90: 76317 | AR90: 89775 | AS90: 17489 | AT90: 98161 | AU90: 23133 | AV90: 0 | AW90: 45242 | AX90: 20651 | AY90: 34955 | AZ90: 111610 | BA90: 86969 | BB90: 82410 | BC90: 57669 | BD90: 0 | BE90: 0 | BF90: 0 | BG90: 0 | BH90: 0 | BI90: 325348 | BJ90: 0 | BK90: 0 | BL90: 6000 | BM90: 0 | BN90: 298832 | BO90: 0 | BP90: 21375 | BQ90: 0 | BR90: 194077 | BS90: 12491 | BU90: 0 | BV90: 0 | BW90: 2966013 | BX90: 3025070 | BY90: 325348 | BZ90: 320207 | CA90: 206568
A91: 74728a35-bbf2-4e0a-9b5c-860be537116a | B91: 3023518 | C91: 3518 | D91: 20117 | E91: 76029 | F91: d2089913-796c-45dc-a55d-deb8ba16bc38 | G91: 100906 | H91: 0 | I91: 1 | J91: 2194587 | K91: 0 | L91: 45598 | M91: 0 | N91: 238580 | O91: 1800 | P91: 2828.9 | Q91: 32221.78 | R91: 25790.49 | S91: 18128 | T91: 3012.7 | U91: 22430.25 | V91: 7628.88 | X91: 0 | Y91: 0 | Z91: 0 | AA91: 72172.17 | AB91: 1094285.89 | AC91: 7219.69 | AD91: 624480.36 | AE91: 15436.11 | AF91: 62687.2 | AG91: 0 | AH91: 95918.01 | AI91: 11242.28 | AJ91: 7716.78 | AK91: 21601.86 | AL91: 2431.76 | AM91: 29432.66 | AN91: 2368.17 | AO91: 64678.79 | AP91: 8222.78 | AQ91: 34734.28 | AR91: 34017 | AS91: 7034.82 | AT91: 70251.72 | AU91: 22034.57 | AV91: 0 | AW91: 13028.77 | AX91: 12193.33 | AY91: 13301.32 | AZ91: 110806.53 | BA91: 121134.36 | BB91: 95520.53 | BC91: 51097.6 | BD91: 0 | BE91: 0 | BF91: 3860 | BG91: 0 | BH91: 0 | BI91: 27305.14 | BJ91: 0 | BK91: 3860 | BL91: 6000 | BM91: 0 | BN91: 11526.14 | BO91: 0 | BP91: 19640 | BQ91: 54171 | BR91: 74776 | BS91: 0 | BU91: 0 | BV91: 0 | BW91: 2664778.17 | BX91: 2636737.17 | BY91: 31165.14 | BZ91: 31166.14 | CA91: 128947
A92: ed310ddf-55d8-4662-a9c4-40bb32f8b4d0 | B92: 3022054 | C92: 2054 | D92: 20179 | E92: 93999 | F92: 4a4a955d-93d2-4749-96db-ab5976f21054 | G92: 29921 | H92: 0 | I92: 11447 | J92: 924979.7 | K92: 0 | L92: 31906 | M92: 0 | N92: 22440 | O92: 1500 | P92: 25100 | Q92: 62339.45 | R92: 31954.25 | S92: 3000 | T92: 570 | U92: 41024.73 | V92: 35093.56 | X92: 0 | Y92: 0 | Z92: 0 | AA92: 51844.33 | AB92: 499670.21 | AC92: 6345.76 | AD92: 211165.45 | AE92: 24968.36 | AF92: 72963.52 | AG92: 0 | AH92: 36889.84 | AI92: 5868.87 | AJ92: 1639.25 | AK92: 4048 | AL92: 1269.68 | AM92: 12991.39 | AN92: 1651.5 | AO92: 12666.43 | AP92: 708.65 | AQ92: 9518.54 | AR92: 17811.01 | AS92: 8616 | AT92: 47429.61 | AU92: 17798.41 | AV92: 0 | AW92: 8422.15 | AX92: 5770.1 | AY92: 5805.36 | AZ92: 59250.09 | BA92: 37899.6 | BB92: 102764.54 | BC92: 20556.7 | BD92: 0 | BE92: 0 | BF92: 0 | BG92: 0 | BH92: 0 | BI92: 17317.3 | BJ92: 0 | BK92: 0 | BL92: 6000 | BM92: 0 | BN92: 6453.3 | BO92: 0 | BP92: 10460 | BQ92: 0 | BR92: 27184 | BS92: 11851 | BU92: 0 | BV92: 0 | BW92: 1231752.02 | BX92: 1234489.02 | BY92: 17317.3 | BZ92: 16913.3 | CA92: 39035
A93: 6cf51510-7775-4c7c-8bbe-ff0ca0956bfa | B93: 3024004 | C93: 4004 | D93: 21753 | E93: 255067 | F93: a0fc94e7-efcb-4ce4-bacc-6bc0b551d5d9 | G93: 37247 | H93: 0 | I93: 0 | J93: 1244024 | K93: 218409 | L93: 63069 | M93: 0 | N93: 13090 | O93: 40440.88 | P93: 0 | Q93: 0 | R93: 0 | S93: 0 | T93: 0 | U93: 0 | V93: 445250 | X93: 0 | Y93: 0 | Z93: 0 | AA93: 0 | AB93: 1294732.13 | AC93: 3315.15 | AD93: 144994.79 | AE93: 41191.43 | AF93: 208942.57 | AG93: 0 | AH93: 0 | AI93: 3199.81 | AJ93: 3261 | AK93: 236 | AL93: 5689.26 | AM93: 83685.53 | AN93: 0 | AO93: 30176 | AP93: 641.96 | AQ93: 15505.94 | AR93: 6902 | AS93: 65755.09 | AT93: 45499.79 | AU93: 11092.58 | AV93: 38077.34 | AW93: 27735.57 | AX93: 462 | AY93: 0 | AZ93: 0 | BA93: 0 | BB93: 5522.65 | BC93: 23726.29 | BD93: 0 | BE93: 0 | BF93: 0 | BG93: 0 | BH93: 0 | BI93: 0 | BJ93: 0 | BK93: 0 | BL93: 6000 | BM93: 0 | BN93: 0 | BO93: 0 | BP93: 0 | BQ93: 0 | BR93: 1185 | BS93: 0 | BU93: 0 | BV93: 0 | BW93: 2024282.88 | BX93: 2060344.88 | BY93: 0 | BZ93: 0 | CA93: 1185
A94: 1dacf743-27ec-4e52-96da-88142ae3365f | B94: 3022053 | C94: 2053 | D94: 20093 | E94: 331184 | F94: 7d7abe1e-3fdd-4d0e-8756-e85df5d5e874 | G94: 0 | H94: 0 | I94: 0 | J94: 159803 | K94: 0 | L94: 0 | M94: 0 | N94: 0 | O94: 10301.7 | P94: 337.5 | Q94: 8631.75 | R94: 390.85 | S94: 0 | T94: 0 | U94: 176.08 | V94: 145607 | X94: 0 | Y94: 0 | Z94: 0 | AA94: 0 | AB94: 125587.93 | AC94: 0 | AD94: 123852.9 | AE94: 0 | AF94: 12957.49 | AG94: 0 | AH94: 0 | AI94: 609.12 | AJ94: 1538.67 | AK94: 0 | AL94: 0 | AM94: 5056.24 | AN94: 0 | AO94: 3433.66 | AP94: 0 | AQ94: 0 | AR94: 0 | AS94: 5490 | AT94: 6390.94 | AU94: 3728.33 | AV94: 0 | AW94: 1031.71 | AX94: 507.55 | AY94: 151 | AZ94: 4777.1 | BA94: 6240.24 | BB94: 0 | BC94: 11043 | BD94: 0 | BE94: 0 | BF94: 0 | BG94: 0 | BH94: 0 | BI94: 0 | BJ94: 0 | BK94: 0 | BL94: 6000 | BM94: 0 | BN94: 0 | BO94: 0 | BP94: 0 | BQ94: 5110 | BR94: 7742 | BS94: 0 | BU94: 0 | BV94: 0 | BW94: 325247.88 | BX94: 312395.88 | BY94: 0 | BZ94: 0 | CA94: 12852
A95: 16c5d9f7-f156-4a2a-9036-631ff85a1b79 | B95: 3022041 | C95: 2041 | D95: 25136 | E95: 188666 | F95: d6c67e61-aeb8-404a-ab3e-2effd8436ae4 | G95: 87790 | H95: 0 | I95: 1 | J95: 824140 | K95: 0 | L95: 0 | M95: 0 | N95: 3960 | O95: 0 | P95: 25028 | Q95: 22152 | R95: 29072 | S95: 4757 | T95: 0 | U95: 6432 | V95: 194944 | X95: 0 | Y95: 0 | Z95: 0 | AA95: 43415 | AB95: 561782 | AC95: 0 | AD95: 104224 | AE95: 0 | AF95: 34474 | AG95: 0 | AH95: 5450 | AI95: 10954 | AJ95: 4858 | AK95: 14545 | AL95: 0 | AM95: 11849 | AN95: 0 | AO95: 13561 | AP95: 1510 | AQ95: 9582 | AR95: 2137 | AS95: 2788 | AT95: 109129 | AU95: 13390 | AV95: 0 | AW95: 9966 | AX95: 15242 | AY95: 3373 | AZ95: 60720 | BA95: 12511 | BB95: 65706 | BC95: 26748 | BD95: 0 | BE95: 0 | BF95: 0 | BG95: 0 | BH95: 0 | BI95: 0 | BJ95: 0 | BK95: 0 | BL95: 6000 | BM95: 0 | BN95: 0 | BO95: 0 | BP95: 0 | BQ95: 0 | BR95: 147191 | BS95: 0 | BU95: 1 | BV95: 0 | BW95: 1153900 | BX95: 1094499 | BY95: 0 | BZ95: 0 | CA95: 147192
B97: 1 | C97: 2 | D97: 3 | E97: 4 | F97: 5 | G97: 6 | H97: 7 | I97: 8 | J97: 9 | K97: 10 | L97: 11 | M97: 12 | N97: 13 | O97: 14 | P97: 15 | Q97: 16 | R97: 17 | S97: 18 | T97: 19 | U97: 20 | V97: 21 | W97: 22 | X97: 23 | Y97: 24 | Z97: 25 | AA97: 26 | AB97: 27 | AC97: 28 | AD97: 29 | AE97: 30 | AF97: 31 | AG97: 32 | AH97: 33 | AI97: 34 | AJ97: 35 | AK97: 36 | AL97: 37 | AM97: 38 | AN97: 39 | AO97: 40 | AP97: 41 | AQ97: 42 | AR97: 43 | AS97: 44 | AT97: 45 | AU97: 46 | AV97: 47 | AW97: 48 | AX97: 49 | AY97: 50 | AZ97: 51 | BA97: 52 | BB97: 53 | BC97: 54 | BD97: 55 | BE97: 56 | BF97: 57 | BG97: 58 | BH97: 59 | BI97: 60 | BJ97: 61 | BK97: 62 | BL97: 63 | BM97: 64 | BN97: 65 | BO97: 66 | BP97: 67 | BQ97: 68 | BR97: 69 | BS97: 70 | BT97: 71 | BU97: 72 | BV97: 73

Sheet LD (hidden)
A2: LBBCOM C50 | B2: Current Cost Centre | C2: Expense Head | D2: Description2 | E2: Period (YYYYPP) | F2: Line Description | I2: Balance
I3: (£)
A4: Corporate Accounting | B4: 20368 | C4: 543965 | D4: Education CFR Funding Advances | E4: 192001 | F4: R/Frith Manor Licensed Deficit | H4: 3022026 | I4: 47000
A5: Corporate Accounting | B5: 20368 | C5: 543965 | D5: Education CFR Funding Advances | E5: 192001 | F5: R/Tudor Licensed Deficit | H5: 3022055 | I5: 55000
A6: Corporate Accounting | B6: 20368 | C6: 543965 | D6: Education CFR Funding Advances | E6: 192001 | F6: R/St Josephs Licensed Deficit | H6: 3023509 | I6: 135000
F7: Mathilda Marks Kennedy | H7: 3025948 | I7: 195953.09

Sheet CFR20202021_BenchMarkDataReport (hidden)
D1: 1 | E1: 2 | F1: 3 | G1: 4 | H1: 5 | I1: 6 | J1: 7 | K1: 8 | L1: 9 | M1: 10 | N1: 11 | O1: 12 | P1: 13 | Q1: 14 | R1: 15 | S1: 16 | T1: 17 | U1: 18 | V1: 19 | W1: 20 | X1: 21 | Y1: 22 | Z1: 23 | AA1: 24 | AB1: 25 | AC1: 26 | AD1: 27 | AE1: 28 | AF1: 29 | AG1: 30 | AH1: 31 | AI1: 32 | AJ1: 33 | AK1: 34 | AL1: 35 | AM1: 36 | AN1: 37 | AO1: 38 | AP1: 39 | AQ1: 40 | AR1: 41 | AS1: 42 | AT1: 43 | AU1: 44 | AV1: 45 | AW1: 46 | AX1: 47 | AY1: 48 | AZ1: 49 | BA1: 50 | BB1: 51 | BC1: 52 | BD1: 53 | BE1: 54 | BF1: 55 | BG1: 56 | BH1: 57 | BI1: 58 | BJ1: 59 | BK1: 60 | BL1: 61 | BM1: 62 | BN1: 63 | BO1: 64 | BP1: 65 | BQ1: 66 | BR1: 67 | BS1: 68 | BT1: 69 | BU1: 70 | BV1: 71 | BW1: 72 | BX1: 73 | BY1: 74 | BZ1: 75 | CA1: 76 | CB1: 77 | CC1: 78 | CD1: 79 | CE1: 80 | CF1: 81 | CG1: 82 | CH1: 83 | CI1: 84 | CJ1: 85 | CK1: 86 | CL1: 87 | CM1: 88 | CN1: 89 | CO1: 90
A2: CFR 2020-21 Benchmark Data Status Report
A3: LEA Number | B3: Estab Number | C3: School Name | D3: Full DfE No | E3: Federated Flag | F3: Federated Schools | G3: Status | H3: Errors | I3: OK Errors | J3: Financial Year | K3: Input System | L3: Data Prep | M3: Data Version | N3: Full Year | O3: Cash Or Accrual | P3: Rates Exempt | Q3: Insurance | R3: OB01 | S3: OB02 | T3: OB03 | U3: I01 | V3: I02 | W3: I03 | X3: I04 | Y3: I05 | Z3: I06 | AA3: I07 | AB3: I08a | AC3: I08b | AD3: I09 | AE3: I10 | AF3: I11 | AG3: I12 | AH3: I13 | AI3: I15 | AJ3: I16 | AK3: I17 | AL3: I18a | AM3: I18b | AN3: I18c | AO3: I18d | AP3: E01 | AQ3: E02 | AR3: E03 | AS3: E04 | AT3: E05 | AU3: E06 | AV3: E07 | AW3: E08 | AX3: E09 | AY3: E10 | AZ3: E11 | BA3: E12 | BB3: E13 | BC3: E14 | BD3: E15 | BE3: E16 | BF3: E17 | BG3: E18 | BH3: E19 | BI3: E20 | BJ3: E21 | BK3: E22 | BL3: E23 | BM3: E24 | BN3: E25 | BO3: E26 | BP3: E27 | BQ3: E28a | BR3: E28b | BS3: E29 | BT3: E30 | BU3: E31 | BV3: E32 | BW3: CI01 | BX3: CI03 | BY3: CI04 | BZ3: DeMinimis | CA3: CE01 | CB3: CE02 | CD3: CE03 | CE3: CE04 | CF3: B01 | CG3: B02 | CH3: B03 | CI3: B05 | CJ3: B06
A4: 302 | B4: 1000 | C4: Brookhill Nursery | D4: 3021000 | E4: Yes | F4: 3021001, 3021003 | G4: Authorised | H4: 0 | I4: 2 | J4: 20202021 | K4: XG21 | L4: Y | M4: Final | N4: Y | O4: Accruals | P4: N | Q4: N | R4: 325458.06 | S4: 47037.94 | T4: 61007 | U4: 1320457.58 | V4: 0 | W4: 32160.72 | X4: 0 | Y4: 0 | Z4: 87408.1 | AA4: 38860.3 | AB4: 22500 | AC4: 362228.08 | AD4: 5870.02 | AE4: 0 | AF4: 0 | AG4: 0 | AH4: 2253.09 | AI4: 0 | AJ4: 149294 | AK4: 34.5 | AL4: 0 | AM4: 0 | AN4: 0 | AO4: 45000 | AP4: 434478.42 | AQ4: 4939.27 | AR4: 1373869.18 | AS4: 61650.41 | AT4: 106431.4 | AU4: 0 | AV4: 57937.2 | AW4: 2726.46 | AX4: 2742.1 | AY4: 0 | AZ4: 0 | BA4: 12532.76 | BB4: 3509 | BC4: 3987.53 | BD4: 4535.99 | BE4: 18879.86 | BF4: 0 | BG4: 11763.2 | BH4: 27066.91 | BI4: 13681.11 | BJ4: 0 | BK4: 49847.33 | BL4: 4027.8 | BM4: 5757.92 | BN4: 17023.24 | BO4: 0 | BP4: 5979.7 | BQ4: 46993.16 | BR4: 0 | BS4: 0 | BT4: 0 | BU4: 115268.43 | BV4: 25405.01 | BW4: 15164.62 | BX4: 0 | BY4: 0 | BZ4: 6000 | CA4: 0 | CB4: 1065.77 | CD4: 0 | CE4: 11014.85 | CF4: 0 | CG4: -28164 | CH4: 30336 | CI4: 33755 | CJ4: 55693
A5: 302 | B5: 1002 | C5: Moss Hall Nursery School | D5: 3021002 | E5: No | G5: Authorised | H5: 0 | I5: 2 | J5: 20202021 | K5: XG21 | L5: Y | M5: Final | N5: Y | O5: Accruals | P5: N | Q5: N | R5: 161814 | S5: 0 | T5: 16817 | U5: 457055.91 | V5: 0 | W5: 16299.78 | X5: 0 | Y5: 0 | Z5: 6859.08 | AA5: 600 | AB5: 66992.28 | AC5: 0 | AD5: 8167 | AE5: 0 | AF5: 1938.42 | AG5: 0 | AH5: 7109.77 | AI5: 0 | AJ5: 0 | AK5: 0 | AL5: 0 | AM5: 0 | AN5: 0 | AO5: 0 | AP5: 239536.51 | AQ5: 145.14 | AR5: 250139.22 | AS5: 34115.31 | AT5: 66337.52 | AU5: 0 | AV5: 48010.95 | AW5: 4638.92 | AX5: 1853.33 | AY5: 0 | AZ5: 461.19 | BA5: 4795.61 | BB5: 1027 | BC5: 4098.43 | BD5: 1176.74 | BE5: 7367.32 | BF5: 0 | BG5: 3051.9 | BH5: 8835.62 | BI5: 4403.38 | BJ5: 0 | BK5: 15656.15 | BL5: 1494 | BM5: 1046.08 | BN5: 12821.04 | BO5: 17807 | BP5: 9475.94 | BQ5: 9201.94 | BR5: 0 | BS5: 0 | BT5: 0 | BU5: 0 | BV5: 0 | BW5: 5026 | BX5: 0 | BY5: 0 | BZ5: 6000 | CA5: 0 | CB5: 0 | CD5: 0 | CE5: 0 | CF5: 800 | CG5: -21460 | CH5: 21843 | CI5: 0 | CJ5: 0
A6: 302 | B6: 1100 | C6: Pavilion StudyCt PRU | D6: 3021100 | E6: No | G6: Authorised | H6: 0 | I6: 0 | J6: 20202021 | K6: XG21 | L6: Y | M6: Final | N6: Y | O6: Accruals | P6: N | Q6: N | R6: 125548 | S6: 0 | T6: 32883 | U6: 1665301.56 | V6: 0 | W6: 960982.95 | X6: 0 | Y6: 45293.49 | Z6: 0 | AA6: 7447.02 | AB6: 0 | AC6: 151036.67 | AD6: 0 | AE6: 21256.11 | AF6: 0 | AG6: 0 | AH6: 9973.8 | AI6: 0 | AJ6: 0 | AK6: 0 | AL6: 0 | AM6: 0 | AN6: 0 | AO6: 50621.28 | AP6: 1622760.46 | AQ6: 183460.23 | AR6: 282350.76 | AS6: 31496.89 | AT6: 63750.42 | AU6: 0 | AV6: 0 | AW6: 11148.98 | AX6: 7781.73 | AY6: 25623.15 | AZ6: 1404 | BA6: 12286.64 | BB6: 3168 | BC6: 29591.03 | BD6: 2567.99 | BE6: 12804.2 | BF6: 0 | BG6: 9692 | BH6: 28574.42 | BI6: 29023.68 | BJ6: 8595.75 | BK6: 23395.05 | BL6: 3704 | BM6: 34093.55 | BN6: 16720.87 | BO6: 58060.87 | BP6: 202511.07 | BQ6: 41469.14 | BR6: 0 | BS6: 0 | BT6: 0 | BU6: 0 | BV6: 0 | BW6: 6329 | BX6: 0 | BY6: 0 | BZ6: 6000 | CA6: 0 | CB6: 0 | CD6: 0 | CE6: 0 | CF6: 0 | CG6: 291426 | CH6: 39212 | CI6: 0 | CJ6: 0
A7: 302 | B7: 1102 | C7: Northgate PRU | D7: 3021102 | E7: No | G7: Authorised | H7: 0 | I7: 0 | J7: 20202021 | K7: XG21 | L7: Y | M7: Final | N7: Y | O7: Accruals | P7: N | Q7: N | R7: 174990 | S7: 0 | T7: 0 | U7: 459862.74 | V7: 0 | W7: 9158.35 | X7: 0 | Y7: 5210.39 | Z7: 5255.2 | AA7: 2162.35 | AB7: 0 | AC7: 19407 | AD7: 0 | AE7: 0 | AF7: 0 | AG7: 0 | AH7: 0 | AI7: 0 | AJ7: 0 | AK7: 0 | AL7: 0 | AM7: 2125 | AN7: 3920 | AO7: 3301 | AP7: 331226.32 | AQ7: 1054.38 | AR7: 28212.19 | AS7: 0 | AT7: 39466.72 | AU7: 0 | AV7: 0 | AW7: 6310.78 | AX7: 1167.31 | AY7: 3917.81 | AZ7: 0 | BA7: 2574.65 | BB7: 0 | BC7: 14.88 | BD7: 0 | BE7: 0 | BF7: 0 | BG7: 980.93 | BH7: 7763.01 | BI7: 6863.48 | BJ7: 991.4 | BK7: 14873.51 | BL7: 360 | BM7: 0 | BN7: 1614.11 | BO7: 11556 | BP7: 20526.26 | BQ7: 27169.29 | BR7: 0 | BS7: 0 | BT7: 0 | BU7: 0 | BV7: 0 | BW7: 4472.42 | BX7: 0 | BY7: 0 | BZ7: 6000 | CA7: 0 | CB7: 0 | CD7: 0 | CE7: 3294.42 | CF7: 600 | CG7: 178149 | CH7: 1178 | CI7: 0 | CJ7: 0
A8: 302 | B8: 2002 | C8: Barnfield School | D8: 3022002 | E8: No | G8: Authorised | H8: 0 | I8: 1 | J8: 20202021 | K8: XG21 | L8: Y | M8: Final | N8: Y | O8: Accruals | P8: N | Q8: N | R8: 239216 | S8: 8322 | T8: 878 | U8: 2324293 | V8: 0 | W8: 77219 | X8: 0 | Y8: 176195 | Z8: 12357 | AA8: 0 | AB8: 13810 | AC8: 11446 | AD8: 12571 | AE8: 11768 | AF8: 4557 | AG8: -4 | AH8: 674 | AI8: 0 | AJ8: 0 | AK8: 0 | AL8: 0 | AM8: 21029 | AN8: 22484 | AO8: 89767 | AP8: 1242234 | AQ8: 0 | AR8: 674657 | AS8: 46443 | AT8: 92230 | AU8: 0 | AV8: 93549 | AW8: 14306 | AX8: 9567 | AY8: 18053 | AZ8: 0 | BA8: 26328 | BB8: 0 | BC8: 57373 | BD8: 2448 | BE8: 36063 | BF8: 30976 | BG8: 29701 | BH8: 37197 | BI8: 16089 | BJ8: 0 | BK8: 33814 | BL8: 11567 | BM8: 6601 | BN8: 85470 | BO8: 24884 | BP8: 124018 | BQ8: 25185 | BR8: 0 | BS8: 0 | BT8: 42395 | BU8: 0 | BV8: 8322 | BW8: 9126 | BX8: 0 | BY8: 42395 | BZ8: 6000 | CA8: 0 | CB8: 0 | CD8: 22449 | CE8: 29950 | CF8: 21573 | CG8: 214661 | CH8: 0 | CI8: 0 | CJ8: 0
A9: 302 | B9: 2003 | C9: Bell Lane School | D9: 3022003 | E9: No | G9: Authorised | H9: 0 | I9: 1 | J9: 20202021 | K9: XG21 | L9: Y | M9: Final | N9: Y | O9: Accruals | P9: N | Q9: N | R9: -294047 | S9: 38459 | T9: 0 | U9: 2009964.82 | V9: 0 | W9: 79572.24 | X9: 0 | Y9: 211164.99 | Z9: 9976.4 | AA9: 74778.72 | AB9: 120 | AC9: 7780.71 | AD9: 9271.53 | AE9: 14188.35 | AF9: 14231.47 | AG9: 1270 | AH9: 1104.84 | AI9: 0 | AJ9: 164301 | AK9: 0 | AL9: 0 | AM9: 19243 | AN9: 17980 | AO9: 64129 | AP9: 934777.84 | AQ9: 0 | AR9: 502151.97 | AS9: 88773.85 | AT9: 115903 | AU9: 0 | AV9: 65977.33 | AW9: 150380.89 | AX9: 19078.3 | AY9: 581.63 | AZ9: 1288 | BA9: 44130.32 | BB9: 7002.18 | BC9: 10726.66 | BD9: 4339.17 | BE9: 17040.33 | BF9: 19535.85 | BG9: 8932.95 | BH9: 55691.64 | BI9: 14850.84 | BJ9: 0 | BK9: 25704.06 | BL9: 8176.53 | BM9: 2036.42 | BN9: 69208.24 | BO9: 112112.74 | BP9: 85268.23 | BQ9: 32354.6 | BR9: 0 | BS9: 0 | BT9: 1445.25 | BU9: 103838.97 | BV9: 17598.03 | BW9: 8596.75 | BX9: 0 | BY9: 1445.25 | BZ9: 6000 | CA9: 0 | CB9: 0 | CD9: 0 | CE9: 10042 | CF9: 0 | CG9: -157556 | CH9: 0 | CI9: 0 | CJ9: 81323
A10: 302 | B10: 2007 | C10: Brookland Junior School | D10: 3022007 | E10: No | G10: Authorised | H10: 0 | I10: 0 | J10: 20202021 | K10: XG21 | L10: Y | M10: Final | N10: Y | O10: Accruals | P10: N | Q10: N | R10: 108382 | S10: 0 | T10: 0 | U10: 1551781.96 | V10: 0 | W10: 117615.3 | X10: 0 | Y10: 98210 | Z10: 10968.08 | AA10: 6226.8 | AB10: 12331.5 | AC10: 17501.93 | AD10: 23626.49 | AE10: 6486.95 | AF10: 680 | AG10: 816 | AH10: 34512.82 | AI10: 0 | AJ10: 0 | AK10: 0 | AL10: 0 | AM10: 2676 | AN10: 17710 | AO10: 23624 | AP10: 1056394.01 | AQ10: 0 | AR10: 334952.54 | AS10: 43454.65 | AT10: 86387.49 | AU10: 0 | AV10: 37636.32 | AW10: 8223.64 | AX10: 4712.74 | AY10: 6783.15 | AZ10: 3082.3 | BA10: 16632.77 | BB10: 3857.65 | BC10: 24114.65 | BD10: 6289.77 | BE10: 18875.15 | BF10: 20083 | BG10: 20604.31 | BH10: 27915.98 | BI10: 14989.79 | BJ10: 0 | BK10: 12900.65 | BL10: 7544.56 | BM10: 624.2 | BN10: 37476.46 | BO10: 3400 | BP10: 137256.22 | BQ10: 24568.83 | BR10: 0 | BS10: 0 | BT10: 374 | BU10: 0 | BV10: 0 | BW10: 8027.5 | BX10: 0 | BY10: 374.8 | BZ10: 6000 | CA10: 0 | CB10: 8402.3 | CD10: 0 | CE10: 0 | CF10: 1942 | CG10: 72073 | CH10: 0 | CI10: 0 | CJ10: 0
A11: 302 | B11: 2008 | C11: Brookland Infant School | D11: 3022008 | E11: No | G11: Authorised | H11: 0 | I11: 1 | J11: 20202021 | K11: XG21 | L11: Y | M11: Final | N11: Y | O11: Accruals | P11: N | Q11: N | R11: 73306 | S11: 0 | T11: 0 | U11: 1453585.88 | V11: 0 | W11: 119526.81 | X11: 0 | Y11: 58489.97 | Z11: 10293.88 | AA11: 0 | AB11: 13972.14 | AC11: 22956.16 | AD11: 5342.5 | AE11: 0 | AF11: 0 | AG11: -1675.2 | AH11: 15873.06 | AI11: 0 | AJ11: 0 | AK11: 0 | AL11: 0 | AM11: 8792 | AN11: 14060 | AO11: 121575 | AP11: 846093.31 | AQ11: 0 | AR11: 479673.17 | AS11: 40383 | AT11: 72700.54 | AU11: 0 | AV11: 16060.95 | AW11: 7178.11 | AX11: 3099.7 | AY11: 6198.82 | AZ11: 0 | BA11: 6614.82 | BB11: 4940.81 | BC11: 18999.25 | BD11: 6289.77 | BE11: 22584.06 | BF11: 20083 | BG11: 20705.15 | BH11: 25305.74 | BI11: 7663.26 | BJ11: 0 | BK11: 8573.43 | BL11: 7945.88 | BM11: 693.44 | BN11: 64064.13 | BO11: 39328.14 | BP11: 74054.53 | BQ11: 24993.19 | BR11: 0 | BS11: 0 | BT11: 0 | BU11: 0 | BV11: 0 | BW11: 7472 | BX11: 0 | BY11: 0 | BZ11: 6000 | CA11: 0 | CB11: 0 | CD11: 0 | CE11: 0 | CF11: 2342 | CG11: 89530 | CH11: 7472 | CI11: 0 | CJ11: 0
A12: 302 | B12: 2009 | C12: Brunswick Park School | D12: 3022009 | E12: Yes | F12: 3022011 , | G12: Authorised | H12: 0 | I12: 1 | J12: 20202021 | K12: XG21 | L12: Y | M12: Final | N12: Y | O12: Accruals | P12: N | Q12: N | R12: 106700 | S12: 0 | T12: 32130 | U12: 2169657.71 | V12: 0 | W12: 110466.25 | X12: 0 | Y12: 116325.02 | Z12: 31367.72 | AA12: 2394.92 | AB12: 1420 | AC12: 56761.54 | AD12: 14629.12 | AE12: 0 | AF12: 10697.25 | AG12: -1658.49 | AH12: 5119.12 | AI12: 0 | AJ12: 0 | AK12: 0 | AL12: 0 | AM12: 32269 | AN12: 19530 | AO12: 71190 | AP12: 1380417.26 | AQ12: 0 | AR12: 498721.29 | AS12: 37692.35 | AT12: 81178.85 | AU12: 0 | AV12: 90655.66 | AW12: 9404.83 | AX12: 18465.66 | AY12: 664.26 | AZ12: 0 | BA12: 13428.33 | BB12: 3610.03 | BC12: 40346.61 | BD12: 5391.79 | BE12: 26751.7 | BF12: 39900 | BG12: 13787.15 | BH12: 81759.06 | BI12: 10306.51 | BJ12: 0 | BK12: 20663 | BL12: 14028.44 | BM12: 8093.01 | BN12: 84261.13 | BO12: 10710 | BP12: 140789.46 | BQ12: 29137.78 | BR12: 0 | BS12: 0 | BT12: 0 | BU12: 0 | BV12: 0 | BW12: 9012.1 | BX12: 0 | BY12: 0 | BZ12: 6000 | CA12: 0 | CB12: 0 | CD12: 0 | CE12: 2026.1 | CF12: 0 | CG12: 86705 | CH12: 9013 | CI12: 30103 | CJ12: 0
A13: 302 | B13: 2011 | C13: Church Hill School | D13: 3022011 | E13: Yes | F13: 3022009 , | G13: Authorised | H13: 0 | I13: 2 | J13: 20202021 | K13: XG21 | L13: Y | M13: Final | N13: Y | O13: Accruals | P13: N | Q13: N | R13: -93388 | S13: 0 | T13: 6609 | U13: 978875.44 | V13: 0 | W13: 25503.31 | X13: 0 | Y13: 49075.02 | Z13: 8666.84 | AA13: 1442.4 | AB13: 2064.42 | AC13: 7223.5 | AD13: 9983.18 | AE13: 0 | AF13: 1350 | AG13: -756.33 | AH13: 3857.78 | AI13: 0 | AJ13: 0 | AK13: 0 | AL13: 0 | AM13: 25000 | AN13: 9760 | AO13: 52671 | AP13: 564750.05 | AQ13: 0 | AR13: 261959.97 | AS13: 32128.66 | AT13: 53442.79 | AU13: 0 | AV13: 42500.31 | AW13: 7476.36 | AX13: 808.34 | AY13: 330.54 | AZ13: 0 | BA13: 13454.52 | BB13: 3015 | BC13: 31535.09 | BD13: 168.55 | BE13: 13585.26 | BF13: 20958 | BG13: 6236.78 | BH13: 22095.64 | BI13: 6406.34 | BJ13: 0 | BK13: 6094.17 | BL13: 7849.62 | BM13: 1310.59 | BN13: 58752.74 | BO13: 0 | BP13: 40753.84 | BQ13: 14234.07 | BR13: 2077.33 | BS13: 0 | BT13: 0 | BU13: 0 | BV13: 0 | BW13: 6340 | BX13: 0 | BY13: 0 | BZ13: 6000 | CA13: 0 | CB13: 0 | CD13: 0 | CE13: 5960 | CF13: 0 | CG13: -130596 | CH13: 6989 | CI13: 0 | CJ13: 0
A14: 302 | B14: 2014 | C14: Colindale School | D14: 3022014 | E14: No | G14: Authorised | H14: 0 | I14: 0 | J14: 20202021 | K14: XG21 | L14: Y | M14: Final | N14: Y | O14: Accruals | P14: N | Q14: N | R14: 306905 | S14: 0 | T14: 0 | U14: 3392747.05 | V14: 0 | W14: 272048.48 | X14: 0 | Y14: 256894.99 | Z14: 16707.52 | AA14: 9590.4 | AB14: 32485.56 | AC14: 37535 | AD14: 20491.12 | AE14: 11341.63 | AF14: 522.72 | AG14: 1902.45 | AH14: 1050.78 | AI14: 0 | AJ14: 0 | AK14: 0 | AL14: 0 | AM14: 9960 | AN14: 30150 | AO14: 128284 | AP14: 1933932.57 | AQ14: 0 | AR14: 987813.49 | AS14: 130772.12 | AT14: 142890.94 | AU14: 0 | AV14: 68115.38 | AW14: 21558.87 | AX14: 4773.49 | AY14: 1001.16 | AZ14: 1875 | BA14: 98291.03 | BB14: 0 | BC14: 26563.98 | BD14: 6479.23 | BE14: 65791.25 | BF14: 111839.8 | BG14: 35979.13 | BH14: 65279.12 | BI14: 35906.63 | BJ14: 0 | BK14: 36434.16 | BL14: 17325.44 | BM14: 4641.05 | BN14: 97072.24 | BO14: 36746 | BP14: 119599.82 | BQ14: 74666.77 | BR14: 0 | BS14: 0 | BT14: 4683.03 | BU14: 0 | BV14: 0 | BW14: 11832.25 | BX14: 0 | BY14: 4683.03 | BZ14: 6000 | CA14: 0 | CB14: 7250 | CD14: 0 | CE14: 9265.28 | CF14: 0 | CG14: 398585 | CH14: 0 | CI14: 0 | CJ14: 0
A15: 302 | B15: 2015 | C15: Coppetts Wood School | D15: 3022015 | E15: No | G15: Authorised | H15: 0 | I15: 1 | J15: 20202021 | K15: XG21 | L15: Y | M15: Final | N15: Y | O15: Accruals | P15: N | Q15: N | R15: 373987.73 | S15: 140665.27 | T15: 12530 | U15: 1415013.58 | V15: 0 | W15: 248662.03 | X15: 0 | Y15: 103565.01 | Z15: 0 | AA15: 7770.93 | AB15: 0 | AC15: 12587.24 | AD15: 19417.1 | AE15: 1015 | AF15: 4999.6 | AG15: 14066.38 | AH15: 11472.12 | AI15: 0 | AJ15: 197079 | AK15: -4684 | AL15: 0 | AM15: 29734 | AN15: 10740 | AO15: 56767.96 | AP15: 777156.95 | AQ15: 0 | AR15: 488497.73 | AS15: 35194.11 | AT15: 65286.89 | AU15: 0 | AV15: 4609.59 | AW15: 12946.03 | AX15: 2012.67 | AY15: 9887.01 | AZ15: 1000 | BA15: 46221.78 | BB15: 6762 | BC15: 58027.75 | BD15: 5454.23 | BE15: 23015.62 | BF15: 38570 | BG15: 6496.24 | BH15: 41058.27 | BI15: 27421.58 | BJ15: 0 | BK15: 13485 | BL15: 2040 | BM15: 977 | BN15: 66665.12 | BO15: 106343.81 | BP15: 55140.71 | BQ15: 28158.59 | BR15: 0 | BS15: 0 | BT15: 0 | BU15: 137809.38 | BV15: 68558.89 | BW15: 6992.5 | BX15: 0 | BY15: 0 | BZ15: 6000 | CA15: 0 | CB15: 0 | CD15: 0 | CE15: 8301.5 | CF15: 0 | CG15: 387370 | CH15: 11221 | CI15: 0 | CJ15: 126692
A16: 302 | B16: 2016 | C16: Courtland School | D16: 3022016 | E16: No | G16: Authorised | H16: 0 | I16: 0 | J16: 20202021 | K16: XG21 | L16: Y | M16: Final | N16: Y | O16: Accruals | P16: N | Q16: N | R16: 76798 | S16: 0 | T16: 14565 | U16: 990298.81 | V16: 0 | W16: 62591.15 | X16: 0 | Y16: 30263.97 | Z16: 8879.6 | AA16: 0 | AB16: 0 | AC16: 243.61 | AD16: 5407.63 | AE16: 534.82 | AF16: 0 | AG16: 22066.5 | AH16: 16803.43 | AI16: 0 | AJ16: 0 | AK16: 0 | AL16: 0 | AM16: 6684 | AN16: 9800 | AO16: 55153 | AP16: 577660.52 | AQ16: 7529.38 | AR16: 207561.17 | AS16: 32799.2 | AT16: 61013.7 | AU16: 0 | AV16: 15959.31 | AW16: 5539.98 | AX16: 258 | AY16: 335.31 | AZ16: 0 | BA16: 7902.76 | BB16: 3753.75 | BC16: 18900 | BD16: 3020.15 | BE16: 11538.47 | BF16: 20833.25 | BG16: 5669.99 | BH16: 48165.93 | BI16: 8849.49 | BJ16: 0 | BK16: 6386.22 | BL16: 5593.41 | BM16: 0 | BN16: 33449.32 | BO16: 0 | BP16: 68122.23 | BQ16: 22284.98 | BR16: 0 | BS16: 0 | BT16: 0 | BU16: 0 | BV16: 0 | BW16: 6351 | BX16: 0 | BY16: 0 | BZ16: 6000 | CA16: 0 | CB16: 0 | CD16: 0 | CE16: 10573 | CF16: 16720 | CG16: 95678 | CH16: 10343 | CI16: 0 | CJ16: 0
A17: 302 | B17: 2017 | C17: Cromer Road School | D17: 3022017 | E17: No | G17: Authorised | H17: 0 | I17: 0 | J17: 20202021 | K17: XG21 | L17: Y | M17: Final | N17: Y | O17: Accruals | P17: N | Q17: N | R17: 72273 | S17: 0 | T17: 3416 | U17: 1863712.56 | V17: 0 | W17: 36219.75 | X17: 0 | Y17: 146035.98 | Z17: 18290 | AA17: 4693 | AB17: 4000 | AC17: 128 | AD17: 12664.49 | AE17: 9545 | AF17: 910 | AG17: 32752.79 | AH17: 3721.35 | AI17: 0 | AJ17: 0 | AK17: 0 | AL17: 0 | AM17: 0 | AN17: 24556 | AO17: 84737 | AP17: 1137310.53 | AQ17: 0 | AR17: 406248.35 | AS17: 34470 | AT17: 74669.52 | AU17: 0 | AV17: 89039.52 | AW17: 0 | AX17: 2886 | AY17: 8121.88 | AZ17: 0 | BA17: 14950.34 | BB17: 3923.62 | BC17: 35103.8 | BD17: 15797.33 | BE17: 18342.91 | BF17: 45342.1 | BG17: 11983.93 | BH17: 43451.31 | BI17: 11597.99 | BJ17: 0 | BK17: 16822.27 | BL17: 11944.87 | BM17: 3032.6 | BN17: 108584.97 | BO17: 8874.33 | BP17: 51155.91 | BQ17: 43439.84 | BR17: 0 | BS17: 0 | BT17: 0 | BU17: 0 | BV17: 0 | BW17: 8702.5 | BX17: 100001 | BY17: 0 | BZ17: 6000 | CA17: 0 | CB17: 0 | CD17: 0 | CE17: 4559.5 | CF17: 31693 | CG17: 85452 | CH17: 7560 | CI17: 100000 | CJ17: 0
A18: 302 | B18: 2019 | C18: Deansbrook Infant School | D18: 3022019 | E18: No | G18: Authorised | H18: 0 | I18: 0 | J18: 20202021 | K18: XG21 | L18: Y | M18: Final | N18: Y | O18: Accruals | P18: N | Q18: N | R18: 174987 | S18: 0 | T18: 9087 | U18: 1397391.81 | V18: 0 | W18: 66529.48 | X18: 0 | Y18: 67250 | Z18: 9038.96 | AA18: 0 | AB18: 1000 | AC18: 23275.03 | AD18: 25.02 | AE18: 2376.13 | AF18: 0 | AG18: 3 | AH18: 4127.46 | AI18: 0 | AJ18: 0 | AK18: 0 | AL18: 0 | AM18: 6995 | AN18: 11440 | AO18: 87439 | AP18: 794843.8 | AQ18: 7785.06 | AR18: 415783.75 | AS18: 46100.44 | AT18: 76231.97 | AU18: 0 | AV18: 56172.5 | AW18: 6876.9 | AX18: 1637.5 | AY18: 376.63 | AZ18: 0 | BA18: 10309.05 | BB18: 6578.95 | BC18: 2760.45 | BD18: 812.97 | BE18: 28466.45 | BF18: 17589.75 | BG18: 5721.69 | BH18: 7671.31 | BI18: 15198.65 | BJ18: 0 | BK18: 17044.94 | BL18: 6464.86 | BM18: 363.23 | BN18: 37463.21 | BO18: 24775 | BP18: 51917.98 | BQ18: 28868.85 | BR18: 0 | BS18: 0 | BT18: 1500 | BU18: 0 | BV18: 0 | BW18: 7244.5 | BX18: 0 | BY18: 1500 | BZ18: 6000 | CA18: 0 | CB18: 0 | CD18: 0 | CE18: 11195.5 | CF18: 182562 | CG18: 0 | CH18: 6636 | CI18: 0 | CJ18: 0
A19: 302 | B19: 2021 | C19: Dollis Primary School | D19: 3022021 | E19: No | G19: Authorised | H19: 0 | I19: 0 | J19: 20202021 | K19: XG21 | L19: Y | M19: Final | N19: Y | O19: Accruals | P19: N | Q19: N | R19: 359026 | S19: 0 | T19: 17747 | U19: 2776508.69 | V19: 0 | W19: 107568.6 | X19: 0 | Y19: 195050 | Z19: 13026.88 | AA19: 2740 | AB19: 10271.71 | AC19: 18511.93 | AD19: 16049.55 | AE19: 5460 | AF19: 2316.71 | AG19: 1626.42 | AH19: 936.43 | AI19: 0 | AJ19: 0 | AK19: 0 | AL19: 0 | AM19: 1555 | AN19: 20680 | AO19: 87067 | AP19: 1409569.33 | AQ19: 0 | AR19: 953209.38 | AS19: 100204.01 | AT19: 181285.01 | AU19: 0 | AV19: 31915.55 | AW19: 248163.01 | AX19: 9726.65 | AY19: 772 | AZ19: 3477.94 | BA19: 18765.49 | BB19: 12661.45 | BC19: 34643.91 | BD19: 10952.86 | BE19: 56301.36 | BF19: 58112 | BG19: 30106.9 | BH19: 53826.67 | BI19: 22344.71 | BJ19: 0 | BK19: 26589.31 | BL19: 20345.55 | BM19: 2011.33 | BN19: 62060.4 | BO19: 7160 | BP19: 67079.76 | BQ19: 37032.34 | BR19: 0 | BS19: 0 | BT19: 0 | BU19: 0 | BV19: 0 | BW19: 10415 | BX19: 0 | BY19: 0 | BZ19: 6000 | CA19: 0 | CB19: 15500 | CD19: 0 | CE19: 6150 | CF19: 45131 | CG19: 114947 | CH19: 6512 | CI19: 0 | CJ19: 0
A20: 302 | B20: 2023 | C20: Edgware Primary | D20: 3022023 | E20: No | G20: Authorised | H20: 0 | I20: 1 | J20: 20202021 | K20: XG21 | L20: Y | M20: Final | N20: Y | O20: Accruals | P20: N | Q20: N | R20: 11478 | S20: 0 | T20: 2052 | U20: 2699389.49 | V20: 0 | W20: 137799.89 | X20: 0 | Y20: 243100.03 | Z20: 11801.08 | AA20: 6860 | AB20: 750 | AC20: 3079.24 | AD20: 12057.12 | AE20: 0 | AF20: 0 | AG20: 158.5 | AH20: 8724.85 | AI20: 0 | AJ20: 0 | AK20: 0 | AL20: 0 | AM20: 28694 | AN20: 23410 | AO20: 100128 | AP20: 1426401.49 | AQ20: 0 | AR20: 883389.68 | AS20: 67559.17 | AT20: 209134.37 | AU20: 0 | AV20: 112374.23 | AW20: 27356.81 | AX20: 4554.5 | AY20: 842.24 | AZ20: 0 | BA20: 49393.75 | BB20: 7675.2 | BC20: 56108.94 | BD20: 15498.48 | BE20: 34175.07 | BF20: 23952 | BG20: 7070.86 | BH20: 79689.26 | BI20: 39351.49 | BJ20: 0 | BK20: 14806.98 | BL20: 14149.01 | BM20: 2538.42 | BN20: 126401.78 | BO20: 52545.76 | BP20: 46990.23 | BQ20: 32449.48 | BR20: 0 | BS20: 0 | BT20: 0 | BU20: 0 | BV20: 0 | BW20: 10945.75 | BX20: 0 | BY20: 0 | BZ20: 6000 | CA20: 0 | CB20: 0 | CD20: 12997.75 | CE20: 0 | CF20: 0 | CG20: -46979 | CH20: 0 | CI20: 0 | CJ20: 0
